Workbook

Sheet Introduction & Options d'Unité
T5: Métrique
T6: Impérial

Sheet CLUF
A1: LE PRÉSENT CONTRAT DE LICENCE D’UTILISATEUR FINAL (CLUF) EST UN ACCORD JURIDIQUE ENTRE VOUS, L’UTILISATEUR FINAL, EN VOTRE QUALITÉ DE PERSONNE PHYSIQUE ET/OU D’AGENT DE VOTRE ENTREPRISE, INSTITUTION OU AUTRE ENTITÉ (ci-après dénommé le « Licencié »), ET SON MAJESTÉ LE ROI DU CHEF DU CANADA, REPRÉSENTÉE PAR LE MINISTRE DES RESSOURCES NATURELLES (ci -après dénommé « RNCan »)
A3: ATTENDU QUE RNCAN AFFIRME QU’IL A TOUS LES POUVOIRS NÉCESSAIRES POUR OCTROYER UNE LICENCE POUR L’OUTIL DE DIMENSIONNEMENT ET DE SÉLECTION DES THERMOPOMPES À AIR V2.4, UN LOGICIEL BASÉ SUR EXCEL QUI GUIDE DE FAÇON INTERACTIVE LES UTILISATEURS DANS L'APPLICATION DU PROCESSUS ÉTAPE PAR ÉTAPE DECRIT DANS LE GUIDE DIMENSIONNEMENT ET DE SÉLECTION DES THERMOPOMPES À AIR ET LA FEUILLE DE TRAVAIL SOMMAIRE DES CARACTÉRISTIQUES CLÉS DE THERMOPOMPE À AIR DE RNCAN, TOUT EN FOURNISSANT DES FONCTIONNALITÉS SUPPLÉMENTAIRES DE REPRESENTATION GRAPHIQUE ET D'ANALYSE DU RENDEMENT (ci-après appelé le « Logiciel »)
A6: EN TÉLÉCHARGEANT, INSTALLANT, UTILISANT OU COPIANT LE LOGICIEL LE LICENCIÉ CONVIENT PAR LES PRÉSENTES D’ADHÉRER AUX CONDITIONS GÉNÉRALES CI-DESSOUS:
A8: 1 OCTROI DE LA LICENCE
A10: 1.1 | B10: Aux termes des conditions générales énoncées ci-après, RNCan accorde par les présentes, à vous le Licencié, une licence non exclusive d’utilisation du Logiciel.
A12: 1.2 | B12: Le Licencié ne doit pas divulguer, modifier, vendre, prêter ou transférer le Logiciel, accorder une sous-licence à son égard ou en faire l’ingénierie inverse ni céder de toute autre manière à un tiers les droits prévus par le présent CLUF.
A14: 1.3 | B14: Sous réserve de l’article 8.2, le Licencié ne peut faire plus d’une (1) copie de sauvegarde du Logiciel. La copie de sauvegarde doit être tenue confidentielle et n’être utilisée qu’à des fins de sauvegarde.
A16: 2 DURÉE
A18: 2.1 | B18: Le présent CLUF entre en vigueur dès la première utilisation du Logiciel par le Licencié ou dès que le Licencié en prend possession et demeure en vigueur jusqu’à ce qu’il soit résilié par le Licencié à la suite de la destruction par celui-ci de toutes les copies du Logiciel.
A21: 3 OBLIGATIONS DU LICENCIÉ
A23: 3.1 | B23: Le Licencié ne doit faire aucune déclaration ni représentation indiquant que RNCan ou le Gouvernement du Canada appuie ou approuve une recommandation, une étude, un rapport, un produit, un service ou une ligne de conduite à la suite de l’utilisation du Logiciel par le Licencié.
A25: 3.2 | B25: Les publications du Licencié faisant référence au Logiciel doivent indiquer l’origine du logiciel au moyen du texte suivant : « L’outil de dimensionnement et de sélection des thermopompes à air appartient à Son Majesté le Roi du chef du Canada représentée par le Ministre des Ressources naturelles © 2023». Le Licencié doit demandé l’approbation écrite préalable pour toute autre déclaration concernant RNCan qui va au-delà de l’origine du Logiciel.
A28: 4 MAINTENANCE ET SOUTIEN
A30: 4.1 | B30: Les parties comprennent et conviennent que, bien que le Licencié puisse signaler à RNCan tout bogue ou toute défectuosité technique du Logiciel, RNCan n’est pas tenu de fournir un soutien technique, des services de maintenance, des services de mise à jour, des avis de vices cachés ni d’assurer la correction de défauts pour le Logiciel.
A33: 5 TITRE
A35: 5.1 | B35: Le Licencié convient que le Logiciel est, et demeurera en tout temps, la propriété de RNCan. Le Licencié n’a aucun droit, titre ni intérêt à son égard et s’y afférant, sauf dans la mesure expressément prévue dans le présent CLUF.
A37: 5.2 | B37: Le Licencié reconnaît que le Logiciel est protégé par la Loi sur le droit d’auteur.
A39: 6 GARANTIE ET INDEMNISATION
A41: 6.1 | B41: Une licence est octroyée pour le Logiciel « tel quel ». RNCan ne fait à l’égard du Logiciel aucune représentation ou garantie, expresse ou tacite, découlant de la loi ou d’autres sources, y compris, mais sans toutefois s’y limiter son efficacité, son intégralité, son exactitude ou son utilité à des fins particulières.
A43: 6.2 | B43: RNCan ne peut être tenu responsable en cas de réclamations, de revendications ou d’actions en justice, quelle qu’en soit la nature de la cause, alléguant des pertes, des préjudices ou des dommages, directs ou indirects, pouvant résulter de la possession ou de l ’utilisation du Logiciel par le Licencié. RNCan ne peut aucunement être tenu responsable de la perte de revenus ou de contrats, ou de toute autre perte conséquente de quelque nature que ce soit, découlant de la possession ou de l ’utilisation du Logiciel par le Licencié.
A46: 6.3 | B46: Le Licencié indemnisera et défendra RNCan, ses employés, ses contractants, ses mandataires et ses fournisseurs en cas de réclamations, demandes, pertes, dommages, coûts (y compris les frais juridiques et les coûts sur une base d’indemnité substantielle), actions, poursuites ou procédures intentées par un tiers, étant de quelque manière que ce soit fondés sur, attribuables à ou issus de la possession, l’utilisation ou de la performance du Logiciel par le Licencié, ses employés ou ses mandataires.
A49: 7 RÉSILIATION
A51: 7.1 | B51: Sous réserve de l’article 8.2, si le Licencié manque à une obligation en vertu du présent CLUF et n’y remédie pas dans un délai de trente (30) jours civils, le présent CLUF est réputé avoir été résilié immédiatement sans préavis.
A53: 7.2 | B53: Nonobstant toute autre disposition du présent contrat, les articles 3.1 et 3.2 restent en vigueur après la fin du présent CLUF.
A55: 8 DESTRUCTION
A57: 8.1 | B57: Avant de céder, de vendre ou d’aliéner autrement un médium (électronique ou autre), le Licencié doit effacer ou autrement détruire toute version du Logiciel contenue sur ce médium.
A59: 8.2 | B59: À la résiliation ou à l’expiration du CLUF, le Licencié convient de ce qui suit :
B61: (1) retourner immédiatement à RNCan toutes les copies du Logiciel et toute documentation connexe, et effacer complètement ou détruire de toute autre manière la copie de sauvegarde du Logiciel prévue à l’article 1.3 sur le médium du Licencié, ou
B63: (2) effacer complètement ou détruire de toute autre manière toutes les copies du Logiciel, y compris, sans toutefois s’y limiter, la copie de sauvegarde prévue à l’article 1.3, ainsi que toute documentation connexe sur le médium du Licencié.
A65: 9 DROIT APPLICABLE
A67: 9.1 | B67: Le présent CLUF est interprété conformément aux lois provinciales ou territoriales en vigueur en Ontario, au Canada.
A69: 10 AVIS
A71: 10.1 | B71: Les avis, les demandes de renseignements et les autres communications mentionnées aux présentes doivent se faire par écrit et sont réputés avoir été dûment donnés une fois que RNCan en a confirmé réception:
C73: Ressources naturelles Canada
C74: Division de la propriété intellectuelle
C75: ipd-dpi@nrcan-rncan.gc.ca

Sheet Étape 1 Configuration de TP-Air
A1: ÉTAPE 1 : DÉFINIR LA CONFIGURATION DE THERMOPOMPE À AIR | S1: DO NOT TOUCH THESE CELLS
T2: Option A: Thermopompe à air à conduit central
A3: Données de conception de l'étape 1 | F3: Référence | T3: Option B: Thermopompe à air mini-bibloc sans conduit, une seule zone
F4: Cet onglet est utilisé pour définir la configuration de thermopompe à air dans l'habitation ou la zone envisagée pour l'installation. | T4: Option C: Thermopompe à air mini-bibloc sans conduit, plusieurs zones
F5: Cela comprend le type d'installation et le nombre d'unités requises. | T5: Option D: Thermopompe à air mini-bibloc avec conduit
A6: Configuration de thermopompe à air | B6: Option A: Thermopompe à air à conduit central | F6: Cette section réfère aux pages 6 à 9 du Guide de dimensionnement des thermopompes à air.
A7: =IF(OR(B6=T3,B6=T5),"Nombre d'unités",IF(B6=T4,"Nombre d'unités intérieures","")) ->  | B7: 1
A8: =IF(B6=T4,"Nombre d'unités extérieures","") ->  | B8: 1 | F8: Après avoir effectué l'étape 1, vous aurez : | T8: Nouveau système CVC
A9: Type d'installation | B9: Remplacement complet du système | F9: Sélectionné le type de thermopompe à air le plus approprié pour l'application. | T9: Remplacement complet du système
F10: Pour les applications de thermopompe à air sans conduit, estimé le nombre d'unités requises. | T10: Ajout de thermopompe à air
F11: Inscrit le type d'installation : nouvelle habitation/remplacement de CVC complet/ajout de thermopompe à air.
T12: 1
T13: 2
T14: 3
T15: 4
T16: 5
A18: LEGEND
A20: Saisie | B20: Dans ces cellules, l'utilisateur doit saisir une valeur
A22: Menu déroulant | B22: Dans ces cellules, un menu déroulant permettra à l'utilisateur de choisir une valeur précise
A24: Calcul interne | B24: Les valeurs de ces cellules proviennent des calculs internes de l'outil - elles ne nécessitent aucune saisie de l'utilisateur.

Sheet Étape 2 Unités Intérieure
A1: ÉTAPE 2 : CHOISIR UN OU DES TYPES D'UNITÉ INTÉRIEURE À UTILISER AVEC UNE THERMOPOMPE À AIR MINI-BIBLOC SANS CONDUIT | S1: DO NOT TOUCH THESE CELLS
T2: =IF(OR('Étape 1 Configuration de TP-Air'!B6='Étape 1 Configuration de TP-Air'!T2,'Étape 1 Configuration de TP-Air'!B6='Étape 1 Configuration de TP-Air'!T5),"Non", "Oui") -> Non
A3: Données de conception de l'étape 2 | F3: Référence
F4: Cette section réfère aux pages 10 à 12 du Guide de dimensionnement des thermopompes à air. | T4: Option 2A : Installée au mur
A5: =IF(OR('Étape 1 Configuration de TP-Air'!B6='Étape 1 Configuration de TP-Air'!T3,'Étape 1 Configuration de TP-Air'!B6='Étape 1 Configuration de TP-Air'!T4),"","• Pas d'unités intérieures") -> • Pas d'unités intérieures | T5: Option 2B : Installée au plancher
A6: Unité intérieure #1 | B6: Option 2A : Installée au mur | F6: Après avoir effectué l'étape 2, vous aurez: | T6: Option 2C : Installée au plafond
A7: =IF('Étape 1 Configuration de TP-Air'!$B$7<2,"","Unité intérieure #2") ->  | B7: Option 2A : Installée au mur | F7: Estimé le nombre d'unités intérieures requises pour l'application de thermopompe à air sans conduit. | G7: Estimé le nombre d'unités intérieures requises pour l'application de thermopompe à air sans conduit. | H7: Estimé le nombre d'unités intérieures requises pour l'application de thermopompe à air sans conduit. | I7: Estimé le nombre d'unités intérieures requises pour l'application de thermopompe à air sans conduit. | J7: Estimé le nombre d'unités intérieures requises pour l'application de thermopompe à air sans conduit. | K7: Estimé le nombre d'unités intérieures requises pour l'application de thermopompe à air sans conduit. | L7: Estimé le nombre d'unités intérieures requises pour l'application de thermopompe à air sans conduit. | M7: Estimé le nombre d'unités intérieures requises pour l'application de thermopompe à air sans conduit. | T7: Option 2D : Avec conduit (dissimulée)
A8: =IF('Étape 1 Configuration de TP-Air'!$B$7<3,"","Unité intérieure #3") ->  | B8: Option 2A : Installée au mur | F8: Sélectionné le ou les types d'unité intérieure qui conviennent le mieux à l'application. | G8: Sélectionné le ou les types d'unité intérieure qui conviennent le mieux à l'application. | H8: Sélectionné le ou les types d'unité intérieure qui conviennent le mieux à l'application. | I8: Sélectionné le ou les types d'unité intérieure qui conviennent le mieux à l'application. | J8: Sélectionné le ou les types d'unité intérieure qui conviennent le mieux à l'application. | K8: Sélectionné le ou les types d'unité intérieure qui conviennent le mieux à l'application. | L8: Sélectionné le ou les types d'unité intérieure qui conviennent le mieux à l'application. | M8: Sélectionné le ou les types d'unité intérieure qui conviennent le mieux à l'application.
A9: =IF('Étape 1 Configuration de TP-Air'!$B$7<4,"","Unité intérieure #4") ->  | B9: Option 2C : Installée au plafond
A10: =IF('Étape 1 Configuration de TP-Air'!$B$7<5,"","Unité intérieure #5") ->  | B10: Option 2B : Installée au plancher

Sheet Étape 3 Charges de Conception
A1: ÉTAPE 3 : ESTIMER LES CHARGES DE CHAUFFAGE ET DE REFROIDISSEMENT DE CONCEPTION
E2: Design Step 3 Reference
A3: Données de conception de l'étape 3 | E3: Données climatiques | S3: DO NOT TOUCH THESE CELLS | Y3: Référence
A4: Option de la sélection d'unités | Y4: Cette section réfère aux pages 13 à 25 du Guide de dimensionnement des thermopompes à air.
A5: Température | B5: °F
A6: Charges de chauffage et de climatisation | B6: BTU/hr
A7: Données climatiques
A8: Pays | B8: CAN | T8: Option A: Estimation des charges selon la norme d'analyse des charges CSA F280; | Y8: Après avoir effectué l'étape 3, vous aurez:
A9: Province | B9: ON | T9: Option B: Estimation des charges selon un audit énergétique; | Y9: Estimé les charges de chauffage et de refroidissement de conception pour l'ensemble de l'habitation ou l'espace visé.
A10: Ville | B10: Ottawa (M-C Int'l Airport) | C10: (Attendez 5 secondes avant d'effectuer la sélection) | T10: Option C: Estimation des charges selon un modèle énergétique; | Y10: Estimé, dans le cas d'amélioration de systèmes à conduit central, le débit d'air maximum des systèmes de conduit existants de l'habitation.
A11: Type de climat | B11: =VLOOKUP($B$10,'Climate Zones'!$D$2:$F$1686,3,FALSE) -> Très-froid | T11: Option D: Estimation des charges selon les capacités des équipements existants. | Y11: Créé une courbe de charge de chauffage pour l'ensemble de l'habitation ou de l'espace visé afin de faciliter la sélection de l'équipement de thermopompe à air.
A12: Degrés-jours de chauffage (métrique) | B12: =VLOOKUP($B$10,'Climate Zones'!$D$2:$F$1686,2,FALSE) -> 4500
A13: Données de charge
A14: Méthode d'estimation des charges de conception | B14: Option A: Estimation des charges selon la norme d'analyse des charges CSA F280; | T14: =IF(NOT(A20=""),"Oui","") -> 
A15: =IF(OR($B$14=$T$8,$B$14=$T$10),"Charge de chauffage de conception",IF($B$14=$T$9,"Charge de chauffage si toutes les améliorations de l'enveloppe du bâtiment étaient mises en oeuvre",IF(B14=T11,"Capacité de chauffage (nominale)",""))) -> Charge de chauffage de conception | B15: 40000 | C15: =$B$6 -> BTU/hr | T15: =IF(NOT(A20=""),"Non","") -> 
A16: =IF(OR($B$14=$T$8,$B$14=$T$10),"Température de chauffage de conception",IF(OR($B$14=$T$9,$B$14=$T$11),"Température de chauffage de conception","")) -> Température de chauffage de conception | B16: =IF($B$5="°"&Dropdown_Menus!$F$3,ROUND(VLOOKUP($B$10,'Climate Zones'!$D$2:$G$1686,4,FALSE)*(9/5)+32,0),VLOOKUP($B$10,'Climate Zones'!$D$2:$G$1686,4,FALSE)) -> -13 | C16: =$B$5 -> °F
A17: =IF(OR($B$14=$T$8,$B$14=$T$10),"Charge de refroidissement de conception",IF($B$14=$T$9,"Charge de refroidissement si toutes les améliorations de l'enveloppe du bâtiment étaient mises en oeuvre",IF(B14=T11,"Capacité de refroidissement (nominale)",""))) -> Charge de refroidissement de conception | B17: 18000 | C17: =$B$6 -> BTU/hr
A18: =IF(OR($B$14=$T$8,$B$14=$T$10),"Température de refroidissement de conception",IF(OR($B$14=$T$9,$B$14=$T$11),"Température de refroidissement de conception","")) -> Température de refroidissement de conception | B18: =IF($B$5="°"&Dropdown_Menus!$F$3,ROUND(VLOOKUP($B$10,'Climate Zones'!$D$2:$H$1686,5,FALSE)*(9/5)+32,0),VLOOKUP($B$10,'Climate Zones'!$D$2:$H$1686,5,FALSE)) -> 86 | C18: =$B$5 -> °F | U18: X-axis | V18: Y-axis
A19: =IF(B14=T9,"Économies (%) en effectuant toutes les améliorations recommandées pour le système de chauffage","") ->  | B19: 12 | C19: =IF(B14=T9,"%","") ->  | T19: Max | U19: ='Design Load Calcs'!O12 -> 110 | V19: =IF($B$6=Dropdown_Menus!$F$2,CEILING($B$15,10000),CEILING($B$15,10)) -> 40000
A20: =IF(B14=T11,"Problèmes de confort existants/améliorations récentes de l'habitation?",IF(B14=T9,"autre que le chauffage des locaux","")) ->  | B20: Oui | T20: Min | U20: ='Design Load Calcs'!O6 -> -20 | V20: 0
A21: =+IF(B14=T11,"Surdimensionnement présumé de l'équipement existant", "") ->  | B21: 125 | T21: Major Unit | U21: 10 | V21: =IF($B$6=Dropdown_Menus!$F$2,10000,2) -> 10000
A23: Données concernant la maison
A24: Type de maison | B24: Individuelle
A25: Année de construction | B25: post-2005
A26: Aire totale de la surface couverte par la thermopompe | B26: 2000 | C26: pi²
A28: Valeurs de conception de l'étape 3 | E28: Conversion d'unité | T28: Oversizing | U28: 0
A29: Notes et Commentaires : Charges en chauffage et en climatisation | B29: Comparaison de la charge en chauffage | I29: Conversion d'unité
A30: =IFERROR(IF(B14=T11,IF(B21=140,"Charge en chauffage en présumant un surdimensionnement de 140%: "&ROUND('Design Load Calcs'!B23,IF($B$6=Dropdown_Menus!$F$2,-2,1))&" "&C15&" à une température de conception de "&B16&C16,IF(B21=125,"Charge en chauffage en présumant un surdimensionnement de 125%: "&ROUND('Design Load Calcs'!B23,IF($B$6=Dropdown_Menus!$F$2,-2,1))&" "&C15&" à une température de conception de "&B16&C16,IF(B21=0,"Charge en chauffage en ne présumant aucun surdimensionnement: "&ROUND('Design Load Calcs'!C23,IF($B$6=Dropdown_Menus!$F$2,-2,1))&" "&C15&" à une température de conception de "&B16&C16))),"Charge en chauffage en ne présumant aucun surdimensionnement: "&ROUND('Design Load Calcs'!B23,IF($B$6=Dropdown_Menus!$F$2,-2,1))&" "&C15&" à une température de conception de "&B16&C16 ),"") -> Charge en chauffage en ne présumant aucun surdimensionnement: 40000 BTU/hr à une température de conception de -13°F | F30: °F | H30: °C | J30: BTU/h | L30: kW | U30: 125
A31: =IFERROR(IF(B14=T11,IF(B21=140,"Charge en climatisation en présumant un surdimensionnement de 140% : "&ROUND('Design Load Calcs'!B25,IF($B$6=Dropdown_Menus!$F$2,-2,1))&" "&C17&" à la température de conception de "&B18&C18,IF(B21=125,"Charge en climatisation en présumant un surdimensionnement de 125%: "&ROUND('Design Load Calcs'!B25,IF($B$6=Dropdown_Menus!$F$2,-2,1))&" "&C17&" à la température de conception de "&B18&C18,IF(B21=0,"Charge en climatisation en ne présumant aucun surdimensionnement : "&ROUND('Design Load Calcs'!C25,IF($B$6=Dropdown_Menus!$F$2,-2,1))&" "&C17&" à la température de conception de "&B18&C18))),"Charge en climatisation en ne présumant aucun surdimensionnement : "&ROUND('Design Load Calcs'!B25,IF($B$6=Dropdown_Menus!$F$2,-2,1))&" "&C17&" à la température de conception de "&B18&C18 ),"") -> Charge en climatisation en ne présumant aucun surdimensionnement : 18000 BTU/hr à la température de conception de 86°F | F31: 0 | H31: =ROUND((F31-32)*(5/9),0) -> -18 | J31: 1 | L31: =ROUND(J31/3212.142,0) -> 0 | U31: 140
A32: =IF(OR($B$8<>"CAN",$B$14<>$T$11),"",IF(OR($B$24<>Dropdown_Menus!$F$10,'Box and Whiskers Load Graph'!$F$8<10,'Box and Whiskers Load Graph'!$F$8="ERROR"),"La fonction de vérification de la charge n'est pas disponible pour cette combinaison de région/type de bâtiment/année de construction.","")) ->  | F32: °C | H32: °F | J32: kW | L32: BTU/h
A33: =IFERROR(IF(OR($B$8<>"CAN",$B$14<>$T$11),"",IF(OR($B$24<>Dropdown_Menus!$F$10,$B$8<>"CAN",'Box and Whiskers Load Graph'!$F$8<10,'Box and Whiskers Load Graph'!$F$8="ERROR"),"",IF(OR('Box and Whiskers Load Graph'!$F$9>'Box and Whiskers Load Graph'!$F$6+'Box and Whiskers Load Graph'!$F$5+'Box and Whiskers Load Graph'!$F$4,'Box and Whiskers Load Graph'!$F$9<'Box and Whiskers Load Graph'!$F$4),"La valeur de la charge de chauffage entrée par l'utilisateur est en dehors de la plage, veuillez vérifier les calculs de charge. ",""))),"") ->  | F33: 0 | H33: =ROUND((F33*9/5)+32,0) -> 32 | J33: 1 | L33: =ROUND(J33*3412.142,0) -> 3412 | U33: Max Flow Capacity
A34: Notes: | T34: Rectangulaire | U34: =ROUND(SUMPRODUCT(V37:V42,W37:W42)*IF($B$41="CFM",6.25,0.0001*4.57),IF($B$41="CFM",-1,2)) -> 2360 | V34: Rectangulaire&Rond | W34: =U34+U35 -> 2360
A35: =IF(B14=T11,"• Un audit énergétique de l'habitation devrait être effectué avant le dimensionnement et la sélection de la thermopompe","") ->  | T35: Rond | U35: =ROUND(((U37^2)+(U38^2)+(U39^2)+(U40^2)+(U41^2)+(U42^2))*PI()/4*IF($B$41="CFM",6.25,0.0001*4.57),IF($B$41="CFM",-1,2)) -> 0
A36: =IF(AND($B$14=$T$11,B20="Oui"),"• Notez aussi que les problèmes de confort peuvent être causés par l'équipement sous-dimensionné, des défauts dans la barrière thermique, dans l'équipement mécanique, ou les deux à la fois.","") ->  | T36: Rectangulaire&Rond | U36: =IF(Q36=AI34, "Depth [inches]",IF(Q36=AI35,"Diameter [inches]","")) -> Depth [inches] | V36: =IF(Q36=AI34, "Width [inches]",IF(Q36=AI35,"","")) -> Width [inches] | W36: Depth (in)
T37: 1 | U37: =IF(E45="",0,F45)*IF(OR($B$44=$T$35,AND($B$44=$T$36,J45="ROND")),1,0) -> 0 | V37: =IF(E45="",0,IF(OR($B$44=$T$34,AND($B$44=$T$36,$J$45=$T$34)),H45,0)) -> 22 | W37: =IF(E45="",0,IF(OR($B$44=$T$34,AND($B$44=$T$36,$J$45=$T$34)),F45,0)) -> 8
T38: 2 | U38: 0 | V38: =IF(E46="",0,IF(OR($B$44=$T$34,AND($B$44=$T$36,$J$46=$T$34)),H46,0)) -> 10 | W38: =IF(E46="",0,IF(OR($B$44=$T$34,AND($B$44=$T$36,$J$46=$T$34)),F46,0)) -> 6
A39: =CONCATENATE(IF(OR(NOT('Étape 1 Configuration de TP-Air'!$B$6='Étape 1 Configuration de TP-Air'!T2),'Étape 1 Configuration de TP-Air'!$B$9='Étape 1 Configuration de TP-Air'!$T$8),"Données supplémentaires : Débit d'air du système","Données supplémentaires : Estimation du débit d'air maximum des conduits existants")) -> Données supplémentaires : Estimation du débit d'air maximum des conduits existants | T39: 3 | U39: 0 | V39: =IF(E47="",0,IF(OR($B$44=$T$34,AND($B$44=$T$36,$J$47=$T$34)),H47,0)) -> 10 | W39: =IF(E47="",0,IF(OR($B$44=$T$34,AND($B$44=$T$36,$J$47=$T$34)),F47,0)) -> 6
A40: Option de la sélection d'unités - Débit d'Air et Conduits | T40: 4 | U40: 0 | V40: =IF(E48="",0,IF(OR($B$44=$T$34,AND($B$44=$T$36,$J$48=$T$34)),H48,0)) -> 4 | W40: =IF(E48="",0,IF(OR($B$44=$T$34,AND($B$44=$T$36,$J$48=$T$34)),F48,0)) -> 5
A41: Débit d'Air | B41: CFM | T41: 5 | U41: 0 | V41: =IF(E49="",0,IF(OR($B$44=$T$34,AND($B$44=$T$36,$J$49=$T$34)),H49,0)) -> 5 | W41: =IF(E49="",0,IF(OR($B$44=$T$34,AND($B$44=$T$36,$J$49=$T$34)),F49,0)) -> 5
A42: Dimensions des Conduits Existants | B42: =IF(B41="CFM","pouces","cm") -> pouces | T42: 6 | U42: 0 | V42: =IF(E50="",0,IF(OR($B$44=$T$34,AND($B$44=$T$36,$J$50=$T$34)),H50,0)) -> 6 | W42: =IF(E50="",0,IF(OR($B$44=$T$34,AND($B$44=$T$36,$J$50=$T$34)),F50,0)) -> 6
A43: Géométrie des Conduits
A44: Géométrie des conduits? | B44: Rectangulaire | F44: =IF(B44=T34, "Longueur ["&B42&"]",IF(B44=T35,"Diamètre ["&B42&"]",IF(B44=T36,"Diamètre/Longueur["&B42&"]",""))) -> Longueur [pouces] | H44: =IF(OR(B44=T34,B44=T36), "Largeur ["&B42&"]",IF(B44=T35,"","")) -> Largeur [pouces] | J44: Type
A45: Nombre de conduits? | B45: 6 | E45: =IF(B45>0,"Conduit 1","") -> Conduit 1 | F45: 8 | H45: 22 | J45: Rectangulaire
A46: Débit d'air maximum selon la conception de systèmes d'air résidentiels de l'ICCCR | B46: =IF(B44=T34,U34,IF(B44=T35,U35,IF(B44=V34,W34,""))) -> 2360 | C46: =$B$41 -> CFM | E46: =IF(B45>1,"Conduit 2","") -> Conduit 2 | F46: 6 | H46: 10 | J46: Rond
E47: =IF(B45>2,"Conduit 3","") -> Conduit 3 | F47: 6 | H47: 10 | J47: Rond
E48: =IF(B45>3,"Conduit 4","") -> Conduit 4 | F48: 5 | H48: 4 | J48: Rond
E49: =IF(B45>4,"Conduit 5","") -> Conduit 5 | F49: 5 | H49: 5 | J49: Rectangulaire
E50: =IF(B45>5,"Conduit 6","") -> Conduit 6 | F50: 6 | H50: 6 | J50: Rectangulaire
E51: Remarques supplémentaires
E52: Remarque : Débit d'air maximum indiqué dans le matériel de formation en conception de systèmes d'air résidentiels de l'Institut canadien du chauffage, de la climatisation et de la réfrigération pour éviter les bruits et les pertes de frottement inacceptables. Le matériel de formation recommande une vitesse de conduit d'alimentation maximale de 900 pi/min. La formation vise une pression statique externe totale du système de 0,5 po

Sheet Étape 4 Dimensionnement
A1: ÉTAPE 4 : DÉTERMINER L'APPROCHE DE DIMENSIONNEMENT ET LES EXIGENCES DE CAPACITÉ DE THERMOPOMPE À AIR | S1: DO NOT TOUCH THESE CELLS
T2: Option A: Accent sur la climatisation
A3: Données de conception de l'étape 4 | I3: Référence | T3: Option B: Équilibre entre chauffage et climatisation
T4: Option C: Accent sur le chauffage
I5: Cette section réfère aux pages 26 à 32 du Guide de dimensionnement des thermopompes à air. | T5: Option D: Dimensionné selon la charge de chauffage de conception
A6: Option de dimensionnement | B6: Option C: Accent sur le chauffage
I7: Après avoir effectué l'étape 4, vous aurez:
A8: =IF(OR('Étape 1 Configuration de TP-Air'!B9='Étape 1 Configuration de TP-Air'!T9,'Étape 1 Configuration de TP-Air'!B9='Étape 1 Configuration de TP-Air'!T10),"Remplacement de système complet?","") -> Remplacement de système complet? | B8: =IF('Étape 1 Configuration de TP-Air'!B9="Remplacement complet du système","Oui","Non") -> Oui | I8: Défini une capacité de chauffage ou de climatisation dans des conditions extérieures particulières pour l'application envisagée. | T8: =IF($A$8="","","Oui") -> Oui
I9: Défini des critères pour sélectionner les modèles de thermopompe à air offerts sur le marché qui conviennent le mieux aux objectifs de base du client. | T9: =IF($A$8="","","Non") -> Non
A10: =IF('Étape 1 Configuration de TP-Air'!$B$6='Étape 1 Configuration de TP-Air'!$T$2,"Débit d'air maximum","") -> Débit d'air maximum | B10: ='Étape 3 Charges de Conception'!B46 -> 2360 | C10: ='Étape 3 Charges de Conception'!$B$41 -> CFM | D10: ="@ 0.5 pouces Pression statique externe totale de la jauge de niveau d'eau selon la conception de systèmes d'air résidentiels de l'ICCCR" -> @ 0.5 pouces Pression statique externe totale de la jauge de niveau d'eau selon la conception de systèmes d'air résidentiels de l'ICCCR
T11: =IF($A$9="","","Oui") -> 
A12: Valeurs de conception de l'étape 4 | T12: =IF($A$9="","","Non") -> 
A15: =IF('Étape 3 Charges de Conception'!B14='Étape 3 Charges de Conception'!T11,IF(OR(B6=T2,B6=T3),"Échelle de capacité de climatisation ",IF(OR(B6=T4,B6=T5),"Capacité de chauffage","")),IF(OR(B6=T2,B6=T3),"Échelle de capacité de climatisation ",IF(OR(B6=T4,B6=T5),"Capacité de chauffage",""))) -> Capacité de chauffage | B15: =IFERROR(ROUND(IF(A15="Échelle de capacité de climatisation ",'Design Load Calcs'!C20*0.8,IF(A15="Échelle de capacité de climatisation ",'Design Load Calcs'!C20*0.8,IF(A15="Capacité de chauffage",IF(B6=T4,'Design Load Calcs'!H15,'Design Load Calcs'!B23),IF(A15="Capacité de chauffage",IF(B6=T4,'Design Load Calcs'!H15,'Design Load Calcs'!C13),"")))),IF('Étape 3 Charges de Conception'!$B$6="kW",1,-2)),"") -> 23000 | C15: =IF(OR(A15="Échelle de capacité de climatisation ",A15="Target Cooling Capacity Range LOW"),"à",IF(OR(A15="Capacité de chauffage",A15="Target Heating Capacity LOW"),'Étape 3 Charges de Conception'!$B$6,"")) -> BTU/hr | D15: =IFERROR(ROUND(IF(A15="Échelle de capacité de climatisation ",'Design Load Calcs'!C20*1.25,IF(A15="Target Cooling Capacity Range LOW",'Design Load Calcs'!C20*1.25,"")),IF('Étape 3 Charges de Conception'!$B$6="kW",1,-2)),"") ->  | E15: =IF(D15="","",IF(OR(A15="Capacité de chauffage",A15="Target Heating Capacity LOW"),"",'Étape 3 Charges de Conception'!$B$6)) ->  | U15: X-axis | V15: Y-axis | W15: Y-axis coef
A16: =IF('Étape 3 Charges de Conception'!B14='Étape 3 Charges de Conception'!T11,IF(OR(B6=T2,B6=T3),"",IF(OR(B6=T4,B6=T5),"","")),"") ->  | B16: =IF(A16="Target Cooling Capacity Range HIGH",'Design Load Calcs'!C16*0.8,IF(A16="Target Heating Capacity HIGH",IF(B6=T4,'Design Load Calcs'!J25,'Design Load Calcs'!C14),"")) ->  | C16: =IF(A16="Target Cooling Capacity Range HIGH","to",IF(A16="Target Heating Capacity HIGH",'Étape 3 Charges de Conception'!$B$6,"")) ->  | D16: =IF(A16="Target Cooling Capacity Range HIGH",'Design Load Calcs'!C16*1.25,"") ->  | E16: =IF(OR(A16="Target Heating Capacity HIGH",A16=""),"",'Étape 3 Charges de Conception'!$B$6) ->  | T16: Max | U16: ='Design Load Calcs'!O12 -> 110 | V16: =CEILING(MAX('Étape 3 Charges de Conception'!$B$15,'Étape 3 Charges de Conception'!$B$17)*W16,IF('Étape 3 Charges de Conception'!$B$6=Dropdown_Menus!$F$2,10000,2)) -> 50000 | W16: =IF('Étape 3 Charges de Conception'!B14='Étape 3 Charges de Conception'!T8,1.1,IF('Étape 3 Charges de Conception'!B14='Étape 3 Charges de Conception'!T9,100/(100-'Étape 3 Charges de Conception'!B19-10),IF('Étape 3 Charges de Conception'!B14='Étape 3 Charges de Conception'!T10,1.1,100/('Étape 3 Charges de Conception'!B21-20)))) -> 1.1
A17: ="Chauffage du bâtiment à "&IF('Étape 3 Charges de Conception'!$B$5="°C","-8.3°C","17°F") -> Chauffage du bâtiment à 17°F | T17: Min | U17: ='Design Load Calcs'!O6 -> -20 | V17: 0
A18: Charge de chauffage du bâtiment à la température de conception | T18: Major Unit | U18: 10 | V18: =IF('Étape 3 Charges de Conception'!$B$6=Dropdown_Menus!$F$2,10000,2) -> 10000
A19: Remarques supplémentaires
A20: • Les capacités de climatisation à une température extérieure de 95 °F (35 °C) peuvent être utilisées à des fins de sélection initiale, puisque ces données sont habituellement fournies par le fabricant. Si des données de rendement étendues sont disponibles, utilisez les capacités à une température extérieure proche de la température de conception du site.
A22: =IF(B6=T2,"• Pour les unités à deux étages et à capacité variable, la capacité de la thermopompe à air devrait être sélectionnée à l'étage SUPÉRIEUR",IF(B6=T3,"• Pour les unités à deux étages et à capacité variable, la capacité de la thermopompe à air devrait être sélectionnée à l'étage INFÉRIEUR",IF(AND(NOT('Étape 1 Configuration de TP-Air'!B9="Nouvelle système CVC"),B9="Oui",'Design Load Calcs'!B30>('Étape 4 Dimensionnement '!B10+200),B10<>"",B8="Non"),"Notes: ",""))) -> 
A23: =IF(AND(NOT('Étape 1 Configuration de TP-Air'!B9="Nouvelle système CVC"),B9="Oui",'Design Load Calcs'!B30>'Design Load Calcs'!B31,B10<>"",B8="Non"),"• Les conduits existants peuvent ne pas être dimensionnés adéquatement pour le système de thermopompe. L'utilisateur doit s'assurer que les conduits existants sont adéquats avant l'installation du système.","") -> 
A28: Graphiques

Sheet Climate Zones (hidden)
A1: Seq | B1: Country | C1: Region | D1: City | E1: DegDay | F1: Climate Zone | G1: DHDBT | H1: DCDBT | K1: DO NOT TOUCH THESE CELLS | N1: User Choice | O1: Country | P1: Province | Q1: City | S1: A--->Z | U1: =INDEX($T$2:$T$231,MATCH(FALSE,ISNONTEXT($T$2:$T$231),0)) -> Ailsa Craig | V1: =U1 -> Ailsa Craig | X1: Source: Data for Canadian locations adapted from the Canadian Standards Association, CSA F280-12, "Determining the required capacity of residential space heating and cooling appliances".
A2: 1 | B2: CAN | C2: AB | D2: Athabasca | E2: 6000 | F2: Très-froid | G2: -35 | H2: 27 | K2: 13 | L2: 50 | N2: ='Étape 3 Charges de Conception'!B8 -> CAN | O2: CAN | P2: =_xlfn.IFNA(LOOKUP(2, 1/((COUNTIF($P$1:P1, $C$2:$C$1686)=0)*($N$2=$B$2:$B$1686)), $C$2:$C$1686),"") -> YT | Q2: =_xlfn.IFNA(LOOKUP(2, 1/((COUNTIF($Q$1:Q1, $D$2:$D$1686)=0)*($N$3=$C$2:$C$1686)), $D$2:$D$1686),"") -> Wyoming | R2: =IF($N$2=$O$2,K2,IF($N$2=$O$3,L2)) -> 13 | S2: =INDEX($P$2:$P$51,R2) -> AB | T2: =IFERROR(INDEX($Q$2:$Q$231,MATCH(ROWS($Q$2:Q2),COUNTIF($Q$2:$Q$231,"<="&$Q$2:$Q$231),0)),0) -> Ailsa Craig | U2: =MATCH(U1,T1:T231,0) -> 2 | V2: =IFERROR(INDEX($T$2:$T$231,U2,1),"") -> Ajax | X2: Source: Data for locations in the United States of America adapted from the Canadian Standards Association, CSA EXP-07, "Energy performance of split-system and single-package air conditioners and heat pumps".
A3: 2 | B3: CAN | C3: AB | D3: Banff | E3: 5500 | F3: Très-froid | G3: -31 | H3: 27 | K3: =K2-1 -> 12 | L3: =L2-1 -> 49 | N3: ='Étape 3 Charges de Conception'!B9 -> ON | O3: US | P3: =_xlfn.IFNA(LOOKUP(2, 1/((COUNTIF($P$1:P2, $C$2:$C$1686)=0)*($N$2=$B$2:$B$1686)), $C$2:$C$1686),"") -> SK | Q3: =_xlfn.IFNA(LOOKUP(2, 1/((COUNTIF($Q$1:Q2, $D$2:$D$1686)=0)*($N$3=$C$2:$C$1686)), $D$2:$D$1686),"") -> Woodstock | R3: =IF($N$2=$O$2,K3,IF($N$2=$O$3,L3)) -> 12 | S3: =INDEX($P$2:$P$51,R3) -> BC | T3: =IFERROR(INDEX($Q$2:$Q$231,MATCH(ROWS($Q$2:Q3),COUNTIF($Q$2:$Q$231,"<="&$Q$2:$Q$231),0)),0) -> Ajax | U3: =U2+1 -> 3 | V3: =IFERROR(INDEX($T$2:$T$231,U3,1),"") -> Alexandria | X3: F280 weather data for Spreadsheet project (Interpreted from CSA_F280_Table 5_Final_2012-01-03.xls by Philip Jarrett Environment Canada)
A4: 3 | B4: CAN | C4: AB | D4: Barrhead | E4: 5740 | F4: Très-froid | G4: -33 | H4: 27 | K4: =K3-1 -> 11 | L4: =L3-1 -> 48 | P4: =_xlfn.IFNA(LOOKUP(2, 1/((COUNTIF($P$1:P3, $C$2:$C$1686)=0)*($N$2=$B$2:$B$1686)), $C$2:$C$1686),"") -> QC | Q4: =_xlfn.IFNA(LOOKUP(2, 1/((COUNTIF($Q$1:Q3, $D$2:$D$1686)=0)*($N$3=$C$2:$C$1686)), $D$2:$D$1686),"") -> Wingham | R4: 11 | S4: MB | T4: =IFERROR(INDEX($Q$2:$Q$231,MATCH(ROWS($Q$2:Q4),COUNTIF($Q$2:$Q$231,"<="&$Q$2:$Q$231),0)),0) -> Alexandria | U4: =U3+1 -> 4 | V4: Alliston
A5: 4 | B5: CAN | C5: AB | D5: Beaverlodge | E5: 5700 | F5: Très-froid | G5: -36 | H5: 28 | K5: 10 | L5: 47 | P5: =_xlfn.IFNA(LOOKUP(2, 1/((COUNTIF($P$1:P4, $C$2:$C$1686)=0)*($N$2=$B$2:$B$1686)), $C$2:$C$1686),"") -> PE | Q5: =_xlfn.IFNA(LOOKUP(2, 1/((COUNTIF($Q$1:Q4, $D$2:$D$1686)=0)*($N$3=$C$2:$C$1686)), $D$2:$D$1686),"") -> Windsor | R5: 10 | S5: NB | T5: =IFERROR(INDEX($Q$2:$Q$231,MATCH(ROWS($Q$2:Q5),COUNTIF($Q$2:$Q$231,"<="&$Q$2:$Q$231),0)),0) -> Alliston | U5: 5 | V5: Almonte
A6: 5 | B6: CAN | C6: AB | D6: Brooks | E6: 4880 | F6: Très-froid | G6: -32 | H6: 32 | K6: 9 | L6: 46 | P6: =_xlfn.IFNA(LOOKUP(2, 1/((COUNTIF($P$1:P5, $C$2:$C$1686)=0)*($N$2=$B$2:$B$1686)), $C$2:$C$1686),"") -> ON | Q6: =_xlfn.IFNA(LOOKUP(2, 1/((COUNTIF($Q$1:Q5, $D$2:$D$1686)=0)*($N$3=$C$2:$C$1686)), $D$2:$D$1686),"") -> Wiarton | R6: 9 | S6: NL | T6: =IFERROR(INDEX($Q$2:$Q$231,MATCH(ROWS($Q$2:Q6),COUNTIF($Q$2:$Q$231,"<="&$Q$2:$Q$231),0)),0) -> Almonte | U6: 6 | V6: Armstrong
A7: 6 | B7: CAN | C7: AB | D7: Calgary | E7: 5000 | F7: Très-froid | G7: -30 | H7: 28 | K7: 8 | L7: 45 | P7: =_xlfn.IFNA(LOOKUP(2, 1/((COUNTIF($P$1:P6, $C$2:$C$1686)=0)*($N$2=$B$2:$B$1686)), $C$2:$C$1686),"") -> NU | Q7: =_xlfn.IFNA(LOOKUP(2, 1/((COUNTIF($Q$1:Q6, $D$2:$D$1686)=0)*($N$3=$C$2:$C$1686)), $D$2:$D$1686),"") -> White River | R7: 8 | S7: NS | T7: =IFERROR(INDEX($Q$2:$Q$231,MATCH(ROWS($Q$2:Q7),COUNTIF($Q$2:$Q$231,"<="&$Q$2:$Q$231),0)),0) -> Armstrong | U7: 7 | V7: Arnprior
A8: 7 | B8: CAN | C8: AB | D8: Campsie | E8: 5750 | F8: Très-froid | G8: -33 | H8: 27 | K8: 7 | L8: 44 | P8: =_xlfn.IFNA(LOOKUP(2, 1/((COUNTIF($P$1:P7, $C$2:$C$1686)=0)*($N$2=$B$2:$B$1686)), $C$2:$C$1686),"") -> NT | Q8: =_xlfn.IFNA(LOOKUP(2, 1/((COUNTIF($Q$1:Q7, $D$2:$D$1686)=0)*($N$3=$C$2:$C$1686)), $D$2:$D$1686),"") -> Whitby (Brooklin) | R8: 7 | S8: NT | T8: =IFERROR(INDEX($Q$2:$Q$231,MATCH(ROWS($Q$2:Q8),COUNTIF($Q$2:$Q$231,"<="&$Q$2:$Q$231),0)),0) -> Arnprior | U8: 8 | V8: Atikokan
A9: 8 | B9: CAN | C9: AB | D9: Camrose | E9: 5500 | F9: Très-froid | G9: -33 | H9: 29 | K9: 6 | L9: 43 | P9: =_xlfn.IFNA(LOOKUP(2, 1/((COUNTIF($P$1:P8, $C$2:$C$1686)=0)*($N$2=$B$2:$B$1686)), $C$2:$C$1686),"") -> NS | Q9: =_xlfn.IFNA(LOOKUP(2, 1/((COUNTIF($Q$1:Q8, $D$2:$D$1686)=0)*($N$3=$C$2:$C$1686)), $D$2:$D$1686),"") -> Whitby | R9: 6 | S9: NU | T9: =IFERROR(INDEX($Q$2:$Q$231,MATCH(ROWS($Q$2:Q9),COUNTIF($Q$2:$Q$231,"<="&$Q$2:$Q$231),0)),0) -> Atikokan | U9: 9 | V9: Attawapiskat
A10: 9 | B10: CAN | C10: AB | D10: Canmore | E10: 5400 | F10: Très-froid | G10: -31 | H10: 28 | K10: 5 | L10: 42 | P10: =_xlfn.IFNA(LOOKUP(2, 1/((COUNTIF($P$1:P9, $C$2:$C$1686)=0)*($N$2=$B$2:$B$1686)), $C$2:$C$1686),"") -> NL | Q10: =_xlfn.IFNA(LOOKUP(2, 1/((COUNTIF($Q$1:Q9, $D$2:$D$1686)=0)*($N$3=$C$2:$C$1686)), $D$2:$D$1686),"") -> West Lorne | R10: 5 | S10: ON | T10: =IFERROR(INDEX($Q$2:$Q$231,MATCH(ROWS($Q$2:Q10),COUNTIF($Q$2:$Q$231,"<="&$Q$2:$Q$231),0)),0) -> Attawapiskat | U10: 10 | V10: Aurora
A11: 10 | B11: CAN | C11: AB | D11: Cardston | E11: 4700 | F11: Très-froid | G11: -29 | H11: 30 | K11: 4 | L11: 41 | P11: =_xlfn.IFNA(LOOKUP(2, 1/((COUNTIF($P$1:P10, $C$2:$C$1686)=0)*($N$2=$B$2:$B$1686)), $C$2:$C$1686),"") -> NB | Q11: =_xlfn.IFNA(LOOKUP(2, 1/((COUNTIF($Q$1:Q10, $D$2:$D$1686)=0)*($N$3=$C$2:$C$1686)), $D$2:$D$1686),"") -> Welland | R11: 4 | S11: PE | T11: =IFERROR(INDEX($Q$2:$Q$231,MATCH(ROWS($Q$2:Q11),COUNTIF($Q$2:$Q$231,"<="&$Q$2:$Q$231),0)),0) -> Aurora | U11: 11 | V11: Bancroft
A12: 11 | B12: CAN | C12: AB | D12: Claresholm | E12: 4680 | F12: Très-froid | G12: -30 | H12: 30 | K12: 3 | L12: 40 | P12: =_xlfn.IFNA(LOOKUP(2, 1/((COUNTIF($P$1:P11, $C$2:$C$1686)=0)*($N$2=$B$2:$B$1686)), $C$2:$C$1686),"") -> MB | Q12: =_xlfn.IFNA(LOOKUP(2, 1/((COUNTIF($Q$1:Q11, $D$2:$D$1686)=0)*($N$3=$C$2:$C$1686)), $D$2:$D$1686),"") -> Wawa | R12: 3 | S12: QC | T12: =IFERROR(INDEX($Q$2:$Q$231,MATCH(ROWS($Q$2:Q12),COUNTIF($Q$2:$Q$231,"<="&$Q$2:$Q$231),0)),0) -> Bancroft | U12: 12 | V12: Barrie
A13: 12 | B13: CAN | C13: AB | D13: Cold Lake | E13: 5860 | F13: Très-froid | G13: -35 | H13: 28 | K13: 2 | L13: 39 | P13: =_xlfn.IFNA(LOOKUP(2, 1/((COUNTIF($P$1:P12, $C$2:$C$1686)=0)*($N$2=$B$2:$B$1686)), $C$2:$C$1686),"") -> BC | Q13: =_xlfn.IFNA(LOOKUP(2, 1/((COUNTIF($Q$1:Q12, $D$2:$D$1686)=0)*($N$3=$C$2:$C$1686)), $D$2:$D$1686),"") -> Watford | R13: 2 | S13: SK | T13: =IFERROR(INDEX($Q$2:$Q$231,MATCH(ROWS($Q$2:Q13),COUNTIF($Q$2:$Q$231,"<="&$Q$2:$Q$231),0)),0) -> Barrie | U13: 13 | V13: Barriefield
A14: 13 | B14: CAN | C14: AB | D14: Coleman | E14: 5210 | F14: Très-froid | G14: -31 | H14: 29 | K14: 1 | L14: 38 | P14: =_xlfn.IFNA(LOOKUP(2, 1/((COUNTIF($P$1:P13, $C$2:$C$1686)=0)*($N$2=$B$2:$B$1686)), $C$2:$C$1686),"") -> AB | Q14: =_xlfn.IFNA(LOOKUP(2, 1/((COUNTIF($Q$1:Q13, $D$2:$D$1686)=0)*($N$3=$C$2:$C$1686)), $D$2:$D$1686),"") -> Waterloo | R14: 1 | S14: YT | T14: =IFERROR(INDEX($Q$2:$Q$231,MATCH(ROWS($Q$2:Q14),COUNTIF($Q$2:$Q$231,"<="&$Q$2:$Q$231),0)),0) -> Barriefield | U14: 14 | V14: Beaverton
A15: 14 | B15: CAN | C15: AB | D15: Coronation | E15: 5640 | F15: Très-froid | G15: -32 | H15: 30 | K15: 0 | L15: 37 | P15: =_xlfn.IFNA(LOOKUP(2, 1/((COUNTIF($P$1:P14, $C$2:$C$1686)=0)*($N$2=$B$2:$B$1686)), $C$2:$C$1686),"") ->  | Q15: =_xlfn.IFNA(LOOKUP(2, 1/((COUNTIF($Q$1:Q14, $D$2:$D$1686)=0)*($N$3=$C$2:$C$1686)), $D$2:$D$1686),"") -> Wallaceburg | R15: 0 | T15: =IFERROR(INDEX($Q$2:$Q$231,MATCH(ROWS($Q$2:Q15),COUNTIF($Q$2:$Q$231,"<="&$Q$2:$Q$231),0)),0) -> Beaverton | U15: 15 | V15: Belleville
A16: 15 | B16: CAN | C16: AB | D16: Cowley | E16: 4810 | F16: Très-froid | G16: -29 | H16: 29 | K16: 0 | L16: 36 | P16: =_xlfn.IFNA(LOOKUP(2, 1/((COUNTIF($P$1:P15, $C$2:$C$1686)=0)*($N$2=$B$2:$B$1686)), $C$2:$C$1686),"") ->  | Q16: =_xlfn.IFNA(LOOKUP(2, 1/((COUNTIF($Q$1:Q15, $D$2:$D$1686)=0)*($N$3=$C$2:$C$1686)), $D$2:$D$1686),"") -> Walkerton | R16: 0 | T16: =IFERROR(INDEX($Q$2:$Q$231,MATCH(ROWS($Q$2:Q16),COUNTIF($Q$2:$Q$231,"<="&$Q$2:$Q$231),0)),0) -> Belleville | U16: 16 | V16: Belmont
A17: 16 | B17: CAN | C17: AB | D17: Drumheller | E17: 5050 | F17: Très-froid | G17: -32 | H17: 30 | K17: 0 | L17: 35 | P17: =_xlfn.IFNA(LOOKUP(2, 1/((COUNTIF($P$1:P16, $C$2:$C$1686)=0)*($N$2=$B$2:$B$1686)), $C$2:$C$1686),"") ->  | Q17: =_xlfn.IFNA(LOOKUP(2, 1/((COUNTIF($Q$1:Q16, $D$2:$D$1686)=0)*($N$3=$C$2:$C$1686)), $D$2:$D$1686),"") -> Vittoria | R17: 0 | T17: =IFERROR(INDEX($Q$2:$Q$231,MATCH(ROWS($Q$2:Q17),COUNTIF($Q$2:$Q$231,"<="&$Q$2:$Q$231),0)),0) -> Belmont | U17: 17 | V17: Bracebridge
A18: 17 | B18: CAN | C18: AB | D18: Edmonton | E18: 5120 | F18: Très-froid | G18: -30 | H18: 28 | K18: 0 | L18: 34 | P18: =_xlfn.IFNA(LOOKUP(2, 1/((COUNTIF($P$1:P17, $C$2:$C$1686)=0)*($N$2=$B$2:$B$1686)), $C$2:$C$1686),"") ->  | Q18: =_xlfn.IFNA(LOOKUP(2, 1/((COUNTIF($Q$1:Q17, $D$2:$D$1686)=0)*($N$3=$C$2:$C$1686)), $D$2:$D$1686),"") -> Vaughan (Woodbridge) | R18: 0 | T18: =IFERROR(INDEX($Q$2:$Q$231,MATCH(ROWS($Q$2:Q18),COUNTIF($Q$2:$Q$231,"<="&$Q$2:$Q$231),0)),0) -> Bracebridge | U18: 18 | V18: Bradford
A19: 18 | B19: CAN | C19: AB | D19: Edson | E19: 5750 | F19: Très-froid | G19: -34 | H19: 27 | K19: 0 | L19: 33 | P19: =_xlfn.IFNA(LOOKUP(2, 1/((COUNTIF($P$1:P18, $C$2:$C$1686)=0)*($N$2=$B$2:$B$1686)), $C$2:$C$1686),"") ->  | Q19: =_xlfn.IFNA(LOOKUP(2, 1/((COUNTIF($Q$1:Q18, $D$2:$D$1686)=0)*($N$3=$C$2:$C$1686)), $D$2:$D$1686),"") -> Uxbridge | R19: 0 | T19: =IFERROR(INDEX($Q$2:$Q$231,MATCH(ROWS($Q$2:Q19),COUNTIF($Q$2:$Q$231,"<="&$Q$2:$Q$231),0)),0) -> Bradford | U19: 19 | V19: Brampton
A20: 19 | B20: CAN | C20: AB | D20: Embarras Portage | E20: 7100 | F20: Subarctique | G20: -41 | H20: 28 | K20: 0 | L20: 32 | P20: =_xlfn.IFNA(LOOKUP(2, 1/((COUNTIF($P$1:P19, $C$2:$C$1686)=0)*($N$2=$B$2:$B$1686)), $C$2:$C$1686),"") ->  | Q20: =_xlfn.IFNA(LOOKUP(2, 1/((COUNTIF($Q$1:Q19, $D$2:$D$1686)=0)*($N$3=$C$2:$C$1686)), $D$2:$D$1686),"") -> Trout Creek | R20: 0 | T20: =IFERROR(INDEX($Q$2:$Q$231,MATCH(ROWS($Q$2:Q20),COUNTIF($Q$2:$Q$231,"<="&$Q$2:$Q$231),0)),0) -> Brampton | U20: 20 | V20: Brantford
A21: 20 | B21: CAN | C21: AB | D21: Fairview | E21: 5840 | F21: Très-froid | G21: -37 | H21: 27 | K21: 0 | L21: 31 | P21: =_xlfn.IFNA(LOOKUP(2, 1/((COUNTIF($P$1:P20, $C$2:$C$1686)=0)*($N$2=$B$2:$B$1686)), $C$2:$C$1686),"") ->  | Q21: =_xlfn.IFNA(LOOKUP(2, 1/((COUNTIF($Q$1:Q20, $D$2:$D$1686)=0)*($N$3=$C$2:$C$1686)), $D$2:$D$1686),"") -> Trenton | R21: 0 | T21: =IFERROR(INDEX($Q$2:$Q$231,MATCH(ROWS($Q$2:Q21),COUNTIF($Q$2:$Q$231,"<="&$Q$2:$Q$231),0)),0) -> Brantford | U21: 21 | V21: Brighton
A22: 21 | B22: CAN | C22: AB | D22: Fort MacLeod | E22: 4600 | F22: Très-froid | G22: -30 | H22: 31 | K22: 0 | L22: 30 | P22: =_xlfn.IFNA(LOOKUP(2, 1/((COUNTIF($P$1:P21, $C$2:$C$1686)=0)*($N$2=$B$2:$B$1686)), $C$2:$C$1686),"") ->  | Q22: =_xlfn.IFNA(LOOKUP(2, 1/((COUNTIF($Q$1:Q21, $D$2:$D$1686)=0)*($N$3=$C$2:$C$1686)), $D$2:$D$1686),"") -> Toronto (city hall) | R22: 0 | T22: =IFERROR(INDEX($Q$2:$Q$231,MATCH(ROWS($Q$2:Q22),COUNTIF($Q$2:$Q$231,"<="&$Q$2:$Q$231),0)),0) -> Brighton | U22: 22 | V22: Brockville
A23: 22 | B23: CAN | C23: AB | D23: Fort McMurray | E23: 6250 | F23: Très-froid | G23: -38 | H23: 28 | K23: 0 | L23: 29 | P23: =_xlfn.IFNA(LOOKUP(2, 1/((COUNTIF($P$1:P22, $C$2:$C$1686)=0)*($N$2=$B$2:$B$1686)), $C$2:$C$1686),"") ->  | Q23: =_xlfn.IFNA(LOOKUP(2, 1/((COUNTIF($Q$1:Q22, $D$2:$D$1686)=0)*($N$3=$C$2:$C$1686)), $D$2:$D$1686),"") -> Timmins (Porcupine) | R23: 0 | T23: =IFERROR(INDEX($Q$2:$Q$231,MATCH(ROWS($Q$2:Q23),COUNTIF($Q$2:$Q$231,"<="&$Q$2:$Q$231),0)),0) -> Brockville | U23: 23 | V23: Burk's Falls
A24: 23 | B24: CAN | C24: AB | D24: Fort Saskatchewan | E24: 5420 | F24: Très-froid | G24: -32 | H24: 28 | K24: 0 | L24: 28 | P24: =_xlfn.IFNA(LOOKUP(2, 1/((COUNTIF($P$1:P23, $C$2:$C$1686)=0)*($N$2=$B$2:$B$1686)), $C$2:$C$1686),"") ->  | Q24: =_xlfn.IFNA(LOOKUP(2, 1/((COUNTIF($Q$1:Q23, $D$2:$D$1686)=0)*($N$3=$C$2:$C$1686)), $D$2:$D$1686),"") -> Timmins | R24: 0 | T24: =IFERROR(INDEX($Q$2:$Q$231,MATCH(ROWS($Q$2:Q24),COUNTIF($Q$2:$Q$231,"<="&$Q$2:$Q$231),0)),0) -> Burk's Falls | U24: 24 | V24: Burlington
A25: 24 | B25: CAN | C25: AB | D25: Fort Vermilion | E25: 6700 | F25: Subarctique | G25: -41 | H25: 28 | K25: 0 | L25: 27 | P25: =_xlfn.IFNA(LOOKUP(2, 1/((COUNTIF($P$1:P24, $C$2:$C$1686)=0)*($N$2=$B$2:$B$1686)), $C$2:$C$1686),"") ->  | Q25: =_xlfn.IFNA(LOOKUP(2, 1/((COUNTIF($Q$1:Q24, $D$2:$D$1686)=0)*($N$3=$C$2:$C$1686)), $D$2:$D$1686),"") -> Tillsonburg | R25: 0 | T25: =IFERROR(INDEX($Q$2:$Q$231,MATCH(ROWS($Q$2:Q25),COUNTIF($Q$2:$Q$231,"<="&$Q$2:$Q$231),0)),0) -> Burlington | U25: 25 | V25: Cambridge
A26: 25 | B26: CAN | C26: AB | D26: Grande Prairie | E26: 5790 | F26: Très-froid | G26: -36 | H26: 27 | K26: 0 | L26: 26 | P26: =_xlfn.IFNA(LOOKUP(2, 1/((COUNTIF($P$1:P25, $C$2:$C$1686)=0)*($N$2=$B$2:$B$1686)), $C$2:$C$1686),"") ->  | Q26: =_xlfn.IFNA(LOOKUP(2, 1/((COUNTIF($Q$1:Q25, $D$2:$D$1686)=0)*($N$3=$C$2:$C$1686)), $D$2:$D$1686),"") -> Thunder Bay | R26: 0 | T26: =IFERROR(INDEX($Q$2:$Q$231,MATCH(ROWS($Q$2:Q26),COUNTIF($Q$2:$Q$231,"<="&$Q$2:$Q$231),0)),0) -> Cambridge | U26: 26 | V26: Campbellford
A27: 26 | B27: CAN | C27: AB | D27: Habay | E27: 6750 | F27: Subarctique | G27: -41 | H27: 28 | K27: 0 | L27: 25 | P27: =_xlfn.IFNA(LOOKUP(2, 1/((COUNTIF($P$1:P26, $C$2:$C$1686)=0)*($N$2=$B$2:$B$1686)), $C$2:$C$1686),"") ->  | Q27: =_xlfn.IFNA(LOOKUP(2, 1/((COUNTIF($Q$1:Q26, $D$2:$D$1686)=0)*($N$3=$C$2:$C$1686)), $D$2:$D$1686),"") -> Thedford | R27: 0 | T27: =IFERROR(INDEX($Q$2:$Q$231,MATCH(ROWS($Q$2:Q27),COUNTIF($Q$2:$Q$231,"<="&$Q$2:$Q$231),0)),0) -> Campbellford | U27: 27 | V27: Cannington
A28: 27 | B28: CAN | C28: AB | D28: Hardisty | E28: 5640 | F28: Très-froid | G28: -33 | H28: 30 | K28: 0 | L28: 24 | P28: =_xlfn.IFNA(LOOKUP(2, 1/((COUNTIF($P$1:P27, $C$2:$C$1686)=0)*($N$2=$B$2:$B$1686)), $C$2:$C$1686),"") ->  | Q28: =_xlfn.IFNA(LOOKUP(2, 1/((COUNTIF($Q$1:Q27, $D$2:$D$1686)=0)*($N$3=$C$2:$C$1686)), $D$2:$D$1686),"") -> Thamesford | R28: 0 | T28: =IFERROR(INDEX($Q$2:$Q$231,MATCH(ROWS($Q$2:Q28),COUNTIF($Q$2:$Q$231,"<="&$Q$2:$Q$231),0)),0) -> Cannington | U28: 28 | V28: Carleton Place
A29: 28 | B29: CAN | C29: AB | D29: High River | E29: 4900 | F29: Très-froid | G29: -31 | H29: 28 | K29: 0 | L29: 23 | P29: =_xlfn.IFNA(LOOKUP(2, 1/((COUNTIF($P$1:P28, $C$2:$C$1686)=0)*($N$2=$B$2:$B$1686)), $C$2:$C$1686),"") ->  | Q29: =_xlfn.IFNA(LOOKUP(2, 1/((COUNTIF($Q$1:Q28, $D$2:$D$1686)=0)*($N$3=$C$2:$C$1686)), $D$2:$D$1686),"") -> Temagami | R29: 0 | T29: =IFERROR(INDEX($Q$2:$Q$231,MATCH(ROWS($Q$2:Q29),COUNTIF($Q$2:$Q$231,"<="&$Q$2:$Q$231),0)),0) -> Carleton Place | U29: 29 | V29: Cavan
A30: 29 | B30: CAN | C30: AB | D30: Hinton | E30: 5500 | F30: Très-froid | G30: -34 | H30: 27 | K30: 0 | L30: 22 | P30: =_xlfn.IFNA(LOOKUP(2, 1/((COUNTIF($P$1:P29, $C$2:$C$1686)=0)*($N$2=$B$2:$B$1686)), $C$2:$C$1686),"") ->  | Q30: =_xlfn.IFNA(LOOKUP(2, 1/((COUNTIF($Q$1:Q29, $D$2:$D$1686)=0)*($N$3=$C$2:$C$1686)), $D$2:$D$1686),"") -> Tavistock | R30: 0 | T30: =IFERROR(INDEX($Q$2:$Q$231,MATCH(ROWS($Q$2:Q30),COUNTIF($Q$2:$Q$231,"<="&$Q$2:$Q$231),0)),0) -> Cavan | U30: 30 | V30: Centralia
A31: 30 | B31: CAN | C31: AB | D31: Jasper | E31: 5300 | F31: Très-froid | G31: -31 | H31: 28 | K31: 0 | L31: 21 | P31: =_xlfn.IFNA(LOOKUP(2, 1/((COUNTIF($P$1:P30, $C$2:$C$1686)=0)*($N$2=$B$2:$B$1686)), $C$2:$C$1686),"") ->  | Q31: =_xlfn.IFNA(LOOKUP(2, 1/((COUNTIF($Q$1:Q30, $D$2:$D$1686)=0)*($N$3=$C$2:$C$1686)), $D$2:$D$1686),"") -> Sundridge | R31: 0 | T31: =IFERROR(INDEX($Q$2:$Q$231,MATCH(ROWS($Q$2:Q31),COUNTIF($Q$2:$Q$231,"<="&$Q$2:$Q$231),0)),0) -> Centralia | U31: 31 | V31: CFB Borden
A32: 31 | B32: CAN | C32: AB | D32: Keg River | E32: 6520 | F32: Subarctique | G32: -40 | H32: 28 | K32: 0 | L32: 20 | P32: =_xlfn.IFNA(LOOKUP(2, 1/((COUNTIF($P$1:P31, $C$2:$C$1686)=0)*($N$2=$B$2:$B$1686)), $C$2:$C$1686),"") ->  | Q32: =_xlfn.IFNA(LOOKUP(2, 1/((COUNTIF($Q$1:Q31, $D$2:$D$1686)=0)*($N$3=$C$2:$C$1686)), $D$2:$D$1686),"") -> Sudbury | R32: 0 | T32: =IFERROR(INDEX($Q$2:$Q$231,MATCH(ROWS($Q$2:Q32),COUNTIF($Q$2:$Q$231,"<="&$Q$2:$Q$231),0)),0) -> CFB Borden | U32: 32 | V32: Chapleau
A33: 32 | B33: CAN | C33: AB | D33: Lac la Biche | E33: 6100 | F33: Très-froid | G33: -35 | H33: 28 | K33: 0 | L33: 19 | P33: =_xlfn.IFNA(LOOKUP(2, 1/((COUNTIF($P$1:P32, $C$2:$C$1686)=0)*($N$2=$B$2:$B$1686)), $C$2:$C$1686),"") ->  | Q33: =_xlfn.IFNA(LOOKUP(2, 1/((COUNTIF($Q$1:Q32, $D$2:$D$1686)=0)*($N$3=$C$2:$C$1686)), $D$2:$D$1686),"") -> Sturgeon Falls | R33: 0 | T33: =IFERROR(INDEX($Q$2:$Q$231,MATCH(ROWS($Q$2:Q33),COUNTIF($Q$2:$Q$231,"<="&$Q$2:$Q$231),0)),0) -> Chapleau | U33: 33 | V33: Chatham
A34: 33 | B34: CAN | C34: AB | D34: Lacombe | E34: 5500 | F34: Très-froid | G34: -33 | H34: 28 | K34: 0 | L34: 18 | P34: =_xlfn.IFNA(LOOKUP(2, 1/((COUNTIF($P$1:P33, $C$2:$C$1686)=0)*($N$2=$B$2:$B$1686)), $C$2:$C$1686),"") ->  | Q34: =_xlfn.IFNA(LOOKUP(2, 1/((COUNTIF($Q$1:Q33, $D$2:$D$1686)=0)*($N$3=$C$2:$C$1686)), $D$2:$D$1686),"") -> Strathroy | R34: 0 | T34: =IFERROR(INDEX($Q$2:$Q$231,MATCH(ROWS($Q$2:Q34),COUNTIF($Q$2:$Q$231,"<="&$Q$2:$Q$231),0)),0) -> Chatham | U34: 34 | V34: Chesley
A35: 34 | B35: CAN | C35: AB | D35: Lethbridge | E35: 4500 | F35: Très-froid | G35: -30 | H35: 31 | K35: 0 | L35: 17 | P35: =_xlfn.IFNA(LOOKUP(2, 1/((COUNTIF($P$1:P34, $C$2:$C$1686)=0)*($N$2=$B$2:$B$1686)), $C$2:$C$1686),"") ->  | Q35: =_xlfn.IFNA(LOOKUP(2, 1/((COUNTIF($Q$1:Q34, $D$2:$D$1686)=0)*($N$3=$C$2:$C$1686)), $D$2:$D$1686),"") -> Stratford | R35: 0 | T35: =IFERROR(INDEX($Q$2:$Q$231,MATCH(ROWS($Q$2:Q35),COUNTIF($Q$2:$Q$231,"<="&$Q$2:$Q$231),0)),0) -> Chesley | U35: 35 | V35: Clinton
A36: 35 | B36: CAN | C36: AB | D36: Manning | E36: 6300 | F36: Très-froid | G36: -39 | H36: 27 | K36: 0 | L36: 16 | P36: =_xlfn.IFNA(LOOKUP(2, 1/((COUNTIF($P$1:P35, $C$2:$C$1686)=0)*($N$2=$B$2:$B$1686)), $C$2:$C$1686),"") ->  | Q36: =_xlfn.IFNA(LOOKUP(2, 1/((COUNTIF($Q$1:Q35, $D$2:$D$1686)=0)*($N$3=$C$2:$C$1686)), $D$2:$D$1686),"") -> Stirling | R36: 0 | T36: =IFERROR(INDEX($Q$2:$Q$231,MATCH(ROWS($Q$2:Q36),COUNTIF($Q$2:$Q$231,"<="&$Q$2:$Q$231),0)),0) -> Clinton | U36: 36 | V36: Coboconk
A37: 36 | B37: CAN | C37: AB | D37: Medicine Hat | E37: 4540 | F37: Très-froid | G37: -31 | H37: 32 | K37: 0 | L37: 15 | P37: =_xlfn.IFNA(LOOKUP(2, 1/((COUNTIF($P$1:P36, $C$2:$C$1686)=0)*($N$2=$B$2:$B$1686)), $C$2:$C$1686),"") ->  | Q37: =_xlfn.IFNA(LOOKUP(2, 1/((COUNTIF($Q$1:Q36, $D$2:$D$1686)=0)*($N$3=$C$2:$C$1686)), $D$2:$D$1686),"") -> St. Thomas | R37: 0 | T37: =IFERROR(INDEX($Q$2:$Q$231,MATCH(ROWS($Q$2:Q37),COUNTIF($Q$2:$Q$231,"<="&$Q$2:$Q$231),0)),0) -> Coboconk | U37: 37 | V37: Cobourg
A38: 37 | B38: CAN | C38: AB | D38: Peace River | E38: 6050 | F38: Très-froid | G38: -37 | H38: 27 | K38: 0 | L38: 14 | P38: =_xlfn.IFNA(LOOKUP(2, 1/((COUNTIF($P$1:P37, $C$2:$C$1686)=0)*($N$2=$B$2:$B$1686)), $C$2:$C$1686),"") ->  | Q38: =_xlfn.IFNA(LOOKUP(2, 1/((COUNTIF($Q$1:Q37, $D$2:$D$1686)=0)*($N$3=$C$2:$C$1686)), $D$2:$D$1686),"") -> St. Mary's | R38: 0 | T38: =IFERROR(INDEX($Q$2:$Q$231,MATCH(ROWS($Q$2:Q38),COUNTIF($Q$2:$Q$231,"<="&$Q$2:$Q$231),0)),0) -> Cobourg | U38: 38 | V38: Cochrane
A39: 38 | B39: CAN | C39: AB | D39: Pincher Creek | E39: 4740 | F39: Très-froid | G39: -29 | H39: 29 | K39: 0 | L39: 13 | P39: =_xlfn.IFNA(LOOKUP(2, 1/((COUNTIF($P$1:P38, $C$2:$C$1686)=0)*($N$2=$B$2:$B$1686)), $C$2:$C$1686),"") ->  | Q39: =_xlfn.IFNA(LOOKUP(2, 1/((COUNTIF($Q$1:Q38, $D$2:$D$1686)=0)*($N$3=$C$2:$C$1686)), $D$2:$D$1686),"") -> St. Catharines | R39: 0 | T39: =IFERROR(INDEX($Q$2:$Q$231,MATCH(ROWS($Q$2:Q39),COUNTIF($Q$2:$Q$231,"<="&$Q$2:$Q$231),0)),0) -> Cochrane | U39: 39 | V39: Colborne
A40: 39 | B40: CAN | C40: AB | D40: Ranfurly | E40: 5700 | F40: Très-froid | G40: -34 | H40: 29 | K40: 0 | L40: 12 | P40: =_xlfn.IFNA(LOOKUP(2, 1/((COUNTIF($P$1:P39, $C$2:$C$1686)=0)*($N$2=$B$2:$B$1686)), $C$2:$C$1686),"") ->  | Q40: =_xlfn.IFNA(LOOKUP(2, 1/((COUNTIF($Q$1:Q39, $D$2:$D$1686)=0)*($N$3=$C$2:$C$1686)), $D$2:$D$1686),"") -> Southampton | R40: 0 | T40: =IFERROR(INDEX($Q$2:$Q$231,MATCH(ROWS($Q$2:Q40),COUNTIF($Q$2:$Q$231,"<="&$Q$2:$Q$231),0)),0) -> Colborne | U40: 40 | V40: Collingwood
A41: 40 | B41: CAN | C41: AB | D41: Red Deer | E41: 5550 | F41: Très-froid | G41: -32 | H41: 28 | K41: 0 | L41: 11 | P41: =_xlfn.IFNA(LOOKUP(2, 1/((COUNTIF($P$1:P40, $C$2:$C$1686)=0)*($N$2=$B$2:$B$1686)), $C$2:$C$1686),"") ->  | Q41: =_xlfn.IFNA(LOOKUP(2, 1/((COUNTIF($Q$1:Q40, $D$2:$D$1686)=0)*($N$3=$C$2:$C$1686)), $D$2:$D$1686),"") -> South River | R41: 0 | T41: =IFERROR(INDEX($Q$2:$Q$231,MATCH(ROWS($Q$2:Q41),COUNTIF($Q$2:$Q$231,"<="&$Q$2:$Q$231),0)),0) -> Collingwood | U41: 41 | V41: Cornwall
A42: 41 | B42: CAN | C42: AB | D42: Rocky Mountain House | E42: 5640 | F42: Très-froid | G42: -32 | H42: 27 | K42: 0 | L42: 10 | P42: =_xlfn.IFNA(LOOKUP(2, 1/((COUNTIF($P$1:P41, $C$2:$C$1686)=0)*($N$2=$B$2:$B$1686)), $C$2:$C$1686),"") ->  | Q42: =_xlfn.IFNA(LOOKUP(2, 1/((COUNTIF($Q$1:Q41, $D$2:$D$1686)=0)*($N$3=$C$2:$C$1686)), $D$2:$D$1686),"") -> Smooth Rock Falls | R42: 0 | T42: =IFERROR(INDEX($Q$2:$Q$231,MATCH(ROWS($Q$2:Q42),COUNTIF($Q$2:$Q$231,"<="&$Q$2:$Q$231),0)),0) -> Cornwall | U42: 42 | V42: Corunna
A43: 42 | B43: CAN | C43: AB | D43: Slave Lake | E43: 5850 | F43: Très-froid | G43: -35 | H43: 26 | K43: 0 | L43: 9 | P43: =_xlfn.IFNA(LOOKUP(2, 1/((COUNTIF($P$1:P42, $C$2:$C$1686)=0)*($N$2=$B$2:$B$1686)), $C$2:$C$1686),"") ->  | Q43: =_xlfn.IFNA(LOOKUP(2, 1/((COUNTIF($Q$1:Q42, $D$2:$D$1686)=0)*($N$3=$C$2:$C$1686)), $D$2:$D$1686),"") -> Smithville | R43: 0 | T43: =IFERROR(INDEX($Q$2:$Q$231,MATCH(ROWS($Q$2:Q43),COUNTIF($Q$2:$Q$231,"<="&$Q$2:$Q$231),0)),0) -> Corunna | U43: 43 | V43: Deep River
A44: 43 | B44: CAN | C44: AB | D44: Stettler | E44: 5300 | F44: Très-froid | G44: -32 | H44: 30 | K44: 0 | L44: 8 | P44: =_xlfn.IFNA(LOOKUP(2, 1/((COUNTIF($P$1:P43, $C$2:$C$1686)=0)*($N$2=$B$2:$B$1686)), $C$2:$C$1686),"") ->  | Q44: =_xlfn.IFNA(LOOKUP(2, 1/((COUNTIF($Q$1:Q43, $D$2:$D$1686)=0)*($N$3=$C$2:$C$1686)), $D$2:$D$1686),"") -> Smiths Falls | R44: 0 | T44: =IFERROR(INDEX($Q$2:$Q$231,MATCH(ROWS($Q$2:Q44),COUNTIF($Q$2:$Q$231,"<="&$Q$2:$Q$231),0)),0) -> Deep River | U44: 44 | V44: Deseronto
A45: 44 | B45: CAN | C45: AB | D45: Stony Plain | E45: 5300 | F45: Très-froid | G45: -32 | H45: 28 | K45: 0 | L45: 7 | P45: =_xlfn.IFNA(LOOKUP(2, 1/((COUNTIF($P$1:P44, $C$2:$C$1686)=0)*($N$2=$B$2:$B$1686)), $C$2:$C$1686),"") ->  | Q45: =_xlfn.IFNA(LOOKUP(2, 1/((COUNTIF($Q$1:Q44, $D$2:$D$1686)=0)*($N$3=$C$2:$C$1686)), $D$2:$D$1686),"") -> Sioux Lookout | R45: 0 | T45: =IFERROR(INDEX($Q$2:$Q$231,MATCH(ROWS($Q$2:Q45),COUNTIF($Q$2:$Q$231,"<="&$Q$2:$Q$231),0)),0) -> Deseronto | U45: 45 | V45: Dorchester
A46: 45 | B46: CAN | C46: AB | D46: Suffield | E46: 4770 | F46: Très-froid | G46: -31 | H46: 32 | K46: 0 | L46: 6 | P46: =_xlfn.IFNA(LOOKUP(2, 1/((COUNTIF($P$1:P45, $C$2:$C$1686)=0)*($N$2=$B$2:$B$1686)), $C$2:$C$1686),"") ->  | Q46: =_xlfn.IFNA(LOOKUP(2, 1/((COUNTIF($Q$1:Q45, $D$2:$D$1686)=0)*($N$3=$C$2:$C$1686)), $D$2:$D$1686),"") -> Simcoe | R46: 0 | T46: =IFERROR(INDEX($Q$2:$Q$231,MATCH(ROWS($Q$2:Q46),COUNTIF($Q$2:$Q$231,"<="&$Q$2:$Q$231),0)),0) -> Dorchester | U46: 46 | V46: Dorion
A47: 46 | B47: CAN | C47: AB | D47: Taber | E47: 4580 | F47: Très-froid | G47: -31 | H47: 31 | K47: 0 | L47: 5 | P47: =_xlfn.IFNA(LOOKUP(2, 1/((COUNTIF($P$1:P46, $C$2:$C$1686)=0)*($N$2=$B$2:$B$1686)), $C$2:$C$1686),"") ->  | Q47: =_xlfn.IFNA(LOOKUP(2, 1/((COUNTIF($Q$1:Q46, $D$2:$D$1686)=0)*($N$3=$C$2:$C$1686)), $D$2:$D$1686),"") -> Shelburne | R47: 0 | T47: =IFERROR(INDEX($Q$2:$Q$231,MATCH(ROWS($Q$2:Q47),COUNTIF($Q$2:$Q$231,"<="&$Q$2:$Q$231),0)),0) -> Dorion | U47: 47 | V47: Dresden
A48: 47 | B48: CAN | C48: AB | D48: Turner Valley | E48: 5220 | F48: Très-froid | G48: -31 | H48: 28 | K48: 0 | L48: 4 | P48: =_xlfn.IFNA(LOOKUP(2, 1/((COUNTIF($P$1:P47, $C$2:$C$1686)=0)*($N$2=$B$2:$B$1686)), $C$2:$C$1686),"") ->  | Q48: =_xlfn.IFNA(LOOKUP(2, 1/((COUNTIF($Q$1:Q47, $D$2:$D$1686)=0)*($N$3=$C$2:$C$1686)), $D$2:$D$1686),"") -> Seaforth | R48: 0 | T48: =IFERROR(INDEX($Q$2:$Q$231,MATCH(ROWS($Q$2:Q48),COUNTIF($Q$2:$Q$231,"<="&$Q$2:$Q$231),0)),0) -> Dresden | U48: 48 | V48: Dryden
A49: 48 | B49: CAN | C49: AB | D49: Valleyview | E49: 5600 | F49: Très-froid | G49: -37 | H49: 27 | K49: 0 | L49: 3 | P49: =_xlfn.IFNA(LOOKUP(2, 1/((COUNTIF($P$1:P48, $C$2:$C$1686)=0)*($N$2=$B$2:$B$1686)), $C$2:$C$1686),"") ->  | Q49: =_xlfn.IFNA(LOOKUP(2, 1/((COUNTIF($Q$1:Q48, $D$2:$D$1686)=0)*($N$3=$C$2:$C$1686)), $D$2:$D$1686),"") -> Schreiber | R49: 0 | T49: =IFERROR(INDEX($Q$2:$Q$231,MATCH(ROWS($Q$2:Q49),COUNTIF($Q$2:$Q$231,"<="&$Q$2:$Q$231),0)),0) -> Dryden | U49: 49 | V49: Dundalk
A50: 49 | B50: CAN | C50: AB | D50: Vegreville | E50: 5780 | F50: Très-froid | G50: -34 | H50: 29 | K50: 0 | L50: 2 | P50: =_xlfn.IFNA(LOOKUP(2, 1/((COUNTIF($P$1:P49, $C$2:$C$1686)=0)*($N$2=$B$2:$B$1686)), $C$2:$C$1686),"") ->  | Q50: =_xlfn.IFNA(LOOKUP(2, 1/((COUNTIF($Q$1:Q49, $D$2:$D$1686)=0)*($N$3=$C$2:$C$1686)), $D$2:$D$1686),"") -> Scarborough | R50: 0 | T50: =IFERROR(INDEX($Q$2:$Q$231,MATCH(ROWS($Q$2:Q50),COUNTIF($Q$2:$Q$231,"<="&$Q$2:$Q$231),0)),0) -> Dundalk | U50: 50 | V50: Dunnville
A51: 50 | B51: CAN | C51: AB | D51: Vermilion | E51: 5740 | F51: Très-froid | G51: -35 | H51: 29 | K51: 0 | L51: =L50-1 -> 1 | P51: =_xlfn.IFNA(LOOKUP(2, 1/((COUNTIF($P$1:P50, $C$2:$C$1686)=0)*($N$2=$B$2:$B$1686)), $C$2:$C$1686),"") ->  | Q51: =_xlfn.IFNA(LOOKUP(2, 1/((COUNTIF($Q$1:Q50, $D$2:$D$1686)=0)*($N$3=$C$2:$C$1686)), $D$2:$D$1686),"") -> Sault Ste. Marie | R51: 0 | T51: =IFERROR(INDEX($Q$2:$Q$231,MATCH(ROWS($Q$2:Q51),COUNTIF($Q$2:$Q$231,"<="&$Q$2:$Q$231),0)),0) -> Dunnville | U51: 51 | V51: Durham
A52: 51 | B52: CAN | C52: AB | D52: Wagner | E52: 5850 | F52: Très-froid | G52: -35 | H52: 26 | P52: =_xlfn.IFNA(LOOKUP(2, 1/((COUNTIF($P$1:P51, $C$2:$C$1686)=0)*($N$2=$B$2:$B$1686)), $C$2:$C$1686),"") ->  | Q52: =_xlfn.IFNA(LOOKUP(2, 1/((COUNTIF($Q$1:Q51, $D$2:$D$1686)=0)*($N$3=$C$2:$C$1686)), $D$2:$D$1686),"") -> Sarnia | T52: =IFERROR(INDEX($Q$2:$Q$231,MATCH(ROWS($Q$2:Q52),COUNTIF($Q$2:$Q$231,"<="&$Q$2:$Q$231),0)),0) -> Durham | U52: 52 | V52: Dutton
A53: 52 | B53: CAN | C53: AB | D53: Wainwright | E53: 5700 | F53: Très-froid | G53: -33 | H53: 29 | P53: =_xlfn.IFNA(LOOKUP(2, 1/((COUNTIF($P$1:P52, $C$2:$C$1686)=0)*($N$2=$B$2:$B$1686)), $C$2:$C$1686),"") ->  | Q53: =_xlfn.IFNA(LOOKUP(2, 1/((COUNTIF($Q$1:Q52, $D$2:$D$1686)=0)*($N$3=$C$2:$C$1686)), $D$2:$D$1686),"") -> Rockland | T53: =IFERROR(INDEX($Q$2:$Q$231,MATCH(ROWS($Q$2:Q53),COUNTIF($Q$2:$Q$231,"<="&$Q$2:$Q$231),0)),0) -> Dutton | U53: 53 | V53: Earlton
A54: 53 | B54: CAN | C54: AB | D54: Wetaskiwin | E54: 5500 | F54: Très-froid | G54: -33 | H54: 29 | P54: =_xlfn.IFNA(LOOKUP(2, 1/((COUNTIF($P$1:P53, $C$2:$C$1686)=0)*($N$2=$B$2:$B$1686)), $C$2:$C$1686),"") ->  | Q54: =_xlfn.IFNA(LOOKUP(2, 1/((COUNTIF($Q$1:Q53, $D$2:$D$1686)=0)*($N$3=$C$2:$C$1686)), $D$2:$D$1686),"") -> Richmond Hill | T54: =IFERROR(INDEX($Q$2:$Q$231,MATCH(ROWS($Q$2:Q54),COUNTIF($Q$2:$Q$231,"<="&$Q$2:$Q$231),0)),0) -> Earlton | U54: 54 | V54: Edison
A55: 54 | B55: CAN | C55: AB | D55: Whitecourt | E55: 5650 | F55: Très-froid | G55: -33 | H55: 27 | P55: =_xlfn.IFNA(LOOKUP(2, 1/((COUNTIF($P$1:P54, $C$2:$C$1686)=0)*($N$2=$B$2:$B$1686)), $C$2:$C$1686),"") ->  | Q55: =_xlfn.IFNA(LOOKUP(2, 1/((COUNTIF($Q$1:Q54, $D$2:$D$1686)=0)*($N$3=$C$2:$C$1686)), $D$2:$D$1686),"") -> Renfrew | T55: =IFERROR(INDEX($Q$2:$Q$231,MATCH(ROWS($Q$2:Q55),COUNTIF($Q$2:$Q$231,"<="&$Q$2:$Q$231),0)),0) -> Edison | U55: 55 | V55: Elliot Lake
A56: 55 | B56: CAN | C56: AB | D56: Wimborne | E56: 5310 | F56: Très-froid | G56: -31 | H56: 29 | P56: =_xlfn.IFNA(LOOKUP(2, 1/((COUNTIF($P$1:P55, $C$2:$C$1686)=0)*($N$2=$B$2:$B$1686)), $C$2:$C$1686),"") ->  | Q56: =_xlfn.IFNA(LOOKUP(2, 1/((COUNTIF($Q$1:Q55, $D$2:$D$1686)=0)*($N$3=$C$2:$C$1686)), $D$2:$D$1686),"") -> Red Lake | T56: =IFERROR(INDEX($Q$2:$Q$231,MATCH(ROWS($Q$2:Q56),COUNTIF($Q$2:$Q$231,"<="&$Q$2:$Q$231),0)),0) -> Elliot Lake | U56: 56 | V56: Elmvale
A57: 56 | B57: CAN | C57: BC | D57: 100 Mile House | E57: 5030 | F57: Très-froid | G57: -30 | H57: 29 | P57: =_xlfn.IFNA(LOOKUP(2, 1/((COUNTIF($P$1:P56, $C$2:$C$1686)=0)*($N$2=$B$2:$B$1686)), $C$2:$C$1686),"") ->  | Q57: =_xlfn.IFNA(LOOKUP(2, 1/((COUNTIF($Q$1:Q56, $D$2:$D$1686)=0)*($N$3=$C$2:$C$1686)), $D$2:$D$1686),"") -> Rayside-Balfour (Chelmsford) | T57: =IFERROR(INDEX($Q$2:$Q$231,MATCH(ROWS($Q$2:Q57),COUNTIF($Q$2:$Q$231,"<="&$Q$2:$Q$231),0)),0) -> Elmvale | U57: 57 | V57: Embro
A58: 57 | B58: CAN | C58: BC | D58: Abbotsford | E58: 2860 | F58: Marin | G58: -8 | H58: 29 | P58: =_xlfn.IFNA(LOOKUP(2, 1/((COUNTIF($P$1:P57, $C$2:$C$1686)=0)*($N$2=$B$2:$B$1686)), $C$2:$C$1686),"") ->  | Q58: =_xlfn.IFNA(LOOKUP(2, 1/((COUNTIF($Q$1:Q57, $D$2:$D$1686)=0)*($N$3=$C$2:$C$1686)), $D$2:$D$1686),"") -> Raith | T58: =IFERROR(INDEX($Q$2:$Q$231,MATCH(ROWS($Q$2:Q58),COUNTIF($Q$2:$Q$231,"<="&$Q$2:$Q$231),0)),0) -> Embro | U58: 58 | V58: Englehart
A59: 58 | B59: CAN | C59: BC | D59: Agassiz | E59: 2750 | F59: Froid-humide | G59: -9 | H59: 31 | P59: =_xlfn.IFNA(LOOKUP(2, 1/((COUNTIF($P$1:P58, $C$2:$C$1686)=0)*($N$2=$B$2:$B$1686)), $C$2:$C$1686),"") ->  | Q59: =_xlfn.IFNA(LOOKUP(2, 1/((COUNTIF($Q$1:Q58, $D$2:$D$1686)=0)*($N$3=$C$2:$C$1686)), $D$2:$D$1686),"") -> Princeton | T59: =IFERROR(INDEX($Q$2:$Q$231,MATCH(ROWS($Q$2:Q59),COUNTIF($Q$2:$Q$231,"<="&$Q$2:$Q$231),0)),0) -> Englehart | U59: 59 | V59: Espanola
A60: 59 | B60: CAN | C60: BC | D60: Alberni | E60: 3100 | F60: Marin | G60: -5 | H60: 31 | P60: =_xlfn.IFNA(LOOKUP(2, 1/((COUNTIF($P$1:P59, $C$2:$C$1686)=0)*($N$2=$B$2:$B$1686)), $C$2:$C$1686),"") ->  | Q60: =_xlfn.IFNA(LOOKUP(2, 1/((COUNTIF($Q$1:Q59, $D$2:$D$1686)=0)*($N$3=$C$2:$C$1686)), $D$2:$D$1686),"") -> Prescott | T60: =IFERROR(INDEX($Q$2:$Q$231,MATCH(ROWS($Q$2:Q60),COUNTIF($Q$2:$Q$231,"<="&$Q$2:$Q$231),0)),0) -> Espanola | U60: 60 | V60: Etobicoke
A61: 60 | B61: CAN | C61: BC | D61: Ashcroft | E61: 3700 | F61: Froid-sec | G61: -24 | H61: 34 | P61: =_xlfn.IFNA(LOOKUP(2, 1/((COUNTIF($P$1:P60, $C$2:$C$1686)=0)*($N$2=$B$2:$B$1686)), $C$2:$C$1686),"") ->  | Q61: =_xlfn.IFNA(LOOKUP(2, 1/((COUNTIF($Q$1:Q60, $D$2:$D$1686)=0)*($N$3=$C$2:$C$1686)), $D$2:$D$1686),"") -> Port Stanley | T61: =IFERROR(INDEX($Q$2:$Q$231,MATCH(ROWS($Q$2:Q61),COUNTIF($Q$2:$Q$231,"<="&$Q$2:$Q$231),0)),0) -> Etobicoke | U61: 61 | V61: Exeter
A62: 61 | B62: CAN | C62: BC | D62: Bamfield | E62: 3080 | F62: Marin | G62: -2 | H62: 23 | P62: =_xlfn.IFNA(LOOKUP(2, 1/((COUNTIF($P$1:P61, $C$2:$C$1686)=0)*($N$2=$B$2:$B$1686)), $C$2:$C$1686),"") ->  | Q62: =_xlfn.IFNA(LOOKUP(2, 1/((COUNTIF($Q$1:Q61, $D$2:$D$1686)=0)*($N$3=$C$2:$C$1686)), $D$2:$D$1686),"") -> Port Perry | T62: =IFERROR(INDEX($Q$2:$Q$231,MATCH(ROWS($Q$2:Q62),COUNTIF($Q$2:$Q$231,"<="&$Q$2:$Q$231),0)),0) -> Exeter | U62: 62 | V62: Fenelon Falls
A63: 62 | B63: CAN | C63: BC | D63: Beatton River | E63: 6300 | F63: Très-froid | G63: -37 | H63: 26 | P63: =_xlfn.IFNA(LOOKUP(2, 1/((COUNTIF($P$1:P62, $C$2:$C$1686)=0)*($N$2=$B$2:$B$1686)), $C$2:$C$1686),"") ->  | Q63: =_xlfn.IFNA(LOOKUP(2, 1/((COUNTIF($Q$1:Q62, $D$2:$D$1686)=0)*($N$3=$C$2:$C$1686)), $D$2:$D$1686),"") -> Port Hope | T63: =IFERROR(INDEX($Q$2:$Q$231,MATCH(ROWS($Q$2:Q63),COUNTIF($Q$2:$Q$231,"<="&$Q$2:$Q$231),0)),0) -> Fenelon Falls | U63: 63 | V63: Fergus
A64: 63 | B64: CAN | C64: BC | D64: Bella Bella | E64: 3180 | F64: Marin | G64: -5 | H64: 23 | P64: =_xlfn.IFNA(LOOKUP(2, 1/((COUNTIF($P$1:P63, $C$2:$C$1686)=0)*($N$2=$B$2:$B$1686)), $C$2:$C$1686),"") ->  | Q64: =_xlfn.IFNA(LOOKUP(2, 1/((COUNTIF($Q$1:Q63, $D$2:$D$1686)=0)*($N$3=$C$2:$C$1686)), $D$2:$D$1686),"") -> Port Elgin | T64: =IFERROR(INDEX($Q$2:$Q$231,MATCH(ROWS($Q$2:Q64),COUNTIF($Q$2:$Q$231,"<="&$Q$2:$Q$231),0)),0) -> Fergus | U64: 64 | V64: Forest
A65: 64 | B65: CAN | C65: BC | D65: Bella Coola | E65: 3560 | F65: Froid-humide | G65: -14 | H65: 27 | P65: =_xlfn.IFNA(LOOKUP(2, 1/((COUNTIF($P$1:P64, $C$2:$C$1686)=0)*($N$2=$B$2:$B$1686)), $C$2:$C$1686),"") ->  | Q65: =_xlfn.IFNA(LOOKUP(2, 1/((COUNTIF($Q$1:Q64, $D$2:$D$1686)=0)*($N$3=$C$2:$C$1686)), $D$2:$D$1686),"") -> Port Colborne | T65: =IFERROR(INDEX($Q$2:$Q$231,MATCH(ROWS($Q$2:Q65),COUNTIF($Q$2:$Q$231,"<="&$Q$2:$Q$231),0)),0) -> Forest | U65: 65 | V65: Fort Erie
A66: 65 | B66: CAN | C66: BC | D66: Burnaby (Simon Fraser Univ.) | E66: 3100 | F66: Marin | G66: -7 | H66: 25 | Q66: =_xlfn.IFNA(LOOKUP(2, 1/((COUNTIF($Q$1:Q65, $D$2:$D$1686)=0)*($N$3=$C$2:$C$1686)), $D$2:$D$1686),"") -> Port Burwell | T66: =IFERROR(INDEX($Q$2:$Q$231,MATCH(ROWS($Q$2:Q66),COUNTIF($Q$2:$Q$231,"<="&$Q$2:$Q$231),0)),0) -> Fort Erie | U66: 66 | V66: Fort Erie (Ridgeway)
A67: 66 | B67: CAN | C67: BC | D67: Burns Lake | E67: 5450 | F67: Très-froid | G67: -31 | H67: 26 | Q67: =_xlfn.IFNA(LOOKUP(2, 1/((COUNTIF($Q$1:Q66, $D$2:$D$1686)=0)*($N$3=$C$2:$C$1686)), $D$2:$D$1686),"") -> Point Alexander | T67: =IFERROR(INDEX($Q$2:$Q$231,MATCH(ROWS($Q$2:Q67),COUNTIF($Q$2:$Q$231,"<="&$Q$2:$Q$231),0)),0) -> Fort Erie (Ridgeway) | U67: 67 | V67: =IFERROR(INDEX($T$2:$T$231,U67,1),"") -> Fort Frances
A68: 67 | B68: CAN | C68: BC | D68: Cache Creek | E68: 3700 | F68: Froid-sec | G68: -24 | H68: 34 | Q68: =_xlfn.IFNA(LOOKUP(2, 1/((COUNTIF($Q$1:Q67, $D$2:$D$1686)=0)*($N$3=$C$2:$C$1686)), $D$2:$D$1686),"") -> Plattsville | T68: =IFERROR(INDEX($Q$2:$Q$231,MATCH(ROWS($Q$2:Q68),COUNTIF($Q$2:$Q$231,"<="&$Q$2:$Q$231),0)),0) -> Fort Frances | U68: =U67+1 -> 68 | V68: Gananoque
A69: 68 | B69: CAN | C69: BC | D69: Campbell River | E69: 3000 | F69: Marin | G69: -5 | H69: 26 | Q69: =_xlfn.IFNA(LOOKUP(2, 1/((COUNTIF($Q$1:Q68, $D$2:$D$1686)=0)*($N$3=$C$2:$C$1686)), $D$2:$D$1686),"") -> Picton | T69: =IFERROR(INDEX($Q$2:$Q$231,MATCH(ROWS($Q$2:Q69),COUNTIF($Q$2:$Q$231,"<="&$Q$2:$Q$231),0)),0) -> Gananoque | U69: 69 | V69: Geraldton
A70: 69 | B70: CAN | C70: BC | D70: Carmi | E70: 4750 | F70: Très-froid | G70: -24 | H70: 31 | Q70: =_xlfn.IFNA(LOOKUP(2, 1/((COUNTIF($Q$1:Q69, $D$2:$D$1686)=0)*($N$3=$C$2:$C$1686)), $D$2:$D$1686),"") -> Pickering (Dunbarton) | T70: =IFERROR(INDEX($Q$2:$Q$231,MATCH(ROWS($Q$2:Q70),COUNTIF($Q$2:$Q$231,"<="&$Q$2:$Q$231),0)),0) -> Geraldton | U70: 70 | V70: Glencoe
A71: 70 | B71: CAN | C71: BC | D71: Castlegar | E71: 3580 | F71: Froid-humide | G71: -18 | H71: 32 | Q71: =_xlfn.IFNA(LOOKUP(2, 1/((COUNTIF($Q$1:Q70, $D$2:$D$1686)=0)*($N$3=$C$2:$C$1686)), $D$2:$D$1686),"") -> Petrolia | T71: =IFERROR(INDEX($Q$2:$Q$231,MATCH(ROWS($Q$2:Q71),COUNTIF($Q$2:$Q$231,"<="&$Q$2:$Q$231),0)),0) -> Glencoe | U71: 71 | V71: Goderich
A72: 71 | B72: CAN | C72: BC | D72: Chetwynd | E72: 5500 | F72: Très-froid | G72: -35 | H72: 27 | Q72: =_xlfn.IFNA(LOOKUP(2, 1/((COUNTIF($Q$1:Q71, $D$2:$D$1686)=0)*($N$3=$C$2:$C$1686)), $D$2:$D$1686),"") -> Peterborough | T72: =IFERROR(INDEX($Q$2:$Q$231,MATCH(ROWS($Q$2:Q72),COUNTIF($Q$2:$Q$231,"<="&$Q$2:$Q$231),0)),0) -> Goderich | U72: 72 | V72: Gore Bay
A73: 72 | B73: CAN | C73: BC | D73: Chilliwack | E73: 2780 | F73: Froid-humide | G73: -9 | H73: 30 | Q73: =_xlfn.IFNA(LOOKUP(2, 1/((COUNTIF($Q$1:Q72, $D$2:$D$1686)=0)*($N$3=$C$2:$C$1686)), $D$2:$D$1686),"") -> Petawawa | T73: =IFERROR(INDEX($Q$2:$Q$231,MATCH(ROWS($Q$2:Q73),COUNTIF($Q$2:$Q$231,"<="&$Q$2:$Q$231),0)),0) -> Gore Bay | U73: 73 | V73: Graham
A74: 73 | B74: CAN | C74: BC | D74: Cloverdale | E74: 2700 | F74: Marin | G74: -8 | H74: 29 | Q74: =_xlfn.IFNA(LOOKUP(2, 1/((COUNTIF($Q$1:Q73, $D$2:$D$1686)=0)*($N$3=$C$2:$C$1686)), $D$2:$D$1686),"") -> Perth | T74: =IFERROR(INDEX($Q$2:$Q$231,MATCH(ROWS($Q$2:Q74),COUNTIF($Q$2:$Q$231,"<="&$Q$2:$Q$231),0)),0) -> Graham | U74: 74 | V74: Gravenhurst (Muskoka Airport)
A75: 74 | B75: CAN | C75: BC | D75: Comox | E75: 3100 | F75: Marin | G75: -7 | H75: 27 | Q75: =_xlfn.IFNA(LOOKUP(2, 1/((COUNTIF($Q$1:Q74, $D$2:$D$1686)=0)*($N$3=$C$2:$C$1686)), $D$2:$D$1686),"") -> Penetanguishene | T75: =IFERROR(INDEX($Q$2:$Q$231,MATCH(ROWS($Q$2:Q75),COUNTIF($Q$2:$Q$231,"<="&$Q$2:$Q$231),0)),0) -> Gravenhurst (Muskoka Airport) | U75: 75 | V75: Grimsby
A76: 75 | B76: CAN | C76: BC | D76: Courtenay | E76: 3100 | F76: Marin | G76: -7 | H76: 28 | Q76: =_xlfn.IFNA(LOOKUP(2, 1/((COUNTIF($Q$1:Q75, $D$2:$D$1686)=0)*($N$3=$C$2:$C$1686)), $D$2:$D$1686),"") -> Pembroke | T76: =IFERROR(INDEX($Q$2:$Q$231,MATCH(ROWS($Q$2:Q76),COUNTIF($Q$2:$Q$231,"<="&$Q$2:$Q$231),0)),0) -> Grimsby | U76: 76 | V76: Guelph
A77: 76 | B77: CAN | C77: BC | D77: Cranbrook | E77: 4400 | F77: Froid-sec | G77: -26 | H77: 32 | Q77: =_xlfn.IFNA(LOOKUP(2, 1/((COUNTIF($Q$1:Q76, $D$2:$D$1686)=0)*($N$3=$C$2:$C$1686)), $D$2:$D$1686),"") -> Pelham (Fonthill) | T77: =IFERROR(INDEX($Q$2:$Q$231,MATCH(ROWS($Q$2:Q77),COUNTIF($Q$2:$Q$231,"<="&$Q$2:$Q$231),0)),0) -> Guelph | U77: 77 | V77: Guthrie
A78: 77 | B78: CAN | C78: BC | D78: Crescent Valley | E78: 3650 | F78: Froid-humide | G78: -18 | H78: 31 | Q78: =_xlfn.IFNA(LOOKUP(2, 1/((COUNTIF($Q$1:Q77, $D$2:$D$1686)=0)*($N$3=$C$2:$C$1686)), $D$2:$D$1686),"") -> Parry Sound | T78: =IFERROR(INDEX($Q$2:$Q$231,MATCH(ROWS($Q$2:Q78),COUNTIF($Q$2:$Q$231,"<="&$Q$2:$Q$231),0)),0) -> Guthrie | U78: 78 | V78: Haileybury
A79: 78 | B79: CAN | C79: BC | D79: Crofton | E79: 2880 | F79: Marin | G79: -4 | H79: 28 | Q79: =_xlfn.IFNA(LOOKUP(2, 1/((COUNTIF($Q$1:Q78, $D$2:$D$1686)=0)*($N$3=$C$2:$C$1686)), $D$2:$D$1686),"") -> Parkhill | T79: =IFERROR(INDEX($Q$2:$Q$231,MATCH(ROWS($Q$2:Q79),COUNTIF($Q$2:$Q$231,"<="&$Q$2:$Q$231),0)),0) -> Haileybury | U79: 79 | V79: Haldimand (Caledonia)
A80: 79 | B80: CAN | C80: BC | D80: Dawson Creek | E80: 5900 | F80: Très-froid | G80: -38 | H80: 27 | Q80: =_xlfn.IFNA(LOOKUP(2, 1/((COUNTIF($Q$1:Q79, $D$2:$D$1686)=0)*($N$3=$C$2:$C$1686)), $D$2:$D$1686),"") -> Paris | T80: =IFERROR(INDEX($Q$2:$Q$231,MATCH(ROWS($Q$2:Q80),COUNTIF($Q$2:$Q$231,"<="&$Q$2:$Q$231),0)),0) -> Haldimand (Caledonia) | U80: 80 | V80: Haldimand (Hagersville)
A81: 80 | B81: CAN | C81: BC | D81: Dease Lake | E81: 6730 | F81: Subarctique | G81: -37 | H81: 24 | Q81: =_xlfn.IFNA(LOOKUP(2, 1/((COUNTIF($Q$1:Q80, $D$2:$D$1686)=0)*($N$3=$C$2:$C$1686)), $D$2:$D$1686),"") -> Pagwa River | T81: =IFERROR(INDEX($Q$2:$Q$231,MATCH(ROWS($Q$2:Q81),COUNTIF($Q$2:$Q$231,"<="&$Q$2:$Q$231),0)),0) -> Haldimand (Hagersville) | U81: 81 | V81: Haliburton
A82: 81 | B82: CAN | C82: BC | D82: Dog Creek | E82: 4800 | F82: Très-froid | G82: -28 | H82: 29 | Q82: =_xlfn.IFNA(LOOKUP(2, 1/((COUNTIF($Q$1:Q81, $D$2:$D$1686)=0)*($N$3=$C$2:$C$1686)), $D$2:$D$1686),"") -> Owen Sound | T82: =IFERROR(INDEX($Q$2:$Q$231,MATCH(ROWS($Q$2:Q82),COUNTIF($Q$2:$Q$231,"<="&$Q$2:$Q$231),0)),0) -> Haliburton | U82: 82 | V82: Halton Hills (Georgetown)
A83: 82 | B83: CAN | C83: BC | D83: Duncan | E83: 2980 | F83: Marin | G83: -6 | H83: 28 | Q83: =_xlfn.IFNA(LOOKUP(2, 1/((COUNTIF($Q$1:Q82, $D$2:$D$1686)=0)*($N$3=$C$2:$C$1686)), $D$2:$D$1686),"") -> Ottawa (Orleans) | T83: =IFERROR(INDEX($Q$2:$Q$231,MATCH(ROWS($Q$2:Q83),COUNTIF($Q$2:$Q$231,"<="&$Q$2:$Q$231),0)),0) -> Halton Hills (Georgetown) | U83: 83 | V83: Hamilton
A84: 83 | B84: CAN | C84: BC | D84: Elko | E84: 4600 | F84: Très-froid | G84: -28 | H84: 30 | Q84: =_xlfn.IFNA(LOOKUP(2, 1/((COUNTIF($Q$1:Q83, $D$2:$D$1686)=0)*($N$3=$C$2:$C$1686)), $D$2:$D$1686),"") -> Ottawa (M-C Int'l Airport) | T84: =IFERROR(INDEX($Q$2:$Q$231,MATCH(ROWS($Q$2:Q84),COUNTIF($Q$2:$Q$231,"<="&$Q$2:$Q$231),0)),0) -> Hamilton | U84: 84 | V84: Hanover
A85: 84 | B85: CAN | C85: BC | D85: Fernie | E85: 4750 | F85: Très-froid | G85: -27 | H85: 30 | Q85: =_xlfn.IFNA(LOOKUP(2, 1/((COUNTIF($Q$1:Q84, $D$2:$D$1686)=0)*($N$3=$C$2:$C$1686)), $D$2:$D$1686),"") -> Ottawa (Kanata) | T85: =IFERROR(INDEX($Q$2:$Q$231,MATCH(ROWS($Q$2:Q85),COUNTIF($Q$2:$Q$231,"<="&$Q$2:$Q$231),0)),0) -> Hanover | U85: 85 | V85: Hastings
A86: 85 | B86: CAN | C86: BC | D86: Fort Nelson | E86: 6710 | F86: Subarctique | G86: -39 | H86: 28 | Q86: =_xlfn.IFNA(LOOKUP(2, 1/((COUNTIF($Q$1:Q85, $D$2:$D$1686)=0)*($N$3=$C$2:$C$1686)), $D$2:$D$1686),"") -> Ottawa (city hall) | T86: =IFERROR(INDEX($Q$2:$Q$231,MATCH(ROWS($Q$2:Q86),COUNTIF($Q$2:$Q$231,"<="&$Q$2:$Q$231),0)),0) -> Hastings | U86: 86 | V86: Hawkesbury
A87: 86 | B87: CAN | C87: BC | D87: Fort St. John | E87: 5750 | F87: Très-froid | G87: -35 | H87: 26 | Q87: =_xlfn.IFNA(LOOKUP(2, 1/((COUNTIF($Q$1:Q86, $D$2:$D$1686)=0)*($N$3=$C$2:$C$1686)), $D$2:$D$1686),"") -> Ottawa (Barrhaven) | T87: =IFERROR(INDEX($Q$2:$Q$231,MATCH(ROWS($Q$2:Q87),COUNTIF($Q$2:$Q$231,"<="&$Q$2:$Q$231),0)),0) -> Hawkesbury | U87: 87 | V87: Hearst
A88: 87 | B88: CAN | C88: BC | D88: Glacier | E88: 5800 | F88: Très-froid | G88: -27 | H88: 27 | Q88: =_xlfn.IFNA(LOOKUP(2, 1/((COUNTIF($Q$1:Q87, $D$2:$D$1686)=0)*($N$3=$C$2:$C$1686)), $D$2:$D$1686),"") -> Oshawa | T88: =IFERROR(INDEX($Q$2:$Q$231,MATCH(ROWS($Q$2:Q88),COUNTIF($Q$2:$Q$231,"<="&$Q$2:$Q$231),0)),0) -> Hearst | U88: 88 | V88: Honey Harbour
A89: 88 | B89: CAN | C89: BC | D89: Gold River | E89: 3230 | F89: Marin | G89: -8 | H89: 31 | Q89: =_xlfn.IFNA(LOOKUP(2, 1/((COUNTIF($Q$1:Q88, $D$2:$D$1686)=0)*($N$3=$C$2:$C$1686)), $D$2:$D$1686),"") -> Orillia | T89: =IFERROR(INDEX($Q$2:$Q$231,MATCH(ROWS($Q$2:Q89),COUNTIF($Q$2:$Q$231,"<="&$Q$2:$Q$231),0)),0) -> Honey Harbour | U89: 89 | V89: Hornepayne
A90: 89 | B90: CAN | C90: BC | D90: Golden | E90: 4750 | F90: Très-froid | G90: -27 | H90: 30 | Q90: =_xlfn.IFNA(LOOKUP(2, 1/((COUNTIF($Q$1:Q89, $D$2:$D$1686)=0)*($N$3=$C$2:$C$1686)), $D$2:$D$1686),"") -> Orangeville | T90: =IFERROR(INDEX($Q$2:$Q$231,MATCH(ROWS($Q$2:Q90),COUNTIF($Q$2:$Q$231,"<="&$Q$2:$Q$231),0)),0) -> Hornepayne | U90: 90 | V90: Huntsville
A91: 90 | B91: CAN | C91: BC | D91: Grand Forks | E91: 3820 | F91: Froid-sec | G91: -19 | H91: 34 | Q91: =_xlfn.IFNA(LOOKUP(2, 1/((COUNTIF($Q$1:Q90, $D$2:$D$1686)=0)*($N$3=$C$2:$C$1686)), $D$2:$D$1686),"") -> Oakville | T91: =IFERROR(INDEX($Q$2:$Q$231,MATCH(ROWS($Q$2:Q91),COUNTIF($Q$2:$Q$231,"<="&$Q$2:$Q$231),0)),0) -> Huntsville | U91: 91 | V91: Ingersoll
A92: 91 | B92: CAN | C92: BC | D92: Greenwood | E92: 4100 | F92: Froid-sec | G92: -20 | H92: 34 | Q92: =_xlfn.IFNA(LOOKUP(2, 1/((COUNTIF($Q$1:Q91, $D$2:$D$1686)=0)*($N$3=$C$2:$C$1686)), $D$2:$D$1686),"") -> Norwood | T92: =IFERROR(INDEX($Q$2:$Q$231,MATCH(ROWS($Q$2:Q92),COUNTIF($Q$2:$Q$231,"<="&$Q$2:$Q$231),0)),0) -> Ingersoll | U92: 92 | V92: Iroquois Falls
A93: 92 | B93: CAN | C93: BC | D93: Haney | E93: 2840 | F93: Froid-humide | G93: -9 | H93: 30 | Q93: =_xlfn.IFNA(LOOKUP(2, 1/((COUNTIF($Q$1:Q92, $D$2:$D$1686)=0)*($N$3=$C$2:$C$1686)), $D$2:$D$1686),"") -> North York | T93: =IFERROR(INDEX($Q$2:$Q$231,MATCH(ROWS($Q$2:Q93),COUNTIF($Q$2:$Q$231,"<="&$Q$2:$Q$231),0)),0) -> Iroquois Falls | U93: 93 | V93: Jellicoe
A94: 93 | B94: CAN | C94: BC | D94: Hope | E94: 3000 | F94: Froid-humide | G94: -13 | H94: 31 | Q94: =_xlfn.IFNA(LOOKUP(2, 1/((COUNTIF($Q$1:Q93, $D$2:$D$1686)=0)*($N$3=$C$2:$C$1686)), $D$2:$D$1686),"") -> North Bay | T94: =IFERROR(INDEX($Q$2:$Q$231,MATCH(ROWS($Q$2:Q94),COUNTIF($Q$2:$Q$231,"<="&$Q$2:$Q$231),0)),0) -> Jellicoe | U94: 94 | V94: Kapuskasing
A95: 94 | B95: CAN | C95: BC | D95: Jordan River | E95: 2900 | F95: Marin | G95: -1 | H95: 22 | Q95: =_xlfn.IFNA(LOOKUP(2, 1/((COUNTIF($Q$1:Q94, $D$2:$D$1686)=0)*($N$3=$C$2:$C$1686)), $D$2:$D$1686),"") -> Niagara Falls | T95: =IFERROR(INDEX($Q$2:$Q$231,MATCH(ROWS($Q$2:Q95),COUNTIF($Q$2:$Q$231,"<="&$Q$2:$Q$231),0)),0) -> Kapuskasing | U95: 95 | V95: Kemptville
A96: 95 | B96: CAN | C96: BC | D96: Kamloops | E96: 3450 | F96: Froid-sec | G96: -23 | H96: 34 | Q96: =_xlfn.IFNA(LOOKUP(2, 1/((COUNTIF($Q$1:Q95, $D$2:$D$1686)=0)*($N$3=$C$2:$C$1686)), $D$2:$D$1686),"") -> Newmarket | T96: =IFERROR(INDEX($Q$2:$Q$231,MATCH(ROWS($Q$2:Q96),COUNTIF($Q$2:$Q$231,"<="&$Q$2:$Q$231),0)),0) -> Kemptville | U96: 96 | V96: Kenora
A97: 96 | B97: CAN | C97: BC | D97: Kaslo | E97: 3830 | F97: Froid-sec | G97: -17 | H97: 30 | Q97: =_xlfn.IFNA(LOOKUP(2, 1/((COUNTIF($Q$1:Q96, $D$2:$D$1686)=0)*($N$3=$C$2:$C$1686)), $D$2:$D$1686),"") -> Newcastle (Bowmanville) | T97: =IFERROR(INDEX($Q$2:$Q$231,MATCH(ROWS($Q$2:Q97),COUNTIF($Q$2:$Q$231,"<="&$Q$2:$Q$231),0)),0) -> Kenora | U97: 97 | V97: Killaloe
A98: 97 | B98: CAN | C98: BC | D98: Kelowna | E98: 3400 | F98: Froid-sec | G98: -17 | H98: 33 | Q98: =_xlfn.IFNA(LOOKUP(2, 1/((COUNTIF($Q$1:Q97, $D$2:$D$1686)=0)*($N$3=$C$2:$C$1686)), $D$2:$D$1686),"") -> Newcastle | T98: =IFERROR(INDEX($Q$2:$Q$231,MATCH(ROWS($Q$2:Q98),COUNTIF($Q$2:$Q$231,"<="&$Q$2:$Q$231),0)),0) -> Killaloe | U98: 98 | V98: Kincardine
A99: 98 | B99: CAN | C99: BC | D99: Kimberley | E99: 4650 | F99: Très-froid | G99: -25 | H99: 31 | Q99: =_xlfn.IFNA(LOOKUP(2, 1/((COUNTIF($Q$1:Q98, $D$2:$D$1686)=0)*($N$3=$C$2:$C$1686)), $D$2:$D$1686),"") -> New Liskeard | T99: =IFERROR(INDEX($Q$2:$Q$231,MATCH(ROWS($Q$2:Q99),COUNTIF($Q$2:$Q$231,"<="&$Q$2:$Q$231),0)),0) -> Kincardine | U99: 99 | V99: Kingston
A100: 99 | B100: CAN | C100: BC | D100: Kitimat Plant | E100: 3750 | F100: Froid-sec | G100: -16 | H100: 25 | Q100: =_xlfn.IFNA(LOOKUP(2, 1/((COUNTIF($Q$1:Q99, $D$2:$D$1686)=0)*($N$3=$C$2:$C$1686)), $D$2:$D$1686),"") -> Napanee | T100: =IFERROR(INDEX($Q$2:$Q$231,MATCH(ROWS($Q$2:Q100),COUNTIF($Q$2:$Q$231,"<="&$Q$2:$Q$231),0)),0) -> Kingston | U100: 100 | V100: Kinmount
A101: 100 | B101: CAN | C101: BC | D101: Kitimat Townsite | E101: 3900 | F101: Froid-sec | G101: -16 | H101: 24 | Q101: =_xlfn.IFNA(LOOKUP(2, 1/((COUNTIF($Q$1:Q100, $D$2:$D$1686)=0)*($N$3=$C$2:$C$1686)), $D$2:$D$1686),"") -> Nanticoke (Port Dover) | T101: =IFERROR(INDEX($Q$2:$Q$231,MATCH(ROWS($Q$2:Q101),COUNTIF($Q$2:$Q$231,"<="&$Q$2:$Q$231),0)),0) -> Kinmount | U101: 101 | V101: Kirkland Lake
A102: 101 | B102: CAN | C102: BC | D102: Ladner | E102: 2600 | F102: Marin | G102: -6 | H102: 27 | Q102: =_xlfn.IFNA(LOOKUP(2, 1/((COUNTIF($Q$1:Q101, $D$2:$D$1686)=0)*($N$3=$C$2:$C$1686)), $D$2:$D$1686),"") -> Nanticoke (Jarvis) | T102: =IFERROR(INDEX($Q$2:$Q$231,MATCH(ROWS($Q$2:Q102),COUNTIF($Q$2:$Q$231,"<="&$Q$2:$Q$231),0)),0) -> Kirkland Lake | U102: 102 | V102: Kitchener
A103: 102 | B103: CAN | C103: BC | D103: Ladysmith | E103: 3000 | F103: Marin | G103: -7 | H103: 27 | Q103: =_xlfn.IFNA(LOOKUP(2, 1/((COUNTIF($Q$1:Q102, $D$2:$D$1686)=0)*($N$3=$C$2:$C$1686)), $D$2:$D$1686),"") -> Nakina | T103: =IFERROR(INDEX($Q$2:$Q$231,MATCH(ROWS($Q$2:Q103),COUNTIF($Q$2:$Q$231,"<="&$Q$2:$Q$231),0)),0) -> Kitchener | U103: 103 | V103: Kitchenuhmaykoosib
A104: 103 | B104: CAN | C104: BC | D104: Langford | E104: 2750 | F104: Marin | G104: -4 | H104: 27 | Q104: =_xlfn.IFNA(LOOKUP(2, 1/((COUNTIF($Q$1:Q103, $D$2:$D$1686)=0)*($N$3=$C$2:$C$1686)), $D$2:$D$1686),"") -> Mount Forest | T104: =IFERROR(INDEX($Q$2:$Q$231,MATCH(ROWS($Q$2:Q104),COUNTIF($Q$2:$Q$231,"<="&$Q$2:$Q$231),0)),0) -> Kitchenuhmaykoosib | U104: 104 | V104: Lakefield
A105: 104 | B105: CAN | C105: BC | D105: Langley | E105: 2700 | F105: Marin | G105: -8 | H105: 29 | Q105: =_xlfn.IFNA(LOOKUP(2, 1/((COUNTIF($Q$1:Q104, $D$2:$D$1686)=0)*($N$3=$C$2:$C$1686)), $D$2:$D$1686),"") -> Morrisburg | T105: =IFERROR(INDEX($Q$2:$Q$231,MATCH(ROWS($Q$2:Q105),COUNTIF($Q$2:$Q$231,"<="&$Q$2:$Q$231),0)),0) -> Lakefield | U105: 105 | V105: Lansdowne House
A106: 105 | B106: CAN | C106: BC | D106: Lillooet | E106: 3400 | F106: Froid-sec | G106: -21 | H106: 34 | Q106: =_xlfn.IFNA(LOOKUP(2, 1/((COUNTIF($Q$1:Q105, $D$2:$D$1686)=0)*($N$3=$C$2:$C$1686)), $D$2:$D$1686),"") -> Moosonee | T106: =IFERROR(INDEX($Q$2:$Q$231,MATCH(ROWS($Q$2:Q106),COUNTIF($Q$2:$Q$231,"<="&$Q$2:$Q$231),0)),0) -> Lansdowne House | U106: 106 | V106: Leamington
A107: 106 | B107: CAN | C107: BC | D107: Lytton | E107: 3300 | F107: Froid-sec | G107: -17 | H107: 35 | Q107: =_xlfn.IFNA(LOOKUP(2, 1/((COUNTIF($Q$1:Q106, $D$2:$D$1686)=0)*($N$3=$C$2:$C$1686)), $D$2:$D$1686),"") -> Mitchell | T107: =IFERROR(INDEX($Q$2:$Q$231,MATCH(ROWS($Q$2:Q107),COUNTIF($Q$2:$Q$231,"<="&$Q$2:$Q$231),0)),0) -> Leamington | U107: 107 | V107: Lindsay
A108: 107 | B108: CAN | C108: BC | D108: Mackenzie | E108: 5550 | F108: Très-froid | G108: -34 | H108: 27 | Q108: =_xlfn.IFNA(LOOKUP(2, 1/((COUNTIF($Q$1:Q107, $D$2:$D$1686)=0)*($N$3=$C$2:$C$1686)), $D$2:$D$1686),"") -> Mississauga (Port Credit) | T108: =IFERROR(INDEX($Q$2:$Q$231,MATCH(ROWS($Q$2:Q108),COUNTIF($Q$2:$Q$231,"<="&$Q$2:$Q$231),0)),0) -> Lindsay | U108: 108 | V108: Lion's Head
A109: 108 | B109: CAN | C109: BC | D109: Masset | E109: 3700 | F109: Marin | G109: -5 | H109: 17 | Q109: =_xlfn.IFNA(LOOKUP(2, 1/((COUNTIF($Q$1:Q108, $D$2:$D$1686)=0)*($N$3=$C$2:$C$1686)), $D$2:$D$1686),"") -> Mississauga (LBP Int'l Airport) | T109: =IFERROR(INDEX($Q$2:$Q$231,MATCH(ROWS($Q$2:Q109),COUNTIF($Q$2:$Q$231,"<="&$Q$2:$Q$231),0)),0) -> Lion's Head | U109: 109 | V109: Listowel
A110: 109 | B110: CAN | C110: BC | D110: McBride | E110: 4980 | F110: Très-froid | G110: -29 | H110: 29 | Q110: =_xlfn.IFNA(LOOKUP(2, 1/((COUNTIF($Q$1:Q109, $D$2:$D$1686)=0)*($N$3=$C$2:$C$1686)), $D$2:$D$1686),"") -> Mississauga | T110: =IFERROR(INDEX($Q$2:$Q$231,MATCH(ROWS($Q$2:Q110),COUNTIF($Q$2:$Q$231,"<="&$Q$2:$Q$231),0)),0) -> Listowel | U110: 110 | V110: London
A111: 110 | B111: CAN | C111: BC | D111: McLeod Lake | E111: 5450 | F111: Très-froid | G111: -35 | H111: 27 | Q111: =_xlfn.IFNA(LOOKUP(2, 1/((COUNTIF($Q$1:Q110, $D$2:$D$1686)=0)*($N$3=$C$2:$C$1686)), $D$2:$D$1686),"") -> Minden | T111: =IFERROR(INDEX($Q$2:$Q$231,MATCH(ROWS($Q$2:Q111),COUNTIF($Q$2:$Q$231,"<="&$Q$2:$Q$231),0)),0) -> London | U111: 111 | V111: Lucan
A112: 111 | B112: CAN | C112: BC | D112: Merritt | E112: 3900 | F112: Froid-sec | G112: -24 | H112: 34 | Q112: =_xlfn.IFNA(LOOKUP(2, 1/((COUNTIF($Q$1:Q111, $D$2:$D$1686)=0)*($N$3=$C$2:$C$1686)), $D$2:$D$1686),"") -> Milverton | T112: =IFERROR(INDEX($Q$2:$Q$231,MATCH(ROWS($Q$2:Q112),COUNTIF($Q$2:$Q$231,"<="&$Q$2:$Q$231),0)),0) -> Lucan | U112: 112 | V112: Maitland
A113: 112 | B113: CAN | C113: BC | D113: Mission City | E113: 2850 | F113: Froid-humide | G113: -9 | H113: 30 | Q113: =_xlfn.IFNA(LOOKUP(2, 1/((COUNTIF($Q$1:Q112, $D$2:$D$1686)=0)*($N$3=$C$2:$C$1686)), $D$2:$D$1686),"") -> Milton | T113: =IFERROR(INDEX($Q$2:$Q$231,MATCH(ROWS($Q$2:Q113),COUNTIF($Q$2:$Q$231,"<="&$Q$2:$Q$231),0)),0) -> Maitland | U113: 113 | V113: Markdale
A114: 113 | B114: CAN | C114: BC | D114: Montrose | E114: 3600 | F114: Froid-humide | G114: -16 | H114: 32 | Q114: =_xlfn.IFNA(LOOKUP(2, 1/((COUNTIF($Q$1:Q113, $D$2:$D$1686)=0)*($N$3=$C$2:$C$1686)), $D$2:$D$1686),"") -> Midland | T114: =IFERROR(INDEX($Q$2:$Q$231,MATCH(ROWS($Q$2:Q114),COUNTIF($Q$2:$Q$231,"<="&$Q$2:$Q$231),0)),0) -> Markdale | U114: 114 | V114: Markham
A115: 114 | B115: CAN | C115: BC | D115: Nakusp | E115: 3560 | F115: Froid-humide | G115: -20 | H115: 31 | Q115: =_xlfn.IFNA(LOOKUP(2, 1/((COUNTIF($Q$1:Q114, $D$2:$D$1686)=0)*($N$3=$C$2:$C$1686)), $D$2:$D$1686),"") -> Mattawa | T115: =IFERROR(INDEX($Q$2:$Q$231,MATCH(ROWS($Q$2:Q115),COUNTIF($Q$2:$Q$231,"<="&$Q$2:$Q$231),0)),0) -> Markham | U115: 115 | V115: Martin
A116: 115 | B116: CAN | C116: BC | D116: Nanaimo | E116: 3000 | F116: Marin | G116: -6 | H116: 27 | Q116: =_xlfn.IFNA(LOOKUP(2, 1/((COUNTIF($Q$1:Q115, $D$2:$D$1686)=0)*($N$3=$C$2:$C$1686)), $D$2:$D$1686),"") -> Matheson | T116: =IFERROR(INDEX($Q$2:$Q$231,MATCH(ROWS($Q$2:Q116),COUNTIF($Q$2:$Q$231,"<="&$Q$2:$Q$231),0)),0) -> Martin | U116: 116 | V116: Matheson
A117: 116 | B117: CAN | C117: BC | D117: Nelson | E117: 3500 | F117: Froid-humide | G117: -18 | H117: 31 | Q117: =_xlfn.IFNA(LOOKUP(2, 1/((COUNTIF($Q$1:Q116, $D$2:$D$1686)=0)*($N$3=$C$2:$C$1686)), $D$2:$D$1686),"") -> Martin | T117: =IFERROR(INDEX($Q$2:$Q$231,MATCH(ROWS($Q$2:Q117),COUNTIF($Q$2:$Q$231,"<="&$Q$2:$Q$231),0)),0) -> Matheson | U117: 117 | V117: Mattawa
A118: 117 | B118: CAN | C118: BC | D118: New Westminster | E118: 2800 | F118: Marin | G118: -8 | H118: 29 | Q118: =_xlfn.IFNA(LOOKUP(2, 1/((COUNTIF($Q$1:Q117, $D$2:$D$1686)=0)*($N$3=$C$2:$C$1686)), $D$2:$D$1686),"") -> Markham | T118: =IFERROR(INDEX($Q$2:$Q$231,MATCH(ROWS($Q$2:Q118),COUNTIF($Q$2:$Q$231,"<="&$Q$2:$Q$231),0)),0) -> Mattawa | U118: 118 | V118: Midland
A119: 118 | B119: CAN | C119: BC | D119: North Vancouver | E119: 2910 | F119: Marin | G119: -7 | H119: 26 | Q119: =_xlfn.IFNA(LOOKUP(2, 1/((COUNTIF($Q$1:Q118, $D$2:$D$1686)=0)*($N$3=$C$2:$C$1686)), $D$2:$D$1686),"") -> Markdale | T119: =IFERROR(INDEX($Q$2:$Q$231,MATCH(ROWS($Q$2:Q119),COUNTIF($Q$2:$Q$231,"<="&$Q$2:$Q$231),0)),0) -> Midland | U119: 119 | V119: Milton
A120: 119 | B120: CAN | C120: BC | D120: Ocean Falls | E120: 3400 | F120: Froid-humide | G120: -10 | H120: 23 | Q120: =_xlfn.IFNA(LOOKUP(2, 1/((COUNTIF($Q$1:Q119, $D$2:$D$1686)=0)*($N$3=$C$2:$C$1686)), $D$2:$D$1686),"") -> Maitland | T120: =IFERROR(INDEX($Q$2:$Q$231,MATCH(ROWS($Q$2:Q120),COUNTIF($Q$2:$Q$231,"<="&$Q$2:$Q$231),0)),0) -> Milton | U120: 120 | V120: Milverton
A121: 120 | B121: CAN | C121: BC | D121: Osoyoos | E121: 3100 | F121: Froid-humide | G121: -14 | H121: 35 | Q121: =_xlfn.IFNA(LOOKUP(2, 1/((COUNTIF($Q$1:Q120, $D$2:$D$1686)=0)*($N$3=$C$2:$C$1686)), $D$2:$D$1686),"") -> Lucan | T121: =IFERROR(INDEX($Q$2:$Q$231,MATCH(ROWS($Q$2:Q121),COUNTIF($Q$2:$Q$231,"<="&$Q$2:$Q$231),0)),0) -> Milverton | U121: 121 | V121: Minden
A122: 121 | B122: CAN | C122: BC | D122: Parksville | E122: 3200 | F122: Marin | G122: -6 | H122: 26 | Q122: =_xlfn.IFNA(LOOKUP(2, 1/((COUNTIF($Q$1:Q121, $D$2:$D$1686)=0)*($N$3=$C$2:$C$1686)), $D$2:$D$1686),"") -> London | T122: =IFERROR(INDEX($Q$2:$Q$231,MATCH(ROWS($Q$2:Q122),COUNTIF($Q$2:$Q$231,"<="&$Q$2:$Q$231),0)),0) -> Minden | U122: 122 | V122: Mississauga
A123: 122 | B123: CAN | C123: BC | D123: Penticton | E123: 3350 | F123: Froid-sec | G123: -15 | H123: 33 | Q123: =_xlfn.IFNA(LOOKUP(2, 1/((COUNTIF($Q$1:Q122, $D$2:$D$1686)=0)*($N$3=$C$2:$C$1686)), $D$2:$D$1686),"") -> Listowel | T123: =IFERROR(INDEX($Q$2:$Q$231,MATCH(ROWS($Q$2:Q123),COUNTIF($Q$2:$Q$231,"<="&$Q$2:$Q$231),0)),0) -> Mississauga | U123: 123 | V123: Mississauga (LBP Int'l Airport)
A124: 123 | B124: CAN | C124: BC | D124: Port Alberni | E124: 3100 | F124: Marin | G124: -5 | H124: 31 | Q124: =_xlfn.IFNA(LOOKUP(2, 1/((COUNTIF($Q$1:Q123, $D$2:$D$1686)=0)*($N$3=$C$2:$C$1686)), $D$2:$D$1686),"") -> Lion's Head | T124: =IFERROR(INDEX($Q$2:$Q$231,MATCH(ROWS($Q$2:Q124),COUNTIF($Q$2:$Q$231,"<="&$Q$2:$Q$231),0)),0) -> Mississauga (LBP Int'l Airport) | U124: 124 | V124: Mississauga (Port Credit)
A125: 124 | B125: CAN | C125: BC | D125: Port Alice | E125: 3010 | F125: Marin | G125: -3 | H125: 26 | Q125: =_xlfn.IFNA(LOOKUP(2, 1/((COUNTIF($Q$1:Q124, $D$2:$D$1686)=0)*($N$3=$C$2:$C$1686)), $D$2:$D$1686),"") -> Lindsay | T125: =IFERROR(INDEX($Q$2:$Q$231,MATCH(ROWS($Q$2:Q125),COUNTIF($Q$2:$Q$231,"<="&$Q$2:$Q$231),0)),0) -> Mississauga (Port Credit) | U125: 125 | V125: Mitchell
A126: 125 | B126: CAN | C126: BC | D126: Port Hardy | E126: 3440 | F126: Marin | G126: -5 | H126: 20 | Q126: =_xlfn.IFNA(LOOKUP(2, 1/((COUNTIF($Q$1:Q125, $D$2:$D$1686)=0)*($N$3=$C$2:$C$1686)), $D$2:$D$1686),"") -> Leamington | T126: =IFERROR(INDEX($Q$2:$Q$231,MATCH(ROWS($Q$2:Q126),COUNTIF($Q$2:$Q$231,"<="&$Q$2:$Q$231),0)),0) -> Mitchell | U126: 126 | V126: Moosonee
A127: 126 | B127: CAN | C127: BC | D127: Port McNeill | E127: 3410 | F127: Marin | G127: -5 | H127: 22 | Q127: =_xlfn.IFNA(LOOKUP(2, 1/((COUNTIF($Q$1:Q126, $D$2:$D$1686)=0)*($N$3=$C$2:$C$1686)), $D$2:$D$1686),"") -> Lansdowne House | T127: =IFERROR(INDEX($Q$2:$Q$231,MATCH(ROWS($Q$2:Q127),COUNTIF($Q$2:$Q$231,"<="&$Q$2:$Q$231),0)),0) -> Moosonee | U127: 127 | V127: Morrisburg
A128: 127 | B128: CAN | C128: BC | D128: Port Renfrew | E128: 2900 | F128: Marin | G128: -3 | H128: 24 | Q128: =_xlfn.IFNA(LOOKUP(2, 1/((COUNTIF($Q$1:Q127, $D$2:$D$1686)=0)*($N$3=$C$2:$C$1686)), $D$2:$D$1686),"") -> Lakefield | T128: =IFERROR(INDEX($Q$2:$Q$231,MATCH(ROWS($Q$2:Q128),COUNTIF($Q$2:$Q$231,"<="&$Q$2:$Q$231),0)),0) -> Morrisburg | U128: 128 | V128: Mount Forest
A129: 128 | B129: CAN | C129: BC | D129: Powell River | E129: 3100 | F129: Marin | G129: -7 | H129: 26 | Q129: =_xlfn.IFNA(LOOKUP(2, 1/((COUNTIF($Q$1:Q128, $D$2:$D$1686)=0)*($N$3=$C$2:$C$1686)), $D$2:$D$1686),"") -> Kitchenuhmaykoosib | T129: =IFERROR(INDEX($Q$2:$Q$231,MATCH(ROWS($Q$2:Q129),COUNTIF($Q$2:$Q$231,"<="&$Q$2:$Q$231),0)),0) -> Mount Forest | U129: 129 | V129: Nakina
A130: 129 | B130: CAN | C130: BC | D130: Prince George | E130: 4720 | F130: Très-froid | G130: -32 | H130: 28 | Q130: =_xlfn.IFNA(LOOKUP(2, 1/((COUNTIF($Q$1:Q129, $D$2:$D$1686)=0)*($N$3=$C$2:$C$1686)), $D$2:$D$1686),"") -> Kitchener | T130: =IFERROR(INDEX($Q$2:$Q$231,MATCH(ROWS($Q$2:Q130),COUNTIF($Q$2:$Q$231,"<="&$Q$2:$Q$231),0)),0) -> Nakina | U130: 130 | V130: Nanticoke (Jarvis)
A131: 130 | B131: CAN | C131: BC | D131: Prince Rupert | E131: 3900 | F131: Froid-sec | G131: -13 | H131: 19 | Q131: =_xlfn.IFNA(LOOKUP(2, 1/((COUNTIF($Q$1:Q130, $D$2:$D$1686)=0)*($N$3=$C$2:$C$1686)), $D$2:$D$1686),"") -> Kirkland Lake | T131: =IFERROR(INDEX($Q$2:$Q$231,MATCH(ROWS($Q$2:Q131),COUNTIF($Q$2:$Q$231,"<="&$Q$2:$Q$231),0)),0) -> Nanticoke (Jarvis) | U131: 131 | V131: =IFERROR(INDEX($T$2:$T$231,U131,1),"") -> Nanticoke (Port Dover)
A132: 131 | B132: CAN | C132: BC | D132: Princeton | E132: 4250 | F132: Froid-sec | G132: -24 | H132: 33 | Q132: =_xlfn.IFNA(LOOKUP(2, 1/((COUNTIF($Q$1:Q131, $D$2:$D$1686)=0)*($N$3=$C$2:$C$1686)), $D$2:$D$1686),"") -> Kinmount | T132: =IFERROR(INDEX($Q$2:$Q$231,MATCH(ROWS($Q$2:Q132),COUNTIF($Q$2:$Q$231,"<="&$Q$2:$Q$231),0)),0) -> Nanticoke (Port Dover) | U132: =U131+1 -> 132 | V132: Napanee
A133: 132 | B133: CAN | C133: BC | D133: Qualicum Beach | E133: 3200 | F133: Marin | G133: -7 | H133: 27 | Q133: =_xlfn.IFNA(LOOKUP(2, 1/((COUNTIF($Q$1:Q132, $D$2:$D$1686)=0)*($N$3=$C$2:$C$1686)), $D$2:$D$1686),"") -> Kingston | T133: =IFERROR(INDEX($Q$2:$Q$231,MATCH(ROWS($Q$2:Q133),COUNTIF($Q$2:$Q$231,"<="&$Q$2:$Q$231),0)),0) -> Napanee | U133: 133 | V133: New Liskeard
A134: 133 | B134: CAN | C134: BC | D134: Queen Charlotte City | E134: 3520 | F134: Marin | G134: -6 | H134: 21 | Q134: =_xlfn.IFNA(LOOKUP(2, 1/((COUNTIF($Q$1:Q133, $D$2:$D$1686)=0)*($N$3=$C$2:$C$1686)), $D$2:$D$1686),"") -> Kincardine | T134: =IFERROR(INDEX($Q$2:$Q$231,MATCH(ROWS($Q$2:Q134),COUNTIF($Q$2:$Q$231,"<="&$Q$2:$Q$231),0)),0) -> New Liskeard | U134: 134 | V134: Newcastle
A135: 134 | B135: CAN | C135: BC | D135: Quesnel | E135: 4650 | F135: Très-froid | G135: -31 | H135: 30 | Q135: =_xlfn.IFNA(LOOKUP(2, 1/((COUNTIF($Q$1:Q134, $D$2:$D$1686)=0)*($N$3=$C$2:$C$1686)), $D$2:$D$1686),"") -> Killaloe | T135: =IFERROR(INDEX($Q$2:$Q$231,MATCH(ROWS($Q$2:Q135),COUNTIF($Q$2:$Q$231,"<="&$Q$2:$Q$231),0)),0) -> Newcastle | U135: 135 | V135: Newcastle (Bowmanville)
A136: 135 | B136: CAN | C136: BC | D136: Revelstoke | E136: 4000 | F136: Froid-sec | G136: -20 | H136: 31 | Q136: =_xlfn.IFNA(LOOKUP(2, 1/((COUNTIF($Q$1:Q135, $D$2:$D$1686)=0)*($N$3=$C$2:$C$1686)), $D$2:$D$1686),"") -> Kenora | T136: =IFERROR(INDEX($Q$2:$Q$231,MATCH(ROWS($Q$2:Q136),COUNTIF($Q$2:$Q$231,"<="&$Q$2:$Q$231),0)),0) -> Newcastle (Bowmanville) | U136: 136 | V136: Newmarket
A137: 136 | B137: CAN | C137: BC | D137: Richmond | E137: 2800 | F137: Marin | G137: -7 | H137: 27 | Q137: =_xlfn.IFNA(LOOKUP(2, 1/((COUNTIF($Q$1:Q136, $D$2:$D$1686)=0)*($N$3=$C$2:$C$1686)), $D$2:$D$1686),"") -> Kemptville | T137: =IFERROR(INDEX($Q$2:$Q$231,MATCH(ROWS($Q$2:Q137),COUNTIF($Q$2:$Q$231,"<="&$Q$2:$Q$231),0)),0) -> Newmarket | U137: 137 | V137: Niagara Falls
A138: 137 | B138: CAN | C138: BC | D138: Salmon Arm | E138: 3650 | F138: Froid-humide | G138: -19 | H138: 33 | Q138: =_xlfn.IFNA(LOOKUP(2, 1/((COUNTIF($Q$1:Q137, $D$2:$D$1686)=0)*($N$3=$C$2:$C$1686)), $D$2:$D$1686),"") -> Kapuskasing | T138: =IFERROR(INDEX($Q$2:$Q$231,MATCH(ROWS($Q$2:Q138),COUNTIF($Q$2:$Q$231,"<="&$Q$2:$Q$231),0)),0) -> Niagara Falls | U138: 138 | V138: North Bay
A139: 138 | B139: CAN | C139: BC | D139: Sandspit | E139: 3450 | F139: Marin | G139: -4 | H139: 18 | Q139: =_xlfn.IFNA(LOOKUP(2, 1/((COUNTIF($Q$1:Q138, $D$2:$D$1686)=0)*($N$3=$C$2:$C$1686)), $D$2:$D$1686),"") -> Jellicoe | T139: =IFERROR(INDEX($Q$2:$Q$231,MATCH(ROWS($Q$2:Q139),COUNTIF($Q$2:$Q$231,"<="&$Q$2:$Q$231),0)),0) -> North Bay | U139: 139 | V139: North York
A140: 139 | B140: CAN | C140: BC | D140: Sechelt | E140: 2680 | F140: Marin | G140: -6 | H140: 27 | Q140: =_xlfn.IFNA(LOOKUP(2, 1/((COUNTIF($Q$1:Q139, $D$2:$D$1686)=0)*($N$3=$C$2:$C$1686)), $D$2:$D$1686),"") -> Iroquois Falls | T140: =IFERROR(INDEX($Q$2:$Q$231,MATCH(ROWS($Q$2:Q140),COUNTIF($Q$2:$Q$231,"<="&$Q$2:$Q$231),0)),0) -> North York | U140: 140 | V140: Norwood
A141: 140 | B141: CAN | C141: BC | D141: Sidney | E141: 2850 | F141: Marin | G141: -4 | H141: 26 | Q141: =_xlfn.IFNA(LOOKUP(2, 1/((COUNTIF($Q$1:Q140, $D$2:$D$1686)=0)*($N$3=$C$2:$C$1686)), $D$2:$D$1686),"") -> Ingersoll | T141: =IFERROR(INDEX($Q$2:$Q$231,MATCH(ROWS($Q$2:Q141),COUNTIF($Q$2:$Q$231,"<="&$Q$2:$Q$231),0)),0) -> Norwood | U141: 141 | V141: Oakville
A142: 141 | B142: CAN | C142: BC | D142: Smith River | E142: 7100 | F142: Subarctique | G142: -45 | H142: 26 | Q142: =_xlfn.IFNA(LOOKUP(2, 1/((COUNTIF($Q$1:Q141, $D$2:$D$1686)=0)*($N$3=$C$2:$C$1686)), $D$2:$D$1686),"") -> Huntsville | T142: =IFERROR(INDEX($Q$2:$Q$231,MATCH(ROWS($Q$2:Q142),COUNTIF($Q$2:$Q$231,"<="&$Q$2:$Q$231),0)),0) -> Oakville | U142: 142 | V142: Orangeville
A143: 142 | B143: CAN | C143: BC | D143: Smithers | E143: 5040 | F143: Très-froid | G143: -29 | H143: 26 | Q143: =_xlfn.IFNA(LOOKUP(2, 1/((COUNTIF($Q$1:Q142, $D$2:$D$1686)=0)*($N$3=$C$2:$C$1686)), $D$2:$D$1686),"") -> Hornepayne | T143: =IFERROR(INDEX($Q$2:$Q$231,MATCH(ROWS($Q$2:Q143),COUNTIF($Q$2:$Q$231,"<="&$Q$2:$Q$231),0)),0) -> Orangeville | U143: 143 | V143: Orillia
A144: 143 | B144: CAN | C144: BC | D144: Sooke | E144: 2900 | F144: Marin | G144: -1 | H144: 21 | Q144: =_xlfn.IFNA(LOOKUP(2, 1/((COUNTIF($Q$1:Q143, $D$2:$D$1686)=0)*($N$3=$C$2:$C$1686)), $D$2:$D$1686),"") -> Honey Harbour | T144: =IFERROR(INDEX($Q$2:$Q$231,MATCH(ROWS($Q$2:Q144),COUNTIF($Q$2:$Q$231,"<="&$Q$2:$Q$231),0)),0) -> Orillia | U144: 144 | V144: Oshawa
A145: 144 | B145: CAN | C145: BC | D145: Squamish | E145: 2950 | F145: Froid-humide | G145: -9 | H145: 29 | Q145: =_xlfn.IFNA(LOOKUP(2, 1/((COUNTIF($Q$1:Q144, $D$2:$D$1686)=0)*($N$3=$C$2:$C$1686)), $D$2:$D$1686),"") -> Hearst | T145: =IFERROR(INDEX($Q$2:$Q$231,MATCH(ROWS($Q$2:Q145),COUNTIF($Q$2:$Q$231,"<="&$Q$2:$Q$231),0)),0) -> Oshawa | U145: 145 | V145: Ottawa (Barrhaven)
A146: 145 | B146: CAN | C146: BC | D146: Stewart | E146: 4350 | F146: Froid-sec | G146: -17 | H146: 25 | Q146: =_xlfn.IFNA(LOOKUP(2, 1/((COUNTIF($Q$1:Q145, $D$2:$D$1686)=0)*($N$3=$C$2:$C$1686)), $D$2:$D$1686),"") -> Hawkesbury | T146: =IFERROR(INDEX($Q$2:$Q$231,MATCH(ROWS($Q$2:Q146),COUNTIF($Q$2:$Q$231,"<="&$Q$2:$Q$231),0)),0) -> Ottawa (Barrhaven) | U146: 146 | V146: Ottawa (city hall)
A147: 146 | B147: CAN | C147: BC | D147: Surrey (88 Ave & 156 St.) | E147: 2750 | F147: Marin | G147: -8 | H147: 29 | Q147: =_xlfn.IFNA(LOOKUP(2, 1/((COUNTIF($Q$1:Q146, $D$2:$D$1686)=0)*($N$3=$C$2:$C$1686)), $D$2:$D$1686),"") -> Hastings | T147: =IFERROR(INDEX($Q$2:$Q$231,MATCH(ROWS($Q$2:Q147),COUNTIF($Q$2:$Q$231,"<="&$Q$2:$Q$231),0)),0) -> Ottawa (city hall) | U147: 147 | V147: Ottawa (Kanata)
A148: 147 | B148: CAN | C148: BC | D148: Tahsis | E148: 3150 | F148: Marin | G148: -4 | H148: 26 | Q148: =_xlfn.IFNA(LOOKUP(2, 1/((COUNTIF($Q$1:Q147, $D$2:$D$1686)=0)*($N$3=$C$2:$C$1686)), $D$2:$D$1686),"") -> Hanover | T148: =IFERROR(INDEX($Q$2:$Q$231,MATCH(ROWS($Q$2:Q148),COUNTIF($Q$2:$Q$231,"<="&$Q$2:$Q$231),0)),0) -> Ottawa (Kanata) | U148: 148 | V148: Ottawa (M-C Int'l Airport)
A149: 148 | B149: CAN | C149: BC | D149: Taylor | E149: 5720 | F149: Très-froid | G149: -35 | H149: 26 | Q149: =_xlfn.IFNA(LOOKUP(2, 1/((COUNTIF($Q$1:Q148, $D$2:$D$1686)=0)*($N$3=$C$2:$C$1686)), $D$2:$D$1686),"") -> Hamilton | T149: =IFERROR(INDEX($Q$2:$Q$231,MATCH(ROWS($Q$2:Q149),COUNTIF($Q$2:$Q$231,"<="&$Q$2:$Q$231),0)),0) -> Ottawa (M-C Int'l Airport) | U149: 149 | V149: Ottawa (Orleans)
A150: 149 | B150: CAN | C150: BC | D150: Terrace | E150: 4150 | F150: Froid-sec | G150: -19 | H150: 27 | Q150: =_xlfn.IFNA(LOOKUP(2, 1/((COUNTIF($Q$1:Q149, $D$2:$D$1686)=0)*($N$3=$C$2:$C$1686)), $D$2:$D$1686),"") -> Halton Hills (Georgetown) | T150: =IFERROR(INDEX($Q$2:$Q$231,MATCH(ROWS($Q$2:Q150),COUNTIF($Q$2:$Q$231,"<="&$Q$2:$Q$231),0)),0) -> Ottawa (Orleans) | U150: 150 | V150: Owen Sound
A151: 150 | B151: CAN | C151: BC | D151: Tofino | E151: 3150 | F151: Marin | G151: -2 | H151: 20 | Q151: =_xlfn.IFNA(LOOKUP(2, 1/((COUNTIF($Q$1:Q150, $D$2:$D$1686)=0)*($N$3=$C$2:$C$1686)), $D$2:$D$1686),"") -> Haliburton | T151: =IFERROR(INDEX($Q$2:$Q$231,MATCH(ROWS($Q$2:Q151),COUNTIF($Q$2:$Q$231,"<="&$Q$2:$Q$231),0)),0) -> Owen Sound | U151: 151 | V151: Pagwa River
A152: 151 | B152: CAN | C152: BC | D152: Trail | E152: 3600 | F152: Froid-sec | G152: -14 | H152: 33 | Q152: =_xlfn.IFNA(LOOKUP(2, 1/((COUNTIF($Q$1:Q151, $D$2:$D$1686)=0)*($N$3=$C$2:$C$1686)), $D$2:$D$1686),"") -> Haldimand (Hagersville) | T152: =IFERROR(INDEX($Q$2:$Q$231,MATCH(ROWS($Q$2:Q152),COUNTIF($Q$2:$Q$231,"<="&$Q$2:$Q$231),0)),0) -> Pagwa River | U152: 152 | V152: Paris
A153: 152 | B153: CAN | C153: BC | D153: Ucluelet | E153: 3120 | F153: Marin | G153: -2 | H153: 18 | Q153: =_xlfn.IFNA(LOOKUP(2, 1/((COUNTIF($Q$1:Q152, $D$2:$D$1686)=0)*($N$3=$C$2:$C$1686)), $D$2:$D$1686),"") -> Haldimand (Caledonia) | T153: =IFERROR(INDEX($Q$2:$Q$231,MATCH(ROWS($Q$2:Q153),COUNTIF($Q$2:$Q$231,"<="&$Q$2:$Q$231),0)),0) -> Paris | U153: 153 | V153: Parkhill
A154: 153 | B154: CAN | C154: BC | D154: Vancouver (city hall) | E154: 2825 | F154: Marin | G154: -7 | H154: 28 | Q154: =_xlfn.IFNA(LOOKUP(2, 1/((COUNTIF($Q$1:Q153, $D$2:$D$1686)=0)*($N$3=$C$2:$C$1686)), $D$2:$D$1686),"") -> Haileybury | T154: =IFERROR(INDEX($Q$2:$Q$231,MATCH(ROWS($Q$2:Q154),COUNTIF($Q$2:$Q$231,"<="&$Q$2:$Q$231),0)),0) -> Parkhill | U154: 154 | V154: Parry Sound
A155: 154 | B155: CAN | C155: BC | D155: Vancouver (Granville & 41 Ave) | E155: 2925 | F155: Marin | G155: -6 | H155: 28 | Q155: =_xlfn.IFNA(LOOKUP(2, 1/((COUNTIF($Q$1:Q154, $D$2:$D$1686)=0)*($N$3=$C$2:$C$1686)), $D$2:$D$1686),"") -> Guthrie | T155: =IFERROR(INDEX($Q$2:$Q$231,MATCH(ROWS($Q$2:Q155),COUNTIF($Q$2:$Q$231,"<="&$Q$2:$Q$231),0)),0) -> Parry Sound | U155: 155 | V155: Pelham (Fonthill)
A156: 155 | B156: CAN | C156: BC | D156: Vernon | E156: 3600 | F156: Froid-sec | G156: -20 | H156: 33 | Q156: =_xlfn.IFNA(LOOKUP(2, 1/((COUNTIF($Q$1:Q155, $D$2:$D$1686)=0)*($N$3=$C$2:$C$1686)), $D$2:$D$1686),"") -> Guelph | T156: =IFERROR(INDEX($Q$2:$Q$231,MATCH(ROWS($Q$2:Q156),COUNTIF($Q$2:$Q$231,"<="&$Q$2:$Q$231),0)),0) -> Pelham (Fonthill) | U156: 156 | V156: Pembroke
A157: 156 | B157: CAN | C157: BC | D157: Victoria | E157: 2650 | F157: Marin | G157: -4 | H157: 24 | Q157: =_xlfn.IFNA(LOOKUP(2, 1/((COUNTIF($Q$1:Q156, $D$2:$D$1686)=0)*($N$3=$C$2:$C$1686)), $D$2:$D$1686),"") -> Grimsby | T157: =IFERROR(INDEX($Q$2:$Q$231,MATCH(ROWS($Q$2:Q157),COUNTIF($Q$2:$Q$231,"<="&$Q$2:$Q$231),0)),0) -> Pembroke | U157: 157 | V157: Penetanguishene
A158: 157 | B158: CAN | C158: BC | D158: Victoria Gonzales Height | E158: 2700 | F158: Marin | G158: -4 | H158: 24 | Q158: =_xlfn.IFNA(LOOKUP(2, 1/((COUNTIF($Q$1:Q157, $D$2:$D$1686)=0)*($N$3=$C$2:$C$1686)), $D$2:$D$1686),"") -> Gravenhurst (Muskoka Airport) | T158: =IFERROR(INDEX($Q$2:$Q$231,MATCH(ROWS($Q$2:Q158),COUNTIF($Q$2:$Q$231,"<="&$Q$2:$Q$231),0)),0) -> Penetanguishene | U158: 158 | V158: Perth
A159: 158 | B159: CAN | C159: BC | D159: Victoria Mt Tolmie | E159: 2700 | F159: Marin | G159: -6 | H159: 24 | Q159: =_xlfn.IFNA(LOOKUP(2, 1/((COUNTIF($Q$1:Q158, $D$2:$D$1686)=0)*($N$3=$C$2:$C$1686)), $D$2:$D$1686),"") -> Graham | T159: =IFERROR(INDEX($Q$2:$Q$231,MATCH(ROWS($Q$2:Q159),COUNTIF($Q$2:$Q$231,"<="&$Q$2:$Q$231),0)),0) -> Perth | U159: 159 | V159: Petawawa
A160: 159 | B160: CAN | C160: BC | D160: West Vancouver | E160: 2950 | F160: Marin | G160: -7 | H160: 28 | Q160: =_xlfn.IFNA(LOOKUP(2, 1/((COUNTIF($Q$1:Q159, $D$2:$D$1686)=0)*($N$3=$C$2:$C$1686)), $D$2:$D$1686),"") -> Gore Bay | T160: =IFERROR(INDEX($Q$2:$Q$231,MATCH(ROWS($Q$2:Q160),COUNTIF($Q$2:$Q$231,"<="&$Q$2:$Q$231),0)),0) -> Petawawa | U160: 160 | V160: Peterborough
A161: 160 | B161: CAN | C161: BC | D161: Whistler | E161: 4180 | F161: Froid-humide | G161: -17 | H161: 30 | Q161: =_xlfn.IFNA(LOOKUP(2, 1/((COUNTIF($Q$1:Q160, $D$2:$D$1686)=0)*($N$3=$C$2:$C$1686)), $D$2:$D$1686),"") -> Goderich | T161: =IFERROR(INDEX($Q$2:$Q$231,MATCH(ROWS($Q$2:Q161),COUNTIF($Q$2:$Q$231,"<="&$Q$2:$Q$231),0)),0) -> Peterborough | U161: 161 | V161: Petrolia
A162: 161 | B162: CAN | C162: BC | D162: White Rock | E162: 2620 | F162: Marin | G162: -5 | H162: 25 | Q162: =_xlfn.IFNA(LOOKUP(2, 1/((COUNTIF($Q$1:Q161, $D$2:$D$1686)=0)*($N$3=$C$2:$C$1686)), $D$2:$D$1686),"") -> Glencoe | T162: =IFERROR(INDEX($Q$2:$Q$231,MATCH(ROWS($Q$2:Q162),COUNTIF($Q$2:$Q$231,"<="&$Q$2:$Q$231),0)),0) -> Petrolia | U162: 162 | V162: Pickering (Dunbarton)
A163: 162 | B163: CAN | C163: BC | D163: Williams Lake | E163: 4400 | F163: Froid-sec | G163: -30 | H163: 29 | Q163: =_xlfn.IFNA(LOOKUP(2, 1/((COUNTIF($Q$1:Q162, $D$2:$D$1686)=0)*($N$3=$C$2:$C$1686)), $D$2:$D$1686),"") -> Geraldton | T163: =IFERROR(INDEX($Q$2:$Q$231,MATCH(ROWS($Q$2:Q163),COUNTIF($Q$2:$Q$231,"<="&$Q$2:$Q$231),0)),0) -> Pickering (Dunbarton) | U163: 163 | V163: Picton
A164: 163 | B164: CAN | C164: BC | D164: Youbou | E164: 3050 | F164: Marin | G164: -5 | H164: 31 | Q164: =_xlfn.IFNA(LOOKUP(2, 1/((COUNTIF($Q$1:Q163, $D$2:$D$1686)=0)*($N$3=$C$2:$C$1686)), $D$2:$D$1686),"") -> Gananoque | T164: =IFERROR(INDEX($Q$2:$Q$231,MATCH(ROWS($Q$2:Q164),COUNTIF($Q$2:$Q$231,"<="&$Q$2:$Q$231),0)),0) -> Picton | U164: 164 | V164: Plattsville
A165: 164 | B165: CAN | C165: MB | D165: Beausejour | E165: 5680 | F165: Très-froid | G165: -33 | H165: 29 | Q165: =_xlfn.IFNA(LOOKUP(2, 1/((COUNTIF($Q$1:Q164, $D$2:$D$1686)=0)*($N$3=$C$2:$C$1686)), $D$2:$D$1686),"") -> Fort Frances | T165: =IFERROR(INDEX($Q$2:$Q$231,MATCH(ROWS($Q$2:Q165),COUNTIF($Q$2:$Q$231,"<="&$Q$2:$Q$231),0)),0) -> Plattsville | U165: 165 | V165: Point Alexander
A166: 165 | B166: CAN | C166: MB | D166: Boissevain | E166: 5500 | F166: Très-froid | G166: -32 | H166: 30 | Q166: =_xlfn.IFNA(LOOKUP(2, 1/((COUNTIF($Q$1:Q165, $D$2:$D$1686)=0)*($N$3=$C$2:$C$1686)), $D$2:$D$1686),"") -> Fort Erie (Ridgeway) | T166: =IFERROR(INDEX($Q$2:$Q$231,MATCH(ROWS($Q$2:Q166),COUNTIF($Q$2:$Q$231,"<="&$Q$2:$Q$231),0)),0) -> Point Alexander | U166: 166 | V166: Port Burwell
A167: 166 | B167: CAN | C167: MB | D167: Brandon | E167: 5760 | F167: Très-froid | G167: -33 | H167: 30 | Q167: =_xlfn.IFNA(LOOKUP(2, 1/((COUNTIF($Q$1:Q166, $D$2:$D$1686)=0)*($N$3=$C$2:$C$1686)), $D$2:$D$1686),"") -> Fort Erie | T167: =IFERROR(INDEX($Q$2:$Q$231,MATCH(ROWS($Q$2:Q167),COUNTIF($Q$2:$Q$231,"<="&$Q$2:$Q$231),0)),0) -> Port Burwell | U167: 167 | V167: Port Colborne
A168: 167 | B168: CAN | C168: MB | D168: Churchill | E168: 8950 | F168: Subarctique | G168: -38 | H168: 25 | Q168: =_xlfn.IFNA(LOOKUP(2, 1/((COUNTIF($Q$1:Q167, $D$2:$D$1686)=0)*($N$3=$C$2:$C$1686)), $D$2:$D$1686),"") -> Forest | T168: =IFERROR(INDEX($Q$2:$Q$231,MATCH(ROWS($Q$2:Q168),COUNTIF($Q$2:$Q$231,"<="&$Q$2:$Q$231),0)),0) -> Port Colborne | U168: 168 | V168: Port Elgin
A169: 168 | B169: CAN | C169: MB | D169: Dauphin | E169: 5900 | F169: Très-froid | G169: -33 | H169: 30 | Q169: =_xlfn.IFNA(LOOKUP(2, 1/((COUNTIF($Q$1:Q168, $D$2:$D$1686)=0)*($N$3=$C$2:$C$1686)), $D$2:$D$1686),"") -> Fergus | T169: =IFERROR(INDEX($Q$2:$Q$231,MATCH(ROWS($Q$2:Q169),COUNTIF($Q$2:$Q$231,"<="&$Q$2:$Q$231),0)),0) -> Port Elgin | U169: 169 | V169: Port Hope
A170: 169 | B170: CAN | C170: MB | D170: Flin Flon | E170: 6440 | F170: Très-froid | G170: -38 | H170: 27 | Q170: =_xlfn.IFNA(LOOKUP(2, 1/((COUNTIF($Q$1:Q169, $D$2:$D$1686)=0)*($N$3=$C$2:$C$1686)), $D$2:$D$1686),"") -> Fenelon Falls | T170: =IFERROR(INDEX($Q$2:$Q$231,MATCH(ROWS($Q$2:Q170),COUNTIF($Q$2:$Q$231,"<="&$Q$2:$Q$231),0)),0) -> Port Hope | U170: 170 | V170: Port Perry
A171: 170 | B171: CAN | C171: MB | D171: Gimli | E171: 5800 | F171: Très-froid | G171: -34 | H171: 29 | Q171: =_xlfn.IFNA(LOOKUP(2, 1/((COUNTIF($Q$1:Q170, $D$2:$D$1686)=0)*($N$3=$C$2:$C$1686)), $D$2:$D$1686),"") -> Exeter | T171: =IFERROR(INDEX($Q$2:$Q$231,MATCH(ROWS($Q$2:Q171),COUNTIF($Q$2:$Q$231,"<="&$Q$2:$Q$231),0)),0) -> Port Perry | U171: 171 | V171: Port Stanley
A172: 171 | B172: CAN | C172: MB | D172: Island Lake | E172: 6900 | F172: Subarctique | G172: -36 | H172: 27 | Q172: =_xlfn.IFNA(LOOKUP(2, 1/((COUNTIF($Q$1:Q171, $D$2:$D$1686)=0)*($N$3=$C$2:$C$1686)), $D$2:$D$1686),"") -> Etobicoke | T172: =IFERROR(INDEX($Q$2:$Q$231,MATCH(ROWS($Q$2:Q172),COUNTIF($Q$2:$Q$231,"<="&$Q$2:$Q$231),0)),0) -> Port Stanley | U172: 172 | V172: Prescott
A173: 172 | B173: CAN | C173: MB | D173: Lac du Bonnet | E173: 5730 | F173: Très-froid | G173: -34 | H173: 29 | Q173: =_xlfn.IFNA(LOOKUP(2, 1/((COUNTIF($Q$1:Q172, $D$2:$D$1686)=0)*($N$3=$C$2:$C$1686)), $D$2:$D$1686),"") -> Espanola | T173: =IFERROR(INDEX($Q$2:$Q$231,MATCH(ROWS($Q$2:Q173),COUNTIF($Q$2:$Q$231,"<="&$Q$2:$Q$231),0)),0) -> Prescott | U173: 173 | V173: Princeton
A174: 173 | B174: CAN | C174: MB | D174: Lynn Lake | E174: 7770 | F174: Subarctique | G174: -40 | H174: 27 | Q174: =_xlfn.IFNA(LOOKUP(2, 1/((COUNTIF($Q$1:Q173, $D$2:$D$1686)=0)*($N$3=$C$2:$C$1686)), $D$2:$D$1686),"") -> Englehart | T174: =IFERROR(INDEX($Q$2:$Q$231,MATCH(ROWS($Q$2:Q174),COUNTIF($Q$2:$Q$231,"<="&$Q$2:$Q$231),0)),0) -> Princeton | U174: 174 | V174: Raith
A175: 174 | B175: CAN | C175: MB | D175: Morden | E175: 5400 | F175: Très-froid | G175: -31 | H175: 30 | Q175: =_xlfn.IFNA(LOOKUP(2, 1/((COUNTIF($Q$1:Q174, $D$2:$D$1686)=0)*($N$3=$C$2:$C$1686)), $D$2:$D$1686),"") -> Embro | T175: =IFERROR(INDEX($Q$2:$Q$231,MATCH(ROWS($Q$2:Q175),COUNTIF($Q$2:$Q$231,"<="&$Q$2:$Q$231),0)),0) -> Raith | U175: 175 | V175: Rayside-Balfour (Chelmsford)
A176: 175 | B176: CAN | C176: MB | D176: Neepawa | E176: 5760 | F176: Très-froid | G176: -32 | H176: 29 | Q176: =_xlfn.IFNA(LOOKUP(2, 1/((COUNTIF($Q$1:Q175, $D$2:$D$1686)=0)*($N$3=$C$2:$C$1686)), $D$2:$D$1686),"") -> Elmvale | T176: =IFERROR(INDEX($Q$2:$Q$231,MATCH(ROWS($Q$2:Q176),COUNTIF($Q$2:$Q$231,"<="&$Q$2:$Q$231),0)),0) -> Rayside-Balfour (Chelmsford) | U176: 176 | V176: Red Lake
A177: 176 | B177: CAN | C177: MB | D177: Pine Falls | E177: 5900 | F177: Très-froid | G177: -34 | H177: 28 | Q177: =_xlfn.IFNA(LOOKUP(2, 1/((COUNTIF($Q$1:Q176, $D$2:$D$1686)=0)*($N$3=$C$2:$C$1686)), $D$2:$D$1686),"") -> Elliot Lake | T177: =IFERROR(INDEX($Q$2:$Q$231,MATCH(ROWS($Q$2:Q177),COUNTIF($Q$2:$Q$231,"<="&$Q$2:$Q$231),0)),0) -> Red Lake | U177: 177 | V177: Renfrew
A178: 177 | B178: CAN | C178: MB | D178: Portage la Prairie | E178: 5600 | F178: Très-froid | G178: -31 | H178: 30 | Q178: =_xlfn.IFNA(LOOKUP(2, 1/((COUNTIF($Q$1:Q177, $D$2:$D$1686)=0)*($N$3=$C$2:$C$1686)), $D$2:$D$1686),"") -> Edison | T178: =IFERROR(INDEX($Q$2:$Q$231,MATCH(ROWS($Q$2:Q178),COUNTIF($Q$2:$Q$231,"<="&$Q$2:$Q$231),0)),0) -> Renfrew | U178: 178 | V178: Richmond Hill
A179: 178 | B179: CAN | C179: MB | D179: Rivers | E179: 5840 | F179: Très-froid | G179: -34 | H179: 29 | Q179: =_xlfn.IFNA(LOOKUP(2, 1/((COUNTIF($Q$1:Q178, $D$2:$D$1686)=0)*($N$3=$C$2:$C$1686)), $D$2:$D$1686),"") -> Earlton | T179: =IFERROR(INDEX($Q$2:$Q$231,MATCH(ROWS($Q$2:Q179),COUNTIF($Q$2:$Q$231,"<="&$Q$2:$Q$231),0)),0) -> Richmond Hill | U179: 179 | V179: Rockland
A180: 179 | B180: CAN | C180: MB | D180: Sandilands | E180: 5650 | F180: Très-froid | G180: -32 | H180: 29 | Q180: =_xlfn.IFNA(LOOKUP(2, 1/((COUNTIF($Q$1:Q179, $D$2:$D$1686)=0)*($N$3=$C$2:$C$1686)), $D$2:$D$1686),"") -> Dutton | T180: =IFERROR(INDEX($Q$2:$Q$231,MATCH(ROWS($Q$2:Q180),COUNTIF($Q$2:$Q$231,"<="&$Q$2:$Q$231),0)),0) -> Rockland | U180: 180 | V180: Sarnia
A181: 180 | B181: CAN | C181: MB | D181: Selkirk | E181: 5700 | F181: Très-froid | G181: -33 | H181: 29 | Q181: =_xlfn.IFNA(LOOKUP(2, 1/((COUNTIF($Q$1:Q180, $D$2:$D$1686)=0)*($N$3=$C$2:$C$1686)), $D$2:$D$1686),"") -> Durham | T181: =IFERROR(INDEX($Q$2:$Q$231,MATCH(ROWS($Q$2:Q181),COUNTIF($Q$2:$Q$231,"<="&$Q$2:$Q$231),0)),0) -> Sarnia | U181: 181 | V181: Sault Ste. Marie
A182: 181 | B182: CAN | C182: MB | D182: Split Lake | E182: 7900 | F182: Subarctique | G182: -38 | H182: 27 | Q182: =_xlfn.IFNA(LOOKUP(2, 1/((COUNTIF($Q$1:Q181, $D$2:$D$1686)=0)*($N$3=$C$2:$C$1686)), $D$2:$D$1686),"") -> Dunnville | T182: =IFERROR(INDEX($Q$2:$Q$231,MATCH(ROWS($Q$2:Q182),COUNTIF($Q$2:$Q$231,"<="&$Q$2:$Q$231),0)),0) -> Sault Ste. Marie | U182: 182 | V182: Scarborough
A183: 182 | B183: CAN | C183: MB | D183: Steinbach | E183: 5700 | F183: Très-froid | G183: -33 | H183: 29 | Q183: =_xlfn.IFNA(LOOKUP(2, 1/((COUNTIF($Q$1:Q182, $D$2:$D$1686)=0)*($N$3=$C$2:$C$1686)), $D$2:$D$1686),"") -> Dundalk | T183: =IFERROR(INDEX($Q$2:$Q$231,MATCH(ROWS($Q$2:Q183),COUNTIF($Q$2:$Q$231,"<="&$Q$2:$Q$231),0)),0) -> Scarborough | U183: 183 | V183: Schreiber
A184: 183 | B184: CAN | C184: MB | D184: Swan River | E184: 6100 | F184: Très-froid | G184: -34 | H184: 29 | Q184: =_xlfn.IFNA(LOOKUP(2, 1/((COUNTIF($Q$1:Q183, $D$2:$D$1686)=0)*($N$3=$C$2:$C$1686)), $D$2:$D$1686),"") -> Dryden | T184: =IFERROR(INDEX($Q$2:$Q$231,MATCH(ROWS($Q$2:Q184),COUNTIF($Q$2:$Q$231,"<="&$Q$2:$Q$231),0)),0) -> Schreiber | U184: 184 | V184: Seaforth
A185: 184 | B185: CAN | C185: MB | D185: The Pas | E185: 6480 | F185: Très-froid | G185: -36 | H185: 28 | Q185: =_xlfn.IFNA(LOOKUP(2, 1/((COUNTIF($Q$1:Q184, $D$2:$D$1686)=0)*($N$3=$C$2:$C$1686)), $D$2:$D$1686),"") -> Dresden | T185: =IFERROR(INDEX($Q$2:$Q$231,MATCH(ROWS($Q$2:Q185),COUNTIF($Q$2:$Q$231,"<="&$Q$2:$Q$231),0)),0) -> Seaforth | U185: 185 | V185: Shelburne
A186: 185 | B186: CAN | C186: MB | D186: Thompson | E186: 7600 | F186: Subarctique | G186: -40 | H186: 27 | Q186: =_xlfn.IFNA(LOOKUP(2, 1/((COUNTIF($Q$1:Q185, $D$2:$D$1686)=0)*($N$3=$C$2:$C$1686)), $D$2:$D$1686),"") -> Dorion | T186: =IFERROR(INDEX($Q$2:$Q$231,MATCH(ROWS($Q$2:Q186),COUNTIF($Q$2:$Q$231,"<="&$Q$2:$Q$231),0)),0) -> Shelburne | U186: 186 | V186: Simcoe
A187: 186 | B187: CAN | C187: MB | D187: Virden | E187: 5620 | F187: Très-froid | G187: -33 | H187: 30 | Q187: =_xlfn.IFNA(LOOKUP(2, 1/((COUNTIF($Q$1:Q186, $D$2:$D$1686)=0)*($N$3=$C$2:$C$1686)), $D$2:$D$1686),"") -> Dorchester | T187: =IFERROR(INDEX($Q$2:$Q$231,MATCH(ROWS($Q$2:Q187),COUNTIF($Q$2:$Q$231,"<="&$Q$2:$Q$231),0)),0) -> Simcoe | U187: 187 | V187: Sioux Lookout
A188: 187 | B188: CAN | C188: MB | D188: Winnipeg | E188: 5670 | F188: Très-froid | G188: -33 | H188: 30 | Q188: =_xlfn.IFNA(LOOKUP(2, 1/((COUNTIF($Q$1:Q187, $D$2:$D$1686)=0)*($N$3=$C$2:$C$1686)), $D$2:$D$1686),"") -> Deseronto | T188: =IFERROR(INDEX($Q$2:$Q$231,MATCH(ROWS($Q$2:Q188),COUNTIF($Q$2:$Q$231,"<="&$Q$2:$Q$231),0)),0) -> Sioux Lookout | U188: 188 | V188: Smiths Falls
A189: 188 | B189: CAN | C189: NB | D189: Alma | E189: 4500 | F189: Très-froid | G189: -21 | H189: 26 | Q189: =_xlfn.IFNA(LOOKUP(2, 1/((COUNTIF($Q$1:Q188, $D$2:$D$1686)=0)*($N$3=$C$2:$C$1686)), $D$2:$D$1686),"") -> Deep River | T189: =IFERROR(INDEX($Q$2:$Q$231,MATCH(ROWS($Q$2:Q189),COUNTIF($Q$2:$Q$231,"<="&$Q$2:$Q$231),0)),0) -> Smiths Falls | U189: 189 | V189: Smithville
A190: 189 | B190: CAN | C190: NB | D190: Bathurst | E190: 5020 | F190: Très-froid | G190: -23 | H190: 30 | Q190: =_xlfn.IFNA(LOOKUP(2, 1/((COUNTIF($Q$1:Q189, $D$2:$D$1686)=0)*($N$3=$C$2:$C$1686)), $D$2:$D$1686),"") -> Corunna | T190: =IFERROR(INDEX($Q$2:$Q$231,MATCH(ROWS($Q$2:Q190),COUNTIF($Q$2:$Q$231,"<="&$Q$2:$Q$231),0)),0) -> Smithville | U190: 190 | V190: Smooth Rock Falls
A191: 190 | B191: CAN | C191: NB | D191: Campbellton | E191: 5500 | F191: Très-froid | G191: -26 | H191: 29 | Q191: =_xlfn.IFNA(LOOKUP(2, 1/((COUNTIF($Q$1:Q190, $D$2:$D$1686)=0)*($N$3=$C$2:$C$1686)), $D$2:$D$1686),"") -> Cornwall | T191: =IFERROR(INDEX($Q$2:$Q$231,MATCH(ROWS($Q$2:Q191),COUNTIF($Q$2:$Q$231,"<="&$Q$2:$Q$231),0)),0) -> Smooth Rock Falls | U191: 191 | V191: South River
A192: 191 | B192: CAN | C192: NB | D192: Edmundston | E192: 5320 | F192: Très-froid | G192: -27 | H192: 28 | Q192: =_xlfn.IFNA(LOOKUP(2, 1/((COUNTIF($Q$1:Q191, $D$2:$D$1686)=0)*($N$3=$C$2:$C$1686)), $D$2:$D$1686),"") -> Collingwood | T192: =IFERROR(INDEX($Q$2:$Q$231,MATCH(ROWS($Q$2:Q192),COUNTIF($Q$2:$Q$231,"<="&$Q$2:$Q$231),0)),0) -> South River | U192: 192 | V192: Southampton
A193: 192 | B193: CAN | C193: NB | D193: Fredericton | E193: 4670 | F193: Très-froid | G193: -24 | H193: 29 | Q193: =_xlfn.IFNA(LOOKUP(2, 1/((COUNTIF($Q$1:Q192, $D$2:$D$1686)=0)*($N$3=$C$2:$C$1686)), $D$2:$D$1686),"") -> Colborne | T193: =IFERROR(INDEX($Q$2:$Q$231,MATCH(ROWS($Q$2:Q193),COUNTIF($Q$2:$Q$231,"<="&$Q$2:$Q$231),0)),0) -> Southampton | U193: 193 | V193: St. Catharines
A194: 193 | B194: CAN | C194: NB | D194: Gagetown | E194: 4460 | F194: Froid-humide | G194: -24 | H194: 29 | Q194: =_xlfn.IFNA(LOOKUP(2, 1/((COUNTIF($Q$1:Q193, $D$2:$D$1686)=0)*($N$3=$C$2:$C$1686)), $D$2:$D$1686),"") -> Cochrane | T194: =IFERROR(INDEX($Q$2:$Q$231,MATCH(ROWS($Q$2:Q194),COUNTIF($Q$2:$Q$231,"<="&$Q$2:$Q$231),0)),0) -> St. Catharines | U194: 194 | V194: St. Mary's
A195: 194 | B195: CAN | C195: NB | D195: Grand Falls | E195: 5300 | F195: Très-froid | G195: -27 | H195: 28 | Q195: =_xlfn.IFNA(LOOKUP(2, 1/((COUNTIF($Q$1:Q194, $D$2:$D$1686)=0)*($N$3=$C$2:$C$1686)), $D$2:$D$1686),"") -> Cobourg | T195: =IFERROR(INDEX($Q$2:$Q$231,MATCH(ROWS($Q$2:Q195),COUNTIF($Q$2:$Q$231,"<="&$Q$2:$Q$231),0)),0) -> St. Mary's | U195: 195 | V195: =IFERROR(INDEX($T$2:$T$231,U195,1),"") -> St. Thomas
A196: 195 | B196: CAN | C196: NB | D196: Miramichi | E196: 4950 | F196: Très-froid | G196: -24 | H196: 30 | Q196: =_xlfn.IFNA(LOOKUP(2, 1/((COUNTIF($Q$1:Q195, $D$2:$D$1686)=0)*($N$3=$C$2:$C$1686)), $D$2:$D$1686),"") -> Coboconk | T196: =IFERROR(INDEX($Q$2:$Q$231,MATCH(ROWS($Q$2:Q196),COUNTIF($Q$2:$Q$231,"<="&$Q$2:$Q$231),0)),0) -> St. Thomas | U196: =U195+1 -> 196 | V196: Stirling
A197: 196 | B197: CAN | C197: NB | D197: Moncton | E197: 4680 | F197: Très-froid | G197: -23 | H197: 28 | Q197: =_xlfn.IFNA(LOOKUP(2, 1/((COUNTIF($Q$1:Q196, $D$2:$D$1686)=0)*($N$3=$C$2:$C$1686)), $D$2:$D$1686),"") -> Clinton | T197: =IFERROR(INDEX($Q$2:$Q$231,MATCH(ROWS($Q$2:Q197),COUNTIF($Q$2:$Q$231,"<="&$Q$2:$Q$231),0)),0) -> Stirling | U197: 197 | V197: Stratford
A198: 197 | B198: CAN | C198: NB | D198: Oromocto | E198: 4650 | F198: Très-froid | G198: -24 | H198: 29 | Q198: =_xlfn.IFNA(LOOKUP(2, 1/((COUNTIF($Q$1:Q197, $D$2:$D$1686)=0)*($N$3=$C$2:$C$1686)), $D$2:$D$1686),"") -> Chesley | T198: =IFERROR(INDEX($Q$2:$Q$231,MATCH(ROWS($Q$2:Q198),COUNTIF($Q$2:$Q$231,"<="&$Q$2:$Q$231),0)),0) -> Stratford | U198: 198 | V198: Strathroy
A199: 198 | B199: CAN | C199: NB | D199: Sackville | E199: 4590 | F199: Très-froid | G199: -22 | H199: 27 | Q199: =_xlfn.IFNA(LOOKUP(2, 1/((COUNTIF($Q$1:Q198, $D$2:$D$1686)=0)*($N$3=$C$2:$C$1686)), $D$2:$D$1686),"") -> Chatham | T199: =IFERROR(INDEX($Q$2:$Q$231,MATCH(ROWS($Q$2:Q199),COUNTIF($Q$2:$Q$231,"<="&$Q$2:$Q$231),0)),0) -> Strathroy | U199: 199 | V199: Sturgeon Falls
A200: 199 | B200: CAN | C200: NB | D200: Saint Andrews | E200: 4680 | F200: Très-froid | G200: -22 | H200: 25 | Q200: =_xlfn.IFNA(LOOKUP(2, 1/((COUNTIF($Q$1:Q199, $D$2:$D$1686)=0)*($N$3=$C$2:$C$1686)), $D$2:$D$1686),"") -> Chapleau | T200: =IFERROR(INDEX($Q$2:$Q$231,MATCH(ROWS($Q$2:Q200),COUNTIF($Q$2:$Q$231,"<="&$Q$2:$Q$231),0)),0) -> Sturgeon Falls | U200: 200 | V200: Sudbury
... 1486 more rows

Sheet Étape 5 Sélectionner des TP-Air
A1: ÉTAPE 5 : DÉTERMINER ET SÉLECTIONNER UNE THERMOPOMPE À AIR CORRESPONDANT AUX EXIGENCES CLÉS
A2: Climate Inputs
A3: Paramètres d'analyse | P3: Notes:
B5: Climate Summary (Selected in Step 3) | Q5: Tous les points de données de performance doivent être entrés selon un ordre décroissants de la température extérieure
B6: Site | D6: ='Étape 3 Charges de Conception'!B10 -> Ottawa (M-C Int'l Airport) | F6: ='Étape 3 Charges de Conception'!B9 -> ON | H6: ='Étape 3 Charges de Conception'!B8 -> CAN | Q6: Attention: Il est nécessaire de sélectionner le type de TP avant de commencer à remplir les sections de «Type d'Entrée de Données» ainsi que «Données de Performance» .
B7: Zone Climatique | D7: ='Étape 3 Charges de Conception'!B11 -> Très-froid | Q7: Attention: Appuyer sur les touches de réinitialisation remettra toutes les intrants de données de performance à zéro.
B8: HDD (metric) | D8: ='Étape 3 Charges de Conception'!B12 -> 4500 | Q8: N'utilisez les touches de réinitialisation que si vous souhaitez modifier le type de thermopompe, saisir des données pour un autre modèle de thermopompe ou modifier la saisi pour la sélection COP/EER ou puissance
B10: Sélection : Thermopompes à examiner
B11: # tp à examiner | E11: 4
Q12: Référence au Guide
B13: Conditions intérieures pour la sélection de thermopompe
B14: Chauffage: | D14: =IF('Étape 3 Charges de Conception'!$B$5="°C",21.1,70)&'Étape 3 Charges de Conception'!C16&" Température du thermomètre sec " -> 70°F Température du thermomètre sec | Q14: Pages 25-33
B15: Refroidissement: | D15: =IF('Étape 3 Charges de Conception'!$B$5="°C",24,75)&'Étape 3 Charges de Conception'!C16&" Température du thermomètre sec " -> 75°F Température du thermomètre sec
D16: =IF('Étape 3 Charges de Conception'!$B$5="°C",17,63)&'Étape 3 Charges de Conception'!C16&" Température du thermomètre mouillé " -> 63°F Température du thermomètre mouillé | Q16: Après avoir effectué l'étape 5, vous aurez:
Q17: Sélectionné un modèle et une taille de thermopompe à air qui convient le mieux aux exigences de l'application et aux attentes du client définies par les options sélectionnées aux ÉTAPES 1 à 4.
A19: Saisie de Données
B21: Thermopompe #1 | C21: Informations Générales | G21: Type d'Entrées de Données | L21: =IF('Étape 1 Configuration de TP-Air'!$B$7>1,"Capacité des Unités intérieures","Capacité de l'Unité intérieure") -> Capacité de l'Unité intérieure | Q21: Étage Supérieur
Q22: Chauff. | R22: =$R$26 -> Température [°F] | S22: 47 | T22: 17
D23: Nom de Référence | M23: ="Cap. Unité Int. 1"&IF($E$35<>Dropdown_Menus!$F$2," [kW]"," [BTU/hr]") -> Cap. Unité Int. 1 [BTU/hr] | N23: 18000 | R23: ="Cap. en Chauffage ["&$E$35&"]" -> Cap. en Chauffage [BTU/hr]
D24: Nom du Modèle de l'Unité Int. | I24: TRUE | M24: ="Cap. Unité Int. 2"&IF($E$35<>Dropdown_Menus!$F$2," [kW]"," [BTU/hr]") -> Cap. Unité Int. 2 [BTU/hr] | R24: Puissance en Chauff. [kW]
D25: Nom du Modèle de l'Unité Ext. | I25: FALSE | M25: ="Cap. Unité Int. 3"&IF($E$35<>Dropdown_Menus!$F$2," [kW]"," [BTU/hr]") -> Cap. Unité Int. 3 [BTU/hr] | R25: COP en Chauff. [-] | S25: =IF($S$24="","",IF($E$35="kW",$S$23/$S$24,$S$23*0.00029307103866/$S$24)) ->  | T25: =IF($T$24="","",IF($E$35="kW",$T$23/$T$24,$T$23*0.00029307103866/$T$24)) -> 
D26: Niveau de Bruit [dB(A)] | I26: FALSE | M26: ="Cap. Unité Int. 4"&IF($E$35<>Dropdown_Menus!$F$2," [kW]"," [BTU/hr]") -> Cap. Unité Int. 4 [BTU/hr] | Q26: Clim. | R26: ="Température ["&$E$34&"]" -> Température [°F] | S26: 95
D27: ="Débit d'air maximal nominal ["&$E$33&"]" -> Débit d'air maximal nominal [CFM] | I27: FALSE | M27: ="Cap. Unité Int. 5"&IF($E$35<>Dropdown_Menus!$F$2," [kW]"," [BTU/hr]") -> Cap. Unité Int. 5 [BTU/hr] | R27: ="Cap. en Clim. ["&$E$35&"]" -> Cap. en Clim. [BTU/hr]
D28: ="Limite de basse température ["&$E$34&"]" -> Limite de basse température [°F] | R28: Puissance en Clim. [kW]
D29: Intégration de la Thermopompe | E29: =IF('Étape 1 Configuration de TP-Air'!$B$6='Étape 1 Configuration de TP-Air'!$T$2,"Conduit Central",IF('Étape 1 Configuration de TP-Air'!$B$6='Étape 1 Configuration de TP-Air'!$T$3,"Sans conduit, une seule zone",IF('Étape 1 Configuration de TP-Air'!$B$6='Étape 1 Configuration de TP-Air'!$T$4,"Sans conduit, Plusieurs zones",IF('Étape 1 Configuration de TP-Air'!$B$6='Étape 1 Configuration de TP-Air'!$T$5,"Mini-bibloc avec conduit","")))) -> Conduit Central | R29: EER en Clim. [-] | S29: =IF($S$28="","",IF($E$35="kW",$S$27/0.00029307103866/(1000*$S$28),$S$27/($S$28*1000))) -> 
D30: Type de Thermopompe | E30: Variable (Ordinaire) | G30: Données de Performance | Q30: Étage Inférieur
Q31: Chauff. | R31: =$R$35 -> Température [°F] | S31: 47 | T31: 17
D32: Sélection des unités TP#1 | R32: ="Cap. en Chauffage ["&$E$35&"]" -> Cap. en Chauffage [BTU/hr]
D33: Débit d'Air | E33: CFM | R33: Puissance en Chauff. [kW]
D34: Température | E34: °F | R34: COP en Chauff. [-] | S34: =IF($S$33="","",IF($E$35="kW",$S$32/$S$33,$S$32*0.00029307103866/$S$33)) ->  | T34: =IF($T$33="","",IF($E$35="kW",$T$32/$T$33,$T$32*0.00029307103866/$T$33)) -> 
D35: Capacité | E35: BTU/hr | H35: Puissance/COP en Chauff. | I35: Puissance | Q35: Clim. | R35: ="Température ["&$E$34&"]" -> Température [°F] | S35: 95
H36: Puissance/EER en Clim. | I36: Puissance | R36: ="Cap. en Clim. ["&$E$35&"]" -> Cap. en Clim. [BTU/hr]
R37: Puissance en Clim. [kW]
R38: EER en Clim. [-] | S38: =IF($S$37="","",IF($E$35="kW",$S$36/0.00029307103866/(1000*$S$37),$S$36/($S$37*1000))) -> 
B40: Thermopompe #2 | C40: Informations Générales | G40: Type d'Entrées de Données | L40: =IF('Étape 1 Configuration de TP-Air'!$B$7>1,"Capacité des Unités intérieures","Capacité de l'Unité intérieure") -> Capacité de l'Unité intérieure | Q40: Étage Supérieur
Q41: Chauff. | R41: =$R$45 -> Température [°F] | S41: 47 | T41: 17
D42: Nom de Référence | M42: ="Cap. Unité Int. 1"&IF($E$54<>Dropdown_Menus!$F$2," [kW]"," [BTU/hr]") -> Cap. Unité Int. 1 [BTU/hr] | R42: ="Cap. en Chauffage ["&$E$54&"]" -> Cap. en Chauffage [BTU/hr]
D43: Nom du Modèle de l'Unité Int. | I43: TRUE | M43: ="Cap. Unité Int. 2"&IF($E$54<>Dropdown_Menus!$F$2," [kW]"," [BTU/hr]") -> Cap. Unité Int. 2 [BTU/hr] | R43: Puissance en Chauff. [kW]
D44: Nom du Modèle de l'Unité Ext. | I44: FALSE | M44: ="Cap. Unité Int. 3"&IF($E$54<>Dropdown_Menus!$F$2," [kW]"," [BTU/hr]") -> Cap. Unité Int. 3 [BTU/hr] | R44: COP en Chauff. [-] | S44: =IF($S$43="","",IF($E$54="kW",$S$42/$S$43,$S$42*0.00029307103866/$S$43)) ->  | T44: =IF($T$43="","",IF($E$54="kW",$T$42/$T$43,$T$42*0.00029307103866/$T$43)) -> 
D45: Niveau de Bruit [dB(A)] | I45: FALSE | M45: ="Cap. Unité Int. 4"&IF($E$54<>Dropdown_Menus!$F$2," [kW]"," [BTU/hr]") -> Cap. Unité Int. 4 [BTU/hr] | Q45: Clim. | R45: ="Température ["&$E$53&"]" -> Température [°F] | S45: 95
D46: ="Débit d'air maximal nominal ["&$E$52&"]" -> Débit d'air maximal nominal [CFM] | I46: FALSE | M46: ="Cap. Unité Int. 5"&IF($E$54<>Dropdown_Menus!$F$2," [kW]"," [BTU/hr]") -> Cap. Unité Int. 5 [BTU/hr] | R46: ="Cap. en Clim. ["&$E$54&"]" -> Cap. en Clim. [BTU/hr]
D47: ="Limite de basse température ["&$E$53&"]" -> Limite de basse température [°F] | R47: Puissance en Clim. [kW]
D48: Intégration de la Thermopompe | E48: =IF('Étape 1 Configuration de TP-Air'!$B$6='Étape 1 Configuration de TP-Air'!$T$2,"Conduit Central",IF('Étape 1 Configuration de TP-Air'!$B$6='Étape 1 Configuration de TP-Air'!$T$3,"Sans conduit, une seule zone",IF('Étape 1 Configuration de TP-Air'!$B$6='Étape 1 Configuration de TP-Air'!$T$4,"Sans conduit, Plusieurs zones",IF('Étape 1 Configuration de TP-Air'!$B$6='Étape 1 Configuration de TP-Air'!$T$5,"Mini-bibloc avec conduit","")))) -> Conduit Central | R48: EER en Clim. [-] | S48: =IF($S$47="","",IF($E$54="kW",$S$46/0.00029307103866/(1000*$S$47),$S$46/($S$47*1000))) -> 
D49: Type de Thermopompe | E49: Variable (Climat Froid) | G49: Données de Performance | Q49: Étage Inférieur
Q50: Chauff. | R50: =$R$54 -> Température [°F] | S50: 47 | T50: 17
D51: Sélection des unités TP#2 | R51: ="Cap. en Chauffage ["&$E$54&"]" -> Cap. en Chauffage [BTU/hr]
D52: Débit d'Air | E52: CFM | R52: Puissance en Chauff. [kW]
D53: Température | E53: °F | R53: COP en Chauff. [-] | S53: =IF($S$52="","",IF($E$54="kW",$S$51/$S$52,$S$51*0.00029307103866/$S$52)) ->  | T53: =IF($T$52="","",IF($E$54="kW",$T$51/$T$52,$T$51*0.00029307103866/$T$52)) -> 
D54: Capacité | E54: BTU/hr | H54: Puissance/COP en Chauff. | I54: Puissance | Q54: Clim. | R54: ="Température ["&$E$53&"]" -> Température [°F] | S54: 95
H55: Puissance/EER en Clim. | I55: Puissance | R55: ="Cap. en Clim. ["&$E$54&"]" -> Cap. en Clim. [BTU/hr]
R56: Puissance en Clim. [kW]
R57: EER en Clim. [-] | S57: =IF($S$56="","",IF($E$54="kW",$S$55/0.00029307103866/(1000*$S$56),$S$55/($S$56*1000))) -> 
B59: Thermopompe #3 | C59: Informations Générales | G59: Type d'Entrées de Données | L59: =IF('Étape 1 Configuration de TP-Air'!$B$7>1,"Capacité des Unités intérieures","Capacité de l'Unité intérieure") -> Capacité de l'Unité intérieure | Q59: Étage Supérieur
Q60: Chauff. | R60: =$R$64 -> Température [°F] | S60: 47 | T60: 17
D61: Nom de Référence | M61: ="Cap. Unité Int. 1"&IF($E$73<>Dropdown_Menus!$F$2," [kW]"," [BTU/hr]") -> Cap. Unité Int. 1 [BTU/hr] | R61: ="Cap. en Chauffage ["&$E$73&"]" -> Cap. en Chauffage [BTU/hr]
D62: Nom du Modèle de l'Unité Int. | I62: TRUE | M62: ="Cap. Unité Int. 2"&IF($E$73<>Dropdown_Menus!$F$2," [kW]"," [BTU/hr]") -> Cap. Unité Int. 2 [BTU/hr] | N62: 1500 | R62: Puissance en Chauff. [kW]
D63: Nom du Modèle de l'Unité Ext. | I63: FALSE | M63: ="Cap. Unité Int. 3"&IF($E$73<>Dropdown_Menus!$F$2," [kW]"," [BTU/hr]") -> Cap. Unité Int. 3 [BTU/hr] | N63: 2100 | R63: COP en Chauff. [-] | S63: =IF($S$62="","",IF($E$73="kW",$S$61/$S$62,$S$61*0.00029307103866/$S$62)) ->  | T63: =IF($T$62="","",IF($E$73="kW",$T$61/$T$62,$T$61*0.00029307103866/$T$62)) -> 
D64: Niveau de Bruit [dB(A)] | I64: FALSE | M64: ="Cap. Unité Int. 4"&IF($E$73<>Dropdown_Menus!$F$2," [kW]"," [BTU/hr]") -> Cap. Unité Int. 4 [BTU/hr] | Q64: Clim. | R64: ="Température ["&$E$72&"]" -> Température [°F] | S64: 95
D65: ="Débit d'air maximal nominal ["&$E$71&"]" -> Débit d'air maximal nominal [CFM] | I65: FALSE | M65: ="Cap. Unité Int. 5"&IF($E$73<>Dropdown_Menus!$F$2," [kW]"," [BTU/hr]") -> Cap. Unité Int. 5 [BTU/hr] | R65: ="Cap. en Clim. ["&$E$73&"]" -> Cap. en Clim. [BTU/hr]
D66: ="Limite de basse température ["&$E$72&"]" -> Limite de basse température [°F] | R66: Puissance en Clim. [kW]
D67: Intégration de la Thermopompe | E67: =IF('Étape 1 Configuration de TP-Air'!$B$6='Étape 1 Configuration de TP-Air'!$T$2,"Conduit Central",IF('Étape 1 Configuration de TP-Air'!$B$6='Étape 1 Configuration de TP-Air'!$T$3,"Sans conduit, une seule zone",IF('Étape 1 Configuration de TP-Air'!$B$6='Étape 1 Configuration de TP-Air'!$T$4,"Sans conduit, Plusieurs zones",IF('Étape 1 Configuration de TP-Air'!$B$6='Étape 1 Configuration de TP-Air'!$T$5,"Mini-bibloc avec conduit","")))) -> Conduit Central | R67: EER en Clim. [-] | S67: =IF($S$66="","",IF($E$73="kW",$S$65/0.00029307103866/(1000*$S$66),$S$65/($S$66*1000))) -> 
D68: Type de Thermopompe | E68: Variable (Climat Froid) | G68: Données de Performance | Q68: Étage Inférieur
Q69: Chauff. | R69: =$R$73 -> Température [°F] | S69: 47 | T69: 17
D70: Sélection des unités TP#3 | R70: ="Cap. en Chauffage ["&$E$73&"]" -> Cap. en Chauffage [BTU/hr]
D71: Débit d'Air | E71: CFM | R71: Puissance en Chauff. [kW]
D72: Température | E72: °F | R72: COP en Chauff. [-] | S72: =IF($S$71="","",IF($E$73="kW",$S$70/$S$71,$S$70*0.00029307103866/$S$71)) ->  | T72: =IF($T$71="","",IF($E$73="kW",$T$70/$T$71,$T$70*0.00029307103866/$T$71)) -> 
D73: Capacité | E73: BTU/hr | H73: Puissance/COP en Chauff. | I73: Puissance | Q73: Clim. | R73: ="Température ["&$E$72&"]" -> Température [°F] | S73: 95
H74: Puissance/EER en Clim. | I74: Puissance | R74: ="Cap. en Clim. ["&$E$73&"]" -> Cap. en Clim. [BTU/hr]
R75: Puissance en Clim. [kW]
R76: EER en Clim. [-] | S76: =IF($S$75="","",IF($E$73="kW",$S$74/0.00029307103866/(1000*$S$75),$S$74/($S$75*1000))) -> 
B78: Thermopompe #4 | C78: Informations Générales | G78: Type d'Entrées de Données | L78: =IF('Étape 1 Configuration de TP-Air'!$B$7>1,"Capacité des Unités intérieures","Capacité de l'Unité intérieure") -> Capacité de l'Unité intérieure | Q78: Étage Supérieur
Q79: Chauff. | R79: =$R$83 -> Température [°F] | S79: 47 | T79: 17
D80: Nom de Référence | M80: ="Cap. Unité Int. 1"&IF($E$92<>Dropdown_Menus!$F$2," [kW]"," [BTU/hr]") -> Cap. Unité Int. 1 [BTU/hr] | R80: ="Cap. en Chauffage ["&$E$92&"]" -> Cap. en Chauffage [BTU/hr]
D81: Nom du Modèle de l'Unité Int. | I81: TRUE | M81: ="Cap. Unité Int. 2"&IF($E$92<>Dropdown_Menus!$F$2," [kW]"," [BTU/hr]") -> Cap. Unité Int. 2 [BTU/hr] | R81: Puissance en Chauff. [kW]
D82: Nom du Modèle de l'Unité Ext. | I82: FALSE | M82: ="Cap. Unité Int. 3"&IF($E$92<>Dropdown_Menus!$F$2," [kW]"," [BTU/hr]") -> Cap. Unité Int. 3 [BTU/hr] | R82: COP en Chauff. [-] | S82: =IF($S$81="","",IF($E$92="kW",$S$80/$S$81,$S$80*0.00029307103866/$S$81)) ->  | T82: =IF($T$81="","",IF($E$92="kW",$T$80/$T$81,$T$80*0.00029307103866/$T$81)) -> 
D83: Niveau de Bruit [dB(A)] | I83: FALSE | M83: ="Cap. Unité Int. 4"&IF($E$92<>Dropdown_Menus!$F$2," [kW]"," [BTU/hr]") -> Cap. Unité Int. 4 [BTU/hr] | Q83: Clim. | R83: ="Température ["&$E$91&"]" -> Température [°F] | S83: 95
D84: ="Débit d'air maximal nominal ["&$E$90&"]" -> Débit d'air maximal nominal [CFM] | I84: FALSE | M84: ="Cap. Unité Int. 5"&IF($E$92<>Dropdown_Menus!$F$2," [kW]"," [BTU/hr]") -> Cap. Unité Int. 5 [BTU/hr] | R84: ="Cap. en Clim. ["&$E$92&"]" -> Cap. en Clim. [BTU/hr]
D85: ="Limite de basse température ["&$E$91&"]" -> Limite de basse température [°F] | R85: Puissance en Clim. [kW]
D86: Intégration de la Thermopompe | E86: =IF('Étape 1 Configuration de TP-Air'!$B$6='Étape 1 Configuration de TP-Air'!$T$2,"Conduit Central",IF('Étape 1 Configuration de TP-Air'!$B$6='Étape 1 Configuration de TP-Air'!$T$3,"Sans conduit, une seule zone",IF('Étape 1 Configuration de TP-Air'!$B$6='Étape 1 Configuration de TP-Air'!$T$4,"Sans conduit, Plusieurs zones",IF('Étape 1 Configuration de TP-Air'!$B$6='Étape 1 Configuration de TP-Air'!$T$5,"Mini-bibloc avec conduit","")))) -> Conduit Central | R86: EER en Clim. [-] | S86: =IF($S$85="","",IF($E$92="kW",$S$84/0.00029307103866/(1000*$S$85),$S$84/($S$85*1000))) -> 
D87: Type de Thermopompe | E87: Variable | G87: Données de Performance | Q87: Étage Inférieur
N88: =IF($N$79="","",$N$79) ->  | Q88: =IF($Q$79="","",$Q$79) -> Chauff. | R88: =$R$92 -> Température [°F] | S88: 47 | T88: 17
D89: Sélection des unités TP#4 | R89: Puissance en Chauff. [kW]
D90: Débit d'Air | E90: CFM | R90: Puissance en Chauff. [kW]
D91: Température | E91: °F | R91: COP en Chauff. [-] | S91: =IF($S$90="","",IF($E$92="kW",$S$89/$S$90,$S$89*0.00029307103866/$S$90)) ->  | T91: =IF($T$90="","",IF($E$92="kW",$T$89/$T$90,$T$89*0.00029307103866/$T$90)) -> 
D92: Capacité | E92: BTU/hr | H92: Puissance/COP en Chauff. | I92: Puissance | N92: =IF($N$83="","",$N$83) ->  | Q92: =IF($Q$83="","",$Q$83) -> Clim. | R92: ="Température ["&$E$91&"]" -> Température [°F] | S92: 95
H93: Puissance/EER en Clim. | I93: Puissance | R93: ="Cap. en Clim. ["&$E$92&"]" -> Cap. en Clim. [BTU/hr]
R94: Puissance en Clim. [kW]
R95: EER en Clim. [-] | S95: =IF($S$94="","",IF($E$92="kW",$S$93/0.00029307103866/(1000*$S$94),$S$93/($S$94*1000))) -> 
A97: Données de conception de l'étape 5
G99: Thermopompe #1 | L99: Thermopompe #2 | Q99: =CONCATENATE("Thermopompe #",IF(OR('Étape 1 Configuration de TP-Air'!$B$6='Étape 1 Configuration de TP-Air'!$T$3,'Étape 1 Configuration de TP-Air'!$B$6='Étape 1 Configuration de TP-Air'!$T$4),3,2)) -> Thermopompe #2 | T99: =CONCATENATE("Thermopompe #",IF(OR('Étape 1 Configuration de TP-Air'!$B$6='Étape 1 Configuration de TP-Air'!$T$3,'Étape 1 Configuration de TP-Air'!$B$6='Étape 1 Configuration de TP-Air'!$T$4),4,3)) -> Thermopompe #3 | X99: Thermopompe #4
B100: Charges de conception (Étape 3) | G100: ="Heating: "&ROUND('HP1'!Y14,IF(E35=Dropdown_Menus!F2,-2,2))&" "&E35&" at "&ROUND('HP1'!X14,0)&E34&" Cooling: "&ROUND('HP1'!Y21,IF(E35=Dropdown_Menus!F2,-2,2))&" "&E35&" at "&ROUND('HP1'!X21,0)&E34 -> Heating: 40000 BTU/hr at -13°F Cooling: 18000 BTU/hr at 86°F | L100: ="Heating: "&ROUND('HP2'!Y14,IF(E54=Dropdown_Menus!F2,-2,2))&" "&E54&" at "&ROUND('HP2'!X14,0)&E53&" Cooling: "&ROUND('HP2'!Y21,IF(E54=Dropdown_Menus!F2,-2,2))&" "&E54&" at "&ROUND('HP2'!X21,0)&E53 -> Heating: 40000 BTU/hr at -13°F Cooling: 18000 BTU/hr at 86°F | Q100: =IF(OR('Étape 1 Configuration de TP-Air'!$B$6='Étape 1 Configuration de TP-Air'!$T$3,'Étape 1 Configuration de TP-Air'!$B$6='Étape 1 Configuration de TP-Air'!$T$4),"Chauffage: "&ROUND('HP3'!Y14,IF(E73=Dropdown_Menus!F2,-2,2))&" "&E73&" at "&ROUND('HP3'!X14,0)&E72&" Climatisation: "&ROUND('HP3'!Y21,IF(E73=Dropdown_Menus!F2,-2,2))&" "&E73&" at "&ROUND('HP3'!X21,0)&E72,"Chauffage: "&ROUND('HP2'!Y14,IF(E54=Dropdown_Menus!F2,-2,2))&" "&E54&" at "&ROUND('HP2'!X14,0)&E53&" Climatisation: "&ROUND('HP2'!Y21,IF(E54=Dropdown_Menus!F2,-2,2))&" "&E54&" at "&ROUND('HP2'!X21,0)&E53) -> Chauffage: 40000 BTU/hr at -13°F Climatisation: 18000 BTU/hr at 86°F | T100: =IF(OR('Étape 1 Configuration de TP-Air'!$B$6='Étape 1 Configuration de TP-Air'!$T$3,'Étape 1 Configuration de TP-Air'!$B$6='Étape 1 Configuration de TP-Air'!$T$4),"Chauffage: "&ROUND('HP4'!Y14,IF(E92=Dropdown_Menus!F2,-2,2))&" "&E92&" at "&ROUND('HP4'!X14,0)&E91&" Climatisation: "&ROUND('HP4'!Y21,IF(E92=Dropdown_Menus!F2,-2,2))&" "&E92&" at "&ROUND('HP4'!X21,0)&E91,"Chauffage: "&ROUND('HP3'!Y14,IF(E73=Dropdown_Menus!F2,-2,2))&" "&E73&" at "&ROUND('HP3'!X14,0)&E72&" Climatisation: "&ROUND('HP3'!Y21,IF(E73=Dropdown_Menus!F2,-2,2))&" "&E73&" at "&ROUND('HP3'!X21,0)&E72) -> Chauffage: 40000 BTU/hr at -13°F Climatisation: 18000 BTU/hr at 86°F | X100: ="Chauffage: "&ROUND('HP4'!Y14,IF(E92=Dropdown_Menus!F2,-2,2))&" "&E92&" at "&ROUND('HP4'!X14,0)&E91&" Climatisation: "&ROUND('HP4'!Y21,IF(E92=Dropdown_Menus!F2,-2,2))&" "&E92&" at "&ROUND('HP4'!X21,0)&E91 -> Chauffage: 40000 BTU/hr at -13°F Climatisation: 18000 BTU/hr at 86°F
B101: Option de dimensionnement (Étape 4) | G101: ='Étape 4 Dimensionnement '!B6 -> Option C: Accent sur le chauffage | L101: ='Étape 4 Dimensionnement '!B6 -> Option C: Accent sur le chauffage | Q101: ='Étape 4 Dimensionnement '!B6 -> Option C: Accent sur le chauffage | T101: ='Étape 4 Dimensionnement '!B6 -> Option C: Accent sur le chauffage | X101: ='Étape 4 Dimensionnement '!B6 -> Option C: Accent sur le chauffage
B102: Thermopompe sélectionnée : Type; capacité de chauffage; capacité de clim. (Étape 5) | G102: =IFERROR(E30&"; "&ROUND(IF(I27,'HP1 Calcs'!O20,'HP1'!J12),IF(E35=Dropdown_Menus!F2,-2,2))&" "&E35&"; "&ROUND(IF(I27,'HP1 Calcs'!O55,'HP1'!J52),IF(E35=Dropdown_Menus!F2,-2,2))&" "&E35,"") -> Variable (Ordinaire); 0 BTU/hr; 0 BTU/hr | L102: =IFERROR(E49&"; "&ROUND(IF(I46,'HP2 Calcs'!O20,'HP2'!J12),IF(E54=Dropdown_Menus!F2,-2,2))&" "&E54&"; "&ROUND(IF(I46,'HP2 Calcs'!O55,'HP2'!J52),IF(E54=Dropdown_Menus!F2,-2,2))&" "&E54,"") -> Variable (Climat Froid); 0 BTU/hr; 0 BTU/hr | Q102: =IF(OR('Étape 1 Configuration de TP-Air'!$B$6='Étape 1 Configuration de TP-Air'!$T$3,'Étape 1 Configuration de TP-Air'!$B$6='Étape 1 Configuration de TP-Air'!$T$4),IFERROR(E68&"; "&ROUND(IF(I65,'HP3 Calcs'!O20,'HP3'!J12),IF(E73=Dropdown_Menus!F2,-2,2))&" "&E73&"; "&ROUND(IF(I65,'HP3 Calcs'!O55,'HP3'!J52),IF(E73=Dropdown_Menus!F2,-2,2))&" "&E73,""),IFERROR(E49&"; "&ROUND(IF(I46,'HP2 Calcs'!O20,'HP2'!J12),IF(E54=Dropdown_Menus!F2,-2,2))&" "&E54&"; "&ROUND(IF(I46,'HP2 Calcs'!O55,'HP2'!J52),IF(E54=Dropdown_Menus!F2,-2,2))&" "&E54,"")) -> Variable (Climat Froid); 0 BTU/hr; 0 BTU/hr | T102: =IF(OR('Étape 1 Configuration de TP-Air'!$B$6='Étape 1 Configuration de TP-Air'!$T$3,'Étape 1 Configuration de TP-Air'!$B$6='Étape 1 Configuration de TP-Air'!$T$4),IFERROR(E87&"; "&ROUND(IF(I84,'HP4 Calcs'!O20,'HP4'!J12),IF(E92=Dropdown_Menus!F2,-2,2))&" "&E92&"; "&ROUND(IF(I84,'HP4 Calcs'!O55,'HP4'!J52),IF(E92=Dropdown_Menus!F2,-2,2))&" "&E92,""),IFERROR(E68&"; "&ROUND(IF(I65,'HP3 Calcs'!O20,'HP3'!J12),IF(E73=Dropdown_Menus!F2,-2,2))&" "&E73&"; "&ROUND(IF(I65,'HP3 Calcs'!O55,'HP3'!J52),IF(E73=Dropdown_Menus!F2,-2,2))&" "&E73,"")) -> Variable (Climat Froid); 0 BTU/hr; 0 BTU/hr | X102: =IFERROR(E87&"; "&ROUND(IF(I84,'HP4 Calcs'!O20,'HP4'!J12),IF(E92=Dropdown_Menus!F2,-2,2))&" "&E92&"; "&ROUND(IF(I84,'HP4 Calcs'!O55,'HP4'!J52),IF(E92=Dropdown_Menus!F2,-2,2))&" "&E92,"") -> Variable; 0 BTU/hr; 0 BTU/hr
B103: Limite de température de la thermopompe | G103: =IF(E28="","",E28&E34) ->  | L103: =IF(E47="","",E47&E53) ->  | Q103: =IF(OR('Étape 1 Configuration de TP-Air'!$B$6='Étape 1 Configuration de TP-Air'!$T$3,'Étape 1 Configuration de TP-Air'!$B$6='Étape 1 Configuration de TP-Air'!$T$4),IF(E66="","",E66&E72),IF(E47="","",E47&E53)) ->  | T103: =IF(OR('Étape 1 Configuration de TP-Air'!$B$6='Étape 1 Configuration de TP-Air'!$T$3,'Étape 1 Configuration de TP-Air'!$B$6='Étape 1 Configuration de TP-Air'!$T$4),IF(E85="","",E85&E91),IF(E66="","",E66&E72)) ->  | X103: =IF(E85="","",E85&E91) -> 
A104: Étage Supérieur | B104: Production de froid à la température de conception (% de conception) | G104: =IF(SUMPRODUCT(--(S27:AM27<>""))=0,"",ROUND(IF(I27,'HP1 Calcs'!O53,'HP1'!J50),IF(E35=Dropdown_Menus!F2,-2,2))&" "&E35&" ("&ROUND(IF(I27,'HP1 Calcs'!O54,'HP1'!J51),2)*100&"%)") ->  | L104: =IF(SUMPRODUCT(--(S46:AM46<>""))=0,"",ROUND(IF(I46,'HP2 Calcs'!O53,'HP2'!J50),IF(E54=Dropdown_Menus!F2,-2,2))&" "&E54&" ("&ROUND(IF(I46,'HP2 Calcs'!O54,'HP2'!J51),2)*100&"%)") ->  | Q104: =IF(OR('Étape 1 Configuration de TP-Air'!$B$6='Étape 1 Configuration de TP-Air'!$T$3,'Étape 1 Configuration de TP-Air'!$B$6='Étape 1 Configuration de TP-Air'!$T$4),IF(SUMPRODUCT(--(S65:AM65<>""))=0,"",ROUND(IF(I65,'HP3 Calcs'!O53,'HP3'!J50),IF(E73=Dropdown_Menus!F2,-2,2))&" "&E73&" ("&ROUND(IF(I65,'HP3 Calcs'!O54,'HP3'!J51),2)*100&"%)"),IF(SUMPRODUCT(--(S46:AM46<>""))=0,"",ROUND(IF(I46,'HP2 Calcs'!O53,'HP2'!J50),IF(E54=Dropdown_Menus!F2,-2,2))&" "&E54&" ("&ROUND(IF(I46,'HP2 Calcs'!O54,'HP2'!J51),2)*100&"%)")) ->  | T104: =IF(OR('Étape 1 Configuration de TP-Air'!$B$6='Étape 1 Configuration de TP-Air'!$T$3,'Étape 1 Configuration de TP-Air'!$B$6='Étape 1 Configuration de TP-Air'!$T$4),IF(SUMPRODUCT(--(S84:AM84<>""))=0,"",ROUND(IF(I84,'HP4 Calcs'!O53,'HP4'!J50),IF(E92=Dropdown_Menus!F2,-2,2))&" "&E92&" ("&ROUND(IF(I84,'HP4 Calcs'!O54,'HP4'!J51),2)*100&"%)"),IF(SUMPRODUCT(--(S65:AM65<>""))=0,"",ROUND(IF(I65,'HP3 Calcs'!O53,'HP3'!J50),IF(E73=Dropdown_Menus!F2,-2,2))&" "&E73&" ("&ROUND(IF(I65,'HP3 Calcs'!O54,'HP3'!J51),2)*100&"%)")) ->  | X104: =IF(SUMPRODUCT(--(S84:AM84<>""))=0,"",ROUND(IF(I84,'HP4 Calcs'!O53,'HP4'!J50),IF(E92=Dropdown_Menus!F2,-2,2))&" "&E92&" ("&ROUND(IF(I84,'HP4 Calcs'!O54,'HP4'!J51),2)*100&"%)") -> 
B105: Température du point d'équilibre thermique (t-PET) | G105: =IF(SUMPRODUCT(--(S23:AM23<>""))=0,"",IFERROR(ROUND(IF(I27,IF(RIGHT(E34,1)<>Dropdown_Menus!F3,CONVERT('HP1 Calcs'!O15,"F","C"),'HP1 Calcs'!O15),'HP1'!J9),0)&E34,"None")) ->  | L105: =IF(SUMPRODUCT(--(S42:AM42<>""))=0,"",IFERROR(ROUND(IF(I46,IF(RIGHT(E53,1)<>Dropdown_Menus!F3,CONVERT('HP2 Calcs'!O15,"F","C"),'HP2 Calcs'!O15),'HP2'!J9),0)&E53,"None")) ->  | Q105: =IF(OR('Étape 1 Configuration de TP-Air'!$B$6='Étape 1 Configuration de TP-Air'!$T$3,'Étape 1 Configuration de TP-Air'!$B$6='Étape 1 Configuration de TP-Air'!$T$4),IF(SUMPRODUCT(--(S61:AM61<>""))=0,"",IFERROR(ROUND(IF(I65,IF(RIGHT(E72,1)<>Dropdown_Menus!F3,CONVERT('HP3 Calcs'!O15,"F","C"),'HP3 Calcs'!O15),'HP3'!J9),0)&E72,"None")),IF(SUMPRODUCT(--(S42:AM42<>""))=0,"",IFERROR(ROUND(IF(I46,IF(RIGHT(E53,1)<>Dropdown_Menus!F3,CONVERT('HP2 Calcs'!O15,"F","C"),'HP2 Calcs'!O15),'HP2'!J9),0)&E53,"None"))) ->  | T105: =IF(OR('Étape 1 Configuration de TP-Air'!$B$6='Étape 1 Configuration de TP-Air'!$T$3,'Étape 1 Configuration de TP-Air'!$B$6='Étape 1 Configuration de TP-Air'!$T$4),IF(SUMPRODUCT(--(S80:AM80<>""))=0,"",IFERROR(ROUND(IF(I84,IF(RIGHT(E91,1)<>Dropdown_Menus!F3,CONVERT('HP4 Calcs'!O15,"F","C"),'HP4 Calcs'!O15),'HP4'!J9),0)&E91,"None")),IF(SUMPRODUCT(--(S61:AM61<>""))=0,"",IFERROR(ROUND(IF(I65,IF(RIGHT(E72,1)<>Dropdown_Menus!F3,CONVERT('HP3 Calcs'!O15,"F","C"),'HP3 Calcs'!O15),'HP3'!J9),0)&E72,"None"))) ->  | X105: =IF(SUMPRODUCT(--(S80:AM80<>""))=0,"",IFERROR(ROUND(IF(I84,IF(RIGHT(E91,1)<>Dropdown_Menus!F3,CONVERT('HP4 Calcs'!O15,"F","C"),'HP4 Calcs'!O15),'HP4'!J9),0)&E91,"None")) -> 
B106: Fraction de chauffage au-dessus de la t-PET | G106: =IF(SUMPRODUCT(--(S23:AM23<>""))=0,"",IFERROR(ROUND(IF(I27,'HP1 Calcs'!O17,'HP1'!J10),2)*100&"%",IF(SUM(S23:AM23)>0,"100%","N/A"))) ->  | L106: =IF(SUMPRODUCT(--(S42:AM42<>""))=0,"",IFERROR(ROUND(IF(I46,'HP2 Calcs'!O17,'HP2'!J10),2)*100&"%",IF(SUM(S42:AM42)>0,"100%","N/A"))) ->  | Q106: =IF(OR('Étape 1 Configuration de TP-Air'!$B$6='Étape 1 Configuration de TP-Air'!$T$3,'Étape 1 Configuration de TP-Air'!$B$6='Étape 1 Configuration de TP-Air'!$T$4),IF(SUMPRODUCT(--(S61:AM61<>""))=0,"",IFERROR(ROUND(IF(I65,'HP3 Calcs'!O17,'HP3'!J10),2)*100&"%",IF(SUM(S61:AM61)>0,"100%","N/A"))),IF(SUMPRODUCT(--(S42:AM42<>""))=0,"",IFERROR(ROUND(IF(I46,'HP2 Calcs'!O17,'HP2'!J10),2)*100&"%",IF(SUM(S42:AM42)>0,"100%","N/A")))) ->  | T106: =IF(OR('Étape 1 Configuration de TP-Air'!$B$6='Étape 1 Configuration de TP-Air'!$T$3,'Étape 1 Configuration de TP-Air'!$B$6='Étape 1 Configuration de TP-Air'!$T$4),IF(SUMPRODUCT(--(S80:AM80<>""))=0,"",IFERROR(ROUND(IF(I84,'HP4 Calcs'!O17,'HP4'!J10),2)*100&"%",IF(SUM(S80:AM80)>0,"100%","N/A"))),IF(SUMPRODUCT(--(S61:AM61<>""))=0,"",IFERROR(ROUND(IF(I65,'HP3 Calcs'!O17,'HP3'!J10),2)*100&"%",IF(SUM(S61:AM61)>0,"100%","N/A")))) ->  | X106: =IF(SUMPRODUCT(--(S80:AM80<>""))=0,"",IFERROR(ROUND(IF(I84,'HP4 Calcs'!O17,'HP4'!J10),2)*100&"%",IF(SUM(S80:AM80)>0,"100%","N/A"))) -> 
A108: Étage Inférieur | B108: Production de froid à la température de conception (% de conception) | G108: =IF(E30="Monoétagé","N/A",IF(I27,IF(SUMPRODUCT(--(S27:AM27<>""))=0,"",ROUND('HP1 Calcs'!AE53,IF(E35=Dropdown_Menus!F2,-2,2))&" "&E35&" ("&ROUND('HP1 Calcs'!AE54,2)*100&"%)"),IF(SUMPRODUCT(--(S36:AM36<>""))=0,"",ROUND('HP1'!U50,IF(E35=Dropdown_Menus!F2,-2,2))&" "&E35&" ("&ROUND('HP1'!U51,2)*100&"%)"))) ->  | L108: =IF(E49="Monoétagé","N/A",IF(I46,IF(SUMPRODUCT(--(S46:AM46<>""))=0,"",ROUND('HP2 Calcs'!AE53,-2)&" "&Dropdown_Menus!F5&" ("&ROUND('HP2 Calcs'!AE54,2)*100&"%)"),IF(SUMPRODUCT(--(S55:AM55<>""))=0,"",ROUND('HP2'!U50,-2)&" "&Dropdown_Menus!F5&" ("&ROUND('HP2'!U51,2)*100&"%)"))) ->  | Q108: =IF(OR('Étape 1 Configuration de TP-Air'!$B$6='Étape 1 Configuration de TP-Air'!$T$3,'Étape 1 Configuration de TP-Air'!$B$6='Étape 1 Configuration de TP-Air'!$T$4),IF(E68="Monoétagé","N/A",IF(I65,IF(SUMPRODUCT(--(S65:AM65<>""))=0,"",ROUND('HP3 Calcs'!AE53,IF(E73=Dropdown_Menus!F2,-2,2))&" "&E73&" ("&ROUND('HP3 Calcs'!AE54,2)*100&"%)"),IF(SUMPRODUCT(--(S74:AM74<>""))=0,"",ROUND('HP3'!U50,IF(E73=Dropdown_Menus!F2,-2,2))&" "&73&" ("&ROUND('HP3'!U51,2)*100&"%)"))),IF(E49="Monoétagé","N/A",IF(I46,IF(SUMPRODUCT(--(S46:AM46<>""))=0,"",ROUND('HP2 Calcs'!AE53,IF(E54=Dropdown_Menus!F2,-2,2))&" "&E54&" ("&ROUND('HP2 Calcs'!AE54,2)*100&"%)"),IF(SUMPRODUCT(--(S55:AM55<>""))=0,"",ROUND('HP2'!U50,IF(E54=Dropdown_Menus!F2,-2,2))&" "&E54&" ("&ROUND('HP2'!U51,2)*100&"%)")))) ->  | T108: =IF(OR('Étape 1 Configuration de TP-Air'!$B$6='Étape 1 Configuration de TP-Air'!$T$3,'Étape 1 Configuration de TP-Air'!$B$6='Étape 1 Configuration de TP-Air'!$T$4),IF(E87="Monoétagé","N/A",IF(I84,IF(SUMPRODUCT(--(S84:AM84<>""))=0,"",ROUND('HP4 Calcs'!AE53,IF(E92=Dropdown_Menus!F2,-2,2))&" "&E92&" ("&ROUND('HP4 Calcs'!AE54,2)*100&"%)"),IF(SUMPRODUCT(--(S93:AM93<>""))=0,"",ROUND('HP4'!U50,IF(E92=Dropdown_Menus!F2,-2,2))&" "&E92&" ("&ROUND('HP4'!U51,2)*100&"%)"))),IF(E68="Monoétagé","N/A",IF(I65,IF(SUMPRODUCT(--(S65:AM65<>""))=0,"",ROUND('HP3 Calcs'!AE53,IF(E73=Dropdown_Menus!F2,-2,2))&" "&E73&" ("&ROUND('HP3 Calcs'!AE54,2)*100&"%)"),IF(SUMPRODUCT(--(S74:AM74<>""))=0,"",ROUND('HP3'!U50,IF(E73=Dropdown_Menus!F2,-2,2))&" "&E73&" ("&ROUND('HP3'!U51,2)*100&"%)")))) ->  | X108: =IF(E87="Monoétagé","N/A",IF(I84,IF(SUMPRODUCT(--(S84:AM84<>""))=0,"",ROUND('HP4 Calcs'!AE53,IF(E92=Dropdown_Menus!F2,-2,2))&" "&E92&" ("&ROUND('HP4 Calcs'!AE54,2)*100&"%)"),IF(SUMPRODUCT(--(S93:AM93<>""))=0,"",ROUND('HP4'!U50,IF(E92=Dropdown_Menus!F2,-2,2))&" "&E92&" ("&ROUND('HP4'!U51,2)*100&"%)"))) -> 
B109: Température du point d'équilibre thermique (t-PET) | G109: =IFERROR(IF(E30="Monoétagé","N/A",IF(I27,IF(SUMPRODUCT(--(S23:AM23<>""))=0,"",ROUND(IF(RIGHT(E34,1)<>Dropdown_Menus!F3,CONVERT('HP1 Calcs'!AE15,"F","C"),'HP1 Calcs'!AE15),0)&E34),IF(SUMPRODUCT(--(S32:AM32<>""))=0,"",ROUND('HP1'!U9,0)&E34))),"N/A") ->  | L109: =IFERROR(IF(E49="Single Speed","N/A",IF(I46,IF(SUMPRODUCT(--(S42:AM42<>""))=0,"",ROUND(IF(RIGHT(E53,1)<>Dropdown_Menus!F3,CONVERT('HP2 Calcs'!AE15,"F","C"),'HP2 Calcs'!AE15),0)&E53),IF(SUMPRODUCT(--(S51:AM51<>""))=0,"",ROUND('HP2'!U9,0)&E34))),"N/A") ->  | Q109: =IF(OR('Étape 1 Configuration de TP-Air'!$B$6='Étape 1 Configuration de TP-Air'!$T$3,'Étape 1 Configuration de TP-Air'!$B$6='Étape 1 Configuration de TP-Air'!$T$4),IFERROR(IF(E68="Monoétagé","N/A",IF(I65,IF(SUMPRODUCT(--(S61:AM61<>""))=0,"",ROUND(IF(RIGHT(E72,1)<>Dropdown_Menus!F3,CONVERT('HP3 Calcs'!AE15,"F","C"),'HP3 Calcs'!AE15),0)&E72),IF(SUMPRODUCT(--(S70:AM70<>""))=0,"",ROUND('HP3'!U9,0)&E72))),"N/A"),IFERROR(IF(E49="Monoétagé","N/A",IF(I46,IF(SUMPRODUCT(--(S42:AM42<>""))=0,"",ROUND(IF(RIGHT(E53,1)<>Dropdown_Menus!F3,CONVERT('HP2 Calcs'!AE15,"F","C"),'HP2 Calcs'!AE15),0)&E53),IF(SUMPRODUCT(--(S51:AM51<>""))=0,"",ROUND('HP2'!U9,0)&E53))),"N/A")) ->  | T109: =IF(OR('Étape 1 Configuration de TP-Air'!$B$6='Étape 1 Configuration de TP-Air'!$T$3,'Étape 1 Configuration de TP-Air'!$B$6='Étape 1 Configuration de TP-Air'!$T$4),IFERROR(IF(E87="Monoétagé","N/A",IF(I84,IF(SUMPRODUCT(--(S80:AM80<>""))=0,"",ROUND(IF(RIGHT(E91,1)<>Dropdown_Menus!F3,CONVERT('HP4 Calcs'!AE15,"F","C"),'HP4 Calcs'!AE15),0)&E91),IF(SUMPRODUCT(--(S89:AM89<>""))=0,"",ROUND('HP4'!U9,0)&E91))),"N/A"),IFERROR(IF(E68="Monoétagé","N/A",IF(I65,IF(SUMPRODUCT(--(S61:AM61<>""))=0,"",ROUND(IF(RIGHT(E72,1)<>Dropdown_Menus!F3,CONVERT('HP3 Calcs'!AE15,"F","C"),'HP3 Calcs'!AE15),0)&E72),IF(SUMPRODUCT(--(S70:AM70<>""))=0,"",ROUND('HP3'!U9,0)&E72))),"N/A")) ->  | X109: =IFERROR(IF(E87="Monoétagé","N/A",IF(I84,IF(SUMPRODUCT(--(S80:AM80<>""))=0,"",ROUND(IF(RIGHT(E91,1)<>Dropdown_Menus!F3,CONVERT('HP4 Calcs'!AE15,"F","C"),'HP4 Calcs'!AE15),0)&E91),IF(SUMPRODUCT(--(S89:AM89<>""))=0,"",ROUND('HP4'!U9,0)&E91))),"N/A") -> 
A111: Graphiques
C114: Sélection des Unités des Graphiques
C115: Température | E115: °F
C116: Capacité | E116: BTU/hr

Sheet HP1 (hidden)
B1: Actual Curves - HP #1
B3: Heating - High Stage | M3: Heating - Low Stage | X3: Heating Load Line
B5: Design Temp. (heat) | C5: ='Design Load Calcs'!$B$24 -> -13 | D5: ='Étape 5 Sélectionner des TP-Air'!$E$34 -> °F | M5: Design Temp. (heat) | N5: ='Design Load Calcs'!$B$24 -> -13
B7: Performance Data and Heating Load Line | I7: Outputs: | T7: Outputs:
B8: Outdoor Temp. | C8: Actual Capacity | D8: Actual Power | E8: Actual COP | F8: Heating Load Line | G8: Intersect. Cap/Htg Load Line | I8: =CONCATENATE("HP cap @ Design Temp.",IF('Étape 5 Sélectionner des TP-Air'!$E$35="kW"," [kW]"," [BTU/h]")) -> HP cap @ Design Temp. [BTU/h] | J8: =IF(OR(G34="-",G34=C5),F34,SLOPE(F34:F35,G34:G35)*C5+INTERCEPT(F34:F35,G34:G35)) -> 0 | M8: Outdoor Temp. | N8: Actual Capacity | O8: Actual Power | P8: Actual COP | Q8: Heating Load Line | R8: Intersect. Cap/Htg Load Line | T8: =CONCATENATE("HP cap @ Design Temp.",IF('Introduction & Options d''Unité'!$B$12=Dropdown_Menus!Q1," [kW]"," [BTU/h]")) -> HP cap @ Design Temp. [kW] | U8: =IF(OR(R34="-",R34=N5),Q34,SLOPE(Q34:Q35,R34:R35)*N5+INTERCEPT(Q34:Q35,R34:R35)) -> 0
B9: =IF('Introduction & Options d''Unité'!$B$12=Dropdown_Menus!$F$1,"[°C]","[°F]") -> [°F] | C9: =IF('Introduction & Options d''Unité'!$B$12=Dropdown_Menus!$F$1,"[kW]","[BTU/h]") -> [BTU/h] | D9: [kW] | E9: [-] | F9: =IF('Introduction & Options d''Unité'!$B$12=Dropdown_Menus!$F$1,"[kW]","[BTU/h]") -> [BTU/h] | I9: =CONCATENATE("BPT",IF('Étape 5 Sélectionner des TP-Air'!$E$34="°C"," [°C]"," [°F]")) -> BPT [°F] | J9: =IF(C10-F10<0,NA(),IF((INDEX(C10:C29,MATCH(C40,B10:B29,0))-INDEX(F10:F29,MATCH(C40,B10:B29,0)))>0,IF(E41<B30,NA(),E41),IF(C41<B30,NA(),C41))) ->  | M9: =IF('Introduction & Options d''Unité'!$B$12=Dropdown_Menus!$F$1,"[°C]","[°F]") -> [°F] | N9: =IF('Introduction & Options d''Unité'!$B$12=Dropdown_Menus!$F$1,"[kW]","[BTU/h]") -> [BTU/h] | O9: [kW] | P9: [-] | Q9: =IF('Introduction & Options d''Unité'!$B$12=Dropdown_Menus!$F$1,"[kW]","[BTU/h]") -> [BTU/h] | T9: =CONCATENATE("BPT",IF('Introduction & Options d''Unité'!$B$12=Dropdown_Menus!Q1," [°C]"," [°F]")) -> BPT [°C] | U9: =IF(N10-Q10<0,NA(),IF((INDEX(N10:N29,MATCH(N40,M10:M29,0))-INDEX(Q10:Q29,MATCH(N40,M10:M29,0)))>0,IF(P41<M30,NA(),P41),IF(N41<M30,NA(),N41))) -> 
B10: =IF(OR('Étape 5 Sélectionner des TP-Air'!$I$24,'Étape 5 Sélectionner des TP-Air'!$I$25,'Étape 5 Sélectionner des TP-Air'!$I$26),'Étape 5 Sélectionner des TP-Air'!$S$22,NA()) -> 47 | C10: =IF(OR(B10="#N/A",B10=""),"",IFERROR(HLOOKUP(B10,'Étape 5 Sélectionner des TP-Air'!$S$22:$AM$25,2,FALSE),"")) -> 0 | D10: =IF(OR(B10="#N/A",B10=""),"",IFERROR(HLOOKUP(B10,'Étape 5 Sélectionner des TP-Air'!$S$22:$AI$25,IF('Étape 5 Sélectionner des TP-Air'!$I$35="COP",4,3),FALSE),"")) -> 0 | E10: =IF(OR(B10="#N/A",B10=""),"",IFERROR(HLOOKUP(B10,'Étape 5 Sélectionner des TP-Air'!$S$22:$AI$25,IF('Étape 5 Sélectionner des TP-Air'!$I$35="COP",3,4),FALSE),"")) ->  | F10: =(B10*$X$18+$Y$18) -> 5986.394558 | G10: =IF(B10="","",ABS(C10-F10)) -> 5986.394558 | H10: =IF(AND(ISNUMBER(B10),ISNUMBER(B11)),IF(OR(AND(C10>=F10,C11<=F11),AND(C10<=F10,C11>=F11)),1,0),0) -> 0 | I10: Fraction of heating above BPT | J10: =IF(ISNUMBER(MATCH(J9,'Loads %'!N8:N24,0)),F39,SLOPE(F39:F40,G39:G40)*J9+INTERCEPT(F39:F40,G39:G40)) ->  | M10: =IF('Étape 5 Sélectionner des TP-Air'!$E$30=Dropdown_Menus!$A$2,"",B10) -> 47 | N10: =IF(OR(M10="#N/A",M10=""),"",IFERROR(HLOOKUP(M10,'Étape 5 Sélectionner des TP-Air'!$S$31:$AM$34,2,FALSE),"")) -> 0 | O10: =IF(OR(M10="#N/A",M10=""),"",IFERROR(HLOOKUP(M10,'Étape 5 Sélectionner des TP-Air'!$S$31:$AM$34,IF('Étape 5 Sélectionner des TP-Air'!$I$35="COP",4,3),FALSE),"")) -> 0 | P10: =IF(OR(B10="#N/A",B10=""),"",IFERROR(HLOOKUP(B10,'Étape 5 Sélectionner des TP-Air'!$S$31:$AM$34,IF('Étape 5 Sélectionner des TP-Air'!$I$35="COP",3,4),FALSE),"")) ->  | Q10: =(M10*$X$18+$Y$18) -> 5986.394558 | R10: =IF(M10="","",ABS(N10-Q10)) -> 5986.394558 | S10: =IF(AND(ISNUMBER(M10),ISNUMBER(M11)),IF(OR(AND(N10>=Q10,N11<=Q11),AND(N10<=Q10,N11>=Q11)),1,0),0) -> 0 | T10: Fraction of heating above BPT | U10: =SLOPE(Q39:Q40,R39:R40)*U9+INTERCEPT(Q39:Q40,R39:R40) -> 
B11: =IF(OR('Étape 5 Sélectionner des TP-Air'!$I$24,'Étape 5 Sélectionner des TP-Air'!$I$25,'Étape 5 Sélectionner des TP-Air'!$I$26),'Étape 5 Sélectionner des TP-Air'!$T$22,NA()) -> 17 | C11: =IF(OR(B11="#N/A",B11=""),"",IFERROR(HLOOKUP(B11,'Étape 5 Sélectionner des TP-Air'!$S$22:$AM$25,2,FALSE),"")) -> 0 | D11: =IF(OR(B11="#N/A",B11=""),"",IFERROR(HLOOKUP(B11,'Étape 5 Sélectionner des TP-Air'!$S$22:$AM$25,IF('Étape 5 Sélectionner des TP-Air'!$I$35="COP",4,3),FALSE),"")) -> 0 | E11: =IF(OR(B11="#N/A",B11=""),"",IFERROR(HLOOKUP(B11,'Étape 5 Sélectionner des TP-Air'!$S$22:$AM$25,IF('Étape 5 Sélectionner des TP-Air'!$I$35="COP",3,4),FALSE),"")) ->  | F11: =(B11*$X$18+$Y$18) -> 22993.19728 | G11: =IF(B11="","",ABS(C11-F11)) -> 22993.19728 | H11: =IF(AND(ISNUMBER(B11),ISNUMBER(B12)),IF(OR(AND(C11>=F11,C12<=F12),AND(C11<=F11,C12>=F12)),1,0),0) -> 0 | I11: =CONCATENATE("HP cap @ BPT",IF('Étape 5 Sélectionner des TP-Air'!$E$35="kW"," [kW]"," [BTU/h]")) -> HP cap @ BPT [BTU/h] | J11: =IF((C10-F10)<0,"Aucun",IF((INDEX(C10:C29,MATCH(C40,B10:B29,0))-INDEX(F10:F29,MATCH(C40,B10:B29,0)))>0,SLOPE(D39:D40,E39:E40)*J9+INTERCEPT(D39:D40,E39:E40),SLOPE(B39:B40,C39:C40)*J9+INTERCEPT(B39:B40,C39:C40))) -> Aucun | M11: =IF('Étape 5 Sélectionner des TP-Air'!$E$30=Dropdown_Menus!$A$2,"",B11) -> 17 | N11: =IF(OR(M11="#N/A",M11=""),"",IFERROR(HLOOKUP(M11,'Étape 5 Sélectionner des TP-Air'!$S$31:$AM$34,2,FALSE),"")) -> 0 | O11: =IF(OR(M11="#N/A",M11=""),"",IFERROR(HLOOKUP(M11,'Étape 5 Sélectionner des TP-Air'!$S$31:$AM$34,IF('Étape 5 Sélectionner des TP-Air'!$I$35="COP",4,3),FALSE),"")) -> 0 | P11: =IF(OR(B11="#N/A",B11=""),"",IFERROR(HLOOKUP(B11,'Étape 5 Sélectionner des TP-Air'!$S$31:$AM$34,IF('Étape 5 Sélectionner des TP-Air'!$I$35="COP",3,4),FALSE),"")) ->  | Q11: =(M11*$X$18+$Y$18) -> 22993.19728 | R11: =IF(M11="","",ABS(N11-Q11)) -> 22993.19728 | S11: =IF(AND(ISNUMBER(M11),ISNUMBER(M12)),IF(OR(AND(N11>=Q11,N12<=Q12),AND(N11<=Q11,N12>=Q12)),1,0),0) -> 0 | T11: =CONCATENATE("HP cap @ BPT",IF('Introduction & Options d''Unité'!$B$12=Dropdown_Menus!Q1," [kW]"," [BTU/h]")) -> HP cap @ BPT [kW] | U11: =IF((N10-Q10)<0,"None",IF((INDEX(N10:N29,MATCH(N40,M10:M29,0))-INDEX(Q10:Q29,MATCH(N40,M10:M29,0)))>0,SLOPE(O39:O40,P39:P40)*U9+INTERCEPT(O39:O40,P39:P40),SLOPE(M39:M40,N39:N40)*U9+INTERCEPT(M39:M40,N39:N40))) -> None
B12: =IF('Étape 5 Sélectionner des TP-Air'!$I$24,"",IF('Étape 5 Sélectionner des TP-Air'!$I$25,'Étape 5 Sélectionner des TP-Air'!$U$22,IF('Étape 5 Sélectionner des TP-Air'!$I$26,IF(MATCH(B11,$B$10:$B$29,0)>='Étape 5 Sélectionner des TP-Air'!$I$32,"",'Étape 5 Sélectionner des TP-Air'!$U$22),NA()))) ->  | C12: =IF(OR(B12="#N/A",B12=""),"",IFERROR(HLOOKUP(B12,'Étape 5 Sélectionner des TP-Air'!$S$22:$AM$25,2,FALSE),"")) ->  | D12: =IF(OR(B12="#N/A",B12=""),"",IFERROR(HLOOKUP(B12,'Étape 5 Sélectionner des TP-Air'!$S$22:$AM$25,IF('Étape 5 Sélectionner des TP-Air'!$I$35="COP",4,3),FALSE),"")) ->  | E12: =IF(OR(B12="#N/A",B12=""),"",IFERROR(HLOOKUP(B12,'Étape 5 Sélectionner des TP-Air'!$S$22:$AM$25,IF('Étape 5 Sélectionner des TP-Air'!$I$35="COP",3,4),FALSE),"")) ->  | F12: =(B12*$X$18+$Y$18) ->  | H12: 0 | I12: =CONCATENATE("HP cap @",IF('Étape 5 Sélectionner des TP-Air'!$E$34="°C",CONVERT(47,"F","C"),47),IF('Étape 5 Sélectionner des TP-Air'!$E$34="°C"," C"," F"),IF('Étape 5 Sélectionner des TP-Air'!$E$35="kW"," [kW]"," [BTU/h]")) -> HP cap @47 F [BTU/h] | J12: =IF(OR('Étape 5 Sélectionner des TP-Air'!$I$24,'Étape 5 Sélectionner des TP-Air'!$I$25,'Étape 5 Sélectionner des TP-Air'!$I$27),C10,IFERROR(INDEX(C10:C29,MATCH(IF(NOT(RIGHT('Étape 5 Sélectionner des TP-Air'!$E$34,1)=Dropdown_Menus!$F$3),CONVERT(47,"F","C"),47),B10:B29,0)),SLOPE(I35:I36,J35:J36)*IF(NOT(RIGHT('Étape 5 Sélectionner des TP-Air'!$E$34,1)=Dropdown_Menus!$F$3),CONVERT(47,"F","C"),47)+INTERCEPT(I35:I36,J35:J36))) -> 0 | M12: =IF('Étape 5 Sélectionner des TP-Air'!$E$30=Dropdown_Menus!$A$2,"",B12) ->  | N12: =IF(OR(M12="#N/A",M12=""),"",IFERROR(HLOOKUP(M12,'Étape 5 Sélectionner des TP-Air'!$S$31:$AM$34,2,FALSE),"")) ->  | O12: =IF(OR(M12="#N/A",M12=""),"",IFERROR(HLOOKUP(M12,'Étape 5 Sélectionner des TP-Air'!$S$31:$AM$34,IF('Étape 5 Sélectionner des TP-Air'!$I$35="COP",4,3),FALSE),"")) ->  | P12: =IF(OR(B12="#N/A",B12=""),"",IFERROR(HLOOKUP(B12,'Étape 5 Sélectionner des TP-Air'!$S$31:$AM$34,IF('Étape 5 Sélectionner des TP-Air'!$I$35="COP",3,4),FALSE),"")) ->  | Q12: =(M12*$X$18+$Y$18) ->  | S12: 0
B13: =IF(OR('Étape 5 Sélectionner des TP-Air'!$I$24,'Étape 5 Sélectionner des TP-Air'!$I$25),"",IF('Étape 5 Sélectionner des TP-Air'!$I$26,IF(MATCH(B12,$B$10:$B$29,0)>='Étape 5 Sélectionner des TP-Air'!$I$32,"",'Étape 5 Sélectionner des TP-Air'!$V$22),NA())) ->  | C13: =IF(OR(B13="#N/A",B13=""),"",IFERROR(HLOOKUP(B13,'Étape 5 Sélectionner des TP-Air'!$S$22:$AM$25,2,FALSE),"")) ->  | D13: =IF(OR(B13="#N/A",B13=""),"",IFERROR(HLOOKUP(B13,'Étape 5 Sélectionner des TP-Air'!$S$22:$AM$25,IF('Étape 5 Sélectionner des TP-Air'!$I$35="COP",4,3),FALSE),"")) ->  | E13: =IF(OR(B13="#N/A",B13=""),"",IFERROR(HLOOKUP(B13,'Étape 5 Sélectionner des TP-Air'!$S$22:$AM$25,IF('Étape 5 Sélectionner des TP-Air'!$I$35="COP",3,4),FALSE),"")) ->  | H13: 0 | I13: =CONCATENATE("HP cap @",IF('Étape 5 Sélectionner des TP-Air'!$E$34="°C",CONVERT(17,"F","C"),17),IF('Étape 5 Sélectionner des TP-Air'!$E$34="°C"," C"," F"),IF('Étape 5 Sélectionner des TP-Air'!$E$35="kW"," [kW]"," [BTU/h]")) -> HP cap @17 F [BTU/h] | J13: =IF(OR('Étape 5 Sélectionner des TP-Air'!$I$24,'Étape 5 Sélectionner des TP-Air'!$I$25,'Étape 5 Sélectionner des TP-Air'!$I$27),C11,IFERROR(INDEX(C10:C29,MATCH(IF(NOT(RIGHT('Étape 5 Sélectionner des TP-Air'!$E$34,1)=Dropdown_Menus!$F$3),CONVERT(17,"F","C"),17),B10:B29,0)),SLOPE(I39:I40,J39:J40)*IF(NOT(RIGHT('Étape 5 Sélectionner des TP-Air'!$E$34,1)=Dropdown_Menus!$F$3),CONVERT(17,"F","C"),17)+INTERCEPT(I39:I40,J39:J40))) -> 0 | M13: =IF('Étape 5 Sélectionner des TP-Air'!$E$30=Dropdown_Menus!$A$2,"",B13) ->  | N13: =IF(OR(M13="#N/A",M13=""),"",IFERROR(HLOOKUP(M13,'Étape 5 Sélectionner des TP-Air'!$S$31:$AM$34,2,FALSE),"")) ->  | O13: =IF(OR(M13="#N/A",M13=""),"",IFERROR(HLOOKUP(M13,'Étape 5 Sélectionner des TP-Air'!$S$31:$AM$34,IF('Étape 5 Sélectionner des TP-Air'!$I$35="COP",4,3),FALSE),"")) ->  | P13: =IF(OR(B13="#N/A",B13=""),"",IFERROR(HLOOKUP(B13,'Étape 5 Sélectionner des TP-Air'!$S$31:$AM$34,IF('Étape 5 Sélectionner des TP-Air'!$I$35="COP",3,4),FALSE),"")) ->  | S13: 0 | X13: Outdoor Temperature | Y13: =IF('Étape 5 Sélectionner des TP-Air'!$E$35=Dropdown_Menus!$F$2,"Heating Load (BTU/hr)","Heating Load (kW)") -> Heating Load (BTU/hr)
B14: =IF(OR('Étape 5 Sélectionner des TP-Air'!$I$24,'Étape 5 Sélectionner des TP-Air'!$I$25),"",IF('Étape 5 Sélectionner des TP-Air'!$I$26,IF(MATCH(B13,$B$10:$B$29,0)>='Étape 5 Sélectionner des TP-Air'!$I$32,"",'Étape 5 Sélectionner des TP-Air'!$W$22),NA())) ->  | C14: =IF(OR(B14="#N/A",B14=""),"",IFERROR(HLOOKUP(B14,'Étape 5 Sélectionner des TP-Air'!$S$22:$AM$25,2,FALSE),"")) ->  | D14: =IF(OR(B14="#N/A",B14=""),"",IFERROR(HLOOKUP(B14,'Étape 5 Sélectionner des TP-Air'!$S$22:$AM$25,IF('Étape 5 Sélectionner des TP-Air'!$I$35="COP",4,3),FALSE),"")) ->  | E14: =IF(OR(B14="#N/A",B14=""),"",IFERROR(HLOOKUP(B14,'Étape 5 Sélectionner des TP-Air'!$S$22:$AM$25,IF('Étape 5 Sélectionner des TP-Air'!$I$35="COP",3,4),FALSE),"")) ->  | G14: =IF(B14="","",ABS(C14-F14)) ->  | H14: 0 | I14: Max Cap | J14: =IFERROR(MAX(C10:C30),0) -> 0 | M14: =IF('Étape 5 Sélectionner des TP-Air'!$E$30=Dropdown_Menus!$A$2,"",B14) ->  | N14: =IF(OR(M14="#N/A",M14=""),"",IFERROR(HLOOKUP(M14,'Étape 5 Sélectionner des TP-Air'!$S$31:$AM$34,2,FALSE),"")) ->  | O14: =IF(OR(M14="#N/A",M14=""),"",IFERROR(HLOOKUP(M14,'Étape 5 Sélectionner des TP-Air'!$S$31:$AM$34,IF('Étape 5 Sélectionner des TP-Air'!$I$35="COP",4,3),FALSE),"")) ->  | P14: =IF(OR(B14="#N/A",B14=""),"",IFERROR(HLOOKUP(B14,'Étape 5 Sélectionner des TP-Air'!$S$31:$AM$34,IF('Étape 5 Sélectionner des TP-Air'!$I$35="COP",3,4),FALSE),"")) ->  | S14: 0 | X14: =IF('Étape 3 Charges de Conception'!$B$5<>'Étape 5 Sélectionner des TP-Air'!E34,IF('Étape 3 Charges de Conception'!$B$5="°F",CONVERT('Design Load Calcs'!$G$4,"F","C"),CONVERT('Design Load Calcs'!$G$4,"C","F")),'Design Load Calcs'!$G$4) -> -13 | Y14: =IF('Étape 3 Charges de Conception'!$B$6<>'Étape 5 Sélectionner des TP-Air'!E35,IF('Étape 3 Charges de Conception'!$B$6=Dropdown_Menus!$F$2,'Design Load Calcs'!$H$4/1000/3.412,'Design Load Calcs'!$H$4*1000*3.412),'Design Load Calcs'!$H$4) -> 40000
B15: =IF(OR('Étape 5 Sélectionner des TP-Air'!$I$24,'Étape 5 Sélectionner des TP-Air'!$I$25),"",IF('Étape 5 Sélectionner des TP-Air'!$I$26,IF(MATCH(B14,$B$10:$B$29,0)>='Étape 5 Sélectionner des TP-Air'!$I$32,"",'Étape 5 Sélectionner des TP-Air'!$X$22),NA())) ->  | C15: =IF(OR(B15="#N/A",B15=""),"",IFERROR(HLOOKUP(B15,'Étape 5 Sélectionner des TP-Air'!$S$22:$AM$25,2,FALSE),"")) ->  | D15: =IF(OR(B15="#N/A",B15=""),"",IFERROR(HLOOKUP(B15,'Étape 5 Sélectionner des TP-Air'!$S$22:$AM$25,IF('Étape 5 Sélectionner des TP-Air'!$I$35="COP",4,3),FALSE),"")) ->  | E15: =IF(OR(B15="#N/A",B15=""),"",IFERROR(HLOOKUP(B15,'Étape 5 Sélectionner des TP-Air'!$S$22:$AM$25,IF('Étape 5 Sélectionner des TP-Air'!$I$35="COP",3,4),FALSE),"")) ->  | H15: 0 | I15: =CONCATENATE("HP pwr @",IF('Étape 5 Sélectionner des TP-Air'!$E$34="°C",CONVERT(47,"F","C"),47),IF('Étape 5 Sélectionner des TP-Air'!$E$34="°C"," C"," F")," [kW]") -> HP pwr @47 F [kW] | J15: =IF(OR('Étape 5 Sélectionner des TP-Air'!$I$24,'Étape 5 Sélectionner des TP-Air'!$I$25,'Étape 5 Sélectionner des TP-Air'!$I$27),D10,IFERROR(INDEX(D10:D29,MATCH(IF(NOT(RIGHT('Étape 5 Sélectionner des TP-Air'!$E$34,1)=Dropdown_Menus!$F$3),CONVERT(47,"F","C"),47),B10:B29,0)),SLOPE(I27:I28,J27:J28)*IF(NOT(RIGHT('Étape 5 Sélectionner des TP-Air'!$E$34,1)=Dropdown_Menus!$F$3),CONVERT(47,"F","C"),47)+INTERCEPT(I27:I28,J27:J28))) -> 0 | M15: =IF('Étape 5 Sélectionner des TP-Air'!$E$30=Dropdown_Menus!$A$2,"",B15) ->  | N15: =IF(OR(M15="#N/A",M15=""),"",IFERROR(HLOOKUP(M15,'Étape 5 Sélectionner des TP-Air'!$S$31:$AM$34,2,FALSE),"")) ->  | O15: =IF(OR(M15="#N/A",M15=""),"",IFERROR(HLOOKUP(M15,'Étape 5 Sélectionner des TP-Air'!$S$31:$AM$34,IF('Étape 5 Sélectionner des TP-Air'!$I$35="COP",4,3),FALSE),"")) ->  | P15: =IF(OR(B15="#N/A",B15=""),"",IFERROR(HLOOKUP(B15,'Étape 5 Sélectionner des TP-Air'!$S$31:$AM$34,IF('Étape 5 Sélectionner des TP-Air'!$I$35="COP",3,4),FALSE),"")) ->  | S15: 0 | X15: =IF('Étape 3 Charges de Conception'!$B$5<>'Étape 5 Sélectionner des TP-Air'!E34,IF('Étape 3 Charges de Conception'!$B$5="°F",CONVERT('Design Load Calcs'!$G$5,"F","C"),CONVERT('Design Load Calcs'!$G$5,"C","F")),'Design Load Calcs'!$G$5) -> 57.56 | Y15: =IF('Étape 3 Charges de Conception'!$B$6<>'Étape 5 Sélectionner des TP-Air'!E35,IF('Étape 3 Charges de Conception'!$B$6=Dropdown_Menus!$F$2,'Design Load Calcs'!$H$5/1000/3.412,'Design Load Calcs'!$H$5*1000*3.412),'Design Load Calcs'!$H$5) -> 0
B16: =IF(OR('Étape 5 Sélectionner des TP-Air'!$I$24,'Étape 5 Sélectionner des TP-Air'!$I$25),"",IF('Étape 5 Sélectionner des TP-Air'!$I$26,IF(MATCH(B15,$B$10:$B$29,0)>='Étape 5 Sélectionner des TP-Air'!$I$32,"",'Étape 5 Sélectionner des TP-Air'!$Y$22),NA())) ->  | C16: =IF(OR(B16="#N/A",B16=""),"",IFERROR(HLOOKUP(B16,'Étape 5 Sélectionner des TP-Air'!$S$22:$AM$25,2,FALSE),"")) ->  | D16: =IF(OR(B16="#N/A",B16=""),"",IFERROR(HLOOKUP(B16,'Étape 5 Sélectionner des TP-Air'!$S$22:$AM$25,IF('Étape 5 Sélectionner des TP-Air'!$I$35="COP",4,3),FALSE),"")) ->  | E16: =IF(OR(B16="#N/A",B16=""),"",IFERROR(HLOOKUP(B16,'Étape 5 Sélectionner des TP-Air'!$S$22:$AM$25,IF('Étape 5 Sélectionner des TP-Air'!$I$35="COP",3,4),FALSE),"")) ->  | H16: 0 | I16: =CONCATENATE("HP pwr @",IF('Étape 5 Sélectionner des TP-Air'!$E$34="°C",CONVERT(17,"F","C"),17),IF('Étape 5 Sélectionner des TP-Air'!$E$34="°C"," C"," F")," [kW]") -> HP pwr @17 F [kW] | J16: =IF(OR('Étape 5 Sélectionner des TP-Air'!$I$24,'Étape 5 Sélectionner des TP-Air'!$I$25,'Étape 5 Sélectionner des TP-Air'!$I$27),D11,IFERROR(INDEX(D10:D29,MATCH(IF(NOT(RIGHT('Étape 5 Sélectionner des TP-Air'!$E$34,1)=Dropdown_Menus!$F$3),CONVERT(17,"F","C"),17),B10:B29,0)),SLOPE(I31:I32,J31:J32)*IF(NOT(RIGHT('Étape 5 Sélectionner des TP-Air'!$E$34,1)=Dropdown_Menus!$F$3),CONVERT(17,"F","C"),17)+INTERCEPT(I31:I32,J31:J32))) -> 0 | M16: =IF('Étape 5 Sélectionner des TP-Air'!$E$30=Dropdown_Menus!$A$2,"",B16) ->  | N16: =IF(OR(M16="#N/A",M16=""),"",IFERROR(HLOOKUP(M16,'Étape 5 Sélectionner des TP-Air'!$S$31:$AM$34,2,FALSE),"")) ->  | O16: =IF(OR(M16="#N/A",M16=""),"",IFERROR(HLOOKUP(M16,'Étape 5 Sélectionner des TP-Air'!$S$31:$AM$34,IF('Étape 5 Sélectionner des TP-Air'!$I$35="COP",4,3),FALSE),"")) ->  | P16: =IF(OR(B16="#N/A",B16=""),"",IFERROR(HLOOKUP(B16,'Étape 5 Sélectionner des TP-Air'!$S$31:$AM$34,IF('Étape 5 Sélectionner des TP-Air'!$I$35="COP",3,4),FALSE),"")) ->  | S16: 0 | T16: Slope @ t-BPT: | U16: =IF((N10-Q10)<0,"None",IF((INDEX(N10:N29,MATCH(N40,M10:M29,0))-INDEX(Q10:Q29,MATCH(N40,M10:M29,0)))>0,SLOPE(O39:O40,P39:P40),SLOPE(M39:M40,N39:N40))) -> None
B17: =IF(OR('Étape 5 Sélectionner des TP-Air'!$I$24,'Étape 5 Sélectionner des TP-Air'!$I$25),"",IF('Étape 5 Sélectionner des TP-Air'!$I$26,IF(MATCH(B16,$B$10:$B$29,0)>='Étape 5 Sélectionner des TP-Air'!$I$32,"",'Étape 5 Sélectionner des TP-Air'!$Z$22),NA())) ->  | C17: =IF(OR(B17="#N/A",B17=""),"",IFERROR(HLOOKUP(B17,'Étape 5 Sélectionner des TP-Air'!$S$22:$AM$25,2,FALSE),"")) ->  | D17: =IF(OR(B17="#N/A",B17=""),"",IFERROR(HLOOKUP(B17,'Étape 5 Sélectionner des TP-Air'!$S$22:$AM$25,IF('Étape 5 Sélectionner des TP-Air'!$I$35="COP",4,3),FALSE),"")) ->  | E17: =IF(OR(B17="#N/A",B17=""),"",IFERROR(HLOOKUP(B17,'Étape 5 Sélectionner des TP-Air'!$S$22:$AM$25,IF('Étape 5 Sélectionner des TP-Air'!$I$35="COP",3,4),FALSE),"")) ->  | H17: 0 | I17: Slope @ t-BPT: | J17: =IF((C10-F10)<0,"Aucun",IF((INDEX(C10:C29,MATCH(C40,B10:B29,0))-INDEX(F10:F29,MATCH(C40,B10:B29,0)))>0,SLOPE(D39:D40,E39:E40),SLOPE(B39:B40,C39:C40))) -> Aucun | M17: =IF('Étape 5 Sélectionner des TP-Air'!$E$30=Dropdown_Menus!$A$2,"",B17) ->  | N17: =IF(OR(M17="#N/A",M17=""),"",IFERROR(HLOOKUP(M17,'Étape 5 Sélectionner des TP-Air'!$S$31:$AM$34,2,FALSE),"")) ->  | O17: =IF(OR(M17="#N/A",M17=""),"",IFERROR(HLOOKUP(M17,'Étape 5 Sélectionner des TP-Air'!$S$31:$AM$34,IF('Étape 5 Sélectionner des TP-Air'!$I$35="COP",4,3),FALSE),"")) ->  | P17: =IF(OR(B17="#N/A",B17=""),"",IFERROR(HLOOKUP(B17,'Étape 5 Sélectionner des TP-Air'!$S$31:$AM$34,IF('Étape 5 Sélectionner des TP-Air'!$I$35="COP",3,4),FALSE),"")) ->  | S17: 0 | T17: Intercept @ t-BPT | U17: =IF((N10-Q10)<0,"None",IF((INDEX(N10:N29,MATCH(N40,M10:M29,0))-INDEX(Q10:Q29,MATCH(N40,M10:M29,0)))>0,INTERCEPT(O39:O40,P39:P40),INTERCEPT(M39:M40,N39:N40))) -> None | X17: Slope | Y17: Intercept
B18: =IF(OR('Étape 5 Sélectionner des TP-Air'!$I$24,'Étape 5 Sélectionner des TP-Air'!$I$25),"",IF('Étape 5 Sélectionner des TP-Air'!$I$26,IF(MATCH(B17,$B$10:$B$29,0)>='Étape 5 Sélectionner des TP-Air'!$I$32,"",'Étape 5 Sélectionner des TP-Air'!$AA$22),NA())) ->  | C18: =IF(OR(B18="#N/A",B18=""),"",IFERROR(HLOOKUP(B18,'Étape 5 Sélectionner des TP-Air'!$S$22:$AM$25,2,FALSE),"")) ->  | D18: =IF(OR(B18="#N/A",B18=""),"",IFERROR(HLOOKUP(B18,'Étape 5 Sélectionner des TP-Air'!$S$22:$AM$25,IF('Étape 5 Sélectionner des TP-Air'!$I$35="COP",4,3),FALSE),"")) ->  | E18: =IF(OR(B18="#N/A",B18=""),"",IFERROR(HLOOKUP(B18,'Étape 5 Sélectionner des TP-Air'!$S$22:$AM$25,IF('Étape 5 Sélectionner des TP-Air'!$I$35="COP",3,4),FALSE),"")) ->  | H18: 0 | I18: Intercept @ t-BPT | J18: =IF((C10-F10)<0,"Aucun",IF((INDEX(C10:C29,MATCH(C40,B10:B29,0))-INDEX(F10:F29,MATCH(C40,B10:B29,0)))>0,INTERCEPT(D39:D40,E39:E40),INTERCEPT(B39:B40,C39:C40))) -> Aucun | M18: =IF('Étape 5 Sélectionner des TP-Air'!$E$30=Dropdown_Menus!$A$2,"",B18) ->  | N18: =IF(OR(M18="#N/A",M18=""),"",IFERROR(HLOOKUP(M18,'Étape 5 Sélectionner des TP-Air'!$S$31:$AM$34,2,FALSE),"")) ->  | O18: =IF(OR(M18="#N/A",M18=""),"",IFERROR(HLOOKUP(M18,'Étape 5 Sélectionner des TP-Air'!$S$31:$AM$34,IF('Étape 5 Sélectionner des TP-Air'!$I$35="COP",4,3),FALSE),"")) ->  | P18: =IF(OR(B18="#N/A",B18=""),"",IFERROR(HLOOKUP(B18,'Étape 5 Sélectionner des TP-Air'!$S$31:$AM$34,IF('Étape 5 Sélectionner des TP-Air'!$I$35="COP",3,4),FALSE),"")) ->  | S18: 0 | X18: =SLOPE(Y14:Y15,X14:X15) -> -566.893424 | Y18: =INTERCEPT(Y14:Y15,X14:X15) -> 32630.38549
B19: =IF(OR('Étape 5 Sélectionner des TP-Air'!$I$24,'Étape 5 Sélectionner des TP-Air'!$I$25),"",IF('Étape 5 Sélectionner des TP-Air'!$I$26,IF(MATCH(B18,$B$10:$B$29,0)>='Étape 5 Sélectionner des TP-Air'!$I$32,"",'Étape 5 Sélectionner des TP-Air'!$AB$22),NA())) ->  | C19: =IF(OR(B19="#N/A",B19=""),"",IFERROR(HLOOKUP(B19,'Étape 5 Sélectionner des TP-Air'!$S$22:$AM$25,2,FALSE),"")) ->  | D19: =IF(OR(B19="#N/A",B19=""),"",IFERROR(HLOOKUP(B19,'Étape 5 Sélectionner des TP-Air'!$S$22:$AM$25,IF('Étape 5 Sélectionner des TP-Air'!$I$35="COP",4,3),FALSE),"")) ->  | E19: =IF(OR(B19="#N/A",B19=""),"",IFERROR(HLOOKUP(B19,'Étape 5 Sélectionner des TP-Air'!$S$22:$AM$25,IF('Étape 5 Sélectionner des TP-Air'!$I$35="COP",3,4),FALSE),"")) ->  | H19: 0 | I19: Cap @ cut-off T° | J19: =IFERROR(IF(B30=MIN(B10:B29),1,0),0) -> 0 | M19: =IF('Étape 5 Sélectionner des TP-Air'!$E$30=Dropdown_Menus!$A$2,"",B19) ->  | N19: =IF(OR(M19="#N/A",M19=""),"",IFERROR(HLOOKUP(M19,'Étape 5 Sélectionner des TP-Air'!$S$31:$AM$34,2,FALSE),"")) ->  | O19: =IF(OR(M19="#N/A",M19=""),"",IFERROR(HLOOKUP(M19,'Étape 5 Sélectionner des TP-Air'!$S$31:$AM$34,IF('Étape 5 Sélectionner des TP-Air'!$I$35="COP",4,3),FALSE),"")) ->  | P19: =IF(OR(B19="#N/A",B19=""),"",IFERROR(HLOOKUP(B19,'Étape 5 Sélectionner des TP-Air'!$S$31:$AM$34,IF('Étape 5 Sélectionner des TP-Air'!$I$35="COP",3,4),FALSE),"")) ->  | S19: 0
B20: =IF(OR('Étape 5 Sélectionner des TP-Air'!$I$24,'Étape 5 Sélectionner des TP-Air'!$I$25),"",IF('Étape 5 Sélectionner des TP-Air'!$I$26,IF(MATCH(B19,$B$10:$B$29,0)>='Étape 5 Sélectionner des TP-Air'!$I$32,"",'Étape 5 Sélectionner des TP-Air'!$AC$22),NA())) ->  | C20: =IF(OR(B20="#N/A",B20=""),"",IFERROR(HLOOKUP(B20,'Étape 5 Sélectionner des TP-Air'!$S$22:$AM$25,2,FALSE),"")) ->  | D20: =IF(OR(B20="#N/A",B20=""),"",IFERROR(HLOOKUP(B20,'Étape 5 Sélectionner des TP-Air'!$S$22:$AM$25,IF('Étape 5 Sélectionner des TP-Air'!$I$35="COP",4,3),FALSE),"")) ->  | E20: =IF(OR(B20="#N/A",B20=""),"",IFERROR(HLOOKUP(B20,'Étape 5 Sélectionner des TP-Air'!$S$22:$AM$25,IF('Étape 5 Sélectionner des TP-Air'!$I$35="COP",3,4),FALSE),"")) ->  | H20: 0 | M20: =IF('Étape 5 Sélectionner des TP-Air'!$E$30=Dropdown_Menus!$A$2,"",B20) ->  | N20: =IF(OR(M20="#N/A",M20=""),"",IFERROR(HLOOKUP(M20,'Étape 5 Sélectionner des TP-Air'!$S$31:$AM$34,2,FALSE),"")) ->  | O20: =IF(OR(M20="#N/A",M20=""),"",IFERROR(HLOOKUP(M20,'Étape 5 Sélectionner des TP-Air'!$S$31:$AM$34,IF('Étape 5 Sélectionner des TP-Air'!$I$35="COP",4,3),FALSE),"")) ->  | P20: =IF(OR(B20="#N/A",B20=""),"",IFERROR(HLOOKUP(B20,'Étape 5 Sélectionner des TP-Air'!$S$31:$AM$34,IF('Étape 5 Sélectionner des TP-Air'!$I$35="COP",3,4),FALSE),"")) ->  | S20: 0 | X20: Outdoor Temperature | Y20: =IF('Étape 5 Sélectionner des TP-Air'!$E$35=Dropdown_Menus!$F$2,"Cooling Load (BTU/hr)","Cooling Load (kW)") -> Cooling Load (BTU/hr)
B21: =IF(OR('Étape 5 Sélectionner des TP-Air'!$I$24,'Étape 5 Sélectionner des TP-Air'!$I$25),"",IF('Étape 5 Sélectionner des TP-Air'!$I$26,IF(MATCH(B20,$B$10:$B$29,0)>='Étape 5 Sélectionner des TP-Air'!$I$32,"",'Étape 5 Sélectionner des TP-Air'!$AD$22),NA())) ->  | C21: =IF(OR(B21="#N/A",B21=""),"",IFERROR(HLOOKUP(B21,'Étape 5 Sélectionner des TP-Air'!$S$22:$AM$25,2,FALSE),"")) ->  | D21: =IF(OR(B21="#N/A",B21=""),"",IFERROR(HLOOKUP(B21,'Étape 5 Sélectionner des TP-Air'!$S$22:$AM$25,IF('Étape 5 Sélectionner des TP-Air'!$I$35="COP",4,3),FALSE),"")) ->  | E21: =IF(OR(B21="#N/A",B21=""),"",IFERROR(HLOOKUP(B21,'Étape 5 Sélectionner des TP-Air'!$S$22:$AM$25,IF('Étape 5 Sélectionner des TP-Air'!$I$35="COP",3,4),FALSE),"")) ->  | H21: 0 | M21: =IF('Étape 5 Sélectionner des TP-Air'!$E$30=Dropdown_Menus!$A$2,"",B21) ->  | N21: =IF(OR(M21="#N/A",M21=""),"",IFERROR(HLOOKUP(M21,'Étape 5 Sélectionner des TP-Air'!$S$31:$AM$34,2,FALSE),"")) ->  | O21: =IF(OR(M21="#N/A",M21=""),"",IFERROR(HLOOKUP(M21,'Étape 5 Sélectionner des TP-Air'!$S$31:$AM$34,IF('Étape 5 Sélectionner des TP-Air'!$I$35="COP",4,3),FALSE),"")) ->  | P21: =IF(OR(B21="#N/A",B21=""),"",IFERROR(HLOOKUP(B21,'Étape 5 Sélectionner des TP-Air'!$S$31:$AM$34,IF('Étape 5 Sélectionner des TP-Air'!$I$35="COP",3,4),FALSE),"")) ->  | S21: 0 | X21: =IF('Étape 3 Charges de Conception'!$B$5<>'Étape 5 Sélectionner des TP-Air'!E34,IF('Étape 3 Charges de Conception'!$B$5="°F",CONVERT('Design Load Calcs'!$G$10,"F","C"),CONVERT('Design Load Calcs'!$G$10,"C","F")),'Design Load Calcs'!$G$10) -> 86 | Y21: =IF('Étape 3 Charges de Conception'!$B$6<>'Étape 5 Sélectionner des TP-Air'!E35,IF('Étape 3 Charges de Conception'!$B$6=Dropdown_Menus!$F$2,'Design Load Calcs'!$H$10/1000/3.412,'Design Load Calcs'!$H$10*1000*3.412),'Design Load Calcs'!$H$10) -> 18000
B22: =IF(OR('Étape 5 Sélectionner des TP-Air'!$I$24,'Étape 5 Sélectionner des TP-Air'!$I$25),"",IF('Étape 5 Sélectionner des TP-Air'!$I$26,IF(MATCH(B21,$B$10:$B$29,0)>='Étape 5 Sélectionner des TP-Air'!$I$32,"",'Étape 5 Sélectionner des TP-Air'!$AE$22),NA())) ->  | C22: =IF(OR(B22="#N/A",B22=""),"",IFERROR(HLOOKUP(B22,'Étape 5 Sélectionner des TP-Air'!$S$22:$AM$25,2,FALSE),"")) ->  | D22: =IF(OR(B22="#N/A",B22=""),"",IFERROR(HLOOKUP(B22,'Étape 5 Sélectionner des TP-Air'!$S$22:$AM$25,IF('Étape 5 Sélectionner des TP-Air'!$I$35="COP",4,3),FALSE),"")) ->  | E22: =IF(OR(B22="#N/A",B22=""),"",IFERROR(HLOOKUP(B22,'Étape 5 Sélectionner des TP-Air'!$S$22:$AM$25,IF('Étape 5 Sélectionner des TP-Air'!$I$35="COP",3,4),FALSE),"")) ->  | H22: 0 | M22: =IF('Étape 5 Sélectionner des TP-Air'!$E$30=Dropdown_Menus!$A$2,"",B22) ->  | N22: =IF(OR(M22="#N/A",M22=""),"",IFERROR(HLOOKUP(M22,'Étape 5 Sélectionner des TP-Air'!$S$31:$AM$34,2,FALSE),"")) ->  | O22: =IF(OR(M22="#N/A",M22=""),"",IFERROR(HLOOKUP(M22,'Étape 5 Sélectionner des TP-Air'!$S$31:$AM$34,IF('Étape 5 Sélectionner des TP-Air'!$I$35="COP",4,3),FALSE),"")) ->  | P22: =IF(OR(B22="#N/A",B22=""),"",IFERROR(HLOOKUP(B22,'Étape 5 Sélectionner des TP-Air'!$S$31:$AM$34,IF('Étape 5 Sélectionner des TP-Air'!$I$35="COP",3,4),FALSE),"")) ->  | S22: 0
B23: =IF(OR('Étape 5 Sélectionner des TP-Air'!$I$24,'Étape 5 Sélectionner des TP-Air'!$I$25),"",IF('Étape 5 Sélectionner des TP-Air'!$I$26,IF(MATCH(B22,$B$10:$B$29,0)>='Étape 5 Sélectionner des TP-Air'!$I$32,"",'Étape 5 Sélectionner des TP-Air'!$AF$22),NA())) ->  | C23: =IF(OR(B23="#N/A",B23=""),"",IFERROR(HLOOKUP(B23,'Étape 5 Sélectionner des TP-Air'!$S$22:$AM$25,2,FALSE),"")) ->  | D23: =IF(OR(B23="#N/A",B23=""),"",IFERROR(HLOOKUP(B23,'Étape 5 Sélectionner des TP-Air'!$S$22:$AM$25,IF('Étape 5 Sélectionner des TP-Air'!$I$35="COP",4,3),FALSE),"")) ->  | E23: =IF(OR(B23="#N/A",B23=""),"",IFERROR(HLOOKUP(B23,'Étape 5 Sélectionner des TP-Air'!$S$22:$AM$25,IF('Étape 5 Sélectionner des TP-Air'!$I$35="COP",3,4),FALSE),"")) ->  | H23: 0 | M23: =IF('Étape 5 Sélectionner des TP-Air'!$E$30=Dropdown_Menus!$A$2,"",B23) ->  | N23: =IF(OR(M23="#N/A",M23=""),"",IFERROR(HLOOKUP(M23,'Étape 5 Sélectionner des TP-Air'!$S$31:$AM$34,2,FALSE),"")) ->  | O23: =IF(OR(M23="#N/A",M23=""),"",IFERROR(HLOOKUP(M23,'Étape 5 Sélectionner des TP-Air'!$S$31:$AM$34,IF('Étape 5 Sélectionner des TP-Air'!$I$35="COP",4,3),FALSE),"")) ->  | P23: =IF(OR(B23="#N/A",B23=""),"",IFERROR(HLOOKUP(B23,'Étape 5 Sélectionner des TP-Air'!$S$31:$AM$34,IF('Étape 5 Sélectionner des TP-Air'!$I$35="COP",3,4),FALSE),"")) ->  | S23: 0
B24: =IF(OR('Étape 5 Sélectionner des TP-Air'!$I$24,'Étape 5 Sélectionner des TP-Air'!$I$25),"",IF('Étape 5 Sélectionner des TP-Air'!$I$26,IF(MATCH(B23,$B$10:$B$29,0)>='Étape 5 Sélectionner des TP-Air'!$I$32,"",'Étape 5 Sélectionner des TP-Air'!$AG$22),NA())) ->  | C24: =IF(OR(B24="#N/A",B24=""),"",IFERROR(HLOOKUP(B24,'Étape 5 Sélectionner des TP-Air'!$S$22:$AM$25,2,FALSE),"")) ->  | D24: =IF(OR(B24="#N/A",B24=""),"",IFERROR(HLOOKUP(B24,'Étape 5 Sélectionner des TP-Air'!$S$22:$AM$25,IF('Étape 5 Sélectionner des TP-Air'!$I$35="COP",4,3),FALSE),"")) ->  | E24: =IF(OR(B24="#N/A",B24=""),"",IFERROR(HLOOKUP(B24,'Étape 5 Sélectionner des TP-Air'!$S$22:$AM$25,IF('Étape 5 Sélectionner des TP-Air'!$I$35="COP",3,4),FALSE),"")) ->  | G24: =IF(B24="","",ABS(C24-F24)) ->  | H24: 0 | M24: =IF('Étape 5 Sélectionner des TP-Air'!$E$30=Dropdown_Menus!$A$2,"",B24) ->  | N24: =IF(OR(M24="#N/A",M24=""),"",IFERROR(HLOOKUP(M24,'Étape 5 Sélectionner des TP-Air'!$S$31:$AM$34,2,FALSE),"")) ->  | O24: =IF(OR(M24="#N/A",M24=""),"",IFERROR(HLOOKUP(M24,'Étape 5 Sélectionner des TP-Air'!$S$31:$AM$34,IF('Étape 5 Sélectionner des TP-Air'!$I$35="COP",4,3),FALSE),"")) ->  | P24: =IF(OR(B24="#N/A",B24=""),"",IFERROR(HLOOKUP(B24,'Étape 5 Sélectionner des TP-Air'!$S$31:$AM$34,IF('Étape 5 Sélectionner des TP-Air'!$I$35="COP",3,4),FALSE),"")) ->  | S24: 0
B25: =IF(OR('Étape 5 Sélectionner des TP-Air'!$I$24,'Étape 5 Sélectionner des TP-Air'!$I$25),"",IF('Étape 5 Sélectionner des TP-Air'!$I$26,IF(MATCH(B24,$B$10:$B$29,0)>='Étape 5 Sélectionner des TP-Air'!$I$32,"",'Étape 5 Sélectionner des TP-Air'!$AH$22),NA())) ->  | C25: =IF(OR(B25="#N/A",B25=""),"",IFERROR(HLOOKUP(B25,'Étape 5 Sélectionner des TP-Air'!$S$22:$AM$25,2,FALSE),"")) ->  | D25: =IF(OR(B25="#N/A",B25=""),"",IFERROR(HLOOKUP(B25,'Étape 5 Sélectionner des TP-Air'!$S$22:$AM$25,IF('Étape 5 Sélectionner des TP-Air'!$I$35="COP",4,3),FALSE),"")) ->  | E25: =IF(OR(B25="#N/A",B25=""),"",IFERROR(HLOOKUP(B25,'Étape 5 Sélectionner des TP-Air'!$S$22:$AM$25,IF('Étape 5 Sélectionner des TP-Air'!$I$35="COP",3,4),FALSE),"")) ->  | G25: =IF(B25="","",ABS(C25-F25)) ->  | H25: 0 | I25: Slope and Intercept at 47°F (HP Pwr) | M25: =IF('Étape 5 Sélectionner des TP-Air'!$E$30=Dropdown_Menus!$A$2,"",B25) ->  | N25: =IF(OR(M25="#N/A",M25=""),"",IFERROR(HLOOKUP(M25,'Étape 5 Sélectionner des TP-Air'!$S$31:$AM$34,2,FALSE),"")) ->  | O25: =IF(OR(M25="#N/A",M25=""),"",IFERROR(HLOOKUP(M25,'Étape 5 Sélectionner des TP-Air'!$S$31:$AM$34,IF('Étape 5 Sélectionner des TP-Air'!$I$35="COP",4,3),FALSE),"")) ->  | P25: =IF(OR(B25="#N/A",B25=""),"",IFERROR(HLOOKUP(B25,'Étape 5 Sélectionner des TP-Air'!$S$31:$AM$34,IF('Étape 5 Sélectionner des TP-Air'!$I$35="COP",3,4),FALSE),"")) ->  | S25: 0
B26: =IF(OR('Étape 5 Sélectionner des TP-Air'!$I$24,'Étape 5 Sélectionner des TP-Air'!$I$25),"",IF('Étape 5 Sélectionner des TP-Air'!$I$26,IF(MATCH(B25,$B$10:$B$29,0)>='Étape 5 Sélectionner des TP-Air'!$I$32,"",'Étape 5 Sélectionner des TP-Air'!$AI$22),NA())) ->  | C26: =IF(OR(B26="#N/A",B26=""),"",IFERROR(HLOOKUP(B26,'Étape 5 Sélectionner des TP-Air'!$S$22:$AM$25,2,FALSE),"")) ->  | D26: =IF(OR(B26="#N/A",B26=""),"",IFERROR(HLOOKUP(B26,'Étape 5 Sélectionner des TP-Air'!$S$22:$AM$25,IF('Étape 5 Sélectionner des TP-Air'!$I$35="COP",4,3),FALSE),"")) ->  | E26: =IF(OR(B26="#N/A",B26=""),"",IFERROR(HLOOKUP(B26,'Étape 5 Sélectionner des TP-Air'!$S$22:$AM$25,IF('Étape 5 Sélectionner des TP-Air'!$I$35="COP",3,4),FALSE),"")) ->  | H26: 0 | I26: know ys (pwr): | J26: know xs (temp) | M26: =IF('Étape 5 Sélectionner des TP-Air'!$E$30=Dropdown_Menus!$A$2,"",B26) ->  | N26: =IF(OR(M26="#N/A",M26=""),"",IFERROR(HLOOKUP(M26,'Étape 5 Sélectionner des TP-Air'!$S$31:$AM$34,2,FALSE),"")) ->  | O26: =IF(OR(M26="#N/A",M26=""),"",IFERROR(HLOOKUP(M26,'Étape 5 Sélectionner des TP-Air'!$S$31:$AM$34,IF('Étape 5 Sélectionner des TP-Air'!$I$35="COP",4,3),FALSE),"")) ->  | P26: =IF(OR(B26="#N/A",B26=""),"",IFERROR(HLOOKUP(B26,'Étape 5 Sélectionner des TP-Air'!$S$31:$AM$34,IF('Étape 5 Sélectionner des TP-Air'!$I$35="COP",3,4),FALSE),"")) ->  | S26: 0
B27: =IF(OR('Étape 5 Sélectionner des TP-Air'!$I$24,'Étape 5 Sélectionner des TP-Air'!$I$25),"",IF('Étape 5 Sélectionner des TP-Air'!$I$26,IF(MATCH(B26,$B$10:$B$29,0)>='Étape 5 Sélectionner des TP-Air'!$I$32,"",'Étape 5 Sélectionner des TP-Air'!$AJ$22),NA())) ->  | C27: =IF(OR(B27="#N/A",B27=""),"",IFERROR(HLOOKUP(B27,'Étape 5 Sélectionner des TP-Air'!$S$22:$AM$25,2,FALSE),"")) ->  | D27: =IF(OR(B27="#N/A",B27=""),"",IFERROR(HLOOKUP(B27,'Étape 5 Sélectionner des TP-Air'!$S$22:$AM$25,IF('Étape 5 Sélectionner des TP-Air'!$I$35="COP",4,3),FALSE),"")) ->  | E27: =IF(OR(B27="#N/A",B27=""),"",IFERROR(HLOOKUP(B27,'Étape 5 Sélectionner des TP-Air'!$S$22:$AM$25,IF('Étape 5 Sélectionner des TP-Air'!$I$35="COP",3,4),FALSE),"")) ->  | H27: 0 | I27: =INDEX(D10:D29,MATCH(J27,B10:B29,0)) -> 0 | J27: =IF(MAX(B10:B29)<IF(NOT(RIGHT('Étape 5 Sélectionner des TP-Air'!$E$34,1)=Dropdown_Menus!$F$3),CONVERT(47,"F","C"),47),MAX(B10:B29),INDEX(B10:B29,MATCH(IF(NOT(RIGHT('Étape 5 Sélectionner des TP-Air'!$E$34,1)=Dropdown_Menus!$F$3),CONVERT(47,"F","C"),47),B10:B29,-1))) -> 47 | M27: =IF('Étape 5 Sélectionner des TP-Air'!$E$30=Dropdown_Menus!$A$2,"",B27) ->  | N27: =IF(OR(M27="#N/A",M27=""),"",IFERROR(HLOOKUP(M27,'Étape 5 Sélectionner des TP-Air'!$S$31:$AM$34,2,FALSE),"")) ->  | O27: =IF(OR(M27="#N/A",M27=""),"",IFERROR(HLOOKUP(M27,'Étape 5 Sélectionner des TP-Air'!$S$31:$AM$34,IF('Étape 5 Sélectionner des TP-Air'!$I$35="COP",4,3),FALSE),"")) ->  | P27: =IF(OR(B27="#N/A",B27=""),"",IFERROR(HLOOKUP(B27,'Étape 5 Sélectionner des TP-Air'!$S$31:$AM$34,IF('Étape 5 Sélectionner des TP-Air'!$I$35="COP",3,4),FALSE),"")) ->  | S27: 0
B28: =IF(OR('Étape 5 Sélectionner des TP-Air'!$I$24,'Étape 5 Sélectionner des TP-Air'!$I$25),"",IF('Étape 5 Sélectionner des TP-Air'!$I$26,IF(MATCH(B27,$B$10:$B$29,0)>='Étape 5 Sélectionner des TP-Air'!$I$32,"",'Étape 5 Sélectionner des TP-Air'!$AK$22),NA())) ->  | C28: =IF(OR(B28="#N/A",B28=""),"",IFERROR(HLOOKUP(B28,'Étape 5 Sélectionner des TP-Air'!$S$22:$AM$25,2,FALSE),"")) ->  | D28: =IF(OR(B28="#N/A",B28=""),"",IFERROR(HLOOKUP(B28,'Étape 5 Sélectionner des TP-Air'!$S$22:$AM$25,IF('Étape 5 Sélectionner des TP-Air'!$I$35="COP",4,3),FALSE),"")) ->  | E28: =IF(OR(B28="#N/A",B28=""),"",IFERROR(HLOOKUP(B28,'Étape 5 Sélectionner des TP-Air'!$S$22:$AM$25,IF('Étape 5 Sélectionner des TP-Air'!$I$35="COP",3,4),FALSE),"")) ->  | H28: 0 | I28: =INDEX(D10:D29,MATCH(J28,B10:B29,0)) -> 0 | J28: =IF(J27=MIN(B10:B29),INDEX(B10:B29,MATCH(J27,B10:B29,0)-1),INDEX(B10:B29,MATCH(J27,B10:B29,0)+1)) -> 17 | M28: =IF('Étape 5 Sélectionner des TP-Air'!$E$30=Dropdown_Menus!$A$2,"",B28) ->  | N28: =IF(OR(M28="#N/A",M28=""),"",IFERROR(HLOOKUP(M28,'Étape 5 Sélectionner des TP-Air'!$S$31:$AM$34,2,FALSE),"")) ->  | O28: =IF(OR(M28="#N/A",M28=""),"",IFERROR(HLOOKUP(M28,'Étape 5 Sélectionner des TP-Air'!$S$31:$AM$34,IF('Étape 5 Sélectionner des TP-Air'!$I$35="COP",4,3),FALSE),"")) ->  | P28: =IF(OR(B28="#N/A",B28=""),"",IFERROR(HLOOKUP(B28,'Étape 5 Sélectionner des TP-Air'!$S$31:$AM$34,IF('Étape 5 Sélectionner des TP-Air'!$I$35="COP",3,4),FALSE),"")) ->  | S28: 0
B29: =IF(OR('Étape 5 Sélectionner des TP-Air'!$I$24,'Étape 5 Sélectionner des TP-Air'!$I$25),"",IF('Étape 5 Sélectionner des TP-Air'!$I$26,IF(MATCH(B28,$B$10:$B$29,0)>='Étape 5 Sélectionner des TP-Air'!$I$32,"",'Étape 5 Sélectionner des TP-Air'!$AL$22),NA())) ->  | C29: =IF(OR(B29="#N/A",B29=""),"",IFERROR(HLOOKUP(B29,'Étape 5 Sélectionner des TP-Air'!$S$22:$AM$25,2,FALSE),"")) ->  | D29: =IF(OR(B29="#N/A",B29=""),"",IFERROR(HLOOKUP(B29,'Étape 5 Sélectionner des TP-Air'!$S$22:$AM$25,IF('Étape 5 Sélectionner des TP-Air'!$I$35="COP",4,3),FALSE),"")) ->  | E29: =IF(OR(B29="#N/A",B29=""),"",IFERROR(HLOOKUP(B29,'Étape 5 Sélectionner des TP-Air'!$S$22:$AM$25,IF('Étape 5 Sélectionner des TP-Air'!$I$35="COP",3,4),FALSE),"")) ->  | H29: 0 | I29: Slope and Intercept at 17°F (HP Cap) | M29: =IF('Étape 5 Sélectionner des TP-Air'!$E$30=Dropdown_Menus!$A$2,"",B29) ->  | N29: =IF(OR(M29="#N/A",M29=""),"",IFERROR(HLOOKUP(M29,'Étape 5 Sélectionner des TP-Air'!$S$31:$AM$34,2,FALSE),"")) ->  | O29: =IF(OR(M29="#N/A",M29=""),"",IFERROR(HLOOKUP(M29,'Étape 5 Sélectionner des TP-Air'!$S$31:$AM$34,IF('Étape 5 Sélectionner des TP-Air'!$I$35="COP",4,3),FALSE),"")) ->  | P29: =IF(OR(B29="#N/A",B29=""),"",IFERROR(HLOOKUP(B29,'Étape 5 Sélectionner des TP-Air'!$S$31:$AM$34,IF('Étape 5 Sélectionner des TP-Air'!$I$35="COP",3,4),FALSE),"")) ->  | S29: 0
B30: ='Étape 5 Sélectionner des TP-Air'!$E$28 -> 0 | C30: =IF(D34=B30,B34,SLOPE(B34:B35,D34:D35)*B30+INTERCEPT(B34:B35,D34:D35)) -> 0 | D30: =IF(D34=B30,C34,SLOPE(C34:C35,D34:D35)*B30+INTERCEPT(C34:C35,D34:D35)) -> 0 | E30: =(C30/IF('Étape 5 Sélectionner des TP-Air'!$E$35="kW",1,3412))/D30 ->  | F30: =IF(B30<C5,$Y$14,B30*$X$18+$Y$18) -> 32630.38549 | G30: =IF(B30="","",ABS(C30-F30)) -> 32630.38549 | H30: =IF(AND(ISNUMBER(INDEX(B10:B29,MATCH(B31,B10:B29,0))),ISNUMBER(B30)),IF(OR(AND(INDEX(C10:C29,MATCH(B31,B10:B29,0))>=INDEX(F10:F29,MATCH(B31,B10:B29,0)),C30<=F30),AND(INDEX(C10:C29,MATCH(B31,B10:B29,0))<=INDEX(F10:F29,MATCH(B31,B10:B29,0)),C30>=F30)),1,0),0) -> 0 | I30: know ys (pwr): | J30: know xs (temp) | M30: ='Étape 5 Sélectionner des TP-Air'!$E$28 -> 0 | N30: =IF(O34=M30,M34,SLOPE(M34:M35,O34:O35)*M30+INTERCEPT(M34:M35,O34:O35)) -> 0 | O30: =IF(O34=M30,N34,SLOPE(N34:N35,O34:O35)*M30+INTERCEPT(N34:N35,O34:O35)) -> 0 | P30: =(N30/IF('Étape 5 Sélectionner des TP-Air'!$E$35="kW",1,3412))/O30 ->  | Q30: =IF(M30<N5,$Y$14,M30*$X$18+$Y$18) -> 32630.38549 | R30: =IF(M30="","",ABS(N30-Q30)) -> 32630.38549 | S30: =IF(AND(ISNUMBER(INDEX(M10:M29,MATCH(M31,M10:M29,0))),ISNUMBER(M30)),IF(OR(AND(INDEX(N10:N29,MATCH(M31,M10:M29,0))>=INDEX(Q10:Q29,MATCH(M31,M10:M29,0)),N30<=Q30),AND(INDEX(N10:N29,MATCH(M31,M10:M29,0))<=INDEX(Q10:Q29,MATCH(M31,M10:M29,0)),N30>=Q30)),1,0),0) -> 0
B31: =_xlfn.MINIFS(B10:B29,B10:B29,">"&B30) -> 17 | I31: =INDEX(D10:D29,MATCH(J31,B10:B29,0)) -> 0 | J31: =IF(MAX(B10:B29)<IF(NOT(RIGHT('Étape 5 Sélectionner des TP-Air'!$E$34,1)=Dropdown_Menus!$F$3),CONVERT(17,"F","C"),17),MAX(B10:B29),INDEX(B10:B29,MATCH(IF(NOT(RIGHT('Étape 5 Sélectionner des TP-Air'!$E$34,1)=Dropdown_Menus!$F$3),CONVERT(17,"F","C"),17),B10:B29,-1))) -> 17 | M31: =_xlfn.MINIFS(M10:M29,M10:M29,">"&M30) -> 17
B32: Slope and Intercept at the cut-off temp. (HP Norm. Cap and pwr) | F32: Slope and Intercept at the Design Temp. (HP Cap) | I32: =INDEX(D10:D29,MATCH(J32,B10:B29,0)) -> 0 | J32: =IF(J31=MIN(B10:B29),INDEX(B10:B29,MATCH(J31,B10:B29,0)-1),INDEX(B10:B29,MATCH(J31,B10:B29,0)+1)) -> 47 | M32: Slope and Intercept at the cut-off temp. (HP Norm. Cap and pwr) | Q32: Slope and Intercept at the Design Temp. (HP Cap)
B33: know ys (capacity): | C33: know ys (power): | D33: know xs (temp) | F33: know ys (capacity): | G33: know xs (temp) | I33: Slope and Intercept at 47°F (HP Cap) | M33: know ys (capacity): | N33: know ys (power): | O33: know xs (temp) | Q33: know ys (capacity): | R33: know xs
B34: =INDEX(C10:C29,MATCH(D34,B10:B29,0)) -> 0 | C34: =INDEX(D10:D29,MATCH(B34,C10:C29,0)) -> 0 | D34: =IF(B30=MIN(B10:B29),B30,INDEX(B10:B29,MATCH(B30,B10:B29,-1))) -> 17 | F34: =IF(G34="-",0,INDEX(C10:C29,MATCH(G34,B10:B29,0))) -> 0 | G34: =IF(C5<B30,"-",IFERROR(INDEX(B10:B29,MATCH(C5,B10:B29,0)),IF(C5<MIN(B10:B29),INDEX(B10:B29,MATCH(MIN(B10:B29),B10:B29,-1)),INDEX(B10:B29,MATCH(C5,B10:B29,-1))))) -> - | I34: know ys (capacity): | J34: know xs (temp) | M34: =INDEX(N10:N29,MATCH(O34,M10:M29,0)) -> 0 | N34: =INDEX(O10:O29,MATCH(M34,N10:N29,0)) -> 0 | O34: =IF(M30=MIN(M10:M29),M30,INDEX(M10:M29,MATCH(M30,M10:M29,-1))) -> 17 | Q34: =IF(R34="-",0,INDEX(N10:N29,MATCH(R34,M10:M29,0))) -> 0 | R34: =IF(N5<M30,"-",IFERROR(INDEX(M10:M29,MATCH(N5,M10:M29,0)),IF(N5<MIN(M10:M29),INDEX(M10:M29,MATCH(MIN(M10:M29),M10:M29,-1)),INDEX(M10:M29,MATCH(N5,M10:M29,-1))))) -> -
B35: =IF(D35="-","-",INDEX(C10:C29,MATCH(D35,B10:B29,0))) -> 0 | C35: =IF(D35="-","-",INDEX($D$10:$D$29, MATCH(D35,$B$10:$B$29,0))) -> 0 | D35: =IF(B30=MIN(B10:B29),"-",INDEX(B10:B29,MATCH(B30,B10:B29,-1)+IF(D34=MIN(B10:B29),-1,1))) -> 47 | F35: =IF(G35="-",0,INDEX(C10:C29,MATCH(G35,B10:B29,0))) -> 0 | G35: =IF(C5<B30,"-",IF(G34=C5,"-",INDEX(B10:B29,MATCH(G34,B10:B29,0)+IF(G34=MIN(B10:B29),-1,1)))) -> - | I35: =INDEX(C10:C29,MATCH(J35,B10:B29,0)) -> 0 | J35: =IF(MAX(B10:B29)<IF(NOT(RIGHT('Étape 5 Sélectionner des TP-Air'!$E$34,1)=Dropdown_Menus!$F$3),CONVERT(47,"F","C"),47),MAX(B10:B29),INDEX(B10:B29,MATCH(IF(NOT(RIGHT('Étape 5 Sélectionner des TP-Air'!$E$34,1)=Dropdown_Menus!$F$3),CONVERT(47,"F","C"),47),B10:B29,-1))) -> 47 | M35: =IF(O35="-","-",INDEX(N10:N29,MATCH(O35,M10:M29,0))) -> 0 | N35: =IF(O35="-","-",INDEX($O$10:$O$29, MATCH(O35,$M$10:$M$29,0))) -> 0 | O35: =IF(M30=MIN(M10:M29),"-",INDEX(M10:M29,MATCH(M30,M10:M29,-1)+IF(O34=MIN(M10:M29),-1,1))) -> 47 | Q35: =IF(R35="-",0,INDEX(N10:N29,MATCH(R35,M10:M29,0))) -> 0 | R35: =IF(N5<M30,"-",IF(R34=N5,"-",INDEX(M10:M29,MATCH(R34,M10:M29,0)+IF(R34=MIN(M10:M29),-1,1)))) -> -
I36: =INDEX(C10:C29,MATCH(J36,B10:B29,0)) -> 0 | J36: =IF(J35=MIN(B10:B29),INDEX(B10:B29,MATCH(J35,B10:B29,0)-1),INDEX(B10:B29,MATCH(J35,B10:B29,0)+1)) -> 17
B37: Slope and Intercept at the BPT (HP Cap) | F37: Slope and Intercept at the BPT (Load%) | I37: Slope and Intercept at 17°F (HP Cap) | M37: Slope and Intercept at the BPT (HP Cap) | Q37: Slope and Intercept at the BPT (Load%)
B38: know ys (eq. 1): | C38: know xs (eq. 1): | D38: know ys (eq. 2): | E38: know xs (eq. 2): | F38: know ys (eq. 1): | G38: know ys (eq. 2): | I38: know ys (capacity): | J38: know xs (temp) | M38: know ys (eq. 1): | N38: know xs (eq. 1): | O38: know ys (eq. 2): | P38: know xs (eq. 2): | Q38: know ys (eq. 1): | R38: know ys (eq. 2):
B39: =IF(SUM(H10:H30)=1,IF(H30=1,INDEX(C10:C29,MATCH(B31,B10:B29,0)-1),INDEX(C10:C29,MATCH(1,H10:H29,0))),IF(MATCH(MIN(G10:G29),G10:G29,0)>=2,INDEX(C10:C29,MATCH(MIN(G10:G29),G10:G29,0)-1),NA())) ->  | C39: =IF(SUM(H10:H30)=1,IF(H30=1,INDEX(B10:B29,MATCH(B31,B10:B29,0)-1),INDEX(B10:B29,MATCH(1,H10:H29,0))),IF(MATCH(MIN(G10:G29),G10:G29,0)>=2,INDEX(B10:B29,MATCH(MIN(G10:G29),G10:G29,0)-1),NA())) ->  | D39: =IF(SUM(H10:H30)=1,IF(H30=1,INDEX(C10:C29,MATCH(B31,B10:B29,0)),INDEX(C10:C29,MATCH(1,H10:H29,0)+1)),INDEX(C10:C29,MATCH(MIN(G10:G29),G10:G29,0))) -> 0 | E39: =IF(SUM(H10:H30)=1,IF(H30=1,INDEX(B10:B29,MATCH(B31,B10:B29,0)),INDEX(B10:B29,MATCH(1,H10:H29,0)+1)),INDEX(B10:B29,MATCH(MIN(G10:G29),G10:G29,0))) -> 47 | F39: =INDEX(INDIRECT(CONCATENATE(IFERROR(SUBSTITUTE('Étape 3 Charges de Conception'!B11,"-","_"),'Étape 3 Charges de Conception'!B11),"_Charge")),MATCH(G39,IF($D$5="°F",'Loads %'!N8:N24,'Loads %'!M8:M24))) ->  | G39: =IF($D$5="°F",IF(ISNUMBER(MATCH(J9,'Loads %'!N8:N24,0)),J9,INDEX('Loads %'!N8:N24,MATCH(J9,'Loads %'!N8:N24,1))),IF(ISNUMBER(MATCH(J9,'Loads %'!M8:M24,0)),J9,INDEX('Loads %'!M8:M24,MATCH(J9,'Loads %'!M8:M24,1)))) ->  | I39: =INDEX(C10:C29,MATCH(J39,B10:B29,0)) -> 0 | J39: =IF(MAX(B10:B29)<IF(NOT(RIGHT('Étape 5 Sélectionner des TP-Air'!$E$34,1)=Dropdown_Menus!$F$3),CONVERT(17,"F","C"),17),MAX(B10:B29),INDEX(B10:B29,MATCH(IF(NOT(RIGHT('Étape 5 Sélectionner des TP-Air'!$E$34,1)=Dropdown_Menus!$F$3),CONVERT(17,"F","C"),17),B10:B29,-1))) -> 17 | M39: =IF(SUM(S10:S30)=1,IF(S30=1,INDEX(N10:N29,MATCH(M31,M10:M29,0)-1),INDEX(N10:N29,MATCH(1,S10:S29,0))),IF(MATCH(MIN(R10:R29),R10:R29,0)>=2,INDEX(N10:N29,MATCH(MIN(R10:R29),R10:R29,0)-1),NA())) ->  | N39: =IF(SUM(S10:S30)=1,IF(S30=1,INDEX(M10:M29,MATCH(M31,M10:M29,0)-1),INDEX(M10:M29,MATCH(1,S10:S29,0))),IF(MATCH(MIN(R10:R29),R10:R29,0)>=2,INDEX(M10:M29,MATCH(MIN(R10:R29),R10:R29,0)-1),NA())) ->  | O39: =IF(SUM(S10:S30)=1,IF(S30=1,INDEX(N10:N29,MATCH(M31,M10:M29,0)),INDEX(N10:N29,MATCH(1,S10:S29,0)+1)),INDEX(N10:N29,MATCH(MIN(R10:R29),R10:R29,0))) -> 0 | P39: =IF(SUM(S10:S30)=1,IF(S30=1,INDEX(M10:M29,MATCH(M31,M10:M29,0)),INDEX(M10:M29,MATCH(1,S10:S29,0)+1)),INDEX(M10:M29,MATCH(MIN(R10:R29),R10:R29,0))) -> 47 | Q39: =INDEX(INDIRECT(CONCATENATE(IFERROR(SUBSTITUTE('Étape 3 Charges de Conception'!B11,"-","_"),'Étape 3 Charges de Conception'!B11),"_Charge")),MATCH(R39,'Loads %'!N8:N24)) ->  | R39: =IF(ISNUMBER(MATCH(U9,'Loads %'!N8:N24,0)),U9,INDEX('Loads %'!N8:N24,MATCH(U9,'Loads %'!N8:N24,1))) -> 
B40: =IF(SUM(H10:H30)=1,IF(H30=1,INDEX(C10:C29,MATCH(B31,B10:B29,0)),INDEX(C10:C29,MATCH(1,H10:H29,0)+1)),INDEX(C10:C29,MATCH(MIN(G10:G29),G10:G29,0))) -> 0 | C40: =IF(SUM(H10:H30)=1,IF(H30=1,INDEX(B10:B29,MATCH(B31,B10:B29,0)),INDEX(B10:B29,MATCH(1,H10:H29,0)+1)),INDEX(B10:B29,MATCH(MIN(G10:G29),G10:G29,0))) -> 47 | D40: =IF(SUM(H10:H30)=1,IF(H30=1,C30,INDEX(C10:C29,MATCH(1,H10:H29,0)+2)),IF(OR(SUMIF(B10:B29,"<>""")=0,INDEX(C10:C29,MATCH(MIN(G10:G29),G10:G29,0)+1)=""),C30,INDEX(C10:C29,MATCH(MIN(G10:G29),G10:G29,0)+1))) -> 0 | E40: =IF(SUM(H10:H30)=1,IF(H30=1,B30,INDEX(B10:B29,MATCH(1,H10:H29,0)+2)),IF(OR(AND(SUMIF(B12:B29,"<>""")=0,B30<E39),INDEX(B10:B29,MATCH(MIN(G10:G29),G10:G29,0)+1)=""),B30,INDEX(B10:B29,MATCH(MIN(G10:G29),G10:G29,0)+1))) -> 0 | F40: =INDEX(INDIRECT(CONCATENATE(IFERROR(SUBSTITUTE('Étape 3 Charges de Conception'!B11,"-","_"),'Étape 3 Charges de Conception'!B11),"_Charge")),MATCH(G40,IF($D$5="°F",'Loads %'!N8:N24,'Loads %'!M8:M24))) ->  | G40: =IF($D$5="°F",IF(ISNUMBER(MATCH(E41,'Loads %'!N8:N24,0)),"",INDEX('Loads %'!N8:N24,MATCH(G39,'Loads %'!N8:N24,0)+1)),IF(ISNUMBER(MATCH(E41,'Loads %'!M8:M24,0)),"",INDEX('Loads %'!M8:M24,MATCH(G39,'Loads %'!M8:M24,0)+1))) ->  | I40: =INDEX(C10:C29,MATCH(J40,B10:B29,0)) -> 0 | J40: =IF(J39=MIN(B10:B29),INDEX(B10:B29,MATCH(J39,B10:B29,0)-1),INDEX(B10:B29,MATCH(J39,B10:B29,0)+1)) -> 47 | M40: =IF(SUM(S10:S30)=1,IF(S30=1,INDEX(N10:N29,MATCH(M31,M10:M29,0)),INDEX(N10:N29,MATCH(1,S10:S29,0)+1)),INDEX(N10:N29,MATCH(MIN(R10:R29),R10:R29,0))) -> 0 | N40: =IF(SUM(S10:S30)=1,IF(S30=1,INDEX(M10:M29,MATCH(M31,M10:M29,0)),INDEX(M10:M29,MATCH(1,S10:S29,0)+1)),INDEX(M10:M29,MATCH(MIN(R10:R29),R10:R29,0))) -> 47 | O40: =IF(SUM(S10:S30)=1,IF(S30=1,N30,INDEX(N10:N29,MATCH(1,S10:S29,0)+2)),IF(OR(SUMIF(M10:M29,"<>""")=0,INDEX(N10:N29,MATCH(MIN(R10:R29),R10:R29,0)+1)=""),N30,INDEX(N10:N29,MATCH(MIN(R10:R29),R10:R29,0)+1))) -> 0 | P40: =IF(SUM(S10:S30)=1,IF(S30=1,M30,INDEX(M10:M29,MATCH(1,S10:S29,0)+2)),IF(OR(AND(SUMIF(M12:M29,"<>""")=0,M30<P39),INDEX(M10:M29,MATCH(MIN(R10:R29),R10:R29,0)+1)=""),M30,INDEX(M10:M29,MATCH(MIN(R10:R29),R10:R29,0)+1))) -> 0 | Q40: =INDEX(INDIRECT(CONCATENATE(IFERROR(SUBSTITUTE('Étape 3 Charges de Conception'!B11,"-","_"),'Étape 3 Charges de Conception'!B11),"_Charge")),MATCH(R40,'Loads %'!N8:N24)) ->  | R40: =IF(ISNUMBER(MATCH(P41,'Loads %'!N8:N24,0)),"",INDEX('Loads %'!N8:N24,MATCH(R39,'Loads %'!N8:N24,0)+1)) -> 
B41: BPT (eq. 1): | C41: =IF(IF(($Y$18-INTERCEPT(B39:B40,C39:C40))/(SLOPE(B39:B40,C39:C40)-$X$18)<C5,NA(),($Y$18-INTERCEPT(B39:B40,C39:C40))/(SLOPE(B39:B40,C39:C40)-$X$18))>MAX(B10:B29),NA(),IF(($Y$18-INTERCEPT(B39:B40,C39:C40))/(SLOPE(B39:B40,C39:C40)-$X$18)<C5,NA(),($Y$18-INTERCEPT(B39:B40,C39:C40))/(SLOPE(B39:B40,C39:C40)-$X$18))) ->  | D41: BPT (eq. 2): | E41: =IF(IF(($Y$18-INTERCEPT(D39:D40,E39:E40))/(SLOPE(D39:D40,E39:E40)-$X$18)<C5,NA(),($Y$18-INTERCEPT(D39:D40,E39:E40))/(SLOPE(D39:D40,E39:E40)-$X$18))>MAX(B10:B29),NA(),IF(($Y$18-INTERCEPT(D39:D40,E39:E40))/(SLOPE(D39:D40,E39:E40)-$X$18)<C5,NA(),($Y$18-INTERCEPT(D39:D40,E39:E40))/(SLOPE(D39:D40,E39:E40)-$X$18))) ->  | M41: BPT (eq. 1): | N41: =IF(IF(($Y$18-INTERCEPT(M39:M40,N39:N40))/(SLOPE(M39:M40,N39:N40)-$X$18)<N5,NA(),($Y$18-INTERCEPT(M39:M40,N39:N40))/(SLOPE(M39:M40,N39:N40)-$X$18))>MAX(M10:M29),NA(),IF(($Y$18-INTERCEPT(M39:M40,N39:N40))/(SLOPE(M39:M40,N39:N40)-$X$18)<N5,NA(),($Y$18-INTERCEPT(M39:M40,N39:N40))/(SLOPE(M39:M40,N39:N40)-$X$18))) ->  | O41: BPT (eq. 2): | P41: =IF(IF(($Y$18-INTERCEPT(O39:O40,P39:P40))/(SLOPE(O39:O40,P39:P40)-$X$18)<N5,NA(),($Y$18-INTERCEPT(O39:O40,P39:P40))/(SLOPE(O39:O40,P39:P40)-$X$18))>MAX(M10:M29),NA(),IF(($Y$18-INTERCEPT(O39:O40,P39:P40))/(SLOPE(O39:O40,P39:P40)-$X$18)<N5,NA(),($Y$18-INTERCEPT(O39:O40,P39:P40))/(SLOPE(O39:O40,P39:P40)-$X$18))) -> 
B42: HP Cap (eq. 1): | C42: =SLOPE(B39:B40,C39:C40)*C41+INTERCEPT(B39:B40,C39:C40) ->  | D42: HP Cap (eq. 2): | E42: =SLOPE(D39:D40,E39:E40)*E41+INTERCEPT(D39:D40,E39:E40) ->  | M42: HP Cap (eq. 1): | N42: =SLOPE(M39:M40,N39:N40)*N41+INTERCEPT(M39:M40,N39:N40) ->  | O42: HP Cap (eq. 2): | P42: =SLOPE(O39:O40,P39:P40)*P41+INTERCEPT(O39:O40,P39:P40) -> 
B45: Cooling - High Stage | M45: Cooling - Low Stage
B47: Design Temp. (cool) | C47: ='Design Load Calcs'!B26 -> 86 | M47: Design Temp. (cool) | N47: ='Design Load Calcs'!B26 -> 86
B49: Performance Data and Heating Load Line | I49: Outputs: | M49: Performance Data and Heating Load Line | T49: Outputs:
B50: Outdoor Temp. | C50: Actual Capacity | D50: Actual Power | E50: Actual COP | I50: =CONCATENATE("HP cap @ Design Temp.",IF('Introduction & Options d''Unité'!$B$12=Dropdown_Menus!$F$1," [kW]"," [BTU/h]")) -> HP cap @ Design Temp. [BTU/h] | J50: =IF(SUM(B53:B63)=0,I62,IF(OR(J62=C47,J63=J62),I62,SLOPE(I62:I63,J62:J63)*C47+INTERCEPT(I62:I63,J62:J63))) -> 0 | M50: Outdoor Temp. | N50: Actual Capacity | O50: Actual Power | P50: Actual COP | T50: =CONCATENATE("HP cap @ Design Temp.",IF('Introduction & Options d''Unité'!$B$12=Dropdown_Menus!$F$1," [kW]"," [BTU/h]")) -> HP cap @ Design Temp. [BTU/h] | U50: =IF(SUM(M53:M63)=0,T62,IF(OR(U62=N47,U63=U62),T62,SLOPE(T62:T63,U62:U63)*N47+INTERCEPT(T62:T63,U62:U63))) -> 0
B51: =IF('Introduction & Options d''Unité'!$B$12=Dropdown_Menus!$F$1,"[°C]","[°F]") -> [°F] | C51: =IF('Introduction & Options d''Unité'!$B$12=Dropdown_Menus!$F$1,"[kW]","[BTU/h]") -> [BTU/h] | D51: [kW] | E51: [-] | I51: % of Design Load | J51: =J50/'Design Load Calcs'!$B$25 -> 0 | M51: =IF('Introduction & Options d''Unité'!$B$12=Dropdown_Menus!$F$1,"[°C]","[°F]") -> [°F] | N51: =IF('Introduction & Options d''Unité'!$B$12=Dropdown_Menus!$F$1,"[kW]","[BTU/h]") -> [BTU/h] | O51: [kW] | P51: [-] | T51: % of Design Load | U51: =U50/'Design Load Calcs'!$B$25 -> 0
B52: =IF(OR('Étape 5 Sélectionner des TP-Air'!$I$24,'Étape 5 Sélectionner des TP-Air'!$I$25,'Étape 5 Sélectionner des TP-Air'!$I$26),'Étape 5 Sélectionner des TP-Air'!$S$26,NA()) -> 95 | C52: =IF(OR(B52="#N/A",B52=""),"",IFERROR(HLOOKUP(B52,'Étape 5 Sélectionner des TP-Air'!$S$26:$AE$29,2,FALSE),"")) -> 0 | D52: =IF(OR(B52="#N/A",B52=""),"",IFERROR(HLOOKUP(B52,'Étape 5 Sélectionner des TP-Air'!$S$26:$AE$29,IF('Étape 5 Sélectionner des TP-Air'!$I$36="EER",4,3),FALSE),"")) -> 0 | E52: =IF(OR(B52="#N/A",B52=""),"",IFERROR(HLOOKUP(B52,'Étape 5 Sélectionner des TP-Air'!$S$26:$AE$29,IF('Étape 5 Sélectionner des TP-Air'!$I$36="EER",3,4),FALSE),"")) ->  | I52: =CONCATENATE("HP cap @",IF('Introduction & Options d''Unité'!$B$12=Dropdown_Menus!$F$1,CONVERT(95,"F","C"),95),IF('Introduction & Options d''Unité'!$B$12=Dropdown_Menus!$F$1," C"," F"),IF('Introduction & Options d''Unité'!$B$12=Dropdown_Menus!$F$1," [kW]"," [BTU/h]")) -> HP cap @95 F [BTU/h] | J52: =IF(OR('Étape 5 Sélectionner des TP-Air'!$I$24,'Étape 5 Sélectionner des TP-Air'!$I$25,'Étape 5 Sélectionner des TP-Air'!$I$27),C52,IFERROR(INDEX(C52:C63,MATCH(IF('Étape 5 Sélectionner des TP-Air'!$E$34="°C",CONVERT(95,"F","C"),95),B52:B63,0)),SLOPE(I57:I58,J57:J58)*IF('Étape 5 Sélectionner des TP-Air'!$E$34="°C",CONVERT(95,"F","C"),95)+INTERCEPT(I57:I58,J57:J58))) -> 0 | M52: =IF('Étape 5 Sélectionner des TP-Air'!$E$30=Dropdown_Menus!$A$2,"",B52) -> 95 | N52: =IF(OR(M52="#N/A",M52=""),"",IFERROR(HLOOKUP(M52,'Étape 5 Sélectionner des TP-Air'!$S$35:$AM$38,2,FALSE),"")) -> 0 | O52: =IF(OR(M52="#N/A",M52=""),"",IFERROR(HLOOKUP(M52,'Étape 5 Sélectionner des TP-Air'!$S$35:$AM$38,IF('Étape 5 Sélectionner des TP-Air'!$I$36="EER",4,3),FALSE),"")) -> 0 | P52: =IF(OR(M52="#N/A",M52=""),"",IFERROR(HLOOKUP(M52,'Étape 5 Sélectionner des TP-Air'!$S$35:$AM$38,IF('Étape 5 Sélectionner des TP-Air'!$I$36="EER",3,4),FALSE),"")) ->  | T52: =CONCATENATE("HP cap @",IF('Introduction & Options d''Unité'!$B$12=Dropdown_Menus!$F$1,CONVERT(95,"F","C"),95),IF('Introduction & Options d''Unité'!$B$12=Dropdown_Menus!$F$1," C"," F"),IF('Introduction & Options d''Unité'!$B$12=Dropdown_Menus!$F$1," [kW]"," [BTU/h]")) -> HP cap @95 F [BTU/h] | U52: =IF('Étape 5 Sélectionner des TP-Air'!E30="Monoétagé",NA(),IF(OR('Étape 5 Sélectionner des TP-Air'!$I$24,'Étape 5 Sélectionner des TP-Air'!$I$25,'Étape 5 Sélectionner des TP-Air'!$I$27),N52,IFERROR(INDEX(N52:N63,MATCH(IF('Étape 5 Sélectionner des TP-Air'!$E$34="°C",CONVERT(95,"F","C"),95),M52:M63,0)),SLOPE(T57:T58,U57:U58)*IF('Étape 5 Sélectionner des TP-Air'!$E$34="°C",CONVERT(95,"F","C"),95)+INTERCEPT(T57:T58,U57:U58)))) -> 0
B53: =IF(OR('Étape 5 Sélectionner des TP-Air'!$I$24,'Étape 5 Sélectionner des TP-Air'!$I$25),"",IF('Étape 5 Sélectionner des TP-Air'!$I$26,IF(MATCH(B52,$B$52:$B$63,0)>='Étape 5 Sélectionner des TP-Air'!$I$33,"",'Étape 5 Sélectionner des TP-Air'!$T$26),NA())) ->  | C53: =IF(OR(B53="#N/A",B53=""),"",IFERROR(HLOOKUP(B53,'Étape 5 Sélectionner des TP-Air'!$T$26:$AE$29,2,FALSE),"")) ->  | D53: =IF(OR(B53="#N/A",B53=""),"",IFERROR(HLOOKUP(B53,'Étape 5 Sélectionner des TP-Air'!$T$26:$AE$29,IF('Étape 5 Sélectionner des TP-Air'!$I$36="EER",4,3),FALSE),"")) ->  | E53: =IF(OR(B53="#N/A",B53=""),"",IFERROR(HLOOKUP(B53,'Étape 5 Sélectionner des TP-Air'!$T$26:$AE$29,IF('Étape 5 Sélectionner des TP-Air'!$I$36="EER",3,4),FALSE),"")) ->  | I53: =CONCATENATE("HP COP @",IF('Introduction & Options d''Unité'!$B$12=Dropdown_Menus!$F$1,CONVERT(95,"F","C"),95),IF('Introduction & Options d''Unité'!$B$12=Dropdown_Menus!$F$1," C"," F"),IF('Introduction & Options d''Unité'!$B$12=Dropdown_Menus!$F$1," [kW]"," [BTU/h]")) -> HP COP @95 F [BTU/h] | J53: =IF(OR('Étape 5 Sélectionner des TP-Air'!$I$24,'Étape 5 Sélectionner des TP-Air'!$I$25,'Étape 5 Sélectionner des TP-Air'!$I$27),E52,IFERROR(INDEX(E52:E63,MATCH(IF('Étape 5 Sélectionner des TP-Air'!$E$34="°C",CONVERT(95,"F","C"),95),B52:B63,0)),SLOPE(G57:G58,J57:J58)*IF('Étape 5 Sélectionner des TP-Air'!$E$34="°C",CONVERT(95,"F","C"),95)+INTERCEPT(G57:G58,J57:J58))) ->  | M53: =IF('Étape 5 Sélectionner des TP-Air'!$E$30=Dropdown_Menus!$A$2,"",B53) ->  | N53: =IF(OR(M53="#N/A",M53=""),"",IFERROR(HLOOKUP(M53,'Étape 5 Sélectionner des TP-Air'!$S$35:$AM$38,2,FALSE),"")) ->  | O53: =IF(OR(M53="#N/A",M53=""),"",IFERROR(HLOOKUP(M53,'Étape 5 Sélectionner des TP-Air'!$S$35:$AM$38,IF('Étape 5 Sélectionner des TP-Air'!$I$36="EER",4,3),FALSE),"")) ->  | P53: =IF(OR(M53="#N/A",M53=""),"",IFERROR(HLOOKUP(M53,'Étape 5 Sélectionner des TP-Air'!$S$35:$AM$38,IF('Étape 5 Sélectionner des TP-Air'!$I$36="EER",3,4),FALSE),"")) -> 
B54: =IF(OR('Étape 5 Sélectionner des TP-Air'!$I$24,'Étape 5 Sélectionner des TP-Air'!$I$25),"",IF('Étape 5 Sélectionner des TP-Air'!$I$26,IF(MATCH(B53,$B$52:$B$63,0)>='Étape 5 Sélectionner des TP-Air'!$I$33,"",'Étape 5 Sélectionner des TP-Air'!$U$26),NA())) ->  | C54: =IF(OR(B54="#N/A",B54=""),"",IFERROR(HLOOKUP(B54,'Étape 5 Sélectionner des TP-Air'!$T$26:$AE$29,2,FALSE),"")) ->  | D54: =IF(OR(B54="#N/A",B54=""),"",IFERROR(HLOOKUP(B54,'Étape 5 Sélectionner des TP-Air'!$T$26:$AE$29,IF('Étape 5 Sélectionner des TP-Air'!$I$36="EER",4,3),FALSE),"")) ->  | E54: =IF(OR(B54="#N/A",B54=""),"",IFERROR(HLOOKUP(B54,'Étape 5 Sélectionner des TP-Air'!$T$26:$AE$29,IF('Étape 5 Sélectionner des TP-Air'!$I$36="EER",3,4),FALSE),"")) ->  | M54: =IF('Étape 5 Sélectionner des TP-Air'!$E$30=Dropdown_Menus!$A$2,"",B54) ->  | N54: =IF(OR(M54="#N/A",M54=""),"",IFERROR(HLOOKUP(M54,'Étape 5 Sélectionner des TP-Air'!$S$35:$AM$38,2,FALSE),"")) ->  | O54: =IF(OR(M54="#N/A",M54=""),"",IFERROR(HLOOKUP(M54,'Étape 5 Sélectionner des TP-Air'!$S$35:$AM$38,IF('Étape 5 Sélectionner des TP-Air'!$I$36="EER",4,3),FALSE),"")) ->  | P54: =IF(OR(M54="#N/A",M54=""),"",IFERROR(HLOOKUP(M54,'Étape 5 Sélectionner des TP-Air'!$S$35:$AM$38,IF('Étape 5 Sélectionner des TP-Air'!$I$36="EER",3,4),FALSE),"")) -> 
B55: =IF(OR('Étape 5 Sélectionner des TP-Air'!$I$24,'Étape 5 Sélectionner des TP-Air'!$I$25),"",IF('Étape 5 Sélectionner des TP-Air'!$I$26,IF(MATCH(B54,$B$52:$B$63,0)>='Étape 5 Sélectionner des TP-Air'!$I$33,"",'Étape 5 Sélectionner des TP-Air'!$V$26),NA())) ->  | C55: =IF(OR(B55="#N/A",B55=""),"",IFERROR(HLOOKUP(B55,'Étape 5 Sélectionner des TP-Air'!$T$26:$AE$29,2,FALSE),"")) ->  | D55: =IF(OR(B55="#N/A",B55=""),"",IFERROR(HLOOKUP(B55,'Étape 5 Sélectionner des TP-Air'!$T$26:$AE$29,IF('Étape 5 Sélectionner des TP-Air'!$I$36="EER",4,3),FALSE),"")) ->  | E55: =IF(OR(B55="#N/A",B55=""),"",IFERROR(HLOOKUP(B55,'Étape 5 Sélectionner des TP-Air'!$T$26:$AE$29,IF('Étape 5 Sélectionner des TP-Air'!$I$36="EER",3,4),FALSE),"")) ->  | G55: Slope and Intercept at Rated Conditions (HP Cap) | M55: =IF('Étape 5 Sélectionner des TP-Air'!$E$30=Dropdown_Menus!$A$2,"",B55) ->  | N55: =IF(OR(M55="#N/A",M55=""),"",IFERROR(HLOOKUP(M55,'Étape 5 Sélectionner des TP-Air'!$S$35:$AM$38,2,FALSE),"")) ->  | O55: =IF(OR(M55="#N/A",M55=""),"",IFERROR(HLOOKUP(M55,'Étape 5 Sélectionner des TP-Air'!$S$35:$AM$38,IF('Étape 5 Sélectionner des TP-Air'!$I$36="EER",4,3),FALSE),"")) ->  | P55: =IF(OR(M55="#N/A",M55=""),"",IFERROR(HLOOKUP(M55,'Étape 5 Sélectionner des TP-Air'!$S$35:$AM$38,IF('Étape 5 Sélectionner des TP-Air'!$I$36="EER",3,4),FALSE),"")) ->  | T55: Slope and Intercept at Rated Conditions (HP Cap)
B56: =IF(OR('Étape 5 Sélectionner des TP-Air'!$I$24,'Étape 5 Sélectionner des TP-Air'!$I$25),"",IF('Étape 5 Sélectionner des TP-Air'!$I$26,IF(MATCH(B55,$B$52:$B$63,0)>='Étape 5 Sélectionner des TP-Air'!$I$33,"",'Étape 5 Sélectionner des TP-Air'!$W$26),NA())) ->  | C56: =IF(OR(B56="#N/A",B56=""),"",IFERROR(HLOOKUP(B56,'Étape 5 Sélectionner des TP-Air'!$T$26:$AE$29,2,FALSE),"")) ->  | D56: =IF(OR(B56="#N/A",B56=""),"",IFERROR(HLOOKUP(B56,'Étape 5 Sélectionner des TP-Air'!$T$26:$AE$29,IF('Étape 5 Sélectionner des TP-Air'!$I$36="EER",4,3),FALSE),"")) ->  | E56: =IF(OR(B56="#N/A",B56=""),"",IFERROR(HLOOKUP(B56,'Étape 5 Sélectionner des TP-Air'!$T$26:$AE$29,IF('Étape 5 Sélectionner des TP-Air'!$I$36="EER",3,4),FALSE),"")) ->  | G56: know ys (COP): | I56: know ys (capacity): | J56: know xs | M56: =IF('Étape 5 Sélectionner des TP-Air'!$E$30=Dropdown_Menus!$A$2,"",B56) ->  | N56: =IF(OR(M56="#N/A",M56=""),"",IFERROR(HLOOKUP(M56,'Étape 5 Sélectionner des TP-Air'!$S$35:$AM$38,2,FALSE),"")) ->  | O56: =IF(OR(M56="#N/A",M56=""),"",IFERROR(HLOOKUP(M56,'Étape 5 Sélectionner des TP-Air'!$S$35:$AM$38,IF('Étape 5 Sélectionner des TP-Air'!$I$36="EER",4,3),FALSE),"")) ->  | P56: =IF(OR(M56="#N/A",M56=""),"",IFERROR(HLOOKUP(M56,'Étape 5 Sélectionner des TP-Air'!$S$35:$AM$38,IF('Étape 5 Sélectionner des TP-Air'!$I$36="EER",3,4),FALSE),"")) ->  | T56: know ys (capacity): | U56: know xs
B57: =IF(OR('Étape 5 Sélectionner des TP-Air'!$I$24,'Étape 5 Sélectionner des TP-Air'!$I$25),"",IF('Étape 5 Sélectionner des TP-Air'!$I$26,IF(MATCH(B56,$B$52:$B$63,0)>='Étape 5 Sélectionner des TP-Air'!$I$33,"",'Étape 5 Sélectionner des TP-Air'!$X$26),NA())) ->  | C57: =IF(OR(B57="#N/A",B57=""),"",IFERROR(HLOOKUP(B57,'Étape 5 Sélectionner des TP-Air'!$T$26:$AE$29,2,FALSE),"")) ->  | D57: =IF(OR(B57="#N/A",B57=""),"",IFERROR(HLOOKUP(B57,'Étape 5 Sélectionner des TP-Air'!$T$26:$AE$29,IF('Étape 5 Sélectionner des TP-Air'!$I$36="EER",4,3),FALSE),"")) ->  | E57: =IF(OR(B57="#N/A",B57=""),"",IFERROR(HLOOKUP(B57,'Étape 5 Sélectionner des TP-Air'!$T$26:$AE$29,IF('Étape 5 Sélectionner des TP-Air'!$I$36="EER",3,4),FALSE),"")) ->  | G57: =INDEX(E52:E63,MATCH(J57,B52:B63,0)) ->  | I57: =INDEX(C52:C63,MATCH(J57,B52:B63,0)) -> 0 | J57: =IF(MAX(B52:B63)<IF('Étape 5 Sélectionner des TP-Air'!$E$34="°C",CONVERT(95,"F","C"),95),MAX(B52:B63),INDEX(B52:B63,MATCH(IF('Étape 5 Sélectionner des TP-Air'!$E$34="°C",CONVERT(95,"F","C"),95),B52:B63,-1))) -> 95 | M57: =IF('Étape 5 Sélectionner des TP-Air'!$E$30=Dropdown_Menus!$A$2,"",B57) ->  | N57: =IF(OR(M57="#N/A",M57=""),"",IFERROR(HLOOKUP(M57,'Étape 5 Sélectionner des TP-Air'!$S$35:$AM$38,2,FALSE),"")) ->  | O57: =IF(OR(M57="#N/A",M57=""),"",IFERROR(HLOOKUP(M57,'Étape 5 Sélectionner des TP-Air'!$S$35:$AM$38,IF('Étape 5 Sélectionner des TP-Air'!$I$36="EER",4,3),FALSE),"")) ->  | P57: =IF(OR(M57="#N/A",M57=""),"",IFERROR(HLOOKUP(M57,'Étape 5 Sélectionner des TP-Air'!$S$35:$AM$38,IF('Étape 5 Sélectionner des TP-Air'!$I$36="EER",3,4),FALSE),"")) ->  | T57: =INDEX(N52:N63,MATCH(U57,M52:M63,0)) -> 0 | U57: =IF(MAX(M52:M63)<IF('Étape 5 Sélectionner des TP-Air'!$E$34="°C",CONVERT(95,"F","C"),95),MAX(M52:M63),INDEX(M52:M63,MATCH(IF('Étape 5 Sélectionner des TP-Air'!$E$34="°C",CONVERT(95,"F","C"),95),M52:M63,-1))) -> 95
B58: =IF(OR('Étape 5 Sélectionner des TP-Air'!$I$24,'Étape 5 Sélectionner des TP-Air'!$I$25),"",IF('Étape 5 Sélectionner des TP-Air'!$I$26,IF(MATCH(B57,$B$52:$B$63,0)>='Étape 5 Sélectionner des TP-Air'!$I$33,"",'Étape 5 Sélectionner des TP-Air'!$Y$26),NA())) ->  | C58: =IF(OR(B58="#N/A",B58=""),"",IFERROR(HLOOKUP(B58,'Étape 5 Sélectionner des TP-Air'!$T$26:$AE$29,2,FALSE),"")) ->  | D58: =IF(OR(B58="#N/A",B58=""),"",IFERROR(HLOOKUP(B58,'Étape 5 Sélectionner des TP-Air'!$T$26:$AE$29,IF('Étape 5 Sélectionner des TP-Air'!$I$36="EER",4,3),FALSE),"")) ->  | E58: =IF(OR(B58="#N/A",B58=""),"",IFERROR(HLOOKUP(B58,'Étape 5 Sélectionner des TP-Air'!$T$26:$AE$29,IF('Étape 5 Sélectionner des TP-Air'!$I$36="EER",3,4),FALSE),"")) ->  | G58: =IF(J58="-","-",INDEX(E52:E63,MATCH(J58,B52:B63,0))) ->  | I58: =IF(J58="-","-",INDEX(C52:C63,MATCH(J58,B52:B63,0))) ->  | J58: =IF(J57=MIN(B52:B63),INDEX(B52:B63,MATCH(J57,B52:B63,0)-1),INDEX(B52:B63,MATCH(J57,B52:B63,0)+1)) ->  | M58: =IF('Étape 5 Sélectionner des TP-Air'!$E$30=Dropdown_Menus!$A$2,"",B58) ->  | N58: =IF(OR(M58="#N/A",M58=""),"",IFERROR(HLOOKUP(M58,'Étape 5 Sélectionner des TP-Air'!$S$35:$AM$38,2,FALSE),"")) ->  | O58: =IF(OR(M58="#N/A",M58=""),"",IFERROR(HLOOKUP(M58,'Étape 5 Sélectionner des TP-Air'!$S$35:$AM$38,IF('Étape 5 Sélectionner des TP-Air'!$I$36="EER",4,3),FALSE),"")) ->  | P58: =IF(OR(M58="#N/A",M58=""),"",IFERROR(HLOOKUP(M58,'Étape 5 Sélectionner des TP-Air'!$S$35:$AM$38,IF('Étape 5 Sélectionner des TP-Air'!$I$36="EER",3,4),FALSE),"")) ->  | T58: =IF(U58="-","-",INDEX(N52:N63,MATCH(U58,M52:M63,0))) ->  | U58: =IF(U57=MIN(M52:M63),INDEX(M52:M63,MATCH(U57,M52:M63,0)-1),INDEX(M52:M63,MATCH(U57,M52:M63,0)+1)) -> 
B59: =IF(OR('Étape 5 Sélectionner des TP-Air'!$I$24,'Étape 5 Sélectionner des TP-Air'!$I$25),"",IF('Étape 5 Sélectionner des TP-Air'!$I$26,IF(MATCH(B58,$B$52:$B$63,0)>='Étape 5 Sélectionner des TP-Air'!$I$33,"",'Étape 5 Sélectionner des TP-Air'!$Z$26),NA())) ->  | C59: =IF(OR(B59="#N/A",B59=""),"",IFERROR(HLOOKUP(B59,'Étape 5 Sélectionner des TP-Air'!$T$26:$AE$29,2,FALSE),"")) ->  | D59: =IF(OR(B59="#N/A",B59=""),"",IFERROR(HLOOKUP(B59,'Étape 5 Sélectionner des TP-Air'!$T$26:$AE$29,IF('Étape 5 Sélectionner des TP-Air'!$I$36="EER",4,3),FALSE),"")) ->  | E59: =IF(OR(B59="#N/A",B59=""),"",IFERROR(HLOOKUP(B59,'Étape 5 Sélectionner des TP-Air'!$T$26:$AE$29,IF('Étape 5 Sélectionner des TP-Air'!$I$36="EER",3,4),FALSE),"")) ->  | M59: =IF('Étape 5 Sélectionner des TP-Air'!$E$30=Dropdown_Menus!$A$2,"",B59) ->  | N59: =IF(OR(M59="#N/A",M59=""),"",IFERROR(HLOOKUP(M59,'Étape 5 Sélectionner des TP-Air'!$S$35:$AM$38,2,FALSE),"")) ->  | O59: =IF(OR(M59="#N/A",M59=""),"",IFERROR(HLOOKUP(M59,'Étape 5 Sélectionner des TP-Air'!$S$35:$AM$38,IF('Étape 5 Sélectionner des TP-Air'!$I$36="EER",4,3),FALSE),"")) ->  | P59: =IF(OR(M59="#N/A",M59=""),"",IFERROR(HLOOKUP(M59,'Étape 5 Sélectionner des TP-Air'!$S$35:$AM$38,IF('Étape 5 Sélectionner des TP-Air'!$I$36="EER",3,4),FALSE),"")) -> 
B60: =IF(OR('Étape 5 Sélectionner des TP-Air'!$I$24,'Étape 5 Sélectionner des TP-Air'!$I$25),"",IF('Étape 5 Sélectionner des TP-Air'!$I$26,IF(MATCH(B59,$B$52:$B$63,0)>='Étape 5 Sélectionner des TP-Air'!$I$33,"",'Étape 5 Sélectionner des TP-Air'!$AA$26),NA())) ->  | C60: =IF(OR(B60="#N/A",B60=""),"",IFERROR(HLOOKUP(B60,'Étape 5 Sélectionner des TP-Air'!$T$26:$AE$29,2,FALSE),"")) ->  | D60: =IF(OR(B60="#N/A",B60=""),"",IFERROR(HLOOKUP(B60,'Étape 5 Sélectionner des TP-Air'!$T$26:$AE$29,IF('Étape 5 Sélectionner des TP-Air'!$I$36="EER",4,3),FALSE),"")) ->  | E60: =IF(OR(B60="#N/A",B60=""),"",IFERROR(HLOOKUP(B60,'Étape 5 Sélectionner des TP-Air'!$T$26:$AE$29,IF('Étape 5 Sélectionner des TP-Air'!$I$36="EER",3,4),FALSE),"")) ->  | I60: Slope and Intercept at the Design Temp. | M60: =IF('Étape 5 Sélectionner des TP-Air'!$E$30=Dropdown_Menus!$A$2,"",B60) ->  | N60: =IF(OR(M60="#N/A",M60=""),"",IFERROR(HLOOKUP(M60,'Étape 5 Sélectionner des TP-Air'!$S$35:$AM$38,2,FALSE),"")) ->  | O60: =IF(OR(M60="#N/A",M60=""),"",IFERROR(HLOOKUP(M60,'Étape 5 Sélectionner des TP-Air'!$S$35:$AM$38,IF('Étape 5 Sélectionner des TP-Air'!$I$36="EER",4,3),FALSE),"")) ->  | P60: =IF(OR(M60="#N/A",M60=""),"",IFERROR(HLOOKUP(M60,'Étape 5 Sélectionner des TP-Air'!$S$35:$AM$38,IF('Étape 5 Sélectionner des TP-Air'!$I$36="EER",3,4),FALSE),"")) ->  | T60: Slope and Intercept at the Design Temp.
B61: =IF(OR('Étape 5 Sélectionner des TP-Air'!$I$24,'Étape 5 Sélectionner des TP-Air'!$I$25),"",IF('Étape 5 Sélectionner des TP-Air'!$I$26,IF(MATCH(B60,$B$52:$B$63,0)>='Étape 5 Sélectionner des TP-Air'!$I$33,"",'Étape 5 Sélectionner des TP-Air'!$AB$26),NA())) ->  | C61: =IF(OR(B61="#N/A",B61=""),"",IFERROR(HLOOKUP(B61,'Étape 5 Sélectionner des TP-Air'!$T$26:$AE$29,2,FALSE),"")) ->  | D61: =IF(OR(B61="#N/A",B61=""),"",IFERROR(HLOOKUP(B61,'Étape 5 Sélectionner des TP-Air'!$T$26:$AE$29,IF('Étape 5 Sélectionner des TP-Air'!$I$36="EER",4,3),FALSE),"")) ->  | E61: =IF(OR(B61="#N/A",B61=""),"",IFERROR(HLOOKUP(B61,'Étape 5 Sélectionner des TP-Air'!$T$26:$AE$29,IF('Étape 5 Sélectionner des TP-Air'!$I$36="EER",3,4),FALSE),"")) ->  | I61: know ys (capacity): | J61: know xs | M61: =IF('Étape 5 Sélectionner des TP-Air'!$E$30=Dropdown_Menus!$A$2,"",B61) ->  | N61: =IF(OR(M61="#N/A",M61=""),"",IFERROR(HLOOKUP(M61,'Étape 5 Sélectionner des TP-Air'!$S$35:$AM$38,2,FALSE),"")) ->  | O61: =IF(OR(M61="#N/A",M61=""),"",IFERROR(HLOOKUP(M61,'Étape 5 Sélectionner des TP-Air'!$S$35:$AM$38,IF('Étape 5 Sélectionner des TP-Air'!$I$36="EER",4,3),FALSE),"")) ->  | P61: =IF(OR(M61="#N/A",M61=""),"",IFERROR(HLOOKUP(M61,'Étape 5 Sélectionner des TP-Air'!$S$35:$AM$38,IF('Étape 5 Sélectionner des TP-Air'!$I$36="EER",3,4),FALSE),"")) ->  | T61: know ys (capacity): | U61: know xs
B62: =IF(OR('Étape 5 Sélectionner des TP-Air'!$I$24,'Étape 5 Sélectionner des TP-Air'!$I$25),"",IF('Étape 5 Sélectionner des TP-Air'!$I$26,IF(MATCH(B61,$B$52:$B$63,0)>='Étape 5 Sélectionner des TP-Air'!$I$33,"",'Étape 5 Sélectionner des TP-Air'!$AC$26),NA())) ->  | C62: =IF(OR(B62="#N/A",B62=""),"",IFERROR(HLOOKUP(B62,'Étape 5 Sélectionner des TP-Air'!$T$26:$AE$29,2,FALSE),"")) ->  | D62: =IF(OR(B62="#N/A",B62=""),"",IFERROR(HLOOKUP(B62,'Étape 5 Sélectionner des TP-Air'!$T$26:$AE$29,IF('Étape 5 Sélectionner des TP-Air'!$I$36="EER",4,3),FALSE),"")) ->  | E62: =IF(OR(B62="#N/A",B62=""),"",IFERROR(HLOOKUP(B62,'Étape 5 Sélectionner des TP-Air'!$T$26:$AE$29,IF('Étape 5 Sélectionner des TP-Air'!$I$36="EER",3,4),FALSE),"")) ->  | I62: =INDEX(C52:C63,MATCH(J62,B52:B63,0)) -> 0 | J62: =IF(C47<MIN(B52:B63),INDEX(B52:B63,MATCH(MIN(B52:B63),B52:B63,-1)),IFERROR(INDEX(B52:B63,MATCH(C47,B52:B63,0)),INDEX(B52:B63,MATCH(C47,B52:B63,-1)))) -> 95 | M62: =IF('Étape 5 Sélectionner des TP-Air'!$E$30=Dropdown_Menus!$A$2,"",B62) ->  | N62: =IF(OR(M62="#N/A",M62=""),"",IFERROR(HLOOKUP(M62,'Étape 5 Sélectionner des TP-Air'!$S$35:$AM$38,2,FALSE),"")) ->  | O62: =IF(OR(M62="#N/A",M62=""),"",IFERROR(HLOOKUP(M62,'Étape 5 Sélectionner des TP-Air'!$S$35:$AM$38,IF('Étape 5 Sélectionner des TP-Air'!$I$36="EER",4,3),FALSE),"")) ->  | P62: =IF(OR(M62="#N/A",M62=""),"",IFERROR(HLOOKUP(M62,'Étape 5 Sélectionner des TP-Air'!$S$35:$AM$38,IF('Étape 5 Sélectionner des TP-Air'!$I$36="EER",3,4),FALSE),"")) ->  | T62: =INDEX(N52:N63,MATCH(U62,M52:M63,0)) -> 0 | U62: =IF(N47<MIN(M52:M63),INDEX(M52:M63,MATCH(MIN(M52:M63),M52:M63,-1)),IFERROR(INDEX(M52:M63,MATCH(N47,M52:M63,0)),INDEX(M52:M63,MATCH(N47,M52:M63,-1)))) -> 95
B63: =IF(OR('Étape 5 Sélectionner des TP-Air'!$I$24,'Étape 5 Sélectionner des TP-Air'!$I$25),"",IF('Étape 5 Sélectionner des TP-Air'!$I$26,IF(MATCH(B62,$B$52:$B$63,0)>='Étape 5 Sélectionner des TP-Air'!$I$33,"",'Étape 5 Sélectionner des TP-Air'!$AD$26),NA())) ->  | C63: =IF(OR(B63="#N/A",B63=""),"",IFERROR(HLOOKUP(B63,'Étape 5 Sélectionner des TP-Air'!$T$26:$AE$29,2,FALSE),"")) ->  | D63: =IF(OR(B63="#N/A",B63=""),"",IFERROR(HLOOKUP(B63,'Étape 5 Sélectionner des TP-Air'!$T$26:$AE$29,IF('Étape 5 Sélectionner des TP-Air'!$I$36="EER",4,3),FALSE),"")) ->  | E63: =IF(OR(B63="#N/A",B63=""),"",IFERROR(HLOOKUP(B63,'Étape 5 Sélectionner des TP-Air'!$T$26:$AE$29,IF('Étape 5 Sélectionner des TP-Air'!$I$36="EER",3,4),FALSE),"")) ->  | I63: =IF(J63="-","-",INDEX(C52:C63,MATCH(J63,B52:B63,0))) ->  | J63: =IF(J62=C47,"-",INDEX(B52:B63,MATCH(J62,B52:B63,0)+1)) ->  | M63: =IF('Étape 5 Sélectionner des TP-Air'!$E$30=Dropdown_Menus!$A$2,"",B63) ->  | N63: =IF(OR(M63="#N/A",M63=""),"",IFERROR(HLOOKUP(M63,'Étape 5 Sélectionner des TP-Air'!$S$35:$AM$38,2,FALSE),"")) ->  | O63: =IF(OR(M63="#N/A",M63=""),"",IFERROR(HLOOKUP(M63,'Étape 5 Sélectionner des TP-Air'!$S$35:$AM$38,IF('Étape 5 Sélectionner des TP-Air'!$I$36="EER",4,3),FALSE),"")) ->  | P63: =IF(OR(M63="#N/A",M63=""),"",IFERROR(HLOOKUP(M63,'Étape 5 Sélectionner des TP-Air'!$S$35:$AM$38,IF('Étape 5 Sélectionner des TP-Air'!$I$36="EER",3,4),FALSE),"")) ->  | T63: =IF(U63="-","-",INDEX(N52:N63,MATCH(U63,M52:M63,0))) ->  | U63: =IF(U62=N47,"-",INDEX(M52:M63,MATCH(U62,M52:M63,0)+1)) -> 

Sheet HP2 (hidden)
B1: Actual Curves - HP #1
B3: Heating - High Stage | M3: Heating - Low Stage | X3: Heating Load Line
B5: Design Temp. (heat) | C5: ='Design Load Calcs'!$B$24 -> -13 | D5: ='Étape 5 Sélectionner des TP-Air'!$E$53 -> °F | M5: Design Temp. (heat) | N5: ='Design Load Calcs'!$B$24 -> -13
B7: Performance Data and Heating Load Line | I7: Outputs: | T7: Outputs:
B8: Outdoor Temp. | C8: Actual Capacity | D8: Actual Power | E8: Actual COP | F8: Heating Load Line | G8: Intersect. Cap/Htg Load Line | I8: =CONCATENATE("HP cap @ Design Temp.",IF('Étape 5 Sélectionner des TP-Air'!$E$54="kW"," [kW]"," [BTU/h]")) -> HP cap @ Design Temp. [BTU/h] | J8: =IF(OR(G34="-",G34=C5),F34,SLOPE(F34:F35,G34:G35)*C5+INTERCEPT(F34:F35,G34:G35)) -> 0 | M8: Outdoor Temp. | N8: Actual Capacity | O8: Actual Power | P8: Actual COP | Q8: Heating Load Line | R8: Intersect. Cap/Htg Load Line | T8: =CONCATENATE("HP cap @ Design Temp.",IF('Introduction & Options d''Unité'!$B$12=Dropdown_Menus!Q1," [kW]"," [BTU/h]")) -> HP cap @ Design Temp. [kW] | U8: =IF(OR(R34="-",R34=N5),Q34,SLOPE(Q34:Q35,R34:R35)*N5+INTERCEPT(Q34:Q35,R34:R35)) -> 0
B9: =IF('Introduction & Options d''Unité'!$B$12=Dropdown_Menus!$F$1,"[°C]","[°F]") -> [°F] | C9: =IF('Introduction & Options d''Unité'!$B$12=Dropdown_Menus!$F$1,"[kW]","[BTU/h]") -> [BTU/h] | D9: [kW] | E9: [-] | F9: =IF('Introduction & Options d''Unité'!$B$12=Dropdown_Menus!$F$1,"[kW]","[BTU/h]") -> [BTU/h] | I9: =CONCATENATE("BPT",IF('Étape 5 Sélectionner des TP-Air'!$E$53="°C"," [°C]"," [°F]")) -> BPT [°F] | J9: =IF(C10-F10<0,NA(),IF((INDEX(C10:C29,MATCH(C40,B10:B29,0))-INDEX(F10:F29,MATCH(C40,B10:B29,0)))>0,IF(E41<B30,NA(),E41),IF(C41<B30,NA(),C41))) ->  | M9: =IF('Introduction & Options d''Unité'!$B$12=Dropdown_Menus!$F$1,"[°C]","[°F]") -> [°F] | N9: =IF('Introduction & Options d''Unité'!$B$12=Dropdown_Menus!$F$1,"[kW]","[BTU/h]") -> [BTU/h] | O9: [kW] | P9: [-] | Q9: =IF('Introduction & Options d''Unité'!$B$12=Dropdown_Menus!$F$1,"[kW]","[BTU/h]") -> [BTU/h] | T9: =CONCATENATE("BPT",IF('Introduction & Options d''Unité'!$B$12=Dropdown_Menus!Q1," [°C]"," [°F]")) -> BPT [°C] | U9: =IF(N10-Q10<0,NA(),IF((INDEX(N10:N29,MATCH(N40,M10:M29,0))-INDEX(Q10:Q29,MATCH(N40,M10:M29,0)))>0,IF(P41<M30,NA(),P41),IF(N41<M30,NA(),N41))) -> 
B10: =IF(OR('Étape 5 Sélectionner des TP-Air'!$I$43,'Étape 5 Sélectionner des TP-Air'!$I$44,'Étape 5 Sélectionner des TP-Air'!$I$45),'Étape 5 Sélectionner des TP-Air'!$S$41,NA()) -> 47 | C10: =IF(OR(B10="#N/A",B10=""),"",IFERROR(HLOOKUP(B10,'Étape 5 Sélectionner des TP-Air'!$S$41:$AM$44,2,FALSE),"")) -> 0 | D10: =IF(OR(B10="#N/A",B10=""),"",IFERROR(HLOOKUP(B10,'Étape 5 Sélectionner des TP-Air'!$S$41:$AM$44,IF('Étape 5 Sélectionner des TP-Air'!$I$54="COP",4,3),FALSE),"")) -> 0 | E10: =IF(OR(B10="#N/A",B10=""),"",IFERROR(HLOOKUP(B10,'Étape 5 Sélectionner des TP-Air'!$S$41:$AM$44,IF('Étape 5 Sélectionner des TP-Air'!$I$54="COP",3,4),FALSE),"")) ->  | F10: =(B10*$X$18+$Y$18) -> 5986.394558 | G10: =IF(B10="","",ABS(C10-F10)) -> 5986.394558 | H10: =IF(AND(ISNUMBER(B10),ISNUMBER(B11)),IF(OR(AND(C10>=F10,C11<=F11),AND(C10<=F10,C11>=F11)),1,0),0) -> 0 | I10: Fraction of heating above BPT | J10: =IF(ISNUMBER(MATCH(J9,'Loads %'!N8:N24,0)),F39,SLOPE(F39:F40,G39:G40)*J9+INTERCEPT(F39:F40,G39:G40)) ->  | M10: =IF('Étape 5 Sélectionner des TP-Air'!$E$49=Dropdown_Menus!$A$2,"",B10) -> 47 | N10: =IF(OR(M10="#N/A",M10=""),"",IFERROR(HLOOKUP(M10,'Étape 5 Sélectionner des TP-Air'!$S$50:$AM$53,2,FALSE),"")) -> 0 | O10: =IF(OR(M10="#N/A",M10=""),"",IFERROR(HLOOKUP(M10,'Étape 5 Sélectionner des TP-Air'!$S$50:$AM$53,IF('Étape 5 Sélectionner des TP-Air'!$I$54="COP",4,3),FALSE),"")) -> 0 | P10: =IF(OR(B10="#N/A",B10=""),"",IFERROR(HLOOKUP(B10,'Étape 5 Sélectionner des TP-Air'!$S$50:$AM$53,IF('Étape 5 Sélectionner des TP-Air'!$I$54="COP",3,4),FALSE),"")) ->  | Q10: =(M10*$X$18+$Y$18) -> 5986.394558 | R10: =IF(M10="","",ABS(N10-Q10)) -> 5986.394558 | S10: =IF(AND(ISNUMBER(M10),ISNUMBER(M11)),IF(OR(AND(N10>=Q10,N11<=Q11),AND(N10<=Q10,N11>=Q11)),1,0),0) -> 0 | T10: Fraction of heating above BPT | U10: =SLOPE(Q39:Q40,R39:R40)*U9+INTERCEPT(Q39:Q40,R39:R40) -> 
B11: =IF(OR('Étape 5 Sélectionner des TP-Air'!$I$43,'Étape 5 Sélectionner des TP-Air'!$I$44,'Étape 5 Sélectionner des TP-Air'!$I$45),'Étape 5 Sélectionner des TP-Air'!$T$41,NA()) -> 17 | C11: =IF(OR(B11="#N/A",B11=""),"",IFERROR(HLOOKUP(B11,'Étape 5 Sélectionner des TP-Air'!$S$41:$AM$44,2,FALSE),"")) -> 0 | D11: =IF(OR(B11="#N/A",B11=""),"",IFERROR(HLOOKUP(B11,'Étape 5 Sélectionner des TP-Air'!$S$41:$AM$44,IF('Étape 5 Sélectionner des TP-Air'!$I$54="COP",4,3),FALSE),"")) -> 0 | E11: =IF(OR(B11="#N/A",B11=""),"",IFERROR(HLOOKUP(B11,'Étape 5 Sélectionner des TP-Air'!$S$41:$AM$44,IF('Étape 5 Sélectionner des TP-Air'!$I$54="COP",3,4),FALSE),"")) ->  | F11: =(B11*$X$18+$Y$18) -> 22993.19728 | G11: =IF(B11="","",ABS(C11-F11)) -> 22993.19728 | H11: =IF(AND(ISNUMBER(B11),ISNUMBER(B12)),IF(OR(AND(C11>=F11,C12<=F12),AND(C11<=F11,C12>=F12)),1,0),0) -> 0 | I11: =CONCATENATE("HP cap @ BPT",IF('Étape 5 Sélectionner des TP-Air'!$E$54="kW"," [kW]"," [BTU/h]")) -> HP cap @ BPT [BTU/h] | J11: =IF((C10-F10)<0,"Aucun",IF((INDEX(C10:C29,MATCH(C40,B10:B29,0))-INDEX(F10:F29,MATCH(C40,B10:B29,0)))>0,SLOPE(D39:D40,E39:E40)*J9+INTERCEPT(D39:D40,E39:E40),SLOPE(B39:B40,C39:C40)*J9+INTERCEPT(B39:B40,C39:C40))) -> Aucun | M11: =IF('Étape 5 Sélectionner des TP-Air'!$E$49=Dropdown_Menus!$A$2,"",B11) -> 17 | N11: =IF(OR(M11="#N/A",M11=""),"",IFERROR(HLOOKUP(M11,'Étape 5 Sélectionner des TP-Air'!$S$50:$AM$53,2,FALSE),"")) -> 0 | O11: =IF(OR(M11="#N/A",M11=""),"",IFERROR(HLOOKUP(M11,'Étape 5 Sélectionner des TP-Air'!$S$50:$AM$53,IF('Étape 5 Sélectionner des TP-Air'!$I$54="COP",4,3),FALSE),"")) -> 0 | P11: =IF(OR(B11="#N/A",B11=""),"",IFERROR(HLOOKUP(B11,'Étape 5 Sélectionner des TP-Air'!$S$50:$AM$53,IF('Étape 5 Sélectionner des TP-Air'!$I$54="COP",3,4),FALSE),"")) ->  | Q11: =(M11*$X$18+$Y$18) -> 22993.19728 | R11: =IF(M11="","",ABS(N11-Q11)) -> 22993.19728 | S11: =IF(AND(ISNUMBER(M11),ISNUMBER(M12)),IF(OR(AND(N11>=Q11,N12<=Q12),AND(N11<=Q11,N12>=Q12)),1,0),0) -> 0 | T11: =CONCATENATE("HP cap @ BPT",IF('Introduction & Options d''Unité'!$B$12=Dropdown_Menus!Q1," [kW]"," [BTU/h]")) -> HP cap @ BPT [kW] | U11: =IF((N10-Q10)<0,"None",IF((INDEX(N10:N29,MATCH(N40,M10:M29,0))-INDEX(Q10:Q29,MATCH(N40,M10:M29,0)))>0,SLOPE(O39:O40,P39:P40)*U9+INTERCEPT(O39:O40,P39:P40),SLOPE(M39:M40,N39:N40)*U9+INTERCEPT(M39:M40,N39:N40))) -> None
B12: =IF('Étape 5 Sélectionner des TP-Air'!$I$43,"",IF('Étape 5 Sélectionner des TP-Air'!$I$44,'Étape 5 Sélectionner des TP-Air'!$U$41,IF('Étape 5 Sélectionner des TP-Air'!$I$45,IF(MATCH(B11,$B$10:$B$29,0)>='Étape 5 Sélectionner des TP-Air'!$I$51,"",'Étape 5 Sélectionner des TP-Air'!$U$41),NA()))) ->  | C12: =IF(OR(B12="#N/A",B12=""),"",IFERROR(HLOOKUP(B12,'Étape 5 Sélectionner des TP-Air'!$S$41:$AM$44,2,FALSE),"")) ->  | D12: =IF(OR(B12="#N/A",B12=""),"",IFERROR(HLOOKUP(B12,'Étape 5 Sélectionner des TP-Air'!$S$41:$AM$44,IF('Étape 5 Sélectionner des TP-Air'!$I$54="COP",4,3),FALSE),"")) ->  | E12: =IF(OR(B12="#N/A",B12=""),"",IFERROR(HLOOKUP(B12,'Étape 5 Sélectionner des TP-Air'!$S$41:$AM$44,IF('Étape 5 Sélectionner des TP-Air'!$I$54="COP",3,4),FALSE),"")) ->  | F12: =(B12*$X$18+$Y$18) ->  | H12: 0 | I12: =CONCATENATE("HP cap @",IF('Étape 5 Sélectionner des TP-Air'!$E$53="°C",CONVERT(47,"F","C"),47),IF('Étape 5 Sélectionner des TP-Air'!$E$53="°C"," C"," F"),IF('Étape 5 Sélectionner des TP-Air'!$E$54="kW"," [kW]"," [BTU/h]")) -> HP cap @47 F [BTU/h] | J12: =IF(OR('Étape 5 Sélectionner des TP-Air'!$I$43,'Étape 5 Sélectionner des TP-Air'!$I$44,'Étape 5 Sélectionner des TP-Air'!$I$46),'HP1'!C10,IFERROR(INDEX('HP1'!C10:C29,MATCH(IF(NOT(RIGHT('Étape 5 Sélectionner des TP-Air'!$E$53,1)=Dropdown_Menus!$F$3),CONVERT(47,"F","C"),47),'HP1'!B10:B29,0)),SLOPE(I35:I36,J35:J36)*IF(NOT(RIGHT('Étape 5 Sélectionner des TP-Air'!$E$53,1)=Dropdown_Menus!$F$3),CONVERT(47,"F","C"),47)+INTERCEPT(I35:I36,J35:J36))) -> 0 | M12: =IF('Étape 5 Sélectionner des TP-Air'!$E$49=Dropdown_Menus!$A$2,"",B12) ->  | N12: =IF(OR(M12="#N/A",M12=""),"",IFERROR(HLOOKUP(M12,'Étape 5 Sélectionner des TP-Air'!$S$50:$AM$53,2,FALSE),"")) ->  | O12: =IF(OR(M12="#N/A",M12=""),"",IFERROR(HLOOKUP(M12,'Étape 5 Sélectionner des TP-Air'!$S$50:$AM$53,IF('Étape 5 Sélectionner des TP-Air'!$I$54="COP",4,3),FALSE),"")) ->  | P12: =IF(OR(B12="#N/A",B12=""),"",IFERROR(HLOOKUP(B12,'Étape 5 Sélectionner des TP-Air'!$S$50:$AM$53,IF('Étape 5 Sélectionner des TP-Air'!$I$54="COP",3,4),FALSE),"")) ->  | Q12: =(M12*$X$18+$Y$18) ->  | S12: 0
B13: =IF(OR('Étape 5 Sélectionner des TP-Air'!$I$43,'Étape 5 Sélectionner des TP-Air'!$I$44),"",IF('Étape 5 Sélectionner des TP-Air'!$I$45,IF(MATCH(B12,$B$10:$B$29,0)>='Étape 5 Sélectionner des TP-Air'!$I$51,"",'Étape 5 Sélectionner des TP-Air'!$V$41),NA())) ->  | C13: =IF(OR(B13="#N/A",B13=""),"",IFERROR(HLOOKUP(B13,'Étape 5 Sélectionner des TP-Air'!$S$41:$AM$44,2,FALSE),"")) ->  | D13: =IF(OR(B13="#N/A",B13=""),"",IFERROR(HLOOKUP(B13,'Étape 5 Sélectionner des TP-Air'!$S$41:$AM$44,IF('Étape 5 Sélectionner des TP-Air'!$I$54="COP",4,3),FALSE),"")) ->  | E13: =IF(OR(B13="#N/A",B13=""),"",IFERROR(HLOOKUP(B13,'Étape 5 Sélectionner des TP-Air'!$S$41:$AM$44,IF('Étape 5 Sélectionner des TP-Air'!$I$54="COP",3,4),FALSE),"")) ->  | H13: 0 | I13: =CONCATENATE("HP cap @",IF('Étape 5 Sélectionner des TP-Air'!$E$53="°C",CONVERT(17,"F","C"),17),IF('Étape 5 Sélectionner des TP-Air'!$E$53="°C"," C"," F"),IF('Étape 5 Sélectionner des TP-Air'!$E$54="kW"," [kW]"," [BTU/h]")) -> HP cap @17 F [BTU/h] | J13: =IF(OR('Étape 5 Sélectionner des TP-Air'!$I$43,'Étape 5 Sélectionner des TP-Air'!$I$44,'Étape 5 Sélectionner des TP-Air'!$I$46),'HP1'!C11,IFERROR(INDEX('HP1'!C10:C29,MATCH(IF(NOT(RIGHT('Étape 5 Sélectionner des TP-Air'!$E$53,1)=Dropdown_Menus!$F$3),CONVERT(17,"F","C"),17),'HP1'!B10:B29,0)),SLOPE(I39:I40,J39:J40)*IF(NOT(RIGHT('Étape 5 Sélectionner des TP-Air'!$E$53,1)=Dropdown_Menus!$F$3),CONVERT(17,"F","C"),17)+INTERCEPT(I39:I40,J39:J40))) -> 0 | M13: =IF('Étape 5 Sélectionner des TP-Air'!$E$49=Dropdown_Menus!$A$2,"",B13) ->  | N13: =IF(OR(M13="#N/A",M13=""),"",IFERROR(HLOOKUP(M13,'Étape 5 Sélectionner des TP-Air'!$S$50:$AM$53,2,FALSE),"")) ->  | O13: =IF(OR(M13="#N/A",M13=""),"",IFERROR(HLOOKUP(M13,'Étape 5 Sélectionner des TP-Air'!$S$50:$AM$53,IF('Étape 5 Sélectionner des TP-Air'!$I$54="COP",4,3),FALSE),"")) ->  | P13: =IF(OR(B13="#N/A",B13=""),"",IFERROR(HLOOKUP(B13,'Étape 5 Sélectionner des TP-Air'!$S$50:$AM$53,IF('Étape 5 Sélectionner des TP-Air'!$I$54="COP",3,4),FALSE),"")) ->  | S13: 0 | X13: Outdoor Temperature | Y13: =IF('Étape 5 Sélectionner des TP-Air'!$E$35=Dropdown_Menus!$F$2,"Heating Load (BTU/hr)","Heating Load (kW)") -> Heating Load (BTU/hr)
B14: =IF(OR('Étape 5 Sélectionner des TP-Air'!$I$43,'Étape 5 Sélectionner des TP-Air'!$I$44),"",IF('Étape 5 Sélectionner des TP-Air'!$I$45,IF(MATCH(B13,$B$10:$B$29,0)>='Étape 5 Sélectionner des TP-Air'!$I$51,"",'Étape 5 Sélectionner des TP-Air'!$W$41),NA())) ->  | C14: =IF(OR(B14="#N/A",B14=""),"",IFERROR(HLOOKUP(B14,'Étape 5 Sélectionner des TP-Air'!$S$41:$AM$44,2,FALSE),"")) ->  | D14: =IF(OR(B14="#N/A",B14=""),"",IFERROR(HLOOKUP(B14,'Étape 5 Sélectionner des TP-Air'!$S$41:$AM$44,IF('Étape 5 Sélectionner des TP-Air'!$I$54="COP",4,3),FALSE),"")) ->  | E14: =IF(OR(B14="#N/A",B14=""),"",IFERROR(HLOOKUP(B14,'Étape 5 Sélectionner des TP-Air'!$S$41:$AM$44,IF('Étape 5 Sélectionner des TP-Air'!$I$54="COP",3,4),FALSE),"")) ->  | G14: =IF(B14="","",ABS(C14-F14)) ->  | H14: 0 | I14: Max Cap | J14: =IFERROR(MAX(C10:C30),0) -> 0 | M14: =IF('Étape 5 Sélectionner des TP-Air'!$E$49=Dropdown_Menus!$A$2,"",B14) ->  | N14: =IF(OR(M14="#N/A",M14=""),"",IFERROR(HLOOKUP(M14,'Étape 5 Sélectionner des TP-Air'!$S$50:$AM$53,2,FALSE),"")) ->  | O14: =IF(OR(M14="#N/A",M14=""),"",IFERROR(HLOOKUP(M14,'Étape 5 Sélectionner des TP-Air'!$S$50:$AM$53,IF('Étape 5 Sélectionner des TP-Air'!$I$54="COP",4,3),FALSE),"")) ->  | P14: =IF(OR(B14="#N/A",B14=""),"",IFERROR(HLOOKUP(B14,'Étape 5 Sélectionner des TP-Air'!$S$50:$AM$53,IF('Étape 5 Sélectionner des TP-Air'!$I$54="COP",3,4),FALSE),"")) ->  | S14: 0 | X14: =IF('Étape 3 Charges de Conception'!$B$5<>'Étape 5 Sélectionner des TP-Air'!E53,IF('Étape 3 Charges de Conception'!$B$5="°F",CONVERT('Design Load Calcs'!$G$4,"F","C"),CONVERT('Design Load Calcs'!$G$4,"C","F")),'Design Load Calcs'!$G$4) -> -13 | Y14: =IF('Étape 3 Charges de Conception'!$B$6<>'Étape 5 Sélectionner des TP-Air'!E54,IF('Étape 3 Charges de Conception'!$B$6=Dropdown_Menus!$F$2,'Design Load Calcs'!$H$4/1000/3.412,'Design Load Calcs'!$H$4*1000*3.412),'Design Load Calcs'!$H$4) -> 40000
B15: =IF(OR('Étape 5 Sélectionner des TP-Air'!$I$43,'Étape 5 Sélectionner des TP-Air'!$I$44),"",IF('Étape 5 Sélectionner des TP-Air'!$I$45,IF(MATCH(B14,$B$10:$B$29,0)>='Étape 5 Sélectionner des TP-Air'!$I$51,"",'Étape 5 Sélectionner des TP-Air'!$X$41),NA())) ->  | C15: =IF(OR(B15="#N/A",B15=""),"",IFERROR(HLOOKUP(B15,'Étape 5 Sélectionner des TP-Air'!$S$41:$AM$44,2,FALSE),"")) ->  | D15: =IF(OR(B15="#N/A",B15=""),"",IFERROR(HLOOKUP(B15,'Étape 5 Sélectionner des TP-Air'!$S$41:$AM$44,IF('Étape 5 Sélectionner des TP-Air'!$I$54="COP",4,3),FALSE),"")) ->  | E15: =IF(OR(B15="#N/A",B15=""),"",IFERROR(HLOOKUP(B15,'Étape 5 Sélectionner des TP-Air'!$S$41:$AM$44,IF('Étape 5 Sélectionner des TP-Air'!$I$54="COP",3,4),FALSE),"")) ->  | H15: 0 | I15: =CONCATENATE("HP pwr @",IF('Étape 5 Sélectionner des TP-Air'!$E$53="°C",CONVERT(47,"F","C"),47),IF('Étape 5 Sélectionner des TP-Air'!$E$53="°C"," C"," F")," [kW]") -> HP pwr @47 F [kW] | J15: =IF(OR('Étape 5 Sélectionner des TP-Air'!$I$43,'Étape 5 Sélectionner des TP-Air'!$I$44,'Étape 5 Sélectionner des TP-Air'!$I$46),'HP1'!D10,IFERROR(INDEX('HP1'!D10:D29,MATCH(IF(NOT(RIGHT('Étape 5 Sélectionner des TP-Air'!$E$53,1)=Dropdown_Menus!$F$3),CONVERT(47,"F","C"),47),'HP1'!B10:B29,0)),SLOPE(I27:I28,J27:J28)*IF(NOT(RIGHT('Étape 5 Sélectionner des TP-Air'!$E$53,1)=Dropdown_Menus!$F$3),CONVERT(47,"F","C"),47)+INTERCEPT(I27:I28,J27:J28))) -> 0 | M15: =IF('Étape 5 Sélectionner des TP-Air'!$E$49=Dropdown_Menus!$A$2,"",B15) ->  | N15: =IF(OR(M15="#N/A",M15=""),"",IFERROR(HLOOKUP(M15,'Étape 5 Sélectionner des TP-Air'!$S$50:$AM$53,2,FALSE),"")) ->  | O15: =IF(OR(M15="#N/A",M15=""),"",IFERROR(HLOOKUP(M15,'Étape 5 Sélectionner des TP-Air'!$S$50:$AM$53,IF('Étape 5 Sélectionner des TP-Air'!$I$54="COP",4,3),FALSE),"")) ->  | P15: =IF(OR(B15="#N/A",B15=""),"",IFERROR(HLOOKUP(B15,'Étape 5 Sélectionner des TP-Air'!$S$50:$AM$53,IF('Étape 5 Sélectionner des TP-Air'!$I$54="COP",3,4),FALSE),"")) ->  | S15: 0 | X15: =IF('Étape 3 Charges de Conception'!$B$5<>'Étape 5 Sélectionner des TP-Air'!E53,IF('Étape 3 Charges de Conception'!$B$5="°F",CONVERT('Design Load Calcs'!$G$5,"F","C"),CONVERT('Design Load Calcs'!$G$5,"C","F")),'Design Load Calcs'!$G$5) -> 57.56 | Y15: =IF('Étape 3 Charges de Conception'!$B$6<>'Étape 5 Sélectionner des TP-Air'!E54,IF('Étape 3 Charges de Conception'!$B$6=Dropdown_Menus!$F$2,'Design Load Calcs'!$H$5/1000/3.412,'Design Load Calcs'!$H$5*1000*3.412),'Design Load Calcs'!$H$5) -> 0
B16: =IF(OR('Étape 5 Sélectionner des TP-Air'!$I$43,'Étape 5 Sélectionner des TP-Air'!$I$44),"",IF('Étape 5 Sélectionner des TP-Air'!$I$45,IF(MATCH(B15,$B$10:$B$29,0)>='Étape 5 Sélectionner des TP-Air'!$I$51,"",'Étape 5 Sélectionner des TP-Air'!$Y$41),NA())) ->  | C16: =IF(OR(B16="#N/A",B16=""),"",IFERROR(HLOOKUP(B16,'Étape 5 Sélectionner des TP-Air'!$S$41:$AM$44,2,FALSE),"")) ->  | D16: =IF(OR(B16="#N/A",B16=""),"",IFERROR(HLOOKUP(B16,'Étape 5 Sélectionner des TP-Air'!$S$41:$AM$44,IF('Étape 5 Sélectionner des TP-Air'!$I$54="COP",4,3),FALSE),"")) ->  | E16: =IF(OR(B16="#N/A",B16=""),"",IFERROR(HLOOKUP(B16,'Étape 5 Sélectionner des TP-Air'!$S$41:$AM$44,IF('Étape 5 Sélectionner des TP-Air'!$I$54="COP",3,4),FALSE),"")) ->  | H16: 0 | I16: =CONCATENATE("HP pwr @",IF('Étape 5 Sélectionner des TP-Air'!$E$53="°C",CONVERT(17,"F","C"),17),IF('Étape 5 Sélectionner des TP-Air'!$E$53="°C"," C"," F")," [kW]") -> HP pwr @17 F [kW] | J16: =IF(OR('Étape 5 Sélectionner des TP-Air'!$I$43,'Étape 5 Sélectionner des TP-Air'!$I$44,'Étape 5 Sélectionner des TP-Air'!$I$46),'HP1'!D11,IFERROR(INDEX('HP1'!D10:D29,MATCH(IF(NOT(RIGHT('Étape 5 Sélectionner des TP-Air'!$E$53,1)=Dropdown_Menus!$F$3),CONVERT(17,"F","C"),17),'HP1'!B10:B29,0)),SLOPE(I31:I32,J31:J32)*IF(NOT(RIGHT('Étape 5 Sélectionner des TP-Air'!$E$53,1)=Dropdown_Menus!$F$3),CONVERT(17,"F","C"),17)+INTERCEPT(I31:I32,J31:J32))) -> 0 | M16: =IF('Étape 5 Sélectionner des TP-Air'!$E$49=Dropdown_Menus!$A$2,"",B16) ->  | N16: =IF(OR(M16="#N/A",M16=""),"",IFERROR(HLOOKUP(M16,'Étape 5 Sélectionner des TP-Air'!$S$50:$AM$53,2,FALSE),"")) ->  | O16: =IF(OR(M16="#N/A",M16=""),"",IFERROR(HLOOKUP(M16,'Étape 5 Sélectionner des TP-Air'!$S$50:$AM$53,IF('Étape 5 Sélectionner des TP-Air'!$I$54="COP",4,3),FALSE),"")) ->  | P16: =IF(OR(B16="#N/A",B16=""),"",IFERROR(HLOOKUP(B16,'Étape 5 Sélectionner des TP-Air'!$S$50:$AM$53,IF('Étape 5 Sélectionner des TP-Air'!$I$54="COP",3,4),FALSE),"")) ->  | S16: 0 | T16: Slope @ t-BPT: | U16: =IF((N10-Q10)<0,"None",IF((INDEX(N10:N29,MATCH(N40,M10:M29,0))-INDEX(Q10:Q29,MATCH(N40,M10:M29,0)))>0,SLOPE(O39:O40,P39:P40),SLOPE(M39:M40,N39:N40))) -> None
B17: =IF(OR('Étape 5 Sélectionner des TP-Air'!$I$43,'Étape 5 Sélectionner des TP-Air'!$I$44),"",IF('Étape 5 Sélectionner des TP-Air'!$I$45,IF(MATCH(B16,$B$10:$B$29,0)>='Étape 5 Sélectionner des TP-Air'!$I$51,"",'Étape 5 Sélectionner des TP-Air'!$Z$41),NA())) ->  | C17: =IF(OR(B17="#N/A",B17=""),"",IFERROR(HLOOKUP(B17,'Étape 5 Sélectionner des TP-Air'!$S$41:$AM$44,2,FALSE),"")) ->  | D17: =IF(OR(B17="#N/A",B17=""),"",IFERROR(HLOOKUP(B17,'Étape 5 Sélectionner des TP-Air'!$S$41:$AM$44,IF('Étape 5 Sélectionner des TP-Air'!$I$54="COP",4,3),FALSE),"")) ->  | E17: =IF(OR(B17="#N/A",B17=""),"",IFERROR(HLOOKUP(B17,'Étape 5 Sélectionner des TP-Air'!$S$41:$AM$44,IF('Étape 5 Sélectionner des TP-Air'!$I$54="COP",3,4),FALSE),"")) ->  | H17: 0 | I17: Slope @ t-BPT: | J17: =IF((C10-F10)<0,"Aucun",IF((INDEX(C10:C29,MATCH(C40,B10:B29,0))-INDEX(F10:F29,MATCH(C40,B10:B29,0)))>0,SLOPE(D39:D40,E39:E40),SLOPE(B39:B40,C39:C40))) -> Aucun | M17: =IF('Étape 5 Sélectionner des TP-Air'!$E$49=Dropdown_Menus!$A$2,"",B17) ->  | N17: =IF(OR(M17="#N/A",M17=""),"",IFERROR(HLOOKUP(M17,'Étape 5 Sélectionner des TP-Air'!$S$50:$AM$53,2,FALSE),"")) ->  | O17: =IF(OR(M17="#N/A",M17=""),"",IFERROR(HLOOKUP(M17,'Étape 5 Sélectionner des TP-Air'!$S$50:$AM$53,IF('Étape 5 Sélectionner des TP-Air'!$I$54="COP",4,3),FALSE),"")) ->  | P17: =IF(OR(B17="#N/A",B17=""),"",IFERROR(HLOOKUP(B17,'Étape 5 Sélectionner des TP-Air'!$S$50:$AM$53,IF('Étape 5 Sélectionner des TP-Air'!$I$54="COP",3,4),FALSE),"")) ->  | S17: 0 | T17: Intercept @ t-BPT | U17: =IF((N10-Q10)<0,"None",IF((INDEX(N10:N29,MATCH(N40,M10:M29,0))-INDEX(Q10:Q29,MATCH(N40,M10:M29,0)))>0,INTERCEPT(O39:O40,P39:P40),INTERCEPT(M39:M40,N39:N40))) -> None | X17: Slope | Y17: Intercept
B18: =IF(OR('Étape 5 Sélectionner des TP-Air'!$I$43,'Étape 5 Sélectionner des TP-Air'!$I$44),"",IF('Étape 5 Sélectionner des TP-Air'!$I$45,IF(MATCH(B17,$B$10:$B$29,0)>='Étape 5 Sélectionner des TP-Air'!$I$51,"",'Étape 5 Sélectionner des TP-Air'!$AA$41),NA())) ->  | C18: =IF(OR(B18="#N/A",B18=""),"",IFERROR(HLOOKUP(B18,'Étape 5 Sélectionner des TP-Air'!$S$41:$AM$44,2,FALSE),"")) ->  | D18: =IF(OR(B18="#N/A",B18=""),"",IFERROR(HLOOKUP(B18,'Étape 5 Sélectionner des TP-Air'!$S$41:$AM$44,IF('Étape 5 Sélectionner des TP-Air'!$I$54="COP",4,3),FALSE),"")) ->  | E18: =IF(OR(B18="#N/A",B18=""),"",IFERROR(HLOOKUP(B18,'Étape 5 Sélectionner des TP-Air'!$S$41:$AM$44,IF('Étape 5 Sélectionner des TP-Air'!$I$54="COP",3,4),FALSE),"")) ->  | H18: 0 | I18: Intercept @ t-BPT | J18: =IF((C10-F10)<0,"Aucun",IF((INDEX(C10:C29,MATCH(C40,B10:B29,0))-INDEX(F10:F29,MATCH(C40,B10:B29,0)))>0,INTERCEPT(D39:D40,E39:E40),INTERCEPT(B39:B40,C39:C40))) -> Aucun | M18: =IF('Étape 5 Sélectionner des TP-Air'!$E$49=Dropdown_Menus!$A$2,"",B18) ->  | N18: =IF(OR(M18="#N/A",M18=""),"",IFERROR(HLOOKUP(M18,'Étape 5 Sélectionner des TP-Air'!$S$50:$AM$53,2,FALSE),"")) ->  | O18: =IF(OR(M18="#N/A",M18=""),"",IFERROR(HLOOKUP(M18,'Étape 5 Sélectionner des TP-Air'!$S$50:$AM$53,IF('Étape 5 Sélectionner des TP-Air'!$I$54="COP",4,3),FALSE),"")) ->  | P18: =IF(OR(B18="#N/A",B18=""),"",IFERROR(HLOOKUP(B18,'Étape 5 Sélectionner des TP-Air'!$S$50:$AM$53,IF('Étape 5 Sélectionner des TP-Air'!$I$54="COP",3,4),FALSE),"")) ->  | S18: 0 | X18: =SLOPE(Y14:Y15,X14:X15) -> -566.893424 | Y18: =INTERCEPT(Y14:Y15,X14:X15) -> 32630.38549
B19: =IF(OR('Étape 5 Sélectionner des TP-Air'!$I$43,'Étape 5 Sélectionner des TP-Air'!$I$44),"",IF('Étape 5 Sélectionner des TP-Air'!$I$45,IF(MATCH(B18,$B$10:$B$29,0)>='Étape 5 Sélectionner des TP-Air'!$I$51,"",'Étape 5 Sélectionner des TP-Air'!$AB$41),NA())) ->  | C19: =IF(OR(B19="#N/A",B19=""),"",IFERROR(HLOOKUP(B19,'Étape 5 Sélectionner des TP-Air'!$S$41:$AM$44,2,FALSE),"")) ->  | D19: =IF(OR(B19="#N/A",B19=""),"",IFERROR(HLOOKUP(B19,'Étape 5 Sélectionner des TP-Air'!$S$41:$AM$44,IF('Étape 5 Sélectionner des TP-Air'!$I$54="COP",4,3),FALSE),"")) ->  | E19: =IF(OR(B19="#N/A",B19=""),"",IFERROR(HLOOKUP(B19,'Étape 5 Sélectionner des TP-Air'!$S$41:$AM$44,IF('Étape 5 Sélectionner des TP-Air'!$I$54="COP",3,4),FALSE),"")) ->  | H19: 0 | I19: Cap @ cut-off T° | J19: =IFERROR(IF(B30=MIN(B10:B29),1,0),0) -> 0 | M19: =IF('Étape 5 Sélectionner des TP-Air'!$E$49=Dropdown_Menus!$A$2,"",B19) ->  | N19: =IF(OR(M19="#N/A",M19=""),"",IFERROR(HLOOKUP(M19,'Étape 5 Sélectionner des TP-Air'!$S$50:$AM$53,2,FALSE),"")) ->  | O19: =IF(OR(M19="#N/A",M19=""),"",IFERROR(HLOOKUP(M19,'Étape 5 Sélectionner des TP-Air'!$S$50:$AM$53,IF('Étape 5 Sélectionner des TP-Air'!$I$54="COP",4,3),FALSE),"")) ->  | P19: =IF(OR(B19="#N/A",B19=""),"",IFERROR(HLOOKUP(B19,'Étape 5 Sélectionner des TP-Air'!$S$50:$AM$53,IF('Étape 5 Sélectionner des TP-Air'!$I$54="COP",3,4),FALSE),"")) ->  | S19: 0
B20: =IF(OR('Étape 5 Sélectionner des TP-Air'!$I$43,'Étape 5 Sélectionner des TP-Air'!$I$44),"",IF('Étape 5 Sélectionner des TP-Air'!$I$45,IF(MATCH(B19,$B$10:$B$29,0)>='Étape 5 Sélectionner des TP-Air'!$I$51,"",'Étape 5 Sélectionner des TP-Air'!$AC$41),NA())) ->  | C20: =IF(OR(B20="#N/A",B20=""),"",IFERROR(HLOOKUP(B20,'Étape 5 Sélectionner des TP-Air'!$S$41:$AM$44,2,FALSE),"")) ->  | D20: =IF(OR(B20="#N/A",B20=""),"",IFERROR(HLOOKUP(B20,'Étape 5 Sélectionner des TP-Air'!$S$41:$AM$44,IF('Étape 5 Sélectionner des TP-Air'!$I$54="COP",4,3),FALSE),"")) ->  | E20: =IF(OR(B20="#N/A",B20=""),"",IFERROR(HLOOKUP(B20,'Étape 5 Sélectionner des TP-Air'!$S$41:$AM$44,IF('Étape 5 Sélectionner des TP-Air'!$I$54="COP",3,4),FALSE),"")) ->  | H20: 0 | M20: =IF('Étape 5 Sélectionner des TP-Air'!$E$49=Dropdown_Menus!$A$2,"",B20) ->  | N20: =IF(OR(M20="#N/A",M20=""),"",IFERROR(HLOOKUP(M20,'Étape 5 Sélectionner des TP-Air'!$S$50:$AM$53,2,FALSE),"")) ->  | O20: =IF(OR(M20="#N/A",M20=""),"",IFERROR(HLOOKUP(M20,'Étape 5 Sélectionner des TP-Air'!$S$50:$AM$53,IF('Étape 5 Sélectionner des TP-Air'!$I$54="COP",4,3),FALSE),"")) ->  | P20: =IF(OR(B20="#N/A",B20=""),"",IFERROR(HLOOKUP(B20,'Étape 5 Sélectionner des TP-Air'!$S$50:$AM$53,IF('Étape 5 Sélectionner des TP-Air'!$I$54="COP",3,4),FALSE),"")) ->  | S20: 0 | X20: Outdoor Temperature | Y20: =IF('Étape 5 Sélectionner des TP-Air'!$E$35=Dropdown_Menus!$F$2,"Cooling Load (BTU/hr)","Cooling Load (kW)") -> Cooling Load (BTU/hr)
B21: =IF(OR('Étape 5 Sélectionner des TP-Air'!$I$43,'Étape 5 Sélectionner des TP-Air'!$I$44),"",IF('Étape 5 Sélectionner des TP-Air'!$I$45,IF(MATCH(B20,$B$10:$B$29,0)>='Étape 5 Sélectionner des TP-Air'!$I$51,"",'Étape 5 Sélectionner des TP-Air'!$AD$41),NA())) ->  | C21: =IF(OR(B21="#N/A",B21=""),"",IFERROR(HLOOKUP(B21,'Étape 5 Sélectionner des TP-Air'!$S$41:$AM$44,2,FALSE),"")) ->  | D21: =IF(OR(B21="#N/A",B21=""),"",IFERROR(HLOOKUP(B21,'Étape 5 Sélectionner des TP-Air'!$S$41:$AM$44,IF('Étape 5 Sélectionner des TP-Air'!$I$54="COP",4,3),FALSE),"")) ->  | E21: =IF(OR(B21="#N/A",B21=""),"",IFERROR(HLOOKUP(B21,'Étape 5 Sélectionner des TP-Air'!$S$41:$AM$44,IF('Étape 5 Sélectionner des TP-Air'!$I$54="COP",3,4),FALSE),"")) ->  | H21: 0 | M21: =IF('Étape 5 Sélectionner des TP-Air'!$E$49=Dropdown_Menus!$A$2,"",B21) ->  | N21: =IF(OR(M21="#N/A",M21=""),"",IFERROR(HLOOKUP(M21,'Étape 5 Sélectionner des TP-Air'!$S$50:$AM$53,2,FALSE),"")) ->  | O21: =IF(OR(M21="#N/A",M21=""),"",IFERROR(HLOOKUP(M21,'Étape 5 Sélectionner des TP-Air'!$S$50:$AM$53,IF('Étape 5 Sélectionner des TP-Air'!$I$54="COP",4,3),FALSE),"")) ->  | P21: =IF(OR(B21="#N/A",B21=""),"",IFERROR(HLOOKUP(B21,'Étape 5 Sélectionner des TP-Air'!$S$50:$AM$53,IF('Étape 5 Sélectionner des TP-Air'!$I$54="COP",3,4),FALSE),"")) ->  | S21: 0 | X21: =IF('Étape 3 Charges de Conception'!$B$5<>'Étape 5 Sélectionner des TP-Air'!E53,IF('Étape 3 Charges de Conception'!$B$5="°F",CONVERT('Design Load Calcs'!$G$10,"F","C"),CONVERT('Design Load Calcs'!$G$10,"C","F")),'Design Load Calcs'!$G$10) -> 86 | Y21: =IF('Étape 3 Charges de Conception'!$B$6<>'Étape 5 Sélectionner des TP-Air'!E54,IF('Étape 3 Charges de Conception'!$B$6=Dropdown_Menus!$F$2,'Design Load Calcs'!$H$10/1000/3.412,'Design Load Calcs'!$H$10*1000*3.412),'Design Load Calcs'!$H$10) -> 18000
B22: =IF(OR('Étape 5 Sélectionner des TP-Air'!$I$43,'Étape 5 Sélectionner des TP-Air'!$I$44),"",IF('Étape 5 Sélectionner des TP-Air'!$I$45,IF(MATCH(B21,$B$10:$B$29,0)>='Étape 5 Sélectionner des TP-Air'!$I$51,"",'Étape 5 Sélectionner des TP-Air'!$AE$41),NA())) ->  | C22: =IF(OR(B22="#N/A",B22=""),"",IFERROR(HLOOKUP(B22,'Étape 5 Sélectionner des TP-Air'!$S$41:$AM$44,2,FALSE),"")) ->  | D22: =IF(OR(B22="#N/A",B22=""),"",IFERROR(HLOOKUP(B22,'Étape 5 Sélectionner des TP-Air'!$S$41:$AM$44,IF('Étape 5 Sélectionner des TP-Air'!$I$54="COP",4,3),FALSE),"")) ->  | E22: =IF(OR(B22="#N/A",B22=""),"",IFERROR(HLOOKUP(B22,'Étape 5 Sélectionner des TP-Air'!$S$41:$AM$44,IF('Étape 5 Sélectionner des TP-Air'!$I$54="COP",3,4),FALSE),"")) ->  | H22: 0 | M22: =IF('Étape 5 Sélectionner des TP-Air'!$E$49=Dropdown_Menus!$A$2,"",B22) ->  | N22: =IF(OR(M22="#N/A",M22=""),"",IFERROR(HLOOKUP(M22,'Étape 5 Sélectionner des TP-Air'!$S$50:$AM$53,2,FALSE),"")) ->  | O22: =IF(OR(M22="#N/A",M22=""),"",IFERROR(HLOOKUP(M22,'Étape 5 Sélectionner des TP-Air'!$S$50:$AM$53,IF('Étape 5 Sélectionner des TP-Air'!$I$54="COP",4,3),FALSE),"")) ->  | P22: =IF(OR(B22="#N/A",B22=""),"",IFERROR(HLOOKUP(B22,'Étape 5 Sélectionner des TP-Air'!$S$50:$AM$53,IF('Étape 5 Sélectionner des TP-Air'!$I$54="COP",3,4),FALSE),"")) ->  | S22: 0
B23: =IF(OR('Étape 5 Sélectionner des TP-Air'!$I$43,'Étape 5 Sélectionner des TP-Air'!$I$44),"",IF('Étape 5 Sélectionner des TP-Air'!$I$45,IF(MATCH(B22,$B$10:$B$29,0)>='Étape 5 Sélectionner des TP-Air'!$I$51,"",'Étape 5 Sélectionner des TP-Air'!$AF$41),NA())) ->  | C23: =IF(OR(B23="#N/A",B23=""),"",IFERROR(HLOOKUP(B23,'Étape 5 Sélectionner des TP-Air'!$S$41:$AM$44,2,FALSE),"")) ->  | D23: =IF(OR(B23="#N/A",B23=""),"",IFERROR(HLOOKUP(B23,'Étape 5 Sélectionner des TP-Air'!$S$41:$AM$44,IF('Étape 5 Sélectionner des TP-Air'!$I$54="COP",4,3),FALSE),"")) ->  | E23: =IF(OR(B23="#N/A",B23=""),"",IFERROR(HLOOKUP(B23,'Étape 5 Sélectionner des TP-Air'!$S$41:$AM$44,IF('Étape 5 Sélectionner des TP-Air'!$I$54="COP",3,4),FALSE),"")) ->  | H23: 0 | M23: =IF('Étape 5 Sélectionner des TP-Air'!$E$49=Dropdown_Menus!$A$2,"",B23) ->  | N23: =IF(OR(M23="#N/A",M23=""),"",IFERROR(HLOOKUP(M23,'Étape 5 Sélectionner des TP-Air'!$S$50:$AM$53,2,FALSE),"")) ->  | O23: =IF(OR(M23="#N/A",M23=""),"",IFERROR(HLOOKUP(M23,'Étape 5 Sélectionner des TP-Air'!$S$50:$AM$53,IF('Étape 5 Sélectionner des TP-Air'!$I$54="COP",4,3),FALSE),"")) ->  | P23: =IF(OR(B23="#N/A",B23=""),"",IFERROR(HLOOKUP(B23,'Étape 5 Sélectionner des TP-Air'!$S$50:$AM$53,IF('Étape 5 Sélectionner des TP-Air'!$I$54="COP",3,4),FALSE),"")) ->  | S23: 0
B24: =IF(OR('Étape 5 Sélectionner des TP-Air'!$I$43,'Étape 5 Sélectionner des TP-Air'!$I$44),"",IF('Étape 5 Sélectionner des TP-Air'!$I$45,IF(MATCH(B23,$B$10:$B$29,0)>='Étape 5 Sélectionner des TP-Air'!$I$51,"",'Étape 5 Sélectionner des TP-Air'!$AG$41),NA())) ->  | C24: =IF(OR(B24="#N/A",B24=""),"",IFERROR(HLOOKUP(B24,'Étape 5 Sélectionner des TP-Air'!$S$41:$AM$44,2,FALSE),"")) ->  | D24: =IF(OR(B24="#N/A",B24=""),"",IFERROR(HLOOKUP(B24,'Étape 5 Sélectionner des TP-Air'!$S$41:$AM$44,IF('Étape 5 Sélectionner des TP-Air'!$I$54="COP",4,3),FALSE),"")) ->  | E24: =IF(OR(B24="#N/A",B24=""),"",IFERROR(HLOOKUP(B24,'Étape 5 Sélectionner des TP-Air'!$S$41:$AM$44,IF('Étape 5 Sélectionner des TP-Air'!$I$54="COP",3,4),FALSE),"")) ->  | G24: =IF(B24="","",ABS(C24-F24)) ->  | H24: 0 | M24: =IF('Étape 5 Sélectionner des TP-Air'!$E$49=Dropdown_Menus!$A$2,"",B24) ->  | N24: =IF(OR(M24="#N/A",M24=""),"",IFERROR(HLOOKUP(M24,'Étape 5 Sélectionner des TP-Air'!$S$50:$AM$53,2,FALSE),"")) ->  | O24: =IF(OR(M24="#N/A",M24=""),"",IFERROR(HLOOKUP(M24,'Étape 5 Sélectionner des TP-Air'!$S$50:$AM$53,IF('Étape 5 Sélectionner des TP-Air'!$I$54="COP",4,3),FALSE),"")) ->  | P24: =IF(OR(B24="#N/A",B24=""),"",IFERROR(HLOOKUP(B24,'Étape 5 Sélectionner des TP-Air'!$S$50:$AM$53,IF('Étape 5 Sélectionner des TP-Air'!$I$54="COP",3,4),FALSE),"")) ->  | S24: 0
B25: =IF(OR('Étape 5 Sélectionner des TP-Air'!$I$43,'Étape 5 Sélectionner des TP-Air'!$I$44),"",IF('Étape 5 Sélectionner des TP-Air'!$I$45,IF(MATCH(B24,$B$10:$B$29,0)>='Étape 5 Sélectionner des TP-Air'!$I$51,"",'Étape 5 Sélectionner des TP-Air'!$AH$41),NA())) ->  | C25: =IF(OR(B25="#N/A",B25=""),"",IFERROR(HLOOKUP(B25,'Étape 5 Sélectionner des TP-Air'!$S$41:$AM$44,2,FALSE),"")) ->  | D25: =IF(OR(B25="#N/A",B25=""),"",IFERROR(HLOOKUP(B25,'Étape 5 Sélectionner des TP-Air'!$S$41:$AM$44,IF('Étape 5 Sélectionner des TP-Air'!$I$54="COP",4,3),FALSE),"")) ->  | E25: =IF(OR(B25="#N/A",B25=""),"",IFERROR(HLOOKUP(B25,'Étape 5 Sélectionner des TP-Air'!$S$41:$AM$44,IF('Étape 5 Sélectionner des TP-Air'!$I$54="COP",3,4),FALSE),"")) ->  | G25: =IF(B25="","",ABS(C25-F25)) ->  | H25: 0 | I25: Slope and Intercept at 47°F (HP Pwr) | M25: =IF('Étape 5 Sélectionner des TP-Air'!$E$49=Dropdown_Menus!$A$2,"",B25) ->  | N25: =IF(OR(M25="#N/A",M25=""),"",IFERROR(HLOOKUP(M25,'Étape 5 Sélectionner des TP-Air'!$S$50:$AM$53,2,FALSE),"")) ->  | O25: =IF(OR(M25="#N/A",M25=""),"",IFERROR(HLOOKUP(M25,'Étape 5 Sélectionner des TP-Air'!$S$50:$AM$53,IF('Étape 5 Sélectionner des TP-Air'!$I$54="COP",4,3),FALSE),"")) ->  | P25: =IF(OR(B25="#N/A",B25=""),"",IFERROR(HLOOKUP(B25,'Étape 5 Sélectionner des TP-Air'!$S$50:$AM$53,IF('Étape 5 Sélectionner des TP-Air'!$I$54="COP",3,4),FALSE),"")) ->  | S25: 0
B26: =IF(OR('Étape 5 Sélectionner des TP-Air'!$I$43,'Étape 5 Sélectionner des TP-Air'!$I$44),"",IF('Étape 5 Sélectionner des TP-Air'!$I$45,IF(MATCH(B25,$B$10:$B$29,0)>='Étape 5 Sélectionner des TP-Air'!$I$51,"",'Étape 5 Sélectionner des TP-Air'!$AI$41),NA())) ->  | C26: =IF(OR(B26="#N/A",B26=""),"",IFERROR(HLOOKUP(B26,'Étape 5 Sélectionner des TP-Air'!$S$41:$AM$44,2,FALSE),"")) ->  | D26: =IF(OR(B26="#N/A",B26=""),"",IFERROR(HLOOKUP(B26,'Étape 5 Sélectionner des TP-Air'!$S$41:$AM$44,IF('Étape 5 Sélectionner des TP-Air'!$I$54="COP",4,3),FALSE),"")) ->  | E26: =IF(OR(B26="#N/A",B26=""),"",IFERROR(HLOOKUP(B26,'Étape 5 Sélectionner des TP-Air'!$S$41:$AM$44,IF('Étape 5 Sélectionner des TP-Air'!$I$54="COP",3,4),FALSE),"")) ->  | H26: 0 | I26: know ys (pwr): | J26: know xs (temp) | M26: =IF('Étape 5 Sélectionner des TP-Air'!$E$49=Dropdown_Menus!$A$2,"",B26) ->  | N26: =IF(OR(M26="#N/A",M26=""),"",IFERROR(HLOOKUP(M26,'Étape 5 Sélectionner des TP-Air'!$S$50:$AM$53,2,FALSE),"")) ->  | O26: =IF(OR(M26="#N/A",M26=""),"",IFERROR(HLOOKUP(M26,'Étape 5 Sélectionner des TP-Air'!$S$50:$AM$53,IF('Étape 5 Sélectionner des TP-Air'!$I$54="COP",4,3),FALSE),"")) ->  | P26: =IF(OR(B26="#N/A",B26=""),"",IFERROR(HLOOKUP(B26,'Étape 5 Sélectionner des TP-Air'!$S$50:$AM$53,IF('Étape 5 Sélectionner des TP-Air'!$I$54="COP",3,4),FALSE),"")) ->  | S26: 0
B27: =IF(OR('Étape 5 Sélectionner des TP-Air'!$I$43,'Étape 5 Sélectionner des TP-Air'!$I$44),"",IF('Étape 5 Sélectionner des TP-Air'!$I$45,IF(MATCH(B26,$B$10:$B$29,0)>='Étape 5 Sélectionner des TP-Air'!$I$51,"",'Étape 5 Sélectionner des TP-Air'!$AJ$41),NA())) ->  | C27: =IF(OR(B27="#N/A",B27=""),"",IFERROR(HLOOKUP(B27,'Étape 5 Sélectionner des TP-Air'!$S$41:$AM$44,2,FALSE),"")) ->  | D27: =IF(OR(B27="#N/A",B27=""),"",IFERROR(HLOOKUP(B27,'Étape 5 Sélectionner des TP-Air'!$S$41:$AM$44,IF('Étape 5 Sélectionner des TP-Air'!$I$54="COP",4,3),FALSE),"")) ->  | E27: =IF(OR(B27="#N/A",B27=""),"",IFERROR(HLOOKUP(B27,'Étape 5 Sélectionner des TP-Air'!$S$41:$AM$44,IF('Étape 5 Sélectionner des TP-Air'!$I$54="COP",3,4),FALSE),"")) ->  | H27: 0 | I27: =INDEX(D10:D29,MATCH(J27,B10:B29,0)) -> 0 | J27: =IF(MAX(B10:B29)<IF(NOT(RIGHT('Étape 5 Sélectionner des TP-Air'!$E$53,1)=Dropdown_Menus!$F$3),CONVERT(47,"F","C"),47),MAX(B10:B29),INDEX(B10:B29,MATCH(IF(NOT(RIGHT('Étape 5 Sélectionner des TP-Air'!$E$53,1)=Dropdown_Menus!$F$3),CONVERT(47,"F","C"),47),B10:B29,-1))) -> 47 | M27: =IF('Étape 5 Sélectionner des TP-Air'!$E$49=Dropdown_Menus!$A$2,"",B27) ->  | N27: =IF(OR(M27="#N/A",M27=""),"",IFERROR(HLOOKUP(M27,'Étape 5 Sélectionner des TP-Air'!$S$50:$AM$53,2,FALSE),"")) ->  | O27: =IF(OR(M27="#N/A",M27=""),"",IFERROR(HLOOKUP(M27,'Étape 5 Sélectionner des TP-Air'!$S$50:$AM$53,IF('Étape 5 Sélectionner des TP-Air'!$I$54="COP",4,3),FALSE),"")) ->  | P27: =IF(OR(B27="#N/A",B27=""),"",IFERROR(HLOOKUP(B27,'Étape 5 Sélectionner des TP-Air'!$S$50:$AM$53,IF('Étape 5 Sélectionner des TP-Air'!$I$54="COP",3,4),FALSE),"")) ->  | S27: 0
B28: =IF(OR('Étape 5 Sélectionner des TP-Air'!$I$43,'Étape 5 Sélectionner des TP-Air'!$I$44),"",IF('Étape 5 Sélectionner des TP-Air'!$I$45,IF(MATCH(B27,$B$10:$B$29,0)>='Étape 5 Sélectionner des TP-Air'!$I$51,"",'Étape 5 Sélectionner des TP-Air'!$AK$41),NA())) ->  | C28: =IF(OR(B28="#N/A",B28=""),"",IFERROR(HLOOKUP(B28,'Étape 5 Sélectionner des TP-Air'!$S$41:$AM$44,2,FALSE),"")) ->  | D28: =IF(OR(B28="#N/A",B28=""),"",IFERROR(HLOOKUP(B28,'Étape 5 Sélectionner des TP-Air'!$S$41:$AM$44,IF('Étape 5 Sélectionner des TP-Air'!$I$54="COP",4,3),FALSE),"")) ->  | E28: =IF(OR(B28="#N/A",B28=""),"",IFERROR(HLOOKUP(B28,'Étape 5 Sélectionner des TP-Air'!$S$41:$AM$44,IF('Étape 5 Sélectionner des TP-Air'!$I$54="COP",3,4),FALSE),"")) ->  | H28: 0 | I28: =INDEX(D10:D29,MATCH(J28,B10:B29,0)) -> 0 | J28: =IF(J27=MIN(B10:B29),INDEX(B10:B29,MATCH(J27,B10:B29,0)-1),INDEX(B10:B29,MATCH(J27,B10:B29,0)+1)) -> 17 | M28: =IF('Étape 5 Sélectionner des TP-Air'!$E$49=Dropdown_Menus!$A$2,"",B28) ->  | N28: =IF(OR(M28="#N/A",M28=""),"",IFERROR(HLOOKUP(M28,'Étape 5 Sélectionner des TP-Air'!$S$50:$AM$53,2,FALSE),"")) ->  | O28: =IF(OR(M28="#N/A",M28=""),"",IFERROR(HLOOKUP(M28,'Étape 5 Sélectionner des TP-Air'!$S$50:$AM$53,IF('Étape 5 Sélectionner des TP-Air'!$I$54="COP",4,3),FALSE),"")) ->  | P28: =IF(OR(B28="#N/A",B28=""),"",IFERROR(HLOOKUP(B28,'Étape 5 Sélectionner des TP-Air'!$S$50:$AM$53,IF('Étape 5 Sélectionner des TP-Air'!$I$54="COP",3,4),FALSE),"")) ->  | S28: 0
B29: =IF(OR('Étape 5 Sélectionner des TP-Air'!$I$43,'Étape 5 Sélectionner des TP-Air'!$I$44),"",IF('Étape 5 Sélectionner des TP-Air'!$I$45,IF(MATCH(B28,$B$10:$B$29,0)>='Étape 5 Sélectionner des TP-Air'!$I$51,"",'Étape 5 Sélectionner des TP-Air'!$AL$41),NA())) ->  | C29: =IF(OR(B29="#N/A",B29=""),"",IFERROR(HLOOKUP(B29,'Étape 5 Sélectionner des TP-Air'!$S$41:$AM$44,2,FALSE),"")) ->  | D29: =IF(OR(B29="#N/A",B29=""),"",IFERROR(HLOOKUP(B29,'Étape 5 Sélectionner des TP-Air'!$S$41:$AM$44,IF('Étape 5 Sélectionner des TP-Air'!$I$54="COP",4,3),FALSE),"")) ->  | E29: =IF(OR(B29="#N/A",B29=""),"",IFERROR(HLOOKUP(B29,'Étape 5 Sélectionner des TP-Air'!$S$41:$AM$44,IF('Étape 5 Sélectionner des TP-Air'!$I$54="COP",3,4),FALSE),"")) ->  | H29: 0 | I29: Slope and Intercept at 17°F (HP Cap) | M29: =IF('Étape 5 Sélectionner des TP-Air'!$E$49=Dropdown_Menus!$A$2,"",B29) ->  | N29: =IF(OR(M29="#N/A",M29=""),"",IFERROR(HLOOKUP(M29,'Étape 5 Sélectionner des TP-Air'!$S$50:$AM$53,2,FALSE),"")) ->  | O29: =IF(OR(M29="#N/A",M29=""),"",IFERROR(HLOOKUP(M29,'Étape 5 Sélectionner des TP-Air'!$S$50:$AM$53,IF('Étape 5 Sélectionner des TP-Air'!$I$54="COP",4,3),FALSE),"")) ->  | P29: =IF(OR(B29="#N/A",B29=""),"",IFERROR(HLOOKUP(B29,'Étape 5 Sélectionner des TP-Air'!$S$50:$AM$53,IF('Étape 5 Sélectionner des TP-Air'!$I$54="COP",3,4),FALSE),"")) ->  | S29: 0
B30: ='Étape 5 Sélectionner des TP-Air'!$E$47 -> 0 | C30: =IF(D34=B30,B34,SLOPE(B34:B35,D34:D35)*B30+INTERCEPT(B34:B35,D34:D35)) -> 0 | D30: =IF(D34=B30,C34,SLOPE(C34:C35,D34:D35)*B30+INTERCEPT(C34:C35,D34:D35)) -> 0 | E30: =(C30/IF('Étape 5 Sélectionner des TP-Air'!$E$54="kW",1,3412))/D30 ->  | F30: =IF(B30<C5,$Y$14,B30*$X$18+$Y$18) -> 32630.38549 | G30: =IF(B30="","",ABS(C30-F30)) -> 32630.38549 | H30: =IF(AND(ISNUMBER(INDEX(B10:B29,MATCH(B31,B10:B29,0))),ISNUMBER(B30)),IF(OR(AND(INDEX(C10:C29,MATCH(B31,B10:B29,0))>=INDEX(F10:F29,MATCH(B31,B10:B29,0)),C30<=F30),AND(INDEX(C10:C29,MATCH(B31,B10:B29,0))<=INDEX(F10:F29,MATCH(B31,B10:B29,0)),C30>=F30)),1,0),0) -> 0 | I30: know ys (pwr): | J30: know xs (temp) | M30: ='Étape 5 Sélectionner des TP-Air'!$E$47 -> 0 | N30: =IF(O34=M30,M34,SLOPE(M34:M35,O34:O35)*M30+INTERCEPT(M34:M35,O34:O35)) -> 0 | O30: =IF(O34=M30,N34,SLOPE(N34:N35,O34:O35)*M30+INTERCEPT(N34:N35,O34:O35)) -> 0 | P30: =(N30/IF('Étape 5 Sélectionner des TP-Air'!$E$54="kW",1,3412))/O30 ->  | Q30: =IF(M30<N5,$Y$14,M30*$X$18+$Y$18) -> 32630.38549 | R30: =IF(M30="","",ABS(N30-Q30)) -> 32630.38549 | S30: =IF(AND(ISNUMBER(INDEX(M10:M29,MATCH(M31,M10:M29,0))),ISNUMBER(M30)),IF(OR(AND(INDEX(N10:N29,MATCH(M31,M10:M29,0))>=INDEX(Q10:Q29,MATCH(M31,M10:M29,0)),N30<=Q30),AND(INDEX(N10:N29,MATCH(M31,M10:M29,0))<=INDEX(Q10:Q29,MATCH(M31,M10:M29,0)),N30>=Q30)),1,0),0) -> 0
B31: =_xlfn.MINIFS(B10:B29,B10:B29,">"&B30) -> 17 | I31: =INDEX(D10:D29,MATCH(J31,B10:B29,0)) -> 0 | J31: =IF(MAX(B10:B29)<IF(NOT(RIGHT('Étape 5 Sélectionner des TP-Air'!$E$53,1)=Dropdown_Menus!$F$3),CONVERT(17,"F","C"),17),MAX(B10:B29),INDEX(B10:B29,MATCH(IF(NOT(RIGHT('Étape 5 Sélectionner des TP-Air'!$E$53,1)=Dropdown_Menus!$F$3),CONVERT(17,"F","C"),17),B10:B29,-1))) -> 17 | M31: =_xlfn.MINIFS(M10:M29,M10:M29,">"&M30) -> 17
B32: Slope and Intercept at the cut-off temp. (HP Norm. Cap and pwr) | F32: Slope and Intercept at the Design Temp. (HP Cap) | I32: =INDEX(D10:D29,MATCH(J32,B10:B29,0)) -> 0 | J32: =IF(J31=MIN(B10:B29),INDEX(B10:B29,MATCH(J31,B10:B29,0)-1),INDEX(B10:B29,MATCH(J31,B10:B29,0)+1)) -> 47 | M32: Slope and Intercept at the cut-off temp. (HP Norm. Cap and pwr) | Q32: Slope and Intercept at the Design Temp. (HP Cap)
B33: know ys (capacity): | C33: know ys (power): | D33: know xs (temp) | F33: know ys (capacity): | G33: know xs (temp) | I33: Slope and Intercept at 47°F (HP Cap) | M33: know ys (capacity): | N33: know ys (power): | O33: know xs (temp) | Q33: know ys (capacity): | R33: know xs
B34: =INDEX(C10:C29,MATCH(D34,B10:B29,0)) -> 0 | C34: =INDEX(D10:D29,MATCH(B34,C10:C29,0)) -> 0 | D34: =IF(B30=MIN(B10:B29),B30,INDEX(B10:B29,MATCH(B30,B10:B29,-1))) -> 17 | F34: =IF(G34="-",0,INDEX(C10:C29,MATCH(G34,B10:B29,0))) -> 0 | G34: =IF(C5<B30,"-",IFERROR(INDEX(B10:B29,MATCH(C5,B10:B29,0)),IF(C5<MIN(B10:B29),INDEX(B10:B29,MATCH(MIN(B10:B29),B10:B29,-1)),INDEX(B10:B29,MATCH(C5,B10:B29,-1))))) -> - | I34: know ys (capacity): | J34: know xs (temp) | M34: =INDEX(N10:N29,MATCH(O34,M10:M29,0)) -> 0 | N34: =INDEX(O10:O29,MATCH(M34,N10:N29,0)) -> 0 | O34: =IF(M30=MIN(M10:M29),M30,INDEX(M10:M29,MATCH(M30,M10:M29,-1))) -> 17 | Q34: =IF(R34="-",0,INDEX(N10:N29,MATCH(R34,M10:M29,0))) -> 0 | R34: =IF(N5<M30,"-",IFERROR(INDEX(M10:M29,MATCH(N5,M10:M29,0)),IF(N5<MIN(M10:M29),INDEX(M10:M29,MATCH(MIN(M10:M29),M10:M29,-1)),INDEX(M10:M29,MATCH(N5,M10:M29,-1))))) -> -
B35: =IF(D35="-","-",INDEX(C10:C29,MATCH(D35,B10:B29,0))) -> 0 | C35: =IF(D35="-","-",INDEX($D$10:$D$29, MATCH(D35,$B$10:$B$29,0))) -> 0 | D35: =IF(B30=MIN(B10:B29),"-",INDEX(B10:B29,MATCH(B30,B10:B29,-1)+IF(D34=MIN(B10:B29),-1,1))) -> 47 | F35: =IF(G35="-",0,INDEX(C10:C29,MATCH(G35,B10:B29,0))) -> 0 | G35: =IF(C5<B30,"-",IF(G34=C5,"-",INDEX(B10:B29,MATCH(G34,B10:B29,0)+IF(G34=MIN(B10:B29),-1,1)))) -> - | I35: =INDEX(C10:C29,MATCH(J35,B10:B29,0)) -> 0 | J35: =IF(MAX(B10:B29)<IF(NOT(RIGHT('Étape 5 Sélectionner des TP-Air'!$E$53,1)=Dropdown_Menus!$F$3),CONVERT(47,"F","C"),47),MAX(B10:B29),INDEX(B10:B29,MATCH(IF(NOT(RIGHT('Étape 5 Sélectionner des TP-Air'!$E$53,1)=Dropdown_Menus!$F$3),CONVERT(47,"F","C"),47),B10:B29,-1))) -> 47 | M35: =IF(O35="-","-",INDEX(N10:N29,MATCH(O35,M10:M29,0))) -> 0 | N35: =IF(O35="-","-",INDEX($O$10:$O$29, MATCH(O35,$M$10:$M$29,0))) -> 0 | O35: =IF(M30=MIN(M10:M29),"-",INDEX(M10:M29,MATCH(M30,M10:M29,-1)+IF(O34=MIN(M10:M29),-1,1))) -> 47 | Q35: =IF(R35="-",0,INDEX(N10:N29,MATCH(R35,M10:M29,0))) -> 0 | R35: =IF(N5<M30,"-",IF(R34=N5,"-",INDEX(M10:M29,MATCH(R34,M10:M29,0)+IF(R34=MIN(M10:M29),-1,1)))) -> -
I36: =INDEX(C10:C29,MATCH(J36,B10:B29,0)) -> 0 | J36: =IF(J35=MIN(B10:B29),INDEX(B10:B29,MATCH(J35,B10:B29,0)-1),INDEX(B10:B29,MATCH(J35,B10:B29,0)+1)) -> 17
B37: Slope and Intercept at the BPT (HP Cap) | F37: Slope and Intercept at the BPT (Load%) | I37: Slope and Intercept at 17°F (HP Cap) | M37: Slope and Intercept at the BPT (HP Cap) | Q37: Slope and Intercept at the BPT (Load%)
B38: know ys (eq. 1): | C38: know xs (eq. 1): | D38: know ys (eq. 2): | E38: know xs (eq. 2): | F38: know ys (eq. 1): | G38: know ys (eq. 2): | I38: know ys (capacity): | J38: know xs (temp) | M38: know ys (eq. 1): | N38: know xs (eq. 1): | O38: know ys (eq. 2): | P38: know xs (eq. 2): | Q38: know ys (eq. 1): | R38: know ys (eq. 2):
B39: =IF(SUM(H10:H30)=1,IF(H30=1,INDEX(C10:C29,MATCH(B31,B10:B29,0)-1),INDEX(C10:C29,MATCH(1,H10:H29,0))),IF(MATCH(MIN(G10:G29),G10:G29,0)>=2,INDEX(C10:C29,MATCH(MIN(G10:G29),G10:G29,0)-1),NA())) ->  | C39: =IF(SUM(H10:H30)=1,IF(H30=1,INDEX(B10:B29,MATCH(B31,B10:B29,0)-1),INDEX(B10:B29,MATCH(1,H10:H29,0))),IF(MATCH(MIN(G10:G29),G10:G29,0)>=2,INDEX(B10:B29,MATCH(MIN(G10:G29),G10:G29,0)-1),NA())) ->  | D39: =IF(SUM(H10:H30)=1,IF(H30=1,INDEX(C10:C29,MATCH(B31,B10:B29,0)),INDEX(C10:C29,MATCH(1,H10:H29,0)+1)),INDEX(C10:C29,MATCH(MIN(G10:G29),G10:G29,0))) -> 0 | E39: =IF(SUM(H10:H30)=1,IF(H30=1,INDEX(B10:B29,MATCH(B31,B10:B29,0)),INDEX(B10:B29,MATCH(1,H10:H29,0)+1)),INDEX(B10:B29,MATCH(MIN(G10:G29),G10:G29,0))) -> 47 | F39: =INDEX(INDIRECT(CONCATENATE(IFERROR(SUBSTITUTE('Étape 3 Charges de Conception'!B11,"-","_"),'Étape 3 Charges de Conception'!B11),"_Charge")),MATCH(G39,IF($D$5="°F",'Loads %'!N8:N24,'Loads %'!M8:M24))) ->  | G39: =IF($D$5="°F",IF(ISNUMBER(MATCH(J9,'Loads %'!N8:N24,0)),J9,INDEX('Loads %'!N8:N24,MATCH(J9,'Loads %'!N8:N24,1))),IF(ISNUMBER(MATCH(J9,'Loads %'!M8:M24,0)),J9,INDEX('Loads %'!M8:M24,MATCH(J9,'Loads %'!M8:M24,1)))) ->  | I39: =INDEX(C10:C29,MATCH(J39,B10:B29,0)) -> 0 | J39: =IF(MAX(B10:B29)<IF(NOT(RIGHT('Étape 5 Sélectionner des TP-Air'!$E$53,1)=Dropdown_Menus!$F$3),CONVERT(17,"F","C"),17),MAX(B10:B29),INDEX(B10:B29,MATCH(IF(NOT(RIGHT('Étape 5 Sélectionner des TP-Air'!$E$53,1)=Dropdown_Menus!$F$3),CONVERT(17,"F","C"),17),B10:B29,-1))) -> 17 | M39: =IF(SUM(S10:S30)=1,IF(S30=1,INDEX(N10:N29,MATCH(M31,M10:M29,0)-1),INDEX(N10:N29,MATCH(1,S10:S29,0))),IF(MATCH(MIN(R10:R29),R10:R29,0)>=2,INDEX(N10:N29,MATCH(MIN(R10:R29),R10:R29,0)-1),NA())) ->  | N39: =IF(SUM(S10:S30)=1,IF(S30=1,INDEX(M10:M29,MATCH(M31,M10:M29,0)-1),INDEX(M10:M29,MATCH(1,S10:S29,0))),IF(MATCH(MIN(R10:R29),R10:R29,0)>=2,INDEX(M10:M29,MATCH(MIN(R10:R29),R10:R29,0)-1),NA())) ->  | O39: =IF(SUM(S10:S30)=1,IF(S30=1,INDEX(N10:N29,MATCH(M31,M10:M29,0)),INDEX(N10:N29,MATCH(1,S10:S29,0)+1)),INDEX(N10:N29,MATCH(MIN(R10:R29),R10:R29,0))) -> 0 | P39: =IF(SUM(S10:S30)=1,IF(S30=1,INDEX(M10:M29,MATCH(M31,M10:M29,0)),INDEX(M10:M29,MATCH(1,S10:S29,0)+1)),INDEX(M10:M29,MATCH(MIN(R10:R29),R10:R29,0))) -> 47 | Q39: =INDEX(INDIRECT(CONCATENATE(IFERROR(SUBSTITUTE('Étape 3 Charges de Conception'!B11,"-","_"),'Étape 3 Charges de Conception'!B11),"_Charge")),MATCH(R39,'Loads %'!N8:N24)) ->  | R39: =IF(ISNUMBER(MATCH(U9,'Loads %'!N8:N24,0)),U9,INDEX('Loads %'!N8:N24,MATCH(U9,'Loads %'!N8:N24,1))) -> 
B40: =IF(SUM(H10:H30)=1,IF(H30=1,INDEX(C10:C29,MATCH(B31,B10:B29,0)),INDEX(C10:C29,MATCH(1,H10:H29,0)+1)),INDEX(C10:C29,MATCH(MIN(G10:G29),G10:G29,0))) -> 0 | C40: =IF(SUM(H10:H30)=1,IF(H30=1,INDEX(B10:B29,MATCH(B31,B10:B29,0)),INDEX(B10:B29,MATCH(1,H10:H29,0)+1)),INDEX(B10:B29,MATCH(MIN(G10:G29),G10:G29,0))) -> 47 | D40: =IF(SUM(H10:H30)=1,IF(H30=1,C30,INDEX(C10:C29,MATCH(1,H10:H29,0)+2)),IF(OR(SUMIF(B10:B29,"<>""")=0,INDEX(C10:C29,MATCH(MIN(G10:G29),G10:G29,0)+1)=""),C30,INDEX(C10:C29,MATCH(MIN(G10:G29),G10:G29,0)+1))) -> 0 | E40: =IF(SUM(H10:H30)=1,IF(H30=1,B30,INDEX(B10:B29,MATCH(1,H10:H29,0)+2)),IF(OR(AND(SUMIF(B12:B29,"<>""")=0,B30<E39),INDEX(B10:B29,MATCH(MIN(G10:G29),G10:G29,0)+1)=""),B30,INDEX(B10:B29,MATCH(MIN(G10:G29),G10:G29,0)+1))) -> 0 | F40: =INDEX(INDIRECT(CONCATENATE(IFERROR(SUBSTITUTE('Étape 3 Charges de Conception'!B11,"-","_"),'Étape 3 Charges de Conception'!B11),"_Charge")),MATCH(G40,IF($D$5="°F",'Loads %'!N8:N24,'Loads %'!M8:M24))) ->  | G40: =IF($D$5="°F",IF(ISNUMBER(MATCH(E41,'Loads %'!N8:N24,0)),"",INDEX('Loads %'!N8:N24,MATCH(G39,'Loads %'!N8:N24,0)+1)),IF(ISNUMBER(MATCH(E41,'Loads %'!M8:M24,0)),"",INDEX('Loads %'!M8:M24,MATCH(G39,'Loads %'!M8:M24,0)+1))) ->  | I40: =INDEX(C10:C29,MATCH(J40,B10:B29,0)) -> 0 | J40: =IF(J39=MIN(B10:B29),INDEX(B10:B29,MATCH(J39,B10:B29,0)-1),INDEX(B10:B29,MATCH(J39,B10:B29,0)+1)) -> 47 | M40: =IF(SUM(S10:S30)=1,IF(S30=1,INDEX(N10:N29,MATCH(M31,M10:M29,0)),INDEX(N10:N29,MATCH(1,S10:S29,0)+1)),INDEX(N10:N29,MATCH(MIN(R10:R29),R10:R29,0))) -> 0 | N40: =IF(SUM(S10:S30)=1,IF(S30=1,INDEX(M10:M29,MATCH(M31,M10:M29,0)),INDEX(M10:M29,MATCH(1,S10:S29,0)+1)),INDEX(M10:M29,MATCH(MIN(R10:R29),R10:R29,0))) -> 47 | O40: =IF(SUM(S10:S30)=1,IF(S30=1,N30,INDEX(N10:N29,MATCH(1,S10:S29,0)+2)),IF(OR(SUMIF(M10:M29,"<>""")=0,INDEX(N10:N29,MATCH(MIN(R10:R29),R10:R29,0)+1)=""),N30,INDEX(N10:N29,MATCH(MIN(R10:R29),R10:R29,0)+1))) -> 0 | P40: =IF(SUM(S10:S30)=1,IF(S30=1,M30,INDEX(M10:M29,MATCH(1,S10:S29,0)+2)),IF(OR(AND(SUMIF(M12:M29,"<>""")=0,M30<P39),INDEX(M10:M29,MATCH(MIN(R10:R29),R10:R29,0)+1)=""),M30,INDEX(M10:M29,MATCH(MIN(R10:R29),R10:R29,0)+1))) -> 0 | Q40: =INDEX(INDIRECT(CONCATENATE(IFERROR(SUBSTITUTE('Étape 3 Charges de Conception'!B11,"-","_"),'Étape 3 Charges de Conception'!B11),"_Charge")),MATCH(R40,'Loads %'!N8:N24)) ->  | R40: =IF(ISNUMBER(MATCH(P41,'Loads %'!N8:N24,0)),"",INDEX('Loads %'!N8:N24,MATCH(R39,'Loads %'!N8:N24,0)+1)) -> 
B41: BPT (eq. 1): | C41: =IF(IF(($Y$18-INTERCEPT(B39:B40,C39:C40))/(SLOPE(B39:B40,C39:C40)-$X$18)<C5,NA(),($Y$18-INTERCEPT(B39:B40,C39:C40))/(SLOPE(B39:B40,C39:C40)-$X$18))>MAX(B10:B29),NA(),IF(($Y$18-INTERCEPT(B39:B40,C39:C40))/(SLOPE(B39:B40,C39:C40)-$X$18)<C5,NA(),($Y$18-INTERCEPT(B39:B40,C39:C40))/(SLOPE(B39:B40,C39:C40)-$X$18))) ->  | D41: BPT (eq. 2): | E41: =IF(IF(($Y$18-INTERCEPT(D39:D40,E39:E40))/(SLOPE(D39:D40,E39:E40)-$X$18)<C5,NA(),($Y$18-INTERCEPT(D39:D40,E39:E40))/(SLOPE(D39:D40,E39:E40)-$X$18))>MAX(B10:B29),NA(),IF(($Y$18-INTERCEPT(D39:D40,E39:E40))/(SLOPE(D39:D40,E39:E40)-$X$18)<C5,NA(),($Y$18-INTERCEPT(D39:D40,E39:E40))/(SLOPE(D39:D40,E39:E40)-$X$18))) ->  | M41: BPT (eq. 1): | N41: =IF(IF(($Y$18-INTERCEPT(M39:M40,N39:N40))/(SLOPE(M39:M40,N39:N40)-$X$18)<N5,NA(),($Y$18-INTERCEPT(M39:M40,N39:N40))/(SLOPE(M39:M40,N39:N40)-$X$18))>MAX(M10:M29),NA(),IF(($Y$18-INTERCEPT(M39:M40,N39:N40))/(SLOPE(M39:M40,N39:N40)-$X$18)<N5,NA(),($Y$18-INTERCEPT(M39:M40,N39:N40))/(SLOPE(M39:M40,N39:N40)-$X$18))) ->  | O41: BPT (eq. 2): | P41: =IF(IF(($Y$18-INTERCEPT(O39:O40,P39:P40))/(SLOPE(O39:O40,P39:P40)-$X$18)<N5,NA(),($Y$18-INTERCEPT(O39:O40,P39:P40))/(SLOPE(O39:O40,P39:P40)-$X$18))>MAX(M10:M29),NA(),IF(($Y$18-INTERCEPT(O39:O40,P39:P40))/(SLOPE(O39:O40,P39:P40)-$X$18)<N5,NA(),($Y$18-INTERCEPT(O39:O40,P39:P40))/(SLOPE(O39:O40,P39:P40)-$X$18))) -> 
B42: HP Cap (eq. 1): | C42: =SLOPE(B39:B40,C39:C40)*C41+INTERCEPT(B39:B40,C39:C40) ->  | D42: HP Cap (eq. 2): | E42: =SLOPE(D39:D40,E39:E40)*E41+INTERCEPT(D39:D40,E39:E40) ->  | M42: HP Cap (eq. 1): | N42: =SLOPE(M39:M40,N39:N40)*N41+INTERCEPT(M39:M40,N39:N40) ->  | O42: HP Cap (eq. 2): | P42: =SLOPE(O39:O40,P39:P40)*P41+INTERCEPT(O39:O40,P39:P40) -> 
B45: Cooling - High Stage | M45: Cooling - Low Stage
B47: Design Temp. (cool) | C47: ='Design Load Calcs'!B26 -> 86 | M47: Design Temp. (cool) | N47: ='Design Load Calcs'!B26 -> 86
B49: Performance Data and Heating Load Line | I49: Outputs: | M49: Performance Data and Heating Load Line | T49: Outputs:
B50: Outdoor Temp. | C50: Actual Capacity | D50: Actual Power | E50: Actual COP | I50: =CONCATENATE("HP cap @ Design Temp.",IF('Introduction & Options d''Unité'!$B$12=Dropdown_Menus!$F$1," [kW]"," [BTU/h]")) -> HP cap @ Design Temp. [BTU/h] | J50: =IF(SUM(B53:B63)=0,I62,IF(OR(J62=C47,J63=J62),I62,SLOPE(I62:I63,J62:J63)*C47+INTERCEPT(I62:I63,J62:J63))) -> 0 | M50: Outdoor Temp. | N50: Actual Capacity | O50: Actual Power | P50: Actual COP | T50: =CONCATENATE("HP cap @ Design Temp.",IF('Introduction & Options d''Unité'!$B$12=Dropdown_Menus!$F$1," [kW]"," [BTU/h]")) -> HP cap @ Design Temp. [BTU/h] | U50: =IF(SUM(M53:M63)=0,T62,IF(OR(U62=N47,U63=U62),T62,SLOPE(T62:T63,U62:U63)*N47+INTERCEPT(T62:T63,U62:U63))) -> 0
B51: =IF('Introduction & Options d''Unité'!$B$12=Dropdown_Menus!$F$1,"[°C]","[°F]") -> [°F] | C51: =IF('Introduction & Options d''Unité'!$B$12=Dropdown_Menus!$F$1,"[kW]","[BTU/h]") -> [BTU/h] | D51: [kW] | E51: [-] | I51: % of Design Load | J51: =J50/'Design Load Calcs'!$B$25 -> 0 | M51: =IF('Introduction & Options d''Unité'!$B$12=Dropdown_Menus!$F$1,"[°C]","[°F]") -> [°F] | N51: =IF('Introduction & Options d''Unité'!$B$12=Dropdown_Menus!$F$1,"[kW]","[BTU/h]") -> [BTU/h] | O51: [kW] | P51: [-] | T51: % of Design Load | U51: =U50/'Design Load Calcs'!$B$25 -> 0
B52: =IF(OR('Étape 5 Sélectionner des TP-Air'!$I$43,'Étape 5 Sélectionner des TP-Air'!$I$44,'Étape 5 Sélectionner des TP-Air'!$I$45),'Étape 5 Sélectionner des TP-Air'!$S$45,NA()) -> 95 | C52: =IF(OR(B52="#N/A",B52=""),"",IFERROR(HLOOKUP(B52,'Étape 5 Sélectionner des TP-Air'!$S$45:$AE$48,2,FALSE),"")) -> 0 | D52: =IF(OR(B52="#N/A",B52=""),"",IFERROR(HLOOKUP(B52,'Étape 5 Sélectionner des TP-Air'!$S$45:$AE$48,IF('Étape 5 Sélectionner des TP-Air'!$I$55="EER",4,3),FALSE),"")) -> 0 | E52: =IF(OR(B52="#N/A",B52=""),"",IFERROR(HLOOKUP(B52,'Étape 5 Sélectionner des TP-Air'!$S$45:$AE$48,IF('Étape 5 Sélectionner des TP-Air'!$I$55="EER",3,4),FALSE),"")) ->  | I52: =CONCATENATE("HP cap @",IF('Introduction & Options d''Unité'!$B$12=Dropdown_Menus!$F$1,CONVERT(95,"F","C"),95),IF('Introduction & Options d''Unité'!$B$12=Dropdown_Menus!$F$1," C"," F"),IF('Introduction & Options d''Unité'!$B$12=Dropdown_Menus!$F$1," [kW]"," [BTU/h]")) -> HP cap @95 F [BTU/h] | J52: =IF(OR('Étape 5 Sélectionner des TP-Air'!$I$43,'Étape 5 Sélectionner des TP-Air'!$I$44,'Étape 5 Sélectionner des TP-Air'!$I$27),C52,IFERROR(INDEX(C52:C63,MATCH(IF('Étape 5 Sélectionner des TP-Air'!$E$53="°C",CONVERT(95,"F","C"),95),B52:B63,0)),SLOPE(I57:I58,J57:J58)*IF('Étape 5 Sélectionner des TP-Air'!$E$53="°C",CONVERT(95,"F","C"),95)+INTERCEPT(I57:I58,J57:J58))) -> 0 | M52: =IF('Étape 5 Sélectionner des TP-Air'!$E$49=Dropdown_Menus!$A$2,"",B52) -> 95 | N52: =IF(OR(M52="#N/A",M52=""),"",IFERROR(HLOOKUP(M52,'Étape 5 Sélectionner des TP-Air'!$S$54:$AM$57,2,FALSE),"")) -> 0 | O52: =IF(OR(M52="#N/A",M52=""),"",IFERROR(HLOOKUP(M52,'Étape 5 Sélectionner des TP-Air'!$S$54:$AM$57,IF('Étape 5 Sélectionner des TP-Air'!$I$55="EER",4,3),FALSE),"")) -> 0 | P52: =IF(OR(M52="#N/A",M52=""),"",IFERROR(HLOOKUP(M52,'Étape 5 Sélectionner des TP-Air'!$S$54:$AM$57,IF('Étape 5 Sélectionner des TP-Air'!$I$55="EER",3,4),FALSE),"")) ->  | T52: =CONCATENATE("HP cap @",IF('Introduction & Options d''Unité'!$B$12=Dropdown_Menus!$F$1,CONVERT(95,"F","C"),95),IF('Introduction & Options d''Unité'!$B$12=Dropdown_Menus!$F$1," C"," F"),IF('Introduction & Options d''Unité'!$B$12=Dropdown_Menus!$F$1," [kW]"," [BTU/h]")) -> HP cap @95 F [BTU/h] | U52: =IF('Étape 5 Sélectionner des TP-Air'!E49="Monoétagé",NA(),IF(OR('Étape 5 Sélectionner des TP-Air'!$I$43,'Étape 5 Sélectionner des TP-Air'!$I$44,'Étape 5 Sélectionner des TP-Air'!$I$27),N52,IFERROR(INDEX(N52:N63,MATCH(IF('Étape 5 Sélectionner des TP-Air'!$E$53="°C",CONVERT(95,"F","C"),95),M52:M63,0)),SLOPE(T57:T58,U57:U58)*IF('Étape 5 Sélectionner des TP-Air'!$E$53="°C",CONVERT(95,"F","C"),95)+INTERCEPT(T57:T58,U57:U58)))) -> 0
B53: =IF(OR('Étape 5 Sélectionner des TP-Air'!$I$43,'Étape 5 Sélectionner des TP-Air'!$I$44),"",IF('Étape 5 Sélectionner des TP-Air'!$I$45,IF(MATCH(B52,$B$52:$B$63,0)>='Étape 5 Sélectionner des TP-Air'!$I$52,"",'Étape 5 Sélectionner des TP-Air'!$T$45),NA())) ->  | C53: =IF(OR(B53="#N/A",B53=""),"",IFERROR(HLOOKUP(B53,'Étape 5 Sélectionner des TP-Air'!$T$45:$AE$48,2,FALSE),"")) ->  | D53: =IF(OR(B53="#N/A",B53=""),"",IFERROR(HLOOKUP(B53,'Étape 5 Sélectionner des TP-Air'!$T$45:$AE$48,IF('Étape 5 Sélectionner des TP-Air'!$I$55="EER",4,3),FALSE),"")) ->  | E53: =IF(OR(B53="#N/A",B53=""),"",IFERROR(HLOOKUP(B53,'Étape 5 Sélectionner des TP-Air'!$T$45:$AE$48,IF('Étape 5 Sélectionner des TP-Air'!$I$55="EER",3,4),FALSE),"")) ->  | I53: =CONCATENATE("HP COP @",IF('Introduction & Options d''Unité'!$B$12=Dropdown_Menus!$F$1,CONVERT(95,"F","C"),95),IF('Introduction & Options d''Unité'!$B$12=Dropdown_Menus!$F$1," C"," F"),IF('Introduction & Options d''Unité'!$B$12=Dropdown_Menus!$F$1," [kW]"," [BTU/h]")) -> HP COP @95 F [BTU/h] | J53: =IF(OR('Étape 5 Sélectionner des TP-Air'!$I$43,'Étape 5 Sélectionner des TP-Air'!$I$44,'Étape 5 Sélectionner des TP-Air'!$I$27),E52,IFERROR(INDEX(E52:E63,MATCH(IF('Étape 5 Sélectionner des TP-Air'!$E$53="°C",CONVERT(95,"F","C"),95),B52:B63,0)),SLOPE(G57:G58,J57:J58)*IF('Étape 5 Sélectionner des TP-Air'!$E$53="°C",CONVERT(95,"F","C"),95)+INTERCEPT(G57:G58,J57:J58))) ->  | M53: =IF('Étape 5 Sélectionner des TP-Air'!$E$49=Dropdown_Menus!$A$2,"",B53) ->  | N53: =IF(OR(M53="#N/A",M53=""),"",IFERROR(HLOOKUP(M53,'Étape 5 Sélectionner des TP-Air'!$S$54:$AM$57,2,FALSE),"")) ->  | O53: =IF(OR(M53="#N/A",M53=""),"",IFERROR(HLOOKUP(M53,'Étape 5 Sélectionner des TP-Air'!$S$54:$AM$57,IF('Étape 5 Sélectionner des TP-Air'!$I$55="EER",4,3),FALSE),"")) ->  | P53: =IF(OR(M53="#N/A",M53=""),"",IFERROR(HLOOKUP(M53,'Étape 5 Sélectionner des TP-Air'!$S$54:$AM$57,IF('Étape 5 Sélectionner des TP-Air'!$I$55="EER",3,4),FALSE),"")) -> 
B54: =IF(OR('Étape 5 Sélectionner des TP-Air'!$I$43,'Étape 5 Sélectionner des TP-Air'!$I$44),"",IF('Étape 5 Sélectionner des TP-Air'!$I$45,IF(MATCH(B53,$B$52:$B$63,0)>='Étape 5 Sélectionner des TP-Air'!$I$52,"",'Étape 5 Sélectionner des TP-Air'!$U$45),NA())) ->  | C54: =IF(OR(B54="#N/A",B54=""),"",IFERROR(HLOOKUP(B54,'Étape 5 Sélectionner des TP-Air'!$T$45:$AE$48,2,FALSE),"")) ->  | D54: =IF(OR(B54="#N/A",B54=""),"",IFERROR(HLOOKUP(B54,'Étape 5 Sélectionner des TP-Air'!$T$45:$AE$48,IF('Étape 5 Sélectionner des TP-Air'!$I$55="EER",4,3),FALSE),"")) ->  | E54: =IF(OR(B54="#N/A",B54=""),"",IFERROR(HLOOKUP(B54,'Étape 5 Sélectionner des TP-Air'!$T$45:$AE$48,IF('Étape 5 Sélectionner des TP-Air'!$I$55="EER",3,4),FALSE),"")) ->  | M54: =IF('Étape 5 Sélectionner des TP-Air'!$E$49=Dropdown_Menus!$A$2,"",B54) ->  | N54: =IF(OR(M54="#N/A",M54=""),"",IFERROR(HLOOKUP(M54,'Étape 5 Sélectionner des TP-Air'!$S$54:$AM$57,2,FALSE),"")) ->  | O54: =IF(OR(M54="#N/A",M54=""),"",IFERROR(HLOOKUP(M54,'Étape 5 Sélectionner des TP-Air'!$S$54:$AM$57,IF('Étape 5 Sélectionner des TP-Air'!$I$55="EER",4,3),FALSE),"")) ->  | P54: =IF(OR(M54="#N/A",M54=""),"",IFERROR(HLOOKUP(M54,'Étape 5 Sélectionner des TP-Air'!$S$54:$AM$57,IF('Étape 5 Sélectionner des TP-Air'!$I$55="EER",3,4),FALSE),"")) -> 
B55: =IF(OR('Étape 5 Sélectionner des TP-Air'!$I$43,'Étape 5 Sélectionner des TP-Air'!$I$44),"",IF('Étape 5 Sélectionner des TP-Air'!$I$45,IF(MATCH(B54,$B$52:$B$63,0)>='Étape 5 Sélectionner des TP-Air'!$I$52,"",'Étape 5 Sélectionner des TP-Air'!$V$45),NA())) ->  | C55: =IF(OR(B55="#N/A",B55=""),"",IFERROR(HLOOKUP(B55,'Étape 5 Sélectionner des TP-Air'!$T$45:$AE$48,2,FALSE),"")) ->  | D55: =IF(OR(B55="#N/A",B55=""),"",IFERROR(HLOOKUP(B55,'Étape 5 Sélectionner des TP-Air'!$T$45:$AE$48,IF('Étape 5 Sélectionner des TP-Air'!$I$55="EER",4,3),FALSE),"")) ->  | E55: =IF(OR(B55="#N/A",B55=""),"",IFERROR(HLOOKUP(B55,'Étape 5 Sélectionner des TP-Air'!$T$45:$AE$48,IF('Étape 5 Sélectionner des TP-Air'!$I$55="EER",3,4),FALSE),"")) ->  | G55: Slope and Intercept at Rated Conditions (HP Cap) | M55: =IF('Étape 5 Sélectionner des TP-Air'!$E$49=Dropdown_Menus!$A$2,"",B55) ->  | N55: =IF(OR(M55="#N/A",M55=""),"",IFERROR(HLOOKUP(M55,'Étape 5 Sélectionner des TP-Air'!$S$54:$AM$57,2,FALSE),"")) ->  | O55: =IF(OR(M55="#N/A",M55=""),"",IFERROR(HLOOKUP(M55,'Étape 5 Sélectionner des TP-Air'!$S$54:$AM$57,IF('Étape 5 Sélectionner des TP-Air'!$I$55="EER",4,3),FALSE),"")) ->  | P55: =IF(OR(M55="#N/A",M55=""),"",IFERROR(HLOOKUP(M55,'Étape 5 Sélectionner des TP-Air'!$S$54:$AM$57,IF('Étape 5 Sélectionner des TP-Air'!$I$55="EER",3,4),FALSE),"")) ->  | T55: Slope and Intercept at Rated Conditions (HP Cap)
B56: =IF(OR('Étape 5 Sélectionner des TP-Air'!$I$43,'Étape 5 Sélectionner des TP-Air'!$I$44),"",IF('Étape 5 Sélectionner des TP-Air'!$I$45,IF(MATCH(B55,$B$52:$B$63,0)>='Étape 5 Sélectionner des TP-Air'!$I$52,"",'Étape 5 Sélectionner des TP-Air'!$W$45),NA())) ->  | C56: =IF(OR(B56="#N/A",B56=""),"",IFERROR(HLOOKUP(B56,'Étape 5 Sélectionner des TP-Air'!$T$45:$AE$48,2,FALSE),"")) ->  | D56: =IF(OR(B56="#N/A",B56=""),"",IFERROR(HLOOKUP(B56,'Étape 5 Sélectionner des TP-Air'!$T$45:$AE$48,IF('Étape 5 Sélectionner des TP-Air'!$I$55="EER",4,3),FALSE),"")) ->  | E56: =IF(OR(B56="#N/A",B56=""),"",IFERROR(HLOOKUP(B56,'Étape 5 Sélectionner des TP-Air'!$T$45:$AE$48,IF('Étape 5 Sélectionner des TP-Air'!$I$55="EER",3,4),FALSE),"")) ->  | G56: know ys (COP): | I56: know ys (capacity): | J56: know xs | M56: =IF('Étape 5 Sélectionner des TP-Air'!$E$49=Dropdown_Menus!$A$2,"",B56) ->  | N56: =IF(OR(M56="#N/A",M56=""),"",IFERROR(HLOOKUP(M56,'Étape 5 Sélectionner des TP-Air'!$S$54:$AM$57,2,FALSE),"")) ->  | O56: =IF(OR(M56="#N/A",M56=""),"",IFERROR(HLOOKUP(M56,'Étape 5 Sélectionner des TP-Air'!$S$54:$AM$57,IF('Étape 5 Sélectionner des TP-Air'!$I$55="EER",4,3),FALSE),"")) ->  | P56: =IF(OR(M56="#N/A",M56=""),"",IFERROR(HLOOKUP(M56,'Étape 5 Sélectionner des TP-Air'!$S$54:$AM$57,IF('Étape 5 Sélectionner des TP-Air'!$I$55="EER",3,4),FALSE),"")) ->  | T56: know ys (capacity): | U56: know xs
B57: =IF(OR('Étape 5 Sélectionner des TP-Air'!$I$43,'Étape 5 Sélectionner des TP-Air'!$I$44),"",IF('Étape 5 Sélectionner des TP-Air'!$I$45,IF(MATCH(B56,$B$52:$B$63,0)>='Étape 5 Sélectionner des TP-Air'!$I$52,"",'Étape 5 Sélectionner des TP-Air'!$X$45),NA())) ->  | C57: =IF(OR(B57="#N/A",B57=""),"",IFERROR(HLOOKUP(B57,'Étape 5 Sélectionner des TP-Air'!$T$45:$AE$48,2,FALSE),"")) ->  | D57: =IF(OR(B57="#N/A",B57=""),"",IFERROR(HLOOKUP(B57,'Étape 5 Sélectionner des TP-Air'!$T$45:$AE$48,IF('Étape 5 Sélectionner des TP-Air'!$I$55="EER",4,3),FALSE),"")) ->  | E57: =IF(OR(B57="#N/A",B57=""),"",IFERROR(HLOOKUP(B57,'Étape 5 Sélectionner des TP-Air'!$T$45:$AE$48,IF('Étape 5 Sélectionner des TP-Air'!$I$55="EER",3,4),FALSE),"")) ->  | G57: =INDEX(E52:E63,MATCH(J57,B52:B63,0)) ->  | I57: =INDEX(C52:C63,MATCH(J57,B52:B63,0)) -> 0 | J57: =IF(MAX(B52:B63)<IF('Étape 5 Sélectionner des TP-Air'!$E$53="°C",CONVERT(95,"F","C"),95),MAX(B52:B63),INDEX(B52:B63,MATCH(IF('Étape 5 Sélectionner des TP-Air'!$E$53="°C",CONVERT(95,"F","C"),95),B52:B63,-1))) -> 95 | M57: =IF('Étape 5 Sélectionner des TP-Air'!$E$49=Dropdown_Menus!$A$2,"",B57) ->  | N57: =IF(OR(M57="#N/A",M57=""),"",IFERROR(HLOOKUP(M57,'Étape 5 Sélectionner des TP-Air'!$S$54:$AM$57,2,FALSE),"")) ->  | O57: =IF(OR(M57="#N/A",M57=""),"",IFERROR(HLOOKUP(M57,'Étape 5 Sélectionner des TP-Air'!$S$54:$AM$57,IF('Étape 5 Sélectionner des TP-Air'!$I$55="EER",4,3),FALSE),"")) ->  | P57: =IF(OR(M57="#N/A",M57=""),"",IFERROR(HLOOKUP(M57,'Étape 5 Sélectionner des TP-Air'!$S$54:$AM$57,IF('Étape 5 Sélectionner des TP-Air'!$I$55="EER",3,4),FALSE),"")) ->  | T57: =INDEX(N52:N63,MATCH(U57,M52:M63,0)) -> 0 | U57: =IF(MAX(M52:M63)<IF('Étape 5 Sélectionner des TP-Air'!$E$53="°C",CONVERT(95,"F","C"),95),MAX(M52:M63),INDEX(M52:M63,MATCH(IF('Étape 5 Sélectionner des TP-Air'!$E$53="°C",CONVERT(95,"F","C"),95),M52:M63,-1))) -> 95
B58: =IF(OR('Étape 5 Sélectionner des TP-Air'!$I$43,'Étape 5 Sélectionner des TP-Air'!$I$44),"",IF('Étape 5 Sélectionner des TP-Air'!$I$45,IF(MATCH(B57,$B$52:$B$63,0)>='Étape 5 Sélectionner des TP-Air'!$I$52,"",'Étape 5 Sélectionner des TP-Air'!$Y$45),NA())) ->  | C58: =IF(OR(B58="#N/A",B58=""),"",IFERROR(HLOOKUP(B58,'Étape 5 Sélectionner des TP-Air'!$T$45:$AE$48,2,FALSE),"")) ->  | D58: =IF(OR(B58="#N/A",B58=""),"",IFERROR(HLOOKUP(B58,'Étape 5 Sélectionner des TP-Air'!$T$45:$AE$48,IF('Étape 5 Sélectionner des TP-Air'!$I$55="EER",4,3),FALSE),"")) ->  | E58: =IF(OR(B58="#N/A",B58=""),"",IFERROR(HLOOKUP(B58,'Étape 5 Sélectionner des TP-Air'!$T$45:$AE$48,IF('Étape 5 Sélectionner des TP-Air'!$I$55="EER",3,4),FALSE),"")) ->  | G58: =IF(J58="-","-",INDEX(E52:E63,MATCH(J58,B52:B63,0))) ->  | I58: =IF(J58="-","-",INDEX(C52:C63,MATCH(J58,B52:B63,0))) ->  | J58: =IF(J57=MIN(B52:B63),INDEX(B52:B63,MATCH(J57,B52:B63,0)-1),INDEX(B52:B63,MATCH(J57,B52:B63,0)+1)) ->  | M58: =IF('Étape 5 Sélectionner des TP-Air'!$E$49=Dropdown_Menus!$A$2,"",B58) ->  | N58: =IF(OR(M58="#N/A",M58=""),"",IFERROR(HLOOKUP(M58,'Étape 5 Sélectionner des TP-Air'!$S$54:$AM$57,2,FALSE),"")) ->  | O58: =IF(OR(M58="#N/A",M58=""),"",IFERROR(HLOOKUP(M58,'Étape 5 Sélectionner des TP-Air'!$S$54:$AM$57,IF('Étape 5 Sélectionner des TP-Air'!$I$55="EER",4,3),FALSE),"")) ->  | P58: =IF(OR(M58="#N/A",M58=""),"",IFERROR(HLOOKUP(M58,'Étape 5 Sélectionner des TP-Air'!$S$54:$AM$57,IF('Étape 5 Sélectionner des TP-Air'!$I$55="EER",3,4),FALSE),"")) ->  | T58: =IF(U58="-","-",INDEX(N52:N63,MATCH(U58,M52:M63,0))) ->  | U58: =IF(U57=MIN(M52:M63),INDEX(M52:M63,MATCH(U57,M52:M63,0)-1),INDEX(M52:M63,MATCH(U57,M52:M63,0)+1)) -> 
B59: =IF(OR('Étape 5 Sélectionner des TP-Air'!$I$43,'Étape 5 Sélectionner des TP-Air'!$I$44),"",IF('Étape 5 Sélectionner des TP-Air'!$I$45,IF(MATCH(B58,$B$52:$B$63,0)>='Étape 5 Sélectionner des TP-Air'!$I$52,"",'Étape 5 Sélectionner des TP-Air'!$Z$45),NA())) ->  | C59: =IF(OR(B59="#N/A",B59=""),"",IFERROR(HLOOKUP(B59,'Étape 5 Sélectionner des TP-Air'!$T$45:$AE$48,2,FALSE),"")) ->  | D59: =IF(OR(B59="#N/A",B59=""),"",IFERROR(HLOOKUP(B59,'Étape 5 Sélectionner des TP-Air'!$T$45:$AE$48,IF('Étape 5 Sélectionner des TP-Air'!$I$55="EER",4,3),FALSE),"")) ->  | E59: =IF(OR(B59="#N/A",B59=""),"",IFERROR(HLOOKUP(B59,'Étape 5 Sélectionner des TP-Air'!$T$45:$AE$48,IF('Étape 5 Sélectionner des TP-Air'!$I$55="EER",3,4),FALSE),"")) ->  | M59: =IF('Étape 5 Sélectionner des TP-Air'!$E$49=Dropdown_Menus!$A$2,"",B59) ->  | N59: =IF(OR(M59="#N/A",M59=""),"",IFERROR(HLOOKUP(M59,'Étape 5 Sélectionner des TP-Air'!$S$54:$AM$57,2,FALSE),"")) ->  | O59: =IF(OR(M59="#N/A",M59=""),"",IFERROR(HLOOKUP(M59,'Étape 5 Sélectionner des TP-Air'!$S$54:$AM$57,IF('Étape 5 Sélectionner des TP-Air'!$I$55="EER",4,3),FALSE),"")) ->  | P59: =IF(OR(M59="#N/A",M59=""),"",IFERROR(HLOOKUP(M59,'Étape 5 Sélectionner des TP-Air'!$S$54:$AM$57,IF('Étape 5 Sélectionner des TP-Air'!$I$55="EER",3,4),FALSE),"")) -> 
B60: =IF(OR('Étape 5 Sélectionner des TP-Air'!$I$43,'Étape 5 Sélectionner des TP-Air'!$I$44),"",IF('Étape 5 Sélectionner des TP-Air'!$I$45,IF(MATCH(B59,$B$52:$B$63,0)>='Étape 5 Sélectionner des TP-Air'!$I$52,"",'Étape 5 Sélectionner des TP-Air'!$AA$45),NA())) ->  | C60: =IF(OR(B60="#N/A",B60=""),"",IFERROR(HLOOKUP(B60,'Étape 5 Sélectionner des TP-Air'!$T$45:$AE$48,2,FALSE),"")) ->  | D60: =IF(OR(B60="#N/A",B60=""),"",IFERROR(HLOOKUP(B60,'Étape 5 Sélectionner des TP-Air'!$T$45:$AE$48,IF('Étape 5 Sélectionner des TP-Air'!$I$55="EER",4,3),FALSE),"")) ->  | E60: =IF(OR(B60="#N/A",B60=""),"",IFERROR(HLOOKUP(B60,'Étape 5 Sélectionner des TP-Air'!$T$45:$AE$48,IF('Étape 5 Sélectionner des TP-Air'!$I$55="EER",3,4),FALSE),"")) ->  | I60: Slope and Intercept at the Design Temp. | M60: =IF('Étape 5 Sélectionner des TP-Air'!$E$49=Dropdown_Menus!$A$2,"",B60) ->  | N60: =IF(OR(M60="#N/A",M60=""),"",IFERROR(HLOOKUP(M60,'Étape 5 Sélectionner des TP-Air'!$S$54:$AM$57,2,FALSE),"")) ->  | O60: =IF(OR(M60="#N/A",M60=""),"",IFERROR(HLOOKUP(M60,'Étape 5 Sélectionner des TP-Air'!$S$54:$AM$57,IF('Étape 5 Sélectionner des TP-Air'!$I$55="EER",4,3),FALSE),"")) ->  | P60: =IF(OR(M60="#N/A",M60=""),"",IFERROR(HLOOKUP(M60,'Étape 5 Sélectionner des TP-Air'!$S$54:$AM$57,IF('Étape 5 Sélectionner des TP-Air'!$I$55="EER",3,4),FALSE),"")) ->  | T60: Slope and Intercept at the Design Temp.
B61: =IF(OR('Étape 5 Sélectionner des TP-Air'!$I$43,'Étape 5 Sélectionner des TP-Air'!$I$44),"",IF('Étape 5 Sélectionner des TP-Air'!$I$45,IF(MATCH(B60,$B$52:$B$63,0)>='Étape 5 Sélectionner des TP-Air'!$I$52,"",'Étape 5 Sélectionner des TP-Air'!$AB$45),NA())) ->  | C61: =IF(OR(B61="#N/A",B61=""),"",IFERROR(HLOOKUP(B61,'Étape 5 Sélectionner des TP-Air'!$T$45:$AE$48,2,FALSE),"")) ->  | D61: =IF(OR(B61="#N/A",B61=""),"",IFERROR(HLOOKUP(B61,'Étape 5 Sélectionner des TP-Air'!$T$45:$AE$48,IF('Étape 5 Sélectionner des TP-Air'!$I$55="EER",4,3),FALSE),"")) ->  | E61: =IF(OR(B61="#N/A",B61=""),"",IFERROR(HLOOKUP(B61,'Étape 5 Sélectionner des TP-Air'!$T$45:$AE$48,IF('Étape 5 Sélectionner des TP-Air'!$I$55="EER",3,4),FALSE),"")) ->  | I61: know ys (capacity): | J61: know xs | M61: =IF('Étape 5 Sélectionner des TP-Air'!$E$49=Dropdown_Menus!$A$2,"",B61) ->  | N61: =IF(OR(M61="#N/A",M61=""),"",IFERROR(HLOOKUP(M61,'Étape 5 Sélectionner des TP-Air'!$S$54:$AM$57,2,FALSE),"")) ->  | O61: =IF(OR(M61="#N/A",M61=""),"",IFERROR(HLOOKUP(M61,'Étape 5 Sélectionner des TP-Air'!$S$54:$AM$57,IF('Étape 5 Sélectionner des TP-Air'!$I$55="EER",4,3),FALSE),"")) ->  | P61: =IF(OR(M61="#N/A",M61=""),"",IFERROR(HLOOKUP(M61,'Étape 5 Sélectionner des TP-Air'!$S$54:$AM$57,IF('Étape 5 Sélectionner des TP-Air'!$I$55="EER",3,4),FALSE),"")) ->  | T61: know ys (capacity): | U61: know xs
B62: =IF(OR('Étape 5 Sélectionner des TP-Air'!$I$43,'Étape 5 Sélectionner des TP-Air'!$I$44),"",IF('Étape 5 Sélectionner des TP-Air'!$I$45,IF(MATCH(B61,$B$52:$B$63,0)>='Étape 5 Sélectionner des TP-Air'!$I$52,"",'Étape 5 Sélectionner des TP-Air'!$AC$45),NA())) ->  | C62: =IF(OR(B62="#N/A",B62=""),"",IFERROR(HLOOKUP(B62,'Étape 5 Sélectionner des TP-Air'!$T$45:$AE$48,2,FALSE),"")) ->  | D62: =IF(OR(B62="#N/A",B62=""),"",IFERROR(HLOOKUP(B62,'Étape 5 Sélectionner des TP-Air'!$T$45:$AE$48,IF('Étape 5 Sélectionner des TP-Air'!$I$55="EER",4,3),FALSE),"")) ->  | E62: =IF(OR(B62="#N/A",B62=""),"",IFERROR(HLOOKUP(B62,'Étape 5 Sélectionner des TP-Air'!$T$45:$AE$48,IF('Étape 5 Sélectionner des TP-Air'!$I$55="EER",3,4),FALSE),"")) ->  | I62: =INDEX(C52:C63,MATCH(J62,B52:B63,0)) -> 0 | J62: =IF(C47<MIN(B52:B63),INDEX(B52:B63,MATCH(MIN(B52:B63),B52:B63,-1)),IFERROR(INDEX(B52:B63,MATCH(C47,B52:B63,0)),INDEX(B52:B63,MATCH(C47,B52:B63,-1)))) -> 95 | M62: =IF('Étape 5 Sélectionner des TP-Air'!$E$49=Dropdown_Menus!$A$2,"",B62) ->  | N62: =IF(OR(M62="#N/A",M62=""),"",IFERROR(HLOOKUP(M62,'Étape 5 Sélectionner des TP-Air'!$S$54:$AM$57,2,FALSE),"")) ->  | O62: =IF(OR(M62="#N/A",M62=""),"",IFERROR(HLOOKUP(M62,'Étape 5 Sélectionner des TP-Air'!$S$54:$AM$57,IF('Étape 5 Sélectionner des TP-Air'!$I$55="EER",4,3),FALSE),"")) ->  | P62: =IF(OR(M62="#N/A",M62=""),"",IFERROR(HLOOKUP(M62,'Étape 5 Sélectionner des TP-Air'!$S$54:$AM$57,IF('Étape 5 Sélectionner des TP-Air'!$I$55="EER",3,4),FALSE),"")) ->  | T62: =INDEX(N52:N63,MATCH(U62,M52:M63,0)) -> 0 | U62: =IF(N47<MIN(M52:M63),INDEX(M52:M63,MATCH(MIN(M52:M63),M52:M63,-1)),IFERROR(INDEX(M52:M63,MATCH(N47,M52:M63,0)),INDEX(M52:M63,MATCH(N47,M52:M63,-1)))) -> 95
B63: =IF(OR('Étape 5 Sélectionner des TP-Air'!$I$43,'Étape 5 Sélectionner des TP-Air'!$I$44),"",IF('Étape 5 Sélectionner des TP-Air'!$I$45,IF(MATCH(B62,$B$52:$B$63,0)>='Étape 5 Sélectionner des TP-Air'!$I$52,"",'Étape 5 Sélectionner des TP-Air'!$AD$45),NA())) ->  | C63: =IF(OR(B63="#N/A",B63=""),"",IFERROR(HLOOKUP(B63,'Étape 5 Sélectionner des TP-Air'!$T$45:$AE$48,2,FALSE),"")) ->  | D63: =IF(OR(B63="#N/A",B63=""),"",IFERROR(HLOOKUP(B63,'Étape 5 Sélectionner des TP-Air'!$T$45:$AE$48,IF('Étape 5 Sélectionner des TP-Air'!$I$55="EER",4,3),FALSE),"")) ->  | E63: =IF(OR(B63="#N/A",B63=""),"",IFERROR(HLOOKUP(B63,'Étape 5 Sélectionner des TP-Air'!$T$45:$AE$48,IF('Étape 5 Sélectionner des TP-Air'!$I$55="EER",3,4),FALSE),"")) ->  | I63: =IF(J63="-","-",INDEX(C52:C63,MATCH(J63,B52:B63,0))) ->  | J63: =IF(J62=C47,"-",INDEX(B52:B63,MATCH(J62,B52:B63,0)+1)) ->  | M63: =IF('Étape 5 Sélectionner des TP-Air'!$E$49=Dropdown_Menus!$A$2,"",B63) ->  | N63: =IF(OR(M63="#N/A",M63=""),"",IFERROR(HLOOKUP(M63,'Étape 5 Sélectionner des TP-Air'!$S$54:$AM$57,2,FALSE),"")) ->  | O63: =IF(OR(M63="#N/A",M63=""),"",IFERROR(HLOOKUP(M63,'Étape 5 Sélectionner des TP-Air'!$S$54:$AM$57,IF('Étape 5 Sélectionner des TP-Air'!$I$55="EER",4,3),FALSE),"")) ->  | P63: =IF(OR(M63="#N/A",M63=""),"",IFERROR(HLOOKUP(M63,'Étape 5 Sélectionner des TP-Air'!$S$54:$AM$57,IF('Étape 5 Sélectionner des TP-Air'!$I$55="EER",3,4),FALSE),"")) ->  | T63: =IF(U63="-","-",INDEX(N52:N63,MATCH(U63,M52:M63,0))) ->  | U63: =IF(U62=N47,"-",INDEX(M52:M63,MATCH(U62,M52:M63,0)+1)) -> 

Sheet HP3 (hidden)
B1: Actual Curves - HP #1
B3: Heating - High Stage | M3: Heating - Low Stage | X3: Heating Load Line
B5: Design Temp. (heat) | C5: ='Design Load Calcs'!$B$24 -> -13 | D5: ='Étape 5 Sélectionner des TP-Air'!$E$72 -> °F | M5: Design Temp. (heat) | N5: ='Design Load Calcs'!$B$24 -> -13
B7: Performance Data and Heating Load Line | I7: Outputs: | T7: Outputs:
B8: Outdoor Temp. | C8: Actual Capacity | D8: Actual Power | E8: Actual COP | F8: Heating Load Line | G8: Intersect. Cap/Htg Load Line | I8: =CONCATENATE("HP cap @ Design Temp.",IF('Étape 5 Sélectionner des TP-Air'!$E$73="kW"," [kW]"," [BTU/h]")) -> HP cap @ Design Temp. [BTU/h] | J8: =IF(OR(G34="-",G34=C5),F34,SLOPE(F34:F35,G34:G35)*C5+INTERCEPT(F34:F35,G34:G35)) -> 0 | M8: Outdoor Temp. | N8: Actual Capacity | O8: Actual Power | P8: Actual COP | Q8: Heating Load Line | R8: Intersect. Cap/Htg Load Line | T8: =CONCATENATE("HP cap @ Design Temp.",IF('Introduction & Options d''Unité'!$B$12=Dropdown_Menus!Q1," [kW]"," [BTU/h]")) -> HP cap @ Design Temp. [kW] | U8: =IF(OR(R34="-",R34=N5),Q34,SLOPE(Q34:Q35,R34:R35)*N5+INTERCEPT(Q34:Q35,R34:R35)) -> 0
B9: =IF('Introduction & Options d''Unité'!$B$12=Dropdown_Menus!$F$1,"[°C]","[°F]") -> [°F] | C9: =IF('Introduction & Options d''Unité'!$B$12=Dropdown_Menus!$F$1,"[kW]","[BTU/h]") -> [BTU/h] | D9: [kW] | E9: [-] | F9: =IF('Introduction & Options d''Unité'!$B$12=Dropdown_Menus!$F$1,"[kW]","[BTU/h]") -> [BTU/h] | I9: =CONCATENATE("BPT",IF('Étape 5 Sélectionner des TP-Air'!$E$72="°C"," [°C]"," [°F]")) -> BPT [°F] | J9: =IF(C10-F10<0,NA(),IF((INDEX(C10:C29,MATCH(C40,B10:B29,0))-INDEX(F10:F29,MATCH(C40,B10:B29,0)))>0,IF(E41<B30,NA(),E41),IF(C41<B30,NA(),C41))) ->  | M9: =IF('Introduction & Options d''Unité'!$B$12=Dropdown_Menus!$F$1,"[°C]","[°F]") -> [°F] | N9: =IF('Introduction & Options d''Unité'!$B$12=Dropdown_Menus!$F$1,"[kW]","[BTU/h]") -> [BTU/h] | O9: [kW] | P9: [-] | Q9: =IF('Introduction & Options d''Unité'!$B$12=Dropdown_Menus!$F$1,"[kW]","[BTU/h]") -> [BTU/h] | T9: =CONCATENATE("BPT",IF('Introduction & Options d''Unité'!$B$12=Dropdown_Menus!Q1," [°C]"," [°F]")) -> BPT [°C] | U9: =IF(N10-Q10<0,NA(),IF((INDEX(N10:N29,MATCH(N40,M10:M29,0))-INDEX(Q10:Q29,MATCH(N40,M10:M29,0)))>0,IF(P41<M30,NA(),P41),IF(N41<M30,NA(),N41))) -> 
B10: =IF(OR('Étape 5 Sélectionner des TP-Air'!$I$62,'Étape 5 Sélectionner des TP-Air'!$I$63,'Étape 5 Sélectionner des TP-Air'!$I$64),'Étape 5 Sélectionner des TP-Air'!$S$60,NA()) -> 47 | C10: =IF(OR(B10="#N/A",B10=""),"",IFERROR(HLOOKUP(B10,'Étape 5 Sélectionner des TP-Air'!$S$60:$AM$63,2,FALSE),"")) -> 0 | D10: =IF(OR(B10="#N/A",B10=""),"",IFERROR(HLOOKUP(B10,'Étape 5 Sélectionner des TP-Air'!$S$60:$AM$63,IF('Étape 5 Sélectionner des TP-Air'!$I$73="COP",4,3),FALSE),"")) -> 0 | E10: =IF(OR(B10="#N/A",B10=""),"",IFERROR(HLOOKUP(B10,'Étape 5 Sélectionner des TP-Air'!$S$60:$AM$63,IF('Étape 5 Sélectionner des TP-Air'!$I$73="COP",3,4),FALSE),"")) ->  | F10: =(B10*$X$18+$Y$18) -> 5986.394558 | G10: =IF(B10="","",ABS(C10-F10)) -> 5986.394558 | H10: =IF(AND(ISNUMBER(B10),ISNUMBER(B11)),IF(OR(AND(C10>=F10,C11<=F11),AND(C10<=F10,C11>=F11)),1,0),0) -> 0 | I10: Fraction of heating above BPT | J10: =IF(ISNUMBER(MATCH(J9,'Loads %'!N8:N24,0)),F39,SLOPE(F39:F40,G39:G40)*J9+INTERCEPT(F39:F40,G39:G40)) ->  | M10: =IF('Étape 5 Sélectionner des TP-Air'!$E$68=Dropdown_Menus!$A$2,"",B10) -> 47 | N10: =IF(OR(M10="#N/A",M10=""),"",IFERROR(HLOOKUP(M10,'Étape 5 Sélectionner des TP-Air'!$S$69:$AM$72,2,FALSE),"")) -> 0 | O10: =IF(OR(M10="#N/A",M10=""),"",IFERROR(HLOOKUP(M10,'Étape 5 Sélectionner des TP-Air'!$S$69:$AM$72,IF('Étape 5 Sélectionner des TP-Air'!$I$73="COP",4,3),FALSE),"")) -> 0 | P10: =IF(OR(B10="#N/A",B10=""),"",IFERROR(HLOOKUP(B10,'Étape 5 Sélectionner des TP-Air'!$S$69:$AM$72,IF('Étape 5 Sélectionner des TP-Air'!$I$73="COP",3,4),FALSE),"")) ->  | Q10: =(M10*$X$18+$Y$18) -> 5986.394558 | R10: =IF(M10="","",ABS(N10-Q10)) -> 5986.394558 | S10: =IF(AND(ISNUMBER(M10),ISNUMBER(M11)),IF(OR(AND(N10>=Q10,N11<=Q11),AND(N10<=Q10,N11>=Q11)),1,0),0) -> 0 | T10: Fraction of heating above BPT | U10: =SLOPE(Q39:Q40,R39:R40)*U9+INTERCEPT(Q39:Q40,R39:R40) -> 
B11: =IF(OR('Étape 5 Sélectionner des TP-Air'!$I$62,'Étape 5 Sélectionner des TP-Air'!$I$63,'Étape 5 Sélectionner des TP-Air'!$I$64),'Étape 5 Sélectionner des TP-Air'!$T$60,NA()) -> 17 | C11: =IF(OR(B11="#N/A",B11=""),"",IFERROR(HLOOKUP(B11,'Étape 5 Sélectionner des TP-Air'!$S$60:$AM$63,2,FALSE),"")) -> 0 | D11: =IF(OR(B11="#N/A",B11=""),"",IFERROR(HLOOKUP(B11,'Étape 5 Sélectionner des TP-Air'!$S$60:$AM$63,IF('Étape 5 Sélectionner des TP-Air'!$I$73="COP",4,3),FALSE),"")) -> 0 | E11: =IF(OR(B11="#N/A",B11=""),"",IFERROR(HLOOKUP(B11,'Étape 5 Sélectionner des TP-Air'!$S$60:$AM$63,IF('Étape 5 Sélectionner des TP-Air'!$I$73="COP",3,4),FALSE),"")) ->  | F11: =(B11*$X$18+$Y$18) -> 22993.19728 | G11: =IF(B11="","",ABS(C11-F11)) -> 22993.19728 | H11: =IF(AND(ISNUMBER(B11),ISNUMBER(B12)),IF(OR(AND(C11>=F11,C12<=F12),AND(C11<=F11,C12>=F12)),1,0),0) -> 0 | I11: =CONCATENATE("HP cap @ BPT",IF('Étape 5 Sélectionner des TP-Air'!$E$73="kW"," [kW]"," [BTU/h]")) -> HP cap @ BPT [BTU/h] | J11: =IF((C10-F10)<0,"Aucun",IF((INDEX(C10:C29,MATCH(C40,B10:B29,0))-INDEX(F10:F29,MATCH(C40,B10:B29,0)))>0,SLOPE(D39:D40,E39:E40)*J9+INTERCEPT(D39:D40,E39:E40),SLOPE(B39:B40,C39:C40)*J9+INTERCEPT(B39:B40,C39:C40))) -> Aucun | M11: =IF('Étape 5 Sélectionner des TP-Air'!$E$68=Dropdown_Menus!$A$2,"",B11) -> 17 | N11: =IF(OR(M11="#N/A",M11=""),"",IFERROR(HLOOKUP(M11,'Étape 5 Sélectionner des TP-Air'!$S$69:$AM$72,2,FALSE),"")) -> 0 | O11: =IF(OR(M11="#N/A",M11=""),"",IFERROR(HLOOKUP(M11,'Étape 5 Sélectionner des TP-Air'!$S$69:$AM$72,IF('Étape 5 Sélectionner des TP-Air'!$I$73="COP",4,3),FALSE),"")) -> 0 | P11: =IF(OR(B11="#N/A",B11=""),"",IFERROR(HLOOKUP(B11,'Étape 5 Sélectionner des TP-Air'!$S$69:$AM$72,IF('Étape 5 Sélectionner des TP-Air'!$I$73="COP",3,4),FALSE),"")) ->  | Q11: =(M11*$X$18+$Y$18) -> 22993.19728 | R11: =IF(M11="","",ABS(N11-Q11)) -> 22993.19728 | S11: =IF(AND(ISNUMBER(M11),ISNUMBER(M12)),IF(OR(AND(N11>=Q11,N12<=Q12),AND(N11<=Q11,N12>=Q12)),1,0),0) -> 0 | T11: =CONCATENATE("HP cap @ BPT",IF('Introduction & Options d''Unité'!$B$12=Dropdown_Menus!Q1," [kW]"," [BTU/h]")) -> HP cap @ BPT [kW] | U11: =IF((N10-Q10)<0,"None",IF((INDEX(N10:N29,MATCH(N40,M10:M29,0))-INDEX(Q10:Q29,MATCH(N40,M10:M29,0)))>0,SLOPE(O39:O40,P39:P40)*U9+INTERCEPT(O39:O40,P39:P40),SLOPE(M39:M40,N39:N40)*U9+INTERCEPT(M39:M40,N39:N40))) -> None
B12: =IF('Étape 5 Sélectionner des TP-Air'!$I$62,"",IF('Étape 5 Sélectionner des TP-Air'!$I$63,'Étape 5 Sélectionner des TP-Air'!$U$60,IF('Étape 5 Sélectionner des TP-Air'!$I$64,IF(MATCH(B11,$B$10:$B$29,0)>='Étape 5 Sélectionner des TP-Air'!$I$70,"",'Étape 5 Sélectionner des TP-Air'!$U$60),NA()))) ->  | C12: =IF(OR(B12="#N/A",B12=""),"",IFERROR(HLOOKUP(B12,'Étape 5 Sélectionner des TP-Air'!$S$60:$AM$63,2,FALSE),"")) ->  | D12: =IF(OR(B12="#N/A",B12=""),"",IFERROR(HLOOKUP(B12,'Étape 5 Sélectionner des TP-Air'!$S$60:$AM$63,IF('Étape 5 Sélectionner des TP-Air'!$I$73="COP",4,3),FALSE),"")) ->  | E12: =IF(OR(B12="#N/A",B12=""),"",IFERROR(HLOOKUP(B12,'Étape 5 Sélectionner des TP-Air'!$S$60:$AM$63,IF('Étape 5 Sélectionner des TP-Air'!$I$73="COP",3,4),FALSE),"")) ->  | F12: =(B12*$X$18+$Y$18) ->  | H12: 0 | I12: =CONCATENATE("HP cap @",IF('Étape 5 Sélectionner des TP-Air'!$E$72="°C",CONVERT(47,"F","C"),47),IF('Étape 5 Sélectionner des TP-Air'!$E$72="°C"," C"," F"),IF('Étape 5 Sélectionner des TP-Air'!$E$73="kW"," [kW]"," [BTU/h]")) -> HP cap @47 F [BTU/h] | J12: =IF(OR('Étape 5 Sélectionner des TP-Air'!$I$62,'Étape 5 Sélectionner des TP-Air'!$I$63,'Étape 5 Sélectionner des TP-Air'!$I$65),'HP1'!C10,IFERROR(INDEX('HP1'!C10:C29,MATCH(IF(NOT(RIGHT('Étape 5 Sélectionner des TP-Air'!$E$72,1)=Dropdown_Menus!$F$3),CONVERT(47,"F","C"),47),'HP1'!B10:B29,0)),SLOPE(I35:I36,J35:J36)*IF(NOT(RIGHT('Étape 5 Sélectionner des TP-Air'!$E$72,1)=Dropdown_Menus!$F$3),CONVERT(47,"F","C"),47)+INTERCEPT(I35:I36,J35:J36))) -> 0 | M12: =IF('Étape 5 Sélectionner des TP-Air'!$E$68=Dropdown_Menus!$A$2,"",B12) ->  | N12: =IF(OR(M12="#N/A",M12=""),"",IFERROR(HLOOKUP(M12,'Étape 5 Sélectionner des TP-Air'!$S$69:$AM$72,2,FALSE),"")) ->  | O12: =IF(OR(M12="#N/A",M12=""),"",IFERROR(HLOOKUP(M12,'Étape 5 Sélectionner des TP-Air'!$S$69:$AM$72,IF('Étape 5 Sélectionner des TP-Air'!$I$73="COP",4,3),FALSE),"")) ->  | P12: =IF(OR(B12="#N/A",B12=""),"",IFERROR(HLOOKUP(B12,'Étape 5 Sélectionner des TP-Air'!$S$69:$AM$72,IF('Étape 5 Sélectionner des TP-Air'!$I$73="COP",3,4),FALSE),"")) ->  | Q12: =(M12*$X$18+$Y$18) ->  | S12: 0
B13: =IF(OR('Étape 5 Sélectionner des TP-Air'!$I$62,'Étape 5 Sélectionner des TP-Air'!$I$63),"",IF('Étape 5 Sélectionner des TP-Air'!$I$64,IF(MATCH(B12,$B$10:$B$29,0)>='Étape 5 Sélectionner des TP-Air'!$I$70,"",'Étape 5 Sélectionner des TP-Air'!$V$60),NA())) ->  | C13: =IF(OR(B13="#N/A",B13=""),"",IFERROR(HLOOKUP(B13,'Étape 5 Sélectionner des TP-Air'!$S$60:$AM$63,2,FALSE),"")) ->  | D13: =IF(OR(B13="#N/A",B13=""),"",IFERROR(HLOOKUP(B13,'Étape 5 Sélectionner des TP-Air'!$S$60:$AM$63,IF('Étape 5 Sélectionner des TP-Air'!$I$73="COP",4,3),FALSE),"")) ->  | E13: =IF(OR(B13="#N/A",B13=""),"",IFERROR(HLOOKUP(B13,'Étape 5 Sélectionner des TP-Air'!$S$60:$AM$63,IF('Étape 5 Sélectionner des TP-Air'!$I$73="COP",3,4),FALSE),"")) ->  | H13: 0 | I13: =CONCATENATE("HP cap @",IF('Étape 5 Sélectionner des TP-Air'!$E$72="°C",CONVERT(17,"F","C"),17),IF('Étape 5 Sélectionner des TP-Air'!$E$72="°C"," C"," F"),IF('Étape 5 Sélectionner des TP-Air'!$E$73="kW"," [kW]"," [BTU/h]")) -> HP cap @17 F [BTU/h] | J13: =IF(OR('Étape 5 Sélectionner des TP-Air'!$I$62,'Étape 5 Sélectionner des TP-Air'!$I$63,'Étape 5 Sélectionner des TP-Air'!$I$65),'HP1'!C11,IFERROR(INDEX('HP1'!C10:C29,MATCH(IF(NOT(RIGHT('Étape 5 Sélectionner des TP-Air'!$E$72,1)=Dropdown_Menus!$F$3),CONVERT(17,"F","C"),17),'HP1'!B10:B29,0)),SLOPE(I39:I40,J39:J40)*IF(NOT(RIGHT('Étape 5 Sélectionner des TP-Air'!$E$72,1)=Dropdown_Menus!$F$3),CONVERT(17,"F","C"),17)+INTERCEPT(I39:I40,J39:J40))) -> 0 | M13: =IF('Étape 5 Sélectionner des TP-Air'!$E$68=Dropdown_Menus!$A$2,"",B13) ->  | N13: =IF(OR(M13="#N/A",M13=""),"",IFERROR(HLOOKUP(M13,'Étape 5 Sélectionner des TP-Air'!$S$69:$AM$72,2,FALSE),"")) ->  | O13: =IF(OR(M13="#N/A",M13=""),"",IFERROR(HLOOKUP(M13,'Étape 5 Sélectionner des TP-Air'!$S$69:$AM$72,IF('Étape 5 Sélectionner des TP-Air'!$I$73="COP",4,3),FALSE),"")) ->  | P13: =IF(OR(B13="#N/A",B13=""),"",IFERROR(HLOOKUP(B13,'Étape 5 Sélectionner des TP-Air'!$S$69:$AM$72,IF('Étape 5 Sélectionner des TP-Air'!$I$73="COP",3,4),FALSE),"")) ->  | S13: 0 | X13: Outdoor Temperature | Y13: =IF('Étape 5 Sélectionner des TP-Air'!$E$35=Dropdown_Menus!$F$2,"Heating Load (BTU/hr)","Heating Load (kW)") -> Heating Load (BTU/hr)
B14: =IF(OR('Étape 5 Sélectionner des TP-Air'!$I$62,'Étape 5 Sélectionner des TP-Air'!$I$63),"",IF('Étape 5 Sélectionner des TP-Air'!$I$64,IF(MATCH(B13,$B$10:$B$29,0)>='Étape 5 Sélectionner des TP-Air'!$I$70,"",'Étape 5 Sélectionner des TP-Air'!$W$60),NA())) ->  | C14: =IF(OR(B14="#N/A",B14=""),"",IFERROR(HLOOKUP(B14,'Étape 5 Sélectionner des TP-Air'!$S$60:$AM$63,2,FALSE),"")) ->  | D14: =IF(OR(B14="#N/A",B14=""),"",IFERROR(HLOOKUP(B14,'Étape 5 Sélectionner des TP-Air'!$S$60:$AM$63,IF('Étape 5 Sélectionner des TP-Air'!$I$73="COP",4,3),FALSE),"")) ->  | E14: =IF(OR(B14="#N/A",B14=""),"",IFERROR(HLOOKUP(B14,'Étape 5 Sélectionner des TP-Air'!$S$60:$AM$63,IF('Étape 5 Sélectionner des TP-Air'!$I$73="COP",3,4),FALSE),"")) ->  | G14: =IF(B14="","",ABS(C14-F14)) ->  | H14: 0 | I14: Max Cap | J14: =IFERROR(MAX(C10:C30),0) -> 0 | M14: =IF('Étape 5 Sélectionner des TP-Air'!$E$68=Dropdown_Menus!$A$2,"",B14) ->  | N14: =IF(OR(M14="#N/A",M14=""),"",IFERROR(HLOOKUP(M14,'Étape 5 Sélectionner des TP-Air'!$S$69:$AM$72,2,FALSE),"")) ->  | O14: =IF(OR(M14="#N/A",M14=""),"",IFERROR(HLOOKUP(M14,'Étape 5 Sélectionner des TP-Air'!$S$69:$AM$72,IF('Étape 5 Sélectionner des TP-Air'!$I$73="COP",4,3),FALSE),"")) ->  | P14: =IF(OR(B14="#N/A",B14=""),"",IFERROR(HLOOKUP(B14,'Étape 5 Sélectionner des TP-Air'!$S$69:$AM$72,IF('Étape 5 Sélectionner des TP-Air'!$I$73="COP",3,4),FALSE),"")) ->  | S14: 0 | X14: =IF('Étape 3 Charges de Conception'!$B$5<>'Étape 5 Sélectionner des TP-Air'!E72,IF('Étape 3 Charges de Conception'!$B$5="°F",CONVERT('Design Load Calcs'!$G$4,"F","C"),CONVERT('Design Load Calcs'!$G$4,"C","F")),'Design Load Calcs'!$G$4) -> -13 | Y14: =IF('Étape 3 Charges de Conception'!$B$6<>'Étape 5 Sélectionner des TP-Air'!E73,IF('Étape 3 Charges de Conception'!$B$6=Dropdown_Menus!$F$2,'Design Load Calcs'!$H$4/1000/3.412,'Design Load Calcs'!$H$4*1000*3.412),'Design Load Calcs'!$H$4) -> 40000
B15: =IF(OR('Étape 5 Sélectionner des TP-Air'!$I$62,'Étape 5 Sélectionner des TP-Air'!$I$63),"",IF('Étape 5 Sélectionner des TP-Air'!$I$64,IF(MATCH(B14,$B$10:$B$29,0)>='Étape 5 Sélectionner des TP-Air'!$I$70,"",'Étape 5 Sélectionner des TP-Air'!$X$60),NA())) ->  | C15: =IF(OR(B15="#N/A",B15=""),"",IFERROR(HLOOKUP(B15,'Étape 5 Sélectionner des TP-Air'!$S$60:$AM$63,2,FALSE),"")) ->  | D15: =IF(OR(B15="#N/A",B15=""),"",IFERROR(HLOOKUP(B15,'Étape 5 Sélectionner des TP-Air'!$S$60:$AM$63,IF('Étape 5 Sélectionner des TP-Air'!$I$73="COP",4,3),FALSE),"")) ->  | E15: =IF(OR(B15="#N/A",B15=""),"",IFERROR(HLOOKUP(B15,'Étape 5 Sélectionner des TP-Air'!$S$60:$AM$63,IF('Étape 5 Sélectionner des TP-Air'!$I$73="COP",3,4),FALSE),"")) ->  | H15: 0 | I15: =CONCATENATE("HP pwr @",IF('Étape 5 Sélectionner des TP-Air'!$E$72="°C",CONVERT(47,"F","C"),47),IF('Étape 5 Sélectionner des TP-Air'!$E$72="°C"," C"," F")," [kW]") -> HP pwr @47 F [kW] | J15: =IF(OR('Étape 5 Sélectionner des TP-Air'!$I$62,'Étape 5 Sélectionner des TP-Air'!$I$63,'Étape 5 Sélectionner des TP-Air'!$I$65),'HP1'!D10,IFERROR(INDEX('HP1'!D10:D29,MATCH(IF(NOT(RIGHT('Étape 5 Sélectionner des TP-Air'!$E$72,1)=Dropdown_Menus!$F$3),CONVERT(47,"F","C"),47),'HP1'!B10:B29,0)),SLOPE(I27:I28,J27:J28)*IF(NOT(RIGHT('Étape 5 Sélectionner des TP-Air'!$E$72,1)=Dropdown_Menus!$F$3),CONVERT(47,"F","C"),47)+INTERCEPT(I27:I28,J27:J28))) -> 0 | M15: =IF('Étape 5 Sélectionner des TP-Air'!$E$68=Dropdown_Menus!$A$2,"",B15) ->  | N15: =IF(OR(M15="#N/A",M15=""),"",IFERROR(HLOOKUP(M15,'Étape 5 Sélectionner des TP-Air'!$S$69:$AM$72,2,FALSE),"")) ->  | O15: =IF(OR(M15="#N/A",M15=""),"",IFERROR(HLOOKUP(M15,'Étape 5 Sélectionner des TP-Air'!$S$69:$AM$72,IF('Étape 5 Sélectionner des TP-Air'!$I$73="COP",4,3),FALSE),"")) ->  | P15: =IF(OR(B15="#N/A",B15=""),"",IFERROR(HLOOKUP(B15,'Étape 5 Sélectionner des TP-Air'!$S$69:$AM$72,IF('Étape 5 Sélectionner des TP-Air'!$I$73="COP",3,4),FALSE),"")) ->  | S15: 0 | X15: =IF('Étape 3 Charges de Conception'!$B$5<>'Étape 5 Sélectionner des TP-Air'!E72,IF('Étape 3 Charges de Conception'!$B$5="°F",CONVERT('Design Load Calcs'!$G$5,"F","C"),CONVERT('Design Load Calcs'!$G$5,"C","F")),'Design Load Calcs'!$G$5) -> 57.56 | Y15: =IF('Étape 3 Charges de Conception'!$B$6<>'Étape 5 Sélectionner des TP-Air'!E73,IF('Étape 3 Charges de Conception'!$B$6=Dropdown_Menus!$F$2,'Design Load Calcs'!$H$5/1000/3.412,'Design Load Calcs'!$H$5*1000*3.412),'Design Load Calcs'!$H$5) -> 0
B16: =IF(OR('Étape 5 Sélectionner des TP-Air'!$I$62,'Étape 5 Sélectionner des TP-Air'!$I$63),"",IF('Étape 5 Sélectionner des TP-Air'!$I$64,IF(MATCH(B15,$B$10:$B$29,0)>='Étape 5 Sélectionner des TP-Air'!$I$70,"",'Étape 5 Sélectionner des TP-Air'!$Y$60),NA())) ->  | C16: =IF(OR(B16="#N/A",B16=""),"",IFERROR(HLOOKUP(B16,'Étape 5 Sélectionner des TP-Air'!$S$60:$AM$63,2,FALSE),"")) ->  | D16: =IF(OR(B16="#N/A",B16=""),"",IFERROR(HLOOKUP(B16,'Étape 5 Sélectionner des TP-Air'!$S$60:$AM$63,IF('Étape 5 Sélectionner des TP-Air'!$I$73="COP",4,3),FALSE),"")) ->  | E16: =IF(OR(B16="#N/A",B16=""),"",IFERROR(HLOOKUP(B16,'Étape 5 Sélectionner des TP-Air'!$S$60:$AM$63,IF('Étape 5 Sélectionner des TP-Air'!$I$73="COP",3,4),FALSE),"")) ->  | H16: 0 | I16: =CONCATENATE("HP pwr @",IF('Étape 5 Sélectionner des TP-Air'!$E$72="°C",CONVERT(17,"F","C"),17),IF('Étape 5 Sélectionner des TP-Air'!$E$72="°C"," C"," F")," [kW]") -> HP pwr @17 F [kW] | J16: =IF(OR('Étape 5 Sélectionner des TP-Air'!$I$62,'Étape 5 Sélectionner des TP-Air'!$I$63,'Étape 5 Sélectionner des TP-Air'!$I$65),'HP1'!D11,IFERROR(INDEX('HP1'!D10:D29,MATCH(IF(NOT(RIGHT('Étape 5 Sélectionner des TP-Air'!$E$72,1)=Dropdown_Menus!$F$3),CONVERT(17,"F","C"),17),'HP1'!B10:B29,0)),SLOPE(I31:I32,J31:J32)*IF(NOT(RIGHT('Étape 5 Sélectionner des TP-Air'!$E$72,1)=Dropdown_Menus!$F$3),CONVERT(17,"F","C"),17)+INTERCEPT(I31:I32,J31:J32))) -> 0 | M16: =IF('Étape 5 Sélectionner des TP-Air'!$E$68=Dropdown_Menus!$A$2,"",B16) ->  | N16: =IF(OR(M16="#N/A",M16=""),"",IFERROR(HLOOKUP(M16,'Étape 5 Sélectionner des TP-Air'!$S$69:$AM$72,2,FALSE),"")) ->  | O16: =IF(OR(M16="#N/A",M16=""),"",IFERROR(HLOOKUP(M16,'Étape 5 Sélectionner des TP-Air'!$S$69:$AM$72,IF('Étape 5 Sélectionner des TP-Air'!$I$73="COP",4,3),FALSE),"")) ->  | P16: =IF(OR(B16="#N/A",B16=""),"",IFERROR(HLOOKUP(B16,'Étape 5 Sélectionner des TP-Air'!$S$69:$AM$72,IF('Étape 5 Sélectionner des TP-Air'!$I$73="COP",3,4),FALSE),"")) ->  | S16: 0 | T16: Slope @ t-BPT: | U16: =IF((N10-Q10)<0,"None",IF((INDEX(N10:N29,MATCH(N40,M10:M29,0))-INDEX(Q10:Q29,MATCH(N40,M10:M29,0)))>0,SLOPE(O39:O40,P39:P40),SLOPE(M39:M40,N39:N40))) -> None
